{"text_format":"1","workbook":"xlsx","n_sheets":3,"sheets":["Рекомендации","Полномочные","справочники"],"not_rendered":{"charts":0,"images":0,"macros":1,"external_links":0,"defined_names":6,"comments":0,"pivot_tables":0},"unopened":[],"bounds":{"document_bytes":16777216,"sheet_cells":100000,"rows_first":2000,"rows_last":500,"rows_between":2000,"halvings":0,"cell_chars":16384,"cell_head_chars":4096},"cells_cut":0,"cells_raw":0,"read":"whole","date_system":"1900"}

{"sheet":"Рекомендации","index":0,"n_rows":60,"n_cols":1,"rows_kept":60,"cut":false,"hidden":false,"merged":[]}
["Методические рекомендации применения Книги подразделения ИВДИВО Аватарам ИВДИВО-Воспитания и Главам подразделений"]
[]
["Утверждаю. КХ 22042022"]
["Редакция книги 14112024"]
[]
["Данная Книга является инструментом подразделения ИВДИВО и рекомендована к применению."]
[]
["Алгоритм формирования столпа подразделения в 2023-2024 служебном году:"]
["1. Минимальный состав подразделения - 16 Аватаров. Максимальный состав подразделения - 448 Должностно Компетентных: 64 Аватара, 64 Владыки, 64 Учителя, 64 Ипостаси, 64 Посвящённых, 64 Изначальных."]
["2. Должности заполняются последовательно от Аватара подразделения  ИВДИВО к Изначальному Отдела Прадвижения."]
["3.  Все, кто не стяжал Абсолют ИВО в столп Аватаров, Владык, Учителей, Ипостасей не входят, кроме исключений согласно Рс.4. Они являются Служащими, Посвящёнными или Изначальными"]
["4. Филиалы оформляются согласно Рс.4, п. 59 и Рг.3, п.10-26."]
[]
["Книга содержит программы, поэтому при ее открытии Excel может запросить разрешения. Разрешайте, чтобы включить весь функционал этого инструмента вашего Служения. Если что-то не работает, значит вы не включили содержание Книги при ее открытии или у вас настолько старая версия Excel, что она не понимает применённый здесь язык программирования."]
[]
["Заполнение Книги начинается на листе \"Полномочные\". В первой строке из выпадающего списка выберите подразделение. Это единственная настройка книги."]
["Далее следует вводить данные Совета ИВО и Основного состава подразделения и филиалов. Идея книги в том, что именно в ней должны содержаться данные столпа и контакты Компетентных подразделения. В контактах обязательно указывайте адрес электронной почты и номер телефона в международном формате."]
["Ввод данных идёт последовательно, сверху вниз. В рабочем порядке в процессе формирования столпа в столбце \"ФИО\" указывайте \"вакансия\". Но в итоговом варианте столпа вакансий быть не может. Программа формирует документ word до первой пустого значения в столбце \"ФИО\"."]
["На листе \"Полномочные\" в столбце  \"G\" для каждого полномочного указываем в Основном составе \"Владыка (Владычица) Синтеза\" для Владык (Владычиц) Синтеза или \"Учитель (Учительница) Синтеза\" для остальных Аватаров, Владык и Учителей. Для Ипостасей записываем \"Ипостась Синтеза\", для Служащих - \"Служащий Синтеза\", для Посвящённых - \"Посвящённый Синтеза\", для Изначальных - \"Изначальный Синтеза\"."]
["Для формирования янских и иньских должностей и степеней на листе \"Полномочные\" в столбец \"P\" для яней записываем букву \"м\" для иней ячейку оставляем пустой. Чтобы обновить названия ДК в столбце \"B\" и степени в столбце \"G\" выберите любое другое подразделение ИВДИВО. А затем выберите своё подразделение.\nСинтезности и Творящие Синтезы в столбце \"J\" вписывайте вручную с учетом гендерности. Степени для Аватаров также вписываются вручную с учётом гендерности."]
["Если вы ошиблись при вводе данных, исходный вид таблицы можно восстановить. Для этого выберите любое другое подразделение ИВДИВО. А затем выберите своё подразделение. Эта операция сбрасывает изменения в столбце должностных званий, но не изменяет личные данные Компетентных."]
["После ввода всех данных следует создать файл столпа подразделения."]
["Для этого на листе \"Полномочные\" есть кнопка \"Столп\". Её нажатие запускает генерацию текстового файла в Word."]
["После нажатия кнопок \"Столп\" или \"Контакты\" не вмешивайтесь в процесс генерации файла до его окончания. Не пользуйтесь клавиатурой и не нажимайте кнопки мыши."]
["Лист \"справочники\" редактированию не подлежит. Он нужен для технических целей."]
["Не имеет смысла редактировать файлы столпа и контактов. Все изменения вносите в Книгу, а требуемые файлы вы всегда сможете сгенерировать по мере необходимости.  На утверждение в ИВДИВО направляется именно файл столпа, который сгенерирован Книгой. Только конкурсы можно добавить вручную в итоговый файл столпа."]
["После согласования у ИВАС КХ Главой ИВДИВО с датой утверждения, а также после любых изменений в нём, утверждённых Главой подразделения, загружайте файл столпа на странице синтез.орг/маи/\nНа этой же странице в МАИ ИВДИВО высылается файл контактов после каждого изменения в нём."]
["Саму Книгу высылать не надо. Контакты и другие личные данные Служащих в открытом доступе не публикуются. МАИ ИВДИВО использует их только в служебных целях. Контакты необходимы прежде всего для организации горизонтальных взаимодействий между служащими разных подразделений ИВДИВО."]
["Изучение формул и программ Книги приветствуется. Но изменяйте их, лишь имея должную компетенцию и видя смысл своих действий. "]
["Книга обновляется согласно Распоряжениям и Регламентам ИВДИВО. Актуальная редакция всегда доступна на странице http://документы.ИВДИВО.орг/распоряжения/#4"]
[]
["Дата редакции Книги указана вверху этого листа."]
["Если вы скачали обновленную редакцию Книги, то:"]
["1. Сделайте в новой Книге установку подразделения, как сказано выше."]
["2. Скопируйте в новую Книгу только данные Компетентных из ячеек серого цвета. Формулы и программы копировать не надо. Процесс перехода на новую редакцию занимает 1-2-3-… минуты в зависимости от ваших умений и навыков работы в Excel."]
["Аватар МАИ ИВДИВО Сергей Кишиневский"]
["64z@mail.ru"]
[]
["14.11.2024 Обновление книги согласно новой редакции Рс.4"]
["30.10.2024 Корректировка книги согласно новой редакции Рс. 3"]
["15.10.2024 Корректировка книги согласно п.39 Рс.7"]
["27.09.2024 Обновление книги согласно п.39 Рс.7"]
["18.06.2024 Обновление книги согласно новой редакции Рс.4"]
["05.06.2024 Обновление книги согласно новой редакции Рс.3"]
["02.05.2024 Обновление книги согласно новой редакции Рс.4"]
["13.03.2024 Обновление книги согласно новой редакции Рс.4"]
["06.03.2024 Обновление книги согласно новой редакции Рс.4"]
["18.02.2024 Обновление книги согласно новой редакции Рс.4"]
["01.12.2023 Исправление заголовка столпа. После номера архетипа ИВДИВО не пишется."]
["30.09.2023 Изменение должностей согласно новой редакции Рс.4"]
["09.09.2023 Изменение должностей согласно новой редакции Рс.4"]
["02.09.2023 Изменение должностей согласно новым редакциям Рс.3 и Рс.4"]
["14.07.2023 Изменение должностей согласно новой редакции Рс.4"]
["13.07.2023 Изменение должностей согласно новой редакции Рс.4"]
["28.05.2023 Ротация подразделений ИВДИВО согласно новой редакции Рс.3"]
["23.052023 Обновлено название подразделение согласно новой редакции Рс.3"]
["18.05.2023 Изменение должностей согласно новой редакции Рс.4"]
["05.05.2023 Исправлена ошибка названия Совета ИВАС ИВО Фаинь."]
["02.05.2023 Исправлена ошибка новых подразделений 2023."]
["27.04.2023 Изменение должностей согласно новой редакции Рс.4"]

{"sheet":"Полномочные","index":1,"n_rows":462,"n_cols":16,"rows_kept":462,"cut":false,"hidden":false,"merged":[]}
[]
[{"$f":"справочники!A2","v":"ИВДИВО Москва, Россия 8128 архетипа ИВ Аватара Синтеза Кут Хуми"}]
["4-рица подразделения ИВДИВО:"]
[null,null,"<= Мыслеобраз подразделения"]
[null,null,"<= Цель подразделения"]
[null,null,"<= Задача подразделения"]
[null,null,"<= Устремление подразделения",null,null,"Данные вводятся только в ячейки серого цвета!"]
["Совет Изначально Вышестоящего Отца",null,"ФИО","E-mail","Тел.","Город","Степень В/У/И/С/П/И","Поручения","Личные стяжания","Полномочие Совершенств/Иерархизация","Мыслеобраз","Цель","Задача","Устремление",null,"\"м\" для яней"]
["1","448. Аватаресса ИВО подразделения ИВДИВО ИВАС Кут Хуми, Глава Совета ИВО подразделения ИВДИВО",null,null,null,null,"Учительница Синтеза",null,null,null,null,null,null,null,"64"]
["2","447. Аватаресса ИВО Высшей Школы Синтеза ИВО ИВАС Иосифа ИВО ИВАС Кут Хуми, Глава Совета Синтеза подразделения ИВДИВО",null,null,null,null,"Учительница Синтеза",null,null,null,null,null,null,null,"63"]
["3","446. Аватаресса ИВО Академии Синтез-Философии ИВО ИВАС Мории ИВО ИВАС Кут Хуми, Глава Парадигмального Совета подразделения ИВДИВО",null,null,null,null,"Учительница Синтеза",null,null,null,null,null,null,null,"62"]
["4","445. Аватаресса ИВО Цивилизации Синтеза Отец-Человек-Субъекта Вечного Сверхкосмоса ИВО ИВАС Филиппа ИВО ИВАС Кут Хуми, ИВДИВО-Секретарь подразделения ИВДИВО",null,null,null,null,"Учительница Синтеза",null,null,null,null,null,null,null,"61"]
["5","444. Аватаресса ИВО Империи Вечного Сверхкосмоса синтезфизичности ИВО ИВАС Византия ИВО ИВАС Кут Хуми, Глава Общины ИВАС Кут Хуми подразделения ИВДИВО",null,null,null,null,"Учительница Синтеза",null,null,null,null,null,null,null,"60"]
["6","443. Аватаресса ИВО Сверхкосмической Академии Наук ИВО ИВАС Янова ИВО ИВАС Кут Хуми, Научный Практик АНЦ метаизвечной науки ",null,null,null,null,"Учительница Синтеза",null,null,null,null,null,null,null,"59"]
["7","442. Аватаресса ИВО ИВДИВО-Развития Отец-Человек-Субъекта ИВО ИВАС Юлия ИВО ИВАС Кут Хуми, Глава организации Праздничных мероприятий подразделения ИВДИВО ",null,null,null,null,"Учительница Синтеза",null,null,null,null,null,null,null,"58"]
["8","441. Аватаресса ИВО Высшего Аттестационного Совета ИВО ИВАС Юсефа ИВО ИВАС Кут Хуми, Глава центра Космической молодёжи подразделения ИВДИВО",null,null,null,null,"Учительница Синтеза",null,null,null,null,null,null,null,"57"]
["9","440. Аватаресса ИВО Политической партии ИВО ИВАС Владомира ИВО ИВАС Кут Хуми, Глава Партии/Отделения подразделения ИВДИВО ",null,null,null,null,"Учительница Синтеза",null,null,null,null,null,null,null,"56"]
["10","439. Аватаресса ИВО Вечной Сверхкосмической информации и синтеза частностей ИВО ИВАС Саввы ИВО ИВАС Кут Хуми, Глава Метагалактического Агентства Информации подразделения ИВДИВО",null,null,null,null,"Учительница Синтеза",null,null,null,null,null,null,null,"55"]
["11","438. Аватаресса ИВО Вечного Сверхкосмического Парламента ИВО ИВАС Савелия ИВО ИВАС Кут Хуми, Глава-дуумвиратор Парламентского центра ИВДИВО подразделения ИВДИВО",null,null,null,null,"Учительница Синтеза",null,null,null,null,null,null,null,"54"]
["12","437. Аватаресса ИВО Экономики Отец-Человек-Субъектов ИВО ИВАС Вильгельма ИВО ИВАС Кут Хуми, ИВДИВО-офис-секретарь ",null,null,null,null,"Учительница Синтеза",null,null,null,null,null,null,null,"53"]
["13","436. Аватаресса ИВО Вечного Сверхкосмического Общества Иерархии Равных Отец-Человек-Субъектов ИВО ИВАС Юстаса ИВО ИВАС Кут Хуми, Глава Общества Иерархии Равных подразделения ИВДИВО",null,null,null,null,"Учительница Синтеза",null,null,null,null,null,null,null,"52"]
["14","435. Аватаресса ИВО Энергопотенциала Отец-Человек-Субъектов ИВО ИВАС Александра ИВО ИВАС Кут Хуми, Глава Энергопотенциала, Финансовый директор подразделения ИВДИВО",null,null,null,null,"Учительница Синтеза",null,null,null,null,null,null,null,"51"]
["15","434. Аватаресса ИВО Плана Синтеза Отец-Человек-Субъектов ИВО ИВАС Яромира ИВО ИВАС Кут Хуми, Глава Плана Синтеза подразделения ИВДИВО",null,null,null,null,"Учительница Синтеза",null,null,null,null,null,null,null,"50"]
["16","433. Аватаресса ИВО Вечной Сверхкосмической Психодинамики Отец-Человек-Субъектов ИВО ИВАС Сераписа ИВО ИВАС Кут Хуми, ИВДИВО- кадровый секретарь ",null,null,null,null,"Учительница Синтеза",null,null,null,null,null,null,null,"49"]
["17","432. Аватаресса ИВО Вечной Сверхкосмической Нации Гражданской Конфедерации Отец-Человек-Субъектов ИВО ИВАС Эдуарда ИВО ИВАС Кут Хуми, Глава Гражданской Конфедерации подр. ИВДИВО",null,null,null,null,"Учительница Синтеза",null,null,null,null,null,null,null,"48"]
["18","431. Аватаресса ИВО Вечного Сверхкосмического Образования Отец-Человек-Субъектов ИВО ИВАС Фадея ИВО ИВАС Кут Хуми, Глава Образования подразделения ИВДИВО",null,null,null,null,"Учительница Синтеза",null,null,null,null,null,null,null,"47"]
["19","430. Аватаресса ИВО Вечного Сверхкосмического Мировоззрения Отец-Человек-Субъектов ИВО ИВАС Серафима ИВО ИВАС Кут Хуми, Глава Мировоззрения подразделения ИВДИВО ",null,null,null,null,"Учительница Синтеза",null,null,null,null,null,null,null,"46"]
["20","429. Аватаресса ИВО Вечной Сверхкосмической Культуры Отец-Человек-Субъектов ИВО ИВАС Святослава ИВО ИВАС Кут Хуми, Глава Культуры подразделения ИВДИВО",null,null,null,null,"Учительница Синтеза",null,null,null,null,null,null,null,"45"]
["21","428. Аватаресса ИВО Вечного Сверхкосмического Искусства Отец-Человек-Субъектов ИВО ИВАС Эоана ИВО ИВАС Кут Хуми, Глава Искусства подразделения ИВДИВО",null,null,null,null,"Учительница Синтеза",null,null,null,null,null,null,null,"44"]
["22","427. Аватаресса ИВО Вечного Сверхкосмического Воспитания Отец-Человек-Субъектов ИВО ИВАС Сергея ИВО ИВАС Кут Хуми, Глава Воспитания подразделения ИВДИВО",null,null,null,null,"Учительница Синтеза",null,null,null,null,null,null,null,"43"]
["23","426. Аватаресса ИВО Вечной Сверхкосмической Этики Отец-Человек-Субъектов ИВО ИВАС Сулеймана ИВО ИВАС Кут Хуми, Глава Этики подразделения ИВДИВО",null,null,null,null,"Учительница Синтеза",null,null,null,null,null,null,null,"42"]
["24","425. Аватаресса ИВО Вечной Сверхкосмической Эстетики Отец-Человек-Субъектов ИВО ИВАС Себастьяна ИВО ИВАС Кут Хуми, Глава Столицы синтезфизичности Отец-Человек-Субъект-Землян Планетой Земля",null,null,null,null,"Учительница Синтеза",null,null,null,null,null,null,null,"41"]
["25","424. Аватаресса ИВО ИВДИВО-Разработки Отец-Человек-Субъектов ИВО ИВАС Теодора ИВО ИВАС Кут Хуми, Глава ИВДИВО-разработки подразделения ИВДИВО",null,null,null,null,"Учительница Синтеза",null,null,null,null,null,null,null,"40"]
["26","423. Аватаресса ИВО Вечного Сверхкосмического Высшего Метагалактического Синтеза Отец-Человек-Субъектов ИВО ИВАС Антея ИВО ИВАС Кут Хуми, Глава Метагалактического клуба Посвящённых подразделения ИВДИВО ",null,null,null,null,"Учительница Синтеза",null,null,null,null,null,null,null,"39"]
["27","422. Аватаресса ИВО Вечной Сверхкосмической Синархии Отец-Человек-Субъектов ИВО ИВАС Наума ИВО ИВАС Кут Хуми, Глава-дуумвиратор Парламентского центра ИВДИВО подразделения ИВДИВО ",null,null,null,null,"Учительница Синтеза",null,null,null,null,null,null,null,"38"]
["28","421. Аватаресса ИВО Вечной Сверхкосмической Высшей Метагалактической Расы Отец-Человек-Субъектов ИВО ИВАС Велимира ИВО ИВАС Кут Хуми, Глава развития шестой расы подразделения ИВДИВО",null,null,null,null,"Учительница Синтеза",null,null,null,null,null,null,null,"37"]
["29","420. Аватаресса ИВО Синтеза Частей Отец-Человек-Субъектов ИВО ИВАС Георга ИВО ИВАС Кут Хуми, Глава ИВДИВО-полисов подразделения ИВДИВО",null,null,null,null,"Учительница Синтеза",null,null,null,null,null,null,null,"36"]
["30","419. Аватаресса ИВО Синтеза Систем частей Отец-Человек-Субъектов ИВО ИВАС Алексия ИВО ИВАС Кут Хуми, Глава ИВДИВО-зданий подразделения ИВДИВО",null,null,null,null,"Учительница Синтеза",null,null,null,null,null,null,null,"35"]
["31","418. Аватаресса ИВО Синтеза Аппаратов систем частей Отец-Человек-Субъектов ИВО ИВАС Эмиля ИВО ИВАС Кут Хуми, Глава Частных ИВДИВО-зданий Отец-Человек-Субъекта подразделения ИВДИВО",null,null,null,null,"Учительница Синтеза",null,null,null,null,null,null,null,"34"]
["32","417. Аватаресса ИВО Вечной Сверхкосмической Иерархии ИВО ИВАС Дария ИВО ИВАС Кут Хуми, Глава Метагалактического центра подразделения ИВДИВО",null,null,null,null,"Учительница Синтеза",null,null,null,null,null,null,null,"33"]
["33","416. Аватаресса ИВО ИВДИВО каждого ИВО ИВАС Валентина ИВО ИВАС Кут Хуми",null,null,null,null,"Учительница Синтеза",null,null,null,null,null,null,null,"32"]
["34","415. Аватаресса ИВО Парадигмы каждого ИВО ИВАС Савия ИВО ИВАС Кут Хуми",null,null,null,null,"Учительница Синтеза",null,null,null,null,null,null,null,"31"]
["35","414. Аватаресса ИВО Философии каждого ИВО ИВАС Вячеслава ИВО ИВАС Кут Хуми",null,null,null,null,"Учительница Синтеза",null,null,null,null,null,null,null,"30"]
["36","413. Аватаресса ИВО Цивилизации каждого ИВО ИВАС Андрея ИВО ИВАС Кут Хуми",null,null,null,null,"Учительница Синтеза",null,null,null,null,null,null,null,"29"]
["37","412. Аватаресса ИВО Империи каждого ИВО ИВАС Давида ИВО ИВАС Кут Хуми",null,null,null,null,"Учительница Синтеза",null,null,null,null,null,null,null,"28"]
["38","411. Аватаресса ИВО Науки каждого ИВО ИВАС Евгения ИВО ИВАС Кут Хуми",null,null,null,null,"Учительница Синтеза",null,null,null,null,null,null,null,"27"]
["39","410. Аватаресса ИВО Развития каждого ИВО ИВАС Дмитрия ИВО ИВАС Кут Хуми",null,null,null,null,"Учительница Синтеза",null,null,null,null,null,null,null,"26"]
["40","409. Аватаресса ИВО Аттестации каждого ИВО ИВАС Есения ИВО ИВАС Кут ХумиМировой Сенатор Синтезного Сената Парламентского центра ИВДИВО подразделения ИВДИВО ",null,null,null,null,"Учительница Синтеза",null,null,null,null,null,null,null,"25"]
["41","408. Аватаресса ИВО Партии каждого ИВО ИВАС Константина ИВО ИВАС Кут Хуми",null,null,null,null,"Учительница Синтеза",null,null,null,null,null,null,null,"24"]
["42","407. Аватаресса ИВО Информации каждого ИВО ИВАС Ростислава ИВО ИВАС Кут Хуми",null,null,null,null,"Учительница Синтеза",null,null,null,null,null,null,null,"23"]
["43","406. Аватаресса ИВО Конституции каждого ИВО ИВАС Ян ИВО ИВАС Кут Хуми",null,null,null,null,"Учительница Синтеза",null,null,null,null,null,null,null,"22"]
["44","405. Аватаресса ИВО Экономики каждого ИВО ИВАС Василия ИВО ИВАС Кут Хуми",null,null,null,null,"Учительница Синтеза",null,null,null,null,null,null,null,"21"]
["45","404. Аватаресса ИВО Общества каждого ИВО ИВАС Арсения ИВО ИВАС Кут Хуми",null,null,null,null,"Учительница Синтеза",null,null,null,null,null,null,null,"20"]
["46","403. Аватаресса ИВО Энергопотенциала каждого ИВО ИВАС Огюста ИВО ИВАС Кут Хуми",null,null,null,null,"Учительница Синтеза",null,null,null,null,null,null,null,"19"]
["47","402. Аватаресса ИВО Плана Синтеза каждого ИВО ИВАС Илия ИВО ИВАС Кут Хуми",null,null,null,null,"Учительница Синтеза",null,null,null,null,null,null,null,"18"]
["48","401. Аватаресса ИВО Психодинамики каждого ИВО ИВАС Геральда ИВО ИВАС Кут ХумиМировой Сенатор Метагалактического Сената Парламентского центра ИВДИВО подразделения ИВДИВО ",null,null,null,null,"Учительница Синтеза",null,null,null,null,null,null,null,"17"]
["49","400. Аватаресса ИВО Нации каждого ИВО ИВАС Платона ИВО ИВАС Кут Хуми",null,null,null,null,"Учительница Синтеза",null,null,null,null,null,null,null,"16"]
["50","399. Аватаресса ИВО Образования каждого ИВО ИВАС Николая ИВО ИВАС Кут Хуми",null,null,null,null,"Учительница Синтеза",null,null,null,null,null,null,null,"15"]
["51","398. Аватаресса ИВО Мировоззрения каждого ИВО ИВАС Игоря ИВО ИВАС Кут Хуми",null,null,null,null,"Учительница Синтеза",null,null,null,null,null,null,null,"14"]
["52","397. Аватаресса ИВО Культуры каждого ИВО ИВАС Яра ИВО ИВАС Кут Хуми",null,null,null,null,"Учительница Синтеза",null,null,null,null,null,null,null,"13"]
["53","396. Аватаресса ИВО Искусства каждого ИВО ИВАС Вадима ИВО ИВАС Кут Хуми",null,null,null,null,"Учительница Синтеза",null,null,null,null,null,null,null,"12"]
["54","395. Аватаресса ИВО Воспитания каждого ИВО ИВАС Огнеслава ИВО ИВАС Кут Хуми",null,null,null,null,"Учительница Синтеза",null,null,null,null,null,null,null,"11"]
["55","394. Аватаресса ИВО Этики каждого ИВО ИВАС Марка ИВО ИВАС Кут Хуми",null,null,null,null,"Учительница Синтеза",null,null,null,null,null,null,null,"10"]
["56","393. Аватаресса ИВО Эстетики каждого ИВО ИВАС Теона ИВО ИВАС Кут ХумиМировой Сенатор Тонкого Сената Парламентского центра ИВДИВО подразделения ИВДИВО ",null,null,null,null,"Учительница Синтеза",null,null,null,null,null,null,null,"9"]
["57","392. Аватаресса ИВО Разработки каждого ИВО ИВАС Трофима ИВО ИВАС Кут Хуми",null,null,null,null,"Учительница Синтеза",null,null,null,null,null,null,null,"8"]
["58","391. Аватаресса ИВО Вечного Сверхкосмического Синтеза каждого ИВО ИВАС Емельяна ИВО ИВАС Кут Хуми",null,null,null,null,"Учительница Синтеза",null,null,null,null,null,null,null,"7"]
["59","390. Аватаресса ИВО Синархии каждого ИВО ИВАС Ефрема ИВО ИВАС Кут Хуми",null,null,null,null,"Учительница Синтеза",null,null,null,null,null,null,null,"6"]
["60","389. Аватаресса ИВО Подрасы каждого ИВО ИВАС Натана ИВО ИВАС Кут Хуми",null,null,null,null,"Учительница Синтеза",null,null,null,null,null,null,null,"5"]
["61","388. Аватаресса ИВО Частей каждого ИВО ИВАС Артёма ИВО ИВАС Кут Хуми",null,null,null,null,"Учительница Синтеза",null,null,null,null,null,null,null,"4"]
["62","387. Аватаресса ИВО Систем частей каждого ИВО ИВАС Игнатия ИВО ИВАС Кут Хуми",null,null,null,null,"Учительница Синтеза",null,null,null,null,null,null,null,"3"]
["63","386. Аватаресса ИВО Аппаратов систем частей каждого ИВО ИВАС Юлиана ИВО ИВАС Кут Хуми",null,null,null,null,"Учительница Синтеза",null,null,null,null,null,null,null,"2"]
["64","385. Аватаресса ИВО Иерархии каждого ИВО ИВАС Аркадия ИВО ИВАС Кут ХумиМировой Сенатор Физического Сената Парламентского центра ИВДИВО подразделения ИВДИВО ",null,null,null,null,"Учительница Синтеза",null,null,null,null,null,null,null,"1"]
["Совет Владык ИВО подразделения ИВДИВО",null,"",null,null,null,null,null,null,"Полномочие Совершенств"]
["65","384. Владычица ИВО Управления Сиаматического тела ИВО ИВАС Никиты ИВО ИВАС Кут Хуми",null,null,null,null,"Учительница Синтеза",null,null,null,null,null,null,null,"64"]
["66","383. Владычица ИВО Управления Есмического тела ИВО ИВАС Олега ИВО ИВАС Кут Хуми",null,null,null,null,"Учительница Синтеза",null,null,null,null,null,null,null,"63"]
["67","382. Владычица ИВО Управления Имического тела ИВО ИВАС Владимира ИВО ИВАС Кут Хуми",null,null,null,null,"Учительница Синтеза",null,null,null,null,null,null,null,"62"]
["68","381. Владычица ИВО Управления Этонического тела ИВО ИВАС Стефана ИВО ИВАС Кут Хуми",null,null,null,null,"Учительница Синтеза",null,null,null,null,null,null,null,"61"]
["69","380. Владычица ИВО Управления Амритического тела ИВО ИВАС Горислава ИВО ИВАС Кут Хуми",null,null,null,null,"Учительница Синтеза",null,null,null,null,null,null,null,"60"]
["70","379. Владычица ИВО Управления Абического тела ИВО ИВАС Никона ИВО ИВАС Кут Хуми",null,null,null,null,"Учительница Синтеза",null,null,null,null,null,null,null,"59"]
["71","378. Владычица ИВО Управления Ситического тела ИВО ИВАС Эрика ИВО ИВАС Кут Хуми",null,null,null,null,"Учительница Синтеза",null,null,null,null,null,null,null,"58"]
["72","377. Владычица ИВО Управления Живического тела ИВО ИВАС Олафа ИВО ИВАС Кут Хуми",null,null,null,null,"Учительница Синтеза",null,null,null,null,null,null,null,"57"]
["73","376. Владычица ИВО Управления Холитического тела ИВО ИВАС Вацлава ИВО ИВАС Кут Хуми",null,null,null,null,"Учительница Синтеза",null,null,null,null,null,null,null,"56"]
["74","375. Владычица ИВО Управления Всетического тела ИВО ИВАС Левия ИВО ИВАС Кут Хуми",null,null,null,null,"Учительница Синтеза",null,null,null,null,null,null,null,"55"]
["75","374. Владычица ИВО Управления Космического тела ИВО ИВАС Руслана ИВО ИВАС Кут Хуми",null,null,null,null,"Учительница Синтеза",null,null,null,null,null,null,null,"54"]
["76","373. Владычица ИВО Управления Эргетического тела ИВО ИВАС Генриха ИВО ИВАС Кут Хуми",null,null,null,null,"Учительница Синтеза",null,null,null,null,null,null,null,"53"]
["77","372. Владычица ИВО Управления Контического тела ИВО ИВАС Владлена ИВО ИВАС Кут Хуми",null,null,null,null,"Учительница Синтеза",null,null,null,null,null,null,null,"52"]
["78","371. Владычица ИВО Управления Голонического тела ИВО ИВАС Борислава ИВО ИВАС Кут Хуми",null,null,null,null,"Учительница Синтеза",null,null,null,null,null,null,null,"51"]
["79","370. Владычица ИВО Управления Эматического тела ИВО ИВАС Нестора ИВО ИВАС Кут Хуми",null,null,null,null,"Учительница Синтеза",null,null,null,null,null,null,null,"50"]
["80","369. Владычица ИВО Управления Пламического тела ИВО ИВАС Аристарха ИВО ИВАС Кут Хуми",null,null,null,null,"Учительница Синтеза",null,null,null,null,null,null,null,"49"]
["81","368. Владычица ИВО Управления Вотического тела ИВО ИВАС Альфреда ИВО ИВАС Кут Хуми",null,null,null,null,"Учительница Синтеза",null,null,null,null,null,null,null,"48"]
["82","367. Владычица ИВО Управления Визического тела ИВО ИВАС Егора ИВО ИВАС Кут Хуми",null,null,null,null,"Учительница Синтеза",null,null,null,null,null,null,null,"47"]
["83","366. Владычица ИВО Управления Сотического тела ИВО ИВАС Витольда ИВО ИВАС Кут Хуми",null,null,null,null,"Учительница Синтеза",null,null,null,null,null,null,null,"46"]
["84","365. Владычица ИВО Управления Этимического тела ИВО ИВАС Стократа ИВО ИВАС Кут Хуми",null,null,null,null,"Учительница Синтеза",null,null,null,null,null,null,null,"45"]
["85","364. Владычица ИВО Управления Омического тела ИВО ИВАС Глеба ИВО ИВАС Кут Хуми",null,null,null,null,"Учительница Синтеза",null,null,null,null,null,null,null,"44"]
["86","363. Владычица ИВО Управления Унического тела ИВО ИВАС Клавдия ИВО ИВАС Кут Хуми",null,null,null,null,"Учительница Синтеза",null,null,null,null,null,null,null,"43"]
["87","362. Владычица ИВО Управления Витиического тела ИВО ИВАС Теониса ИВО ИВАС Кут Хуми",null,null,null,null,"Учительница Синтеза",null,null,null,null,null,null,null,"42"]
["88","361. Владычица ИВО Управления Мерического тела ИВО ИВАС Донана ИВО ИВАС Кут Хуми",null,null,null,null,"Учительница Синтеза",null,null,null,null,null,null,null,"41"]
["89","360. Владычица ИВО Управления Реалического тела ИВО ИВАС Альберта ИВО ИВАС Кут Хуми",null,null,null,null,"Учительница Синтеза",null,null,null,null,null,null,null,"40"]
["90","359. Владычица ИВО Управления Плотического тела ИВО ИВАС Степана ИВО ИВАС Кут Хуми",null,null,null,null,"Учительница Синтеза",null,null,null,null,null,null,null,"39"]
["91","358. Владычица ИВО Управления Натического тела ИВО ИВАС Арсана ИВО ИВАС Кут Хуми",null,null,null,null,"Учительница Синтеза",null,null,null,null,null,null,null,"38"]
["92","357. Владычица ИВО Управления Стратического тела ИВО ИВАС Остапа ИВО ИВАС Кут Хуми",null,null,null,null,"Учительница Синтеза",null,null,null,null,null,null,null,"37"]
["93","356. Владычица ИВО Управления Логитического тела ИВО ИВАС Романа ИВО ИВАС Кут Хуми",null,null,null,null,"Учительница Синтеза",null,null,null,null,null,null,null,"36"]
["94","355. Владычица ИВО Управления Гласического тела ИВО ИВАС Клима ИВО ИВАС Кут Хуми",null,null,null,null,"Учительница Синтеза",null,null,null,null,null,null,null,"35"]
["95","354. Владычица ИВО Управления Даонического тела ИВО ИВАС Петра ИВО ИВАС Кут Хуми",null,null,null,null,"Учительница Синтеза",null,null,null,null,null,null,null,"34"]
["96","353. Владычица ИВО Управления Бинарического тела ИВО ИВАС Макея ИВО ИВАС Кут Хуми",null,null,null,null,"Учительница Синтеза",null,null,null,null,null,null,null,"33"]
["97","352. Владычица ИВО Управления Экстремического тела ИВО ИВАС Аниса ИВО ИВАС Кут Хуми",null,null,null,null,"Учительница Синтеза",null,null,null,null,null,null,null,"32"]
["98","351. Владычица ИВО Управления Зерцатического тела ИВО ИВАС Ара ИВО ИВАС Кут Хуми",null,null,null,null,"Учительница Синтеза",null,null,null,null,null,null,null,"31"]
["99","350. Владычица ИВО Управления Интического тела ИВО ИВАС Дорадия ИВО ИВАС Кут Хуми",null,null,null,null,"Учительница Синтеза",null,null,null,null,null,null,null,"30"]
["100","349. Владычица ИВО Управления Пасситического тела ИВО ИВАС Дора ИВО ИВАС Кут Хуми",null,null,null,null,"Учительница Синтеза",null,null,null,null,null,null,null,"29"]
["101","348. Владычица ИВО Управления Эвритического тела ИВО ИВАС Понтелея ИВО ИВАС Кут Хуми",null,null,null,null,"Учительница Синтеза",null,null,null,null,null,null,null,"28"]
["102","347. Владычица ИВО Управления Фортического тела ИВО ИВАС Явира ИВО ИВАС Кут Хуми",null,null,null,null,"Учительница Синтеза",null,null,null,null,null,null,null,"27"]
["103","346. Владычица ИВО Управления Синтического тела ИВО ИВАС Триса ИВО ИВАС Кут Хуми",null,null,null,null,"Учительница Синтеза",null,null,null,null,null,null,null,"26"]
["104","345. Владычица ИВО Управления Тямического тела ИВО ИВАС Виктора ИВО ИВАС Кут Хуми",null,null,null,null,"Учительница Синтеза",null,null,null,null,null,null,null,"25"]
["105","344. Владычица ИВО Управления Планического тела ИВО ИВАС Визара ИВО ИВАС Кут Хуми",null,null,null,null,"Учительница Синтеза",null,null,null,null,null,null,null,"24"]
["106","343. Владычица ИВО Управления Итического тела ИВО ИВАС Ерёмы ИВО ИВАС Кут Хуми",null,null,null,null,"Учительница Синтеза",null,null,null,null,null,null,null,"23"]
["107","342. Владычица ИВО Управления Пробуддического тела ИВО ИВАС Ираклия ИВО ИВАС Кут Хуми",null,null,null,null,"Учительница Синтеза",null,null,null,null,null,null,null,"22"]
["108","341. Владычица ИВО Управления Хрустатического тела ИВО ИВАС Елизара ИВО ИВАС Кут Хуми",null,null,null,null,"Учительница Синтеза",null,null,null,null,null,null,null,"21"]
["109","340. Владычица ИВО Управления Дхьянического тела ИВО ИВАС Градимира ИВО ИВАС Кут Хуми",null,null,null,null,"Учительница Синтеза",null,null,null,null,null,null,null,"20"]
["110","339. Владычица ИВО Управления Астренического тела ИВО ИВАС Рустама ИВО ИВАС Кут Хуми",null,null,null,null,"Учительница Синтеза",null,null,null,null,null,null,null,"19"]
["111","338. Владычица ИВО Управления Эфтического тела ИВО ИВАС Октана ИВО ИВАС Кут Хуми",null,null,null,null,"Учительница Синтеза",null,null,null,null,null,null,null,"18"]
["112","337. Владычица ИВО Управления Тилического тела ИВО ИВАС Силуана ИВО ИВАС Кут Хуми",null,null,null,null,"Учительница Синтеза",null,null,null,null,null,null,null,"17"]
["113","336. Владычица ИВО Управления Ивдивического тела ИВО ИВАС Лукьяна ИВО ИВАС Кут Хуми",null,null,null,null,"Учительница Синтеза",null,null,null,null,null,null,null,"16"]
["114","335. Владычица ИВО Управления Ятического тела ИВО ИВАС Люсьена ИВО ИВАС Кут Хуми",null,null,null,null,"Учительница Синтеза",null,null,null,null,null,null,null,"15"]
["115","334. Владычица ИВО Управления Имтического тела ИВО ИВАС Андриана ИВО ИВАС Кут Хуми",null,null,null,null,"Учительница Синтеза",null,null,null,null,null,null,null,"14"]
["116","333. Владычица ИВО Управления Октического тела ИВО ИВАС Прокофия ИВО ИВАС Кут Хуми",null,null,null,null,"Учительница Синтеза",null,null,null,null,null,null,null,"13"]
["117","332. Владычица ИВО Управления Фатического тела ИВО ИВАС Зарка ИВО ИВАС Кут Хуми",null,null,null,null,"Учительница Синтеза",null,null,null,null,null,null,null,"12"]
["118","331. Владычица ИВО Управления Матического тела ИВО ИВАС Станиса ИВО ИВАС Кут Хуми",null,null,null,null,"Учительница Синтеза",null,null,null,null,null,null,null,"11"]
["119","330. Владычица ИВО Управления Нитического тела ИВО ИВАС Панкрата ИВО ИВАС Кут Хуми",null,null,null,null,"Учительница Синтеза",null,null,null,null,null,null,null,"10"]
["120","329. Владычица ИВО Управления Мощического тела ИВО ИВАС Старка ИВО ИВАС Кут Хуми",null,null,null,null,"Учительница Синтеза",null,null,null,null,null,null,null,"9"]
["121","328. Владычица ИВО Управления Аматического тела ИВО ИВАС Дорофея ИВО ИВАС Кут Хуми",null,null,null,null,"Учительница Синтеза",null,null,null,null,null,null,null,"8"]
["122","327. Владычица ИВО Управления Атмического тела ИВО ИВАС Якова ИВО ИВАС Кут Хуми",null,null,null,null,"Учительница Синтеза",null,null,null,null,null,null,null,"7"]
["123","326. Владычица ИВО Управления Буддического тела ИВО ИВАС Ульяна ИВО ИВАС Кут Хуми",null,null,null,null,"Учительница Синтеза",null,null,null,null,null,null,null,"6"]
["124","325. Владычица ИВО Управления Причинного тела ИВО ИВАС Германа ИВО ИВАС Кут Хуми",null,null,null,null,"Учительница Синтеза",null,null,null,null,null,null,null,"5"]
["125","324. Владычица ИВО Управления Ментального тела ИВО ИВАС Радомира ИВО ИВАС Кут Хуми",null,null,null,null,"Учительница Синтеза",null,null,null,null,null,null,null,"4"]
["126","323. Владычица ИВО Управления Астрального тела ИВО ИВАС Октавия ИВО ИВАС Кут Хуми",null,null,null,null,"Учительница Синтеза",null,null,null,null,null,null,null,"3"]
["127","322. Владычица ИВО Управления Эфирного тела ИВО ИВАС Кима ИВО ИВАС Кут Хуми",null,null,null,null,"Учительница Синтеза",null,null,null,null,null,null,null,"2"]
["128","321. Владычица ИВО Управления Метафизического тела ИВО ИВАС Бонифация ИВО ИВАС Кут Хуми",null,null,null,null,"Учительница Синтеза",null,null,null,null,null,null,null,"1"]
["Совет Учителей ИВО подразделения ИВДИВО",null,"",null,null,null,null,null,null,"Полномочие Совершенств",null,null,null,null,1]
["129","320. Учительница ИВО Управления ИВДИВО-Тела синтеза ИВО ИВАС Фредерика ИВО ИВАС Кут Хуми",null,null,null,null,"Учительница Синтеза",null,null,null,null,null,null,null,"64"]
["130","319. Учительница ИВО Управления ИВДИВО-Тела воля ИВО ИВАС Станислава ИВО ИВАС Кут Хуми",null,null,null,null,"Учительница Синтеза",null,null,null,null,null,null,null,"63"]
["131","318. Учительница ИВО Управления ИВДИВО-Тела мудрости ИВО ИВАС Алан ИВО ИВАС Кут Хуми",null,null,null,null,"Учительница Синтеза",null,null,null,null,null,null,null,"62"]
["132","317. Учительница ИВО Управления ИВДИВО-Тела любви ИВО ИВАС Ария ИВО ИВАС Кут Хуми",null,null,null,null,"Учительница Синтеза",null,null,null,null,null,null,null,"61"]
["133","316. Учительница ИВО Управления ИВДИВО-Тела творения ИВО ИВАС Мирослава ИВО ИВАС Кут Хуми",null,null,null,null,"Учительница Синтеза",null,null,null,null,null,null,null,"60"]
["134","315. Учительница ИВО Управления ИВДИВО-Тела созидания ИВО ИВАС Рудольфа ИВО ИВАС Кут Хуми",null,null,null,null,"Учительница Синтеза",null,null,null,null,null,null,null,"59"]
["135","314. Учительница ИВО Управления ИВДИВО-Тела репликации ИВО ИВАС Феликса ИВО ИВАС Кут Хуми",null,null,null,null,"Учительница Синтеза",null,null,null,null,null,null,null,"58"]
["136","313. Учительница ИВО Управления ИВДИВО-Тела жизни ИВО ИВАС Дональда ИВО ИВАС Кут Хуми",null,null,null,null,"Учительница Синтеза",null,null,null,null,null,null,null,"57"]
["137","312. Учительница ИВО Управления ИВДИВО-Тела воскрешения ИВО ИВАС Влада ИВО ИВАС Кут Хуми",null,null,null,null,"Учительница Синтеза",null,null,null,null,null,null,null,"56"]
["138","311. Учительница ИВО Управления ИВДИВО-Тела я-есмь ИВО ИВАС Андроника ИВО ИВАС Кут Хуми",null,null,null,null,"Учительница Синтеза",null,null,null,null,null,null,null,"55"]
["139","310. Учительница ИВО Управления ИВДИВО-Тела генезиса ИВО ИВАС Артура ИВО ИВАС Кут Хуми",null,null,null,null,"Учительница Синтеза",null,null,null,null,null,null,null,"54"]
["140","309. Учительница ИВО Управления ИВДИВО-Тела человечности ИВО ИВАС Рихарда ИВО ИВАС Кут Хуми",null,null,null,null,"Учительница Синтеза",null,null,null,null,null,null,null,"53"]
["141","308. Учительница ИВО Управления ИВДИВО-Тела служения ИВО ИВАС Эльдара ИВО ИВАС Кут Хуми",null,null,null,null,"Учительница Синтеза",null,null,null,null,null,null,null,"52"]
["142","307. Учительница ИВО Управления ИВДИВО-Тела вершения ИВО ИВАС Андриса ИВО ИВАС Кут Хуми",null,null,null,null,"Учительница Синтеза",null,null,null,null,null,null,null,"51"]
["143","306. Учительница ИВО Управления ИВДИВО-Тела практики ИВО ИВАС Владислава ИВО ИВАС Кут Хуми",null,null,null,null,"Учительница Синтеза",null,null,null,null,null,null,null,"50"]
["144","305. Учительница ИВО Управления ИВДИВО-Тела могущества ИВО ИВАС Августа ИВО ИВАС Кут Хуми",null,null,null,null,"Учительница Синтеза",null,null,null,null,null,null,null,"49"]
["145","304. Учительница ИВО Управления ИВДИВО-Тела ивдивности ИВО ИВАС Дамира ИВО ИВАС Кут Хуми",null,null,null,null,"Учительница Синтеза",null,null,null,null,null,null,null,"48"]
["146","303. Учительница ИВО Управления ИВДИВО-Тела сверхпассионарности ИВО ИВАС Иордана ИВО ИВАС Кут Хуми",null,null,null,null,"Учительница Синтеза",null,null,null,null,null,null,null,"47"]
["147","302. Учительница ИВО Управления ИВДИВО-Тела истинности ИВО ИВАС Изяслава ИВО ИВАС Кут Хуми",null,null,null,null,"Учительница Синтеза",null,null,null,null,null,null,null,"46"]
["148","301. Учительница ИВО Управления ИВДИВО-Тела окскости ИВО ИВАС Филимона ИВО ИВАС Кут Хуми",null,null,null,null,"Учительница Синтеза",null,null,null,null,null,null,null,"45"]
["149","300. Учительница ИВО Управления ИВДИВО-Тела красоты ИВО ИВАС Тита ИВО ИВАС Кут Хуми",null,null,null,null,"Учительница Синтеза",null,null,null,null,null,null,null,"44"]
["150","299. Учительница ИВО Управления ИВДИВО-Тела константы ИВО ИВАС Матвея ИВО ИВАС Кут Хуми",null,null,null,null,"Учительница Синтеза",null,null,null,null,null,null,null,"43"]
["151","298. Учительница ИВО Управления ИВДИВО-Тела знания ИВО ИВАС Павла ИВО ИВАС Кут Хуми",null,null,null,null,"Учительница Синтеза",null,null,null,null,null,null,null,"42"]
["152","297. Учительница ИВО Управления ИВДИВО-Тела меры ИВО ИВАС Афанасия ИВО ИВАС Кут Хуми",null,null,null,null,"Учительница Синтеза",null,null,null,null,null,null,null,"41"]
["153","296. Учительница ИВО Управления ИВДИВО-Тела стандарта ИВО ИВАС Тихомира ИВО ИВАС Кут Хуми",null,null,null,null,"Учительница Синтеза",null,null,null,null,null,null,null,"40"]
["154","295. Учительница ИВО Управления ИВДИВО-Тела закона ИВО ИВАС Сезара ИВО ИВАС Кут Хуми",null,null,null,null,"Учительница Синтеза",null,null,null,null,null,null,null,"39"]
["155","294. Учительница ИВО Управления ИВДИВО-Тела императива ИВО ИВАС Исаака ИВО ИВАС Кут Хуми",null,null,null,null,"Учительница Синтеза",null,null,null,null,null,null,null,"38"]
["156","293. Учительница ИВО Управления ИВДИВО-Тела аксиомы ИВО ИВАС Елисея ИВО ИВАС Кут Хуми",null,null,null,null,"Учительница Синтеза",null,null,null,null,null,null,null,"37"]
["157","292. Учительница ИВО Управления ИВДИВО-Тела начала ИВО ИВАС Ефима ИВО ИВАС Кут Хуми",null,null,null,null,"Учительница Синтеза",null,null,null,null,null,null,null,"36"]
["158","291. Учительница ИВО Управления ИВДИВО-Тела принципа ИВО ИВАС Захара ИВО ИВАС Кут Хуми",null,null,null,null,"Учительница Синтеза",null,null,null,null,null,null,null,"35"]
["159","290. Учительница ИВО Управления ИВДИВО-Тела метода ИВО ИВАС Горация ИВО ИВАС Кут Хуми",null,null,null,null,"Учительница Синтеза",null,null,null,null,null,null,null,"34"]
["160","289. Учительница ИВО Управления ИВДИВО-Тела правила ИВО ИВАС Будимира ИВО ИВАС Кут Хуми",null,null,null,null,"Учительница Синтеза",null,null,null,null,null,null,null,"33"]
["161","288. Учительница ИВО Управления ИВДИВО-Тела огня ИВО ИВАС Добрыни ИВО ИВАС Кут Хуми",null,null,null,null,"Учительница Синтеза",null,null,null,null,null,null,null,"32"]
["162","287. Учительница ИВО Управления ИВДИВО-Тела духа ИВО ИВАС Севастьяна ИВО ИВАС Кут Хуми",null,null,null,null,"Учительница Синтеза",null,null,null,null,null,null,null,"31"]
["163","286. Учительница ИВО Управления ИВДИВО-Тела света ИВО ИВАС Теофила ИВО ИВАС Кут Хуми",null,null,null,null,"Учительница Синтеза",null,null,null,null,null,null,null,"30"]
["164","285. Учительница ИВО Управления ИВДИВО-Тела энергии ИВО ИВАС Кирилла ИВО ИВАС Кут Хуми",null,null,null,null,"Учительница Синтеза",null,null,null,null,null,null,null,"29"]
["165","284. Учительница ИВО Управления ИВДИВО-Тела субъядерности ИВО ИВАС Доменика ИВО ИВАС Кут Хуми",null,null,null,null,"Учительница Синтеза",null,null,null,null,null,null,null,"28"]
["166","283. Учительница ИВО Управления ИВДИВО-Тела формы ИВО ИВАС Эммануила ИВО ИВАС Кут Хуми",null,null,null,null,"Учительница Синтеза",null,null,null,null,null,null,null,"27"]
["167","282. Учительница ИВО Управления ИВДИВО-Тела содержания ИВО ИВАС Боримира ИВО ИВАС Кут Хуми",null,null,null,null,"Учительница Синтеза",null,null,null,null,null,null,null,"26"]
["168","281. Учительница ИВО Управления ИВДИВО-Тела поля ИВО ИВАС Всеслава ИВО ИВАС Кут Хуми",null,null,null,null,"Учительница Синтеза",null,null,null,null,null,null,null,"25"]
["169","280. Учительница ИВО Управления ИВДИВО-Тела времени ИВО ИВАС Артемия ИВО ИВАС Кут Хуми",null,null,null,null,"Учительница Синтеза",null,null,null,null,null,null,null,"24"]
["170","279. Учительница ИВО Управления ИВДИВО-Тела пространства ИВО ИВАС Сократа ИВО ИВАС Кут Хуми",null,null,null,null,"Учительница Синтеза",null,null,null,null,null,null,null,"23"]
["171","278. Учительница ИВО Управления ИВДИВО-Тела скорости ИВО ИВАС Бенедикта ИВО ИВАС Кут Хуми",null,null,null,null,"Учительница Синтеза",null,null,null,null,null,null,null,"22"]
["172","277. Учительница ИВО Управления ИВДИВО-Тела мерности ИВО ИВАС Евстигнея ИВО ИВАС Кут Хуми",null,null,null,null,"Учительница Синтеза",null,null,null,null,null,null,null,"21"]
["173","276. Учительница ИВО Управления ИВДИВО-Тела воссоединённости ИВО ИВАС Максимилиана ИВО ИВАС Кут Хуми",null,null,null,null,"Учительница Синтеза",null,null,null,null,null,null,null,"20"]
["174","275. Учительница ИВО Управления ИВДИВО-Тела самоорганизации ИВО ИВАС Ричарда ИВО ИВАС Кут Хуми",null,null,null,null,"Учительница Синтеза",null,null,null,null,null,null,null,"19"]
["175","274. Учительница ИВО Управления ИВДИВО-Тела эманации ИВО ИВАС Христофора ИВО ИВАС Кут Хуми",null,null,null,null,"Учительница Синтеза",null,null,null,null,null,null,null,"18"]
["176","273. Учительница ИВО Управления ИВДИВО-Тела вещества ИВО ИВАС Всеволода ИВО ИВАС Кут Хуми",null,null,null,null,"Учительница Синтеза",null,null,null,null,null,null,null,"17"]
["177","272. Учительница ИВО Управления ИВДИВО-Тела условия ИВО ИВАС Мечеслава ИВО ИВАС Кут Хуми",null,null,null,null,"Учительница Синтеза",null,null,null,null,null,null,null,"16"]
["178","271. Учительница ИВО Управления ИВДИВО-Тела пробуждения ИВО ИВАС Авенира ИВО ИВАС Кут Хуми",null,null,null,null,"Учительница Синтеза",null,null,null,null,null,null,null,"15"]
["179","270. Учительница ИВО Управления ИВДИВО-Тела имперации ИВО ИВАС Ивана ИВО ИВАС Кут Хуми",null,null,null,null,"Учительница Синтеза",null,null,null,null,null,null,null,"14"]
["180","269. Учительница ИВО Управления ИВДИВО-Тела взгляда ИВО ИВАС Любослава ИВО ИВАС Кут Хуми",null,null,null,null,"Учительница Синтеза",null,null,null,null,null,null,null,"13"]
["181","268. Учительница ИВО Управления ИВДИВО-Тела синтезначала ИВО ИВАС Аскольда ИВО ИВАС Кут Хуми",null,null,null,null,"Учительница Синтеза",null,null,null,null,null,null,null,"12"]
["182","267. Учительница ИВО Управления ИВДИВО-Тела основы ИВО ИВАС Бронислава ИВО ИВАС Кут Хуми",null,null,null,null,"Учительница Синтеза",null,null,null,null,null,null,null,"11"]
["183","266. Учительница ИВО Управления ИВДИВО-Тела параметода ИВО ИВАС Христиана ИВО ИВАС Кут Хуми",null,null,null,null,"Учительница Синтеза",null,null,null,null,null,null,null,"10"]
["184","265. Учительница ИВО Управления ИВДИВО-Тела мощи ИВО ИВАС Аслава ИВО ИВАС Кут Хуми",null,null,null,null,"Учительница Синтеза",null,null,null,null,null,null,null,"9"]
["185","264. Учительница ИВО Управления ИВДИВО-Тела права ИВО ИВАС Стаслава ИВО ИВАС Кут Хуми",null,null,null,null,"Учительница Синтеза",null,null,null,null,null,null,null,"8"]
["186","263. Учительница ИВО Управления ИВДИВО-Тела идеи ИВО ИВАС Гюстава ИВО ИВАС Кут Хуми",null,null,null,null,"Учительница Синтеза",null,null,null,null,null,null,null,"7"]
["187","262. Учительница ИВО Управления ИВДИВО-Тела сути ИВО ИВАС Евсея ИВО ИВАС Кут Хуми",null,null,null,null,"Учительница Синтеза",null,null,null,null,null,null,null,"6"]
["188","261. Учительница ИВО Управления ИВДИВО-Тела смысла ИВО ИВАС Прохора ИВО ИВАС Кут Хуми",null,null,null,null,"Учительница Синтеза",null,null,null,null,null,null,null,"5"]
["189","260. Учительница ИВО Управления ИВДИВО-Тела мысли ИВО ИВАС Вальтера ИВО ИВАС Кут Хуми",null,null,null,null,"Учительница Синтеза",null,null,null,null,null,null,null,"4"]
["190","259. Учительница ИВО Управления ИВДИВО-Тела чувства ИВО ИВАС Эраста ИВО ИВАС Кут Хуми",null,null,null,null,"Учительница Синтеза",null,null,null,null,null,null,null,"3"]
["191","258. Учительница ИВО Управления ИВДИВО-Тела Ощущения ИВО ИВАС Харитона ИВО ИВАС Кут Хуми",null,null,null,null,"Учительница Синтеза",null,null,null,null,null,null,null,"2"]
["192","257. Учительница ИВО Управления ИВДИВО-Тела Движения ИВО ИВАС Любомира ИВО ИВАС Кут Хуми",null,null,null,null,"Учительница Синтеза",null,null,null,null,null,null,null,"1"]
["Совет Ипостасей ИВО подразделения ИВДИВО",null,null,null,null,null,null,null,null,"Синтезность"]
[193,"256. Ипостась ИВО Управления Тела высшего суперизвечного космоса Отец-человек-субъект-землянина ИВО ИВАС Тела высшего суперизвечного космоса ИВО ИВАС Кут Хуми",null,null,null,null,"Ипостась Синтеза",null,null,null,null,null,null,null,"64"]
[194,"255. Ипостась ИВО Управления Тела высшего всеизвечного космоса Отец-человек-субъект-землянина ИВО ИВАС Тела высшего всеизвечного космоса ИВО ИВАС Кут Хуми",null,null,null,null,"Ипостась Синтеза",null,null,null,null,null,null,null,"63"]
[195,"254. Ипостась ИВО Управления Тела высшего октоизвечного космоса Отец-человек-субъект-землянина ИВО ИВАС Тела высшего октоизвечного космоса ИВО ИВАС Кут Хуми",null,null,null,null,"Ипостась Синтеза",null,null,null,null,null,null,null,"62"]
[196,"253. Ипостась ИВО Управления Тела высшего метаизвечного космоса Отец-человек-субъект-землянина ИВО ИВАС Тела высшего метаизвечного космоса ИВО ИВАС Кут Хуми",null,null,null,null,"Ипостась Синтеза",null,null,null,null,null,null,null,"61"]
[197,"252. Ипостась ИВО Управления Тела высшего извечного космоса Отец-человек-субъект-землянина ИВО ИВАС Тела высшего извечного космоса ИВО ИВАС Кут Хуми",null,null,null,null,"Ипостась Синтеза",null,null,null,null,null,null,null,"60"]
[198,"251. Ипостась ИВО Управления Тела высшего всеединого космоса Отец-человек-субъект-землянина ИВО ИВАС Тела высшего всеединого космоса ИВО ИВАС Кут Хуми",null,null,null,null,"Ипостась Синтеза",null,null,null,null,null,null,null,"59"]
[199,"250. Ипостась ИВО Управления Тела высшего октавного космоса Отец-человек-субъект-землянина ИВО ИВАС Тела высшего октавного космоса ИВО ИВАС Кут Хуми",null,null,null,null,"Ипостась Синтеза",null,null,null,null,null,null,null,"58"]
[200,"249. Ипостась ИВО Управления Тела высшего метагалактического космоса Отец-человек-субъект-землянина ИВО ИВАС Тела высшего метагалактического космоса ИВО ИВАС Кут Хуми",null,null,null,null,"Ипостась Синтеза",null,null,null,null,null,null,null,"57"]
[201,"248. Ипостась ИВО Управления Тела суперизвечного космоса Отец-человек-субъект-землянина ИВО ИВАС Тела суперизвечного космоса ИВО ИВАС Кут Хуми",null,null,null,null,"Ипостась Синтеза",null,null,null,null,null,null,null,"56"]
[202,"247. Ипостась ИВО Управления Тела всеизвечного космоса Отец-человек-субъект-землянина ИВО ИВАС Тела всеизвечного космоса ИВО ИВАС Кут Хуми",null,null,null,null,"Ипостась Синтеза",null,null,null,null,null,null,null,"55"]
[203,"246. Ипостась ИВО Управления Тела октоизвечного космоса Отец-человек-субъект-землянина ИВО ИВАС Тела октоизвечного космоса ИВО ИВАС Кут Хуми",null,null,null,null,"Ипостась Синтеза",null,null,null,null,null,null,null,"54"]
[204,"245. Ипостась ИВО Управления Тела метаизвечного космоса Отец-человек-субъект-землянина ИВО ИВАС Тела метаизвечного космоса ИВО ИВАС Кут Хуми",null,null,null,null,"Ипостась Синтеза",null,null,null,null,null,null,null,"53"]
[205,"244. Ипостась ИВО Управления Тела извечного космоса Отец-человек-субъект-землянина ИВО ИВАС Тела извечного космоса ИВО ИВАС Кут Хуми",null,null,null,null,"Ипостась Синтеза",null,null,null,null,null,null,null,"52"]
[206,"243. Ипостась ИВО Управления Тела всеединого космоса Отец-человек-субъект-землянина ИВО ИВАС Тела всеединого космоса ИВО ИВАС Кут Хуми",null,null,null,null,"Ипостась Синтеза",null,null,null,null,null,null,null,"51"]
[207,"242. Ипостась ИВО Управления Тела октавного космоса Отец-человек-субъект-землянина ИВО ИВАС Тела октавного космоса ИВО ИВАС Кут Хуми",null,null,null,null,"Ипостась Синтеза",null,null,null,null,null,null,null,"50"]
[208,"241. Ипостась ИВО Управления Тела метагалактического космоса Отец-человек-субъект-землянина ИВО ИВАС Тела метагалактического космоса ИВО ИВАС Кут Хуми",null,null,null,null,"Ипостась Синтеза",null,null,null,null,null,null,null,"49"]
[209,"240. Ипостась ИВО Управления Тела высшей суперизвечности Отец-человек-субъект-землянина ИВО ИВАС Тела высшей суперизвечности ИВО ИВАС Кут Хуми",null,null,null,null,"Ипостась Синтеза",null,null,null,null,null,null,null,"48"]
[210,"239. Ипостась ИВО Управления Тела высшей всеизвечности Отец-человек-субъект-землянина ИВО ИВАС Тела высшей всеизвечности ИВО ИВАС Кут Хуми",null,null,null,null,"Ипостась Синтеза",null,null,null,null,null,null,null,"47"]
[211,"238. Ипостась ИВО Управления Тела высшей октоизвечности Отец-человек-субъект-землянина ИВО ИВАС Тела высшей октоизвечности ИВО ИВАС Кут Хуми",null,null,null,null,"Ипостась Синтеза",null,null,null,null,null,null,null,"46"]
[212,"237. Ипостась ИВО Управления Тела высшей метаизвечности Отец-человек-субъект-землянина ИВО ИВАС Тела высшей метаизвечности ИВО ИВАС Кут Хуми",null,null,null,null,"Ипостась Синтеза",null,null,null,null,null,null,null,"45"]
[213,"236. Ипостась ИВО Управления Тела высшей извечности Отец-человек-субъект-землянина ИВО ИВАС Тела высшей извечности ИВО ИВАС Кут Хуми",null,null,null,null,"Ипостась Синтеза",null,null,null,null,null,null,null,"44"]
[214,"235. Ипостась ИВО Управления Тела высшей всеединности Отец-человек-субъект-землянина ИВО ИВАС Тела высшей всеединности ИВО ИВАС Кут Хуми",null,null,null,null,"Ипостась Синтеза",null,null,null,null,null,null,null,"43"]
[215,"234. Ипостась ИВО Управления Тела высшей октавности Отец-человек-субъект-землянина ИВО ИВАС Тела высшей октавности ИВО ИВАС Кут Хуми",null,null,null,null,"Ипостась Синтеза",null,null,null,null,null,null,null,"42"]
[216,"233. Ипостась ИВО Управления Тела высшей метагалактичности Отец-человек-субъект-землянина ИВО ИВАС Тела высшей метагалактичности ИВО ИВАС Кут Хуми",null,null,null,null,"Ипостась Синтеза",null,null,null,null,null,null,null,"41"]
[217,"232. Ипостась ИВО Управления Тела суперизвечности Отец-человек-субъект-землянина ИВО ИВАС Тела суперизвечности ИВО ИВАС Кут Хуми",null,null,null,null,"Ипостась Синтеза",null,null,null,null,null,null,null,"40"]
[218,"231. Ипостась ИВО Управления Тела всеизвечности Отец-человек-субъект-землянина ИВО ИВАС Тела всеизвечности ИВО ИВАС Кут Хуми",null,null,null,null,"Ипостась Синтеза",null,null,null,null,null,null,null,"39"]
[219,"230. Ипостась ИВО Управления Тела октоизвечности Отец-человек-субъект-землянина ИВО ИВАС Тела октоизвечности ИВО ИВАС Кут Хуми",null,null,null,null,"Ипостась Синтеза",null,null,null,null,null,null,null,"38"]
[220,"229. Ипостась ИВО Управления Тела метаизвечности Отец-человек-субъект-землянина ИВО ИВАС Тела метаизвечности ИВО ИВАС Кут Хуми",null,null,null,null,"Ипостась Синтеза",null,null,null,null,null,null,null,"37"]
[221,"228. Ипостась ИВО Управления Тела извечности Отец-человек-субъект-землянина ИВО ИВАС Тела извечности ИВО ИВАС Кут Хуми",null,null,null,null,"Ипостась Синтеза",null,null,null,null,null,null,null,"36"]
[222,"227. Ипостась ИВО Управления Тела всеединности Отец-человек-субъект-землянина ИВО ИВАС Тела всеединности ИВО ИВАС Кут Хуми",null,null,null,null,"Ипостась Синтеза",null,null,null,null,null,null,null,"35"]
[223,"226. Ипостась ИВО Управления Тела октавности Отец-человек-субъект-землянина ИВО ИВАС Тела октавности ИВО ИВАС Кут Хуми",null,null,null,null,"Ипостась Синтеза",null,null,null,null,null,null,null,"34"]
[224,"225. Ипостась ИВО Управления Тела метагалактичности Отец-человек-субъект-землянина ИВО ИВАС Тела метагалактичности ИВО ИВАС Кут Хуми",null,null,null,null,"Ипостась Синтеза",null,null,null,null,null,null,null,"33"]
[225,"224. Ипостась ИВО Управления Тела реальности высшего суперизвечного космоса Отец-человек-субъект-землянина ИВО ИВАС Тела реальности высшего суперизвечного космоса ИВО ИВАС Кут Хуми",null,null,null,null,"Ипостась Синтеза",null,null,null,null,null,null,null,"32"]
[226,"223. Ипостась ИВО Управления Тела реальности высшего всеизвечного космоса Отец-человек-субъект-землянина ИВО ИВАС Тела реальности высшего всеизвечного космоса ИВО ИВАС Кут Хуми",null,null,null,null,"Ипостась Синтеза",null,null,null,null,null,null,null,"31"]
[227,"222. Ипостась ИВО Управления Тела реальности высшего октоизвечного космоса Отец-человек-субъект-землянина ИВО ИВАС Тела реальности высшего октоизвечного космоса ИВО ИВАС Кут Хуми",null,null,null,null,"Ипостась Синтеза",null,null,null,null,null,null,null,"30"]
[228,"221. Ипостась ИВО Управления Тела реальности высшего метаизвечного космоса Отец-человек-субъект-землянина ИВО ИВАС Тела реальности высшего метаизвечного космоса ИВО ИВАС Кут Хуми",null,null,null,null,"Ипостась Синтеза",null,null,null,null,null,null,null,"29"]
[229,"220. Ипостась ИВО Управления Тела реальности высшего извечного космоса Отец-человек-субъект-землянина ИВО ИВАС Тела реальности высшего извечного космоса ИВО ИВАС Кут Хуми",null,null,null,null,"Ипостась Синтеза",null,null,null,null,null,null,null,"28"]
[230,"219. Ипостась ИВО Управления Тела реальности высшего всеединого космоса Отец-человек-субъект-землянина ИВО ИВАС Тела реальности высшего всеединого космоса ИВО ИВАС Кут Хуми",null,null,null,null,"Ипостась Синтеза",null,null,null,null,null,null,null,"27"]
[231,"218. Ипостась ИВО Управления Тела реальности высшего октавного космоса Отец-человек-субъект-землянина ИВО ИВАС Тела реальности высшего октавного космоса ИВО ИВАС Кут Хуми",null,null,null,null,"Ипостась Синтеза",null,null,null,null,null,null,null,"26"]
[232,"217. Ипостась ИВО Управления Тела реальности высшего метагалактического космоса Отец-человек-субъект-землянина ИВО ИВАС Тела реальности высшего метагалактического космоса ИВО ИВАС Кут Хуми",null,null,null,null,"Ипостась Синтеза",null,null,null,null,null,null,null,"25"]
[233,"216. Ипостась ИВО Управления Тела реальности суперизвечного космоса Отец-человек-субъект-землянина ИВО ИВАС Тела реальности суперизвечного космоса ИВО ИВАС Кут Хуми",null,null,null,null,"Ипостась Синтеза",null,null,null,null,null,null,null,"24"]
[234,"215. Ипостась ИВО Управления Тела реальности всеизвечного космоса Отец-человек-субъект-землянина ИВО ИВАС Тела реальности всеизвечного космоса ИВО ИВАС Кут Хуми",null,null,null,null,"Ипостась Синтеза",null,null,null,null,null,null,null,"23"]
[235,"214. Ипостась ИВО Управления Тела реальности октоизвечного космоса Отец-человек-субъект-землянина ИВО ИВАС Тела реальности октоизвечного космоса ИВО ИВАС Кут Хуми",null,null,null,null,"Ипостась Синтеза",null,null,null,null,null,null,null,"22"]
[236,"213. Ипостась ИВО Управления Тела реальности метаизвечного космоса Отец-человек-субъект-землянина ИВО ИВАС Тела реальности метаизвечного космоса ИВО ИВАС Кут Хуми",null,null,null,null,"Ипостась Синтеза",null,null,null,null,null,null,null,"21"]
[237,"212. Ипостась ИВО Управления Тела реальности извечного космоса Отец-человек-субъект-землянина ИВО ИВАС Тела реальности извечного космоса ИВО ИВАС Кут Хуми",null,null,null,null,"Ипостась Синтеза",null,null,null,null,null,null,null,"20"]
[238,"211. Ипостась ИВО Управления Тела реальности всеединого космоса Отец-человек-субъект-землянина ИВО ИВАС Тела реальности всеединого космоса ИВО ИВАС Кут Хуми",null,null,null,null,"Ипостась Синтеза",null,null,null,null,null,null,null,"19"]
[239,"210. Ипостась ИВО Управления Тела реальности октавного космоса Отец-человек-субъект-землянина ИВО ИВАС Тела реальности октавного космоса ИВО ИВАС Кут Хуми",null,null,null,null,"Ипостась Синтеза",null,null,null,null,null,null,null,"18"]
[240,"209. Ипостась ИВО Управления Тела реальности метагалактического космоса Отец-человек-субъект-землянина ИВО ИВАС Тела реальности метагалактического космоса ИВО ИВАС Кут Хуми",null,null,null,null,"Ипостась Синтеза",null,null,null,null,null,null,null,"17"]
[241,"208. Ипостась ИВО Управления Тела реальности высшей суперизвечности Отец-человек-субъект-землянина ИВО ИВАС Тела реальности высшей суперизвечности ИВО ИВАС Кут Хуми",null,null,null,null,"Ипостась Синтеза",null,null,null,null,null,null,null,"16"]
[242,"207. Ипостась ИВО Управления Тела реальности высшей всеизвечности Отец-человек-субъект-землянина ИВО ИВАС Тела реальности высшей всеизвечности ИВО ИВАС Кут Хуми",null,null,null,null,"Ипостась Синтеза",null,null,null,null,null,null,null,"15"]
[243,"206. Ипостась ИВО Управления Тела реальности высшей октоизвечности Отец-человек-субъект-землянина ИВО ИВАС Тела реальности высшей октоизвечности ИВО ИВАС Кут Хуми",null,null,null,null,"Ипостась Синтеза",null,null,null,null,null,null,null,"14"]
[244,"205. Ипостась ИВО Управления Тела реальности высшей метаизвечности Отец-человек-субъект-землянина ИВО ИВАС Тела реальности высшей метаизвечности ИВО ИВАС Кут Хуми",null,null,null,null,"Ипостась Синтеза",null,null,null,null,null,null,null,"13"]
[245,"204. Ипостась ИВО Управления Тела реальности высшей извечности Отец-человек-субъект-землянина ИВО ИВАС Тела реальности высшей извечности ИВО ИВАС Кут Хуми",null,null,null,null,"Ипостась Синтеза",null,null,null,null,null,null,null,"12"]
[246,"203. Ипостась ИВО Управления Тела реальности высшей всеединности Отец-человек-субъект-землянина ИВО ИВАС Тела реальности высшей всеединности ИВО ИВАС Кут Хуми",null,null,null,null,"Ипостась Синтеза",null,null,null,null,null,null,null,"11"]
[247,"202. Ипостась ИВО Управления Тела реальности высшей октавности Отец-человек-субъект-землянина ИВО ИВАС Тела реальности высшей октавности ИВО ИВАС Кут Хуми",null,null,null,null,"Ипостась Синтеза",null,null,null,null,null,null,null,"10"]
[248,"201. Ипостась ИВО Управления Тела реальности высшей метагалактичности Отец-человек-субъект-землянина ИВО ИВАС Тела реальности высшей метагалактичности ИВО ИВАС Кут Хуми",null,null,null,null,"Ипостась Синтеза",null,null,null,null,null,null,null,"9"]
[249,"200. Ипостась ИВО Управления Тела реальности суперизвечности Отец-человек-субъект-землянина ИВО ИВАС Тела реальности суперизвечности ИВО ИВАС Кут Хуми",null,null,null,null,"Ипостась Синтеза",null,null,null,null,null,null,null,"8"]
[250,"199. Ипостась ИВО Управления Тела реальности всеизвечности Отец-человек-субъект-землянина ИВО ИВАС Тела реальности всеизвечности ИВО ИВАС Кут Хуми",null,null,null,null,"Ипостась Синтеза",null,null,null,null,null,null,null,"7"]
[251,"198. Ипостась ИВО Управления Тела реальности октоизвечности Отец-человек-субъект-землянина ИВО ИВАС Тела реальности октоизвечности ИВО ИВАС Кут Хуми",null,null,null,null,"Ипостась Синтеза",null,null,null,null,null,null,null,"6"]
[252,"197. Ипостась ИВО Управления Тела реальности метаизвечности Отец-человек-субъект-землянина ИВО ИВАС Тела реальности метаизвечности ИВО ИВАС Кут Хуми",null,null,null,null,"Ипостась Синтеза",null,null,null,null,null,null,null,"5"]
[253,"196. Ипостась ИВО Управления Тела реальности извечности Отец-человек-субъект-землянина ИВО ИВАС Тела реальности извечности ИВО ИВАС Кут Хуми",null,null,null,null,"Ипостась Синтеза",null,null,null,null,null,null,null,"4"]
[254,"195. Ипостась ИВО Управления Тела реальности всеединности Отец-человек-субъект-землянина ИВО ИВАС Тела реальности всеединности ИВО ИВАС Кут Хуми",null,null,null,null,"Ипостась Синтеза",null,null,null,null,null,null,null,"3"]
[255,"194. Ипостась ИВО Управления Тела реальности октавности Отец-человек-субъект-землянина ИВО ИВАС Тела реальности октавности ИВО ИВАС Кут Хуми",null,null,null,null,"Ипостась Синтеза",null,null,null,null,null,null,null,"2"]
[256,"193. Ипостась ИВО Управления Тела реальности метагалактичности Отец-человек-субъект-землянина ИВО ИВАС Тела реальности метагалактичности ИВО ИВАС Кут Хуми",null,null,null,null,"Ипостась Синтеза",null,null,null,null,null,null,null,"1"]
["Совет Служащих Изначально Вышестоящего Отца подразделения ИВДИВО",null,null,null,null,null,null,null,null,"Творящий Синтез"]
[257,"192. Служащая ИВО Отдела Синтеза ИВО ИВАС Фаинь ИВО ИВАС Кут Хуми",null,null,null,null,"Служащая Синтеза",null,null,null,null,null,null,null,"64"]
[258,"191. Служащая ИВО Отдела Воли ИВО ИВАС Славии ИВО ИВАС Кут Хуми",null,null,null,null,"Служащая Синтеза",null,null,null,null,null,null,null,"63"]
[259,"190. Служащая ИВО Отдела Мудрости ИВО ИВАС Свет ИВО ИВАС Кут Хуми",null,null,null,null,"Служащая Синтеза",null,null,null,null,null,null,null,"62"]
[260,"189. Служащая ИВО Отдела Любви ИВО ИВАС Марины ИВО ИВАС Кут Хуми",null,null,null,null,"Служащая Синтеза",null,null,null,null,null,null,null,"61"]
[261,"188. Служащая ИВО Отдела Творения ИВО ИВАС Альбины ИВО ИВАС Кут Хуми",null,null,null,null,"Служащая Синтеза",null,null,null,null,null,null,null,"60"]
[262,"187. Служащая ИВО Отдела Созидания ИВО ИВАС Вероники ИВО ИВАС Кут Хуми",null,null,null,null,"Служащая Синтеза",null,null,null,null,null,null,null,"59"]
[263,"186. Служащая ИВО Отдела Репликации ИВО ИВАС Сианы ИВО ИВАС Кут Хуми",null,null,null,null,"Служащая Синтеза",null,null,null,null,null,null,null,"58"]
[264,"185. Служащая ИВО Отдела Жизни ИВО ИВАС Оны ИВО ИВАС Кут Хуми",null,null,null,null,"Служащая Синтеза",null,null,null,null,null,null,null,"57"]
[265,"184. Служащая ИВО Отдела Воскрешения ИВО ИВАС Стефаны ИВО ИВАС Кут Хуми",null,null,null,null,"Служащая Синтеза",null,null,null,null,null,null,null,"56"]
[266,"183. Служащая ИВО Отдела Я-Есмь ИВО ИВАС Святы ИВО ИВАС Кут Хуми",null,null,null,null,"Служащая Синтеза",null,null,null,null,null,null,null,"55"]
[267,"182. Служащая ИВО Отдела Генезиса ИВО ИВАС Баяны ИВО ИВАС Кут Хуми",null,null,null,null,"Служащая Синтеза",null,null,null,null,null,null,null,"54"]
["268.1","181. Служащая ИВО Отдела Человечности ИВО ИВАС Екатерины ИВО ИВАС Кут Хуми",null,null,null,null,"Служащая Синтеза",null,null,null,null,null,null,null,"53"]
[269,"180. Служащая ИВО Отдела Служения ИВО ИВАС Сивиллы ИВО ИВАС Кут Хуми",null,null,null,null,"Служащая Синтеза",null,null,null,null,null,null,null,"52"]
[270,"179. Служащая ИВО Отдела Вершения ИВО ИВАС Тамилы ИВО ИВАС Кут Хуми",null,null,null,null,"Служащая Синтеза",null,null,null,null,null,null,null,"51"]
["271.2","178. Служащая ИВО Отдела Практики ИВО ИВАС Ники ИВО ИВАС Кут Хуми",null,null,null,null,"Служащая Синтеза",null,null,null,null,null,null,null,"50"]
["272.3","177. Служащая ИВО Отдела Могущества ИВО ИВАС Велетте ИВО ИВАС Кут Хуми",null,null,null,null,"Служащая Синтеза",null,null,null,null,null,null,null,"49"]
[273,"176. Служащая ИВО Отдела Ивдивности ИВО ИВАС Эмилии ИВО ИВАС Кут Хуми",null,null,null,null,"Служащая Синтеза",null,null,null,null,null,null,null,"48"]
[274,"175. Служащая ИВО Отдела Сверхпассионарности ИВО ИВАС Елены ИВО ИВАС Кут Хуми",null,null,null,null,"Служащая Синтеза",null,null,null,null,null,null,null,"47"]
[275,"174. Служащая ИВО Отдела Истинности ИВО ИВАС Валерии ИВО ИВАС Кут Хуми",null,null,null,null,"Служащая Синтеза",null,null,null,null,null,null,null,"46"]
[276,"173. Служащая ИВО Отдела Окскости ИВО ИВАС Олеси ИВО ИВАС Кут Хуми",null,null,null,null,"Служащая Синтеза",null,null,null,null,null,null,null,"45"]
[277,"172. Служащая ИВО Отдела Красоты ИВО ИВАС Антуанэтты ИВО ИВАС Кут Хуми",null,null,null,null,"Служащая Синтеза",null,null,null,null,null,null,null,"44"]
[278,"171. Служащая ИВО Отдела Константы ИВО ИВАС Юлианы ИВО ИВАС Кут Хуми",null,null,null,null,"Служащая Синтеза",null,null,null,null,null,null,null,"43"]
[279,"170. Служащая ИВО Отдела Знания ИВО ИВАС Синтии ИВО ИВАС Кут Хуми",null,null,null,null,"Служащая Синтеза",null,null,null,null,null,null,null,"42"]
[280,"169. Служащая ИВО Отдела Меры ИВО ИВАС Виктории ИВО ИВАС Кут Хуми",null,null,null,null,"Служащая Синтеза",null,null,null,null,null,null,null,"41"]
[281,"168. Служащая ИВО Отдела Стандарта ИВО ИВАС Дариды ИВО ИВАС Кут Хуми",null,null,null,null,"Служащая Синтеза",null,null,null,null,null,null,null,"40"]
[282,"167. Служащая ИВО Отдела Закона ИВО ИВАС Алины ИВО ИВАС Кут Хуми",null,null,null,null,"Служащая Синтеза",null,null,null,null,null,null,null,"39"]
[283,"166. Служащая ИВО Отдела Императива ИВО ИВАС Софьи ИВО ИВАС Кут Хуми",null,null,null,null,"Служащая Синтеза",null,null,null,null,null,null,null,"38"]
[284,"165. Служащая ИВО Отдела Аксиомы ИВО ИВАС Агафьи ИВО ИВАС Кут Хуми",null,null,null,null,"Служащая Синтеза",null,null,null,null,null,null,null,"37"]
[285,"164. Служащая ИВО Отдела Начала ИВО ИВАС Дарьи ИВО ИВАС Кут Хуми",null,null,null,null,"Служащая Синтеза",null,null,null,null,null,null,null,"36"]
[286,"163. Служащая ИВО Отдела Принципа ИВО ИВАС Иланы ИВО ИВАС Кут Хуми",null,null,null,null,"Служащая Синтеза",null,null,null,null,null,null,null,"35"]
[287,"162. Служащая ИВО Отдела Метода ИВО ИВАС Яны ИВО ИВАС Кут Хуми",null,null,null,null,"Служащая Синтеза",null,null,null,null,null,null,null,"34"]
[288,"161. Служащая ИВО Отдела Правила ИВО ИВАС Давлаты ИВО ИВАС Кут Хуми",null,null,null,null,"Служащая Синтеза",null,null,null,null,null,null,null,"33"]
[289,"160. Служащая ИВО Отдела Огня ИВО ИВАС Ирины ИВО ИВАС Кут Хуми",null,null,null,null,"Служащая Синтеза",null,null,null,null,null,null,null,"32"]
[290,"159. Служащая ИВО Отдела Духа ИВО ИВАС Лины ИВО ИВАС Кут Хуми",null,null,null,null,"Служащая Синтеза",null,null,null,null,null,null,null,"31"]
[291,"158. Служащая ИВО Отдела Света ИВО ИВАС Анастасии ИВО ИВАС Кут Хуми",null,null,null,null,"Служащая Синтеза",null,null,null,null,null,null,null,"30"]
[292,"157. Служащая ИВО Отдела Энергии ИВО ИВАС Омы ИВО ИВАС Кут Хуми",null,null,null,null,"Служащая Синтеза",null,null,null,null,null,null,null,"29"]
[293,"156. Служащая ИВО Отдела Субъядерности ИВО ИВАС Сольвейг ИВО ИВАС Кут Хуми",null,null,null,null,"Служащая Синтеза",null,null,null,null,null,null,null,"28"]
[294,"155. Служащая ИВО Отдела Формы ИВО ИВАС Октавии ИВО ИВАС Кут Хуми",null,null,null,null,"Служащая Синтеза",null,null,null,null,null,null,null,"27"]
[295,"154. Служащая ИВО Отдела Содержания ИВО ИВАС Кристины ИВО ИВАС Кут Хуми",null,null,null,null,"Служащая Синтеза",null,null,null,null,null,null,null,"26"]
[296,"153. Служащая ИВО Отдела Поля ИВО ИВАС Версавии ИВО ИВАС Кут Хуми",null,null,null,null,"Служащая Синтеза",null,null,null,null,null,null,null,"25"]
[297,"152. Служащая ИВО Отдела Времени ИВО ИВАС Ксении ИВО ИВАС Кут Хуми",null,null,null,null,"Служащая Синтеза",null,null,null,null,null,null,null,"24"]
[298,"151. Служащая ИВО Отдела Пространства ИВО ИВАС Эммы ИВО ИВАС Кут Хуми",null,null,null,null,"Служащая Синтеза",null,null,null,null,null,null,null,"23"]
[299,"150. Служащая ИВО Отдела Скорости ИВО ИВАС Стафии ИВО ИВАС Кут Хуми",null,null,null,null,"Служащая Синтеза",null,null,null,null,null,null,null,"22"]
[300,"149. Служащая ИВО Отдела Мерности ИВО ИВАС Оксаны ИВО ИВАС Кут Хуми",null,null,null,null,"Служащая Синтеза",null,null,null,null,null,null,null,"21"]
[301,"148. Служащая ИВО Отдела Воссоединённости ИВО ИВАС Ульяны ИВО ИВАС Кут Хуми",null,null,null,null,"Служащая Синтеза",null,null,null,null,null,null,null,"20"]
[302,"147. Служащая ИВО Отдела Самоорганизации ИВО ИВАС Беатрисс ИВО ИВАС Кут Хуми",null,null,null,null,"Служащая Синтеза",null,null,null,null,null,null,null,"19"]
[303,"146. Служащая ИВО Отдела Эманации ИВО ИВАС Оливии ИВО ИВАС Кут Хуми",null,null,null,null,"Служащая Синтеза",null,null,null,null,null,null,null,"18"]
[304,"145. Служащая ИВО Отдела Вещества ИВО ИВАС Аллы ИВО ИВАС Кут Хуми",null,null,null,null,"Служащая Синтеза",null,null,null,null,null,null,null,"17"]
[305,"144. Служащая ИВО Отдела Условия ИВО ИВАС Натали ИВО ИВАС Кут Хуми",null,null,null,null,"Служащая Синтеза",null,null,null,null,null,null,null,"16"]
[306,"143. Служащая ИВО Отдела Пробуждения ИВО ИВАС Эвы ИВО ИВАС Кут Хуми",null,null,null,null,"Служащая Синтеза",null,null,null,null,null,null,null,"15"]
[307,"142. Служащая ИВО Отдела Имперации ИВО ИВАС Ланы ИВО ИВАС Кут Хуми",null,null,null,null,"Служащая Синтеза",null,null,null,null,null,null,null,"14"]
[308,"141. Служащая ИВО Отдела Взгляда ИВО ИВАС Одели ИВО ИВАС Кут Хуми",null,null,null,null,"Служащая Синтеза",null,null,null,null,null,null,null,"13"]
[309,"140. Служащая ИВО Отдела Синтезначала ИВО ИВАС Тамары ИВО ИВАС Кут Хуми",null,null,null,null,"Служащая Синтеза",null,null,null,null,null,null,null,"12"]
[310,"139. Служащая ИВО Отдела Основы ИВО ИВАС Нины ИВО ИВАС Кут Хуми",null,null,null,null,"Служащая Синтеза",null,null,null,null,null,null,null,"11"]
[311,"138. Служащая ИВО Отдела Параметода ИВО ИВАС Орфеи ИВО ИВАС Кут Хуми",null,null,null,null,"Служащая Синтеза",null,null,null,null,null,null,null,"10"]
[312,"137. Служащая ИВО Отдела Мощи ИВО ИВАС Вергилии ИВО ИВАС Кут Хуми",null,null,null,null,"Служащая Синтеза",null,null,null,null,null,null,null,"9"]
[313,"136. Служащая ИВО Отдела Права ИВО ИВАС Василисы ИВО ИВАС Кут Хуми",null,null,null,null,"Служащая Синтеза",null,null,null,null,null,null,null,"8"]
[314,"135. Служащая ИВО Отдела Идеи ИВО ИВАС Варвары ИВО ИВАС Кут Хуми",null,null,null,null,"Служащая Синтеза",null,null,null,null,null,null,null,"7"]
[315,"134. Служащая ИВО Отдела Сути ИВО ИВАС Арины ИВО ИВАС Кут Хуми",null,null,null,null,"Служащая Синтеза",null,null,null,null,null,null,null,"6"]
[316,"133. Служащая ИВО Отдела Смысла ИВО ИВАС Амалии ИВО ИВАС Кут Хуми",null,null,null,null,"Служащая Синтеза",null,null,null,null,null,null,null,"5"]
[317,"132. Служащая ИВО Отдела Мысли ИВО ИВАС Елизаветы ИВО ИВАС Кут Хуми",null,null,null,null,"Служащая Синтеза",null,null,null,null,null,null,null,"4"]
[318,"131. Служащая ИВО Отдела Чувства ИВО ИВАС Веры ИВО ИВАС Кут Хуми",null,null,null,null,"Служащая Синтеза",null,null,null,null,null,null,null,"3"]
[319,"130. Служащая ИВО Отдела Ощущения ИВО ИВАС Мирославы ИВО ИВАС Кут Хуми",null,null,null,null,"Служащая Синтеза",null,null,null,null,null,null,null,"2"]
[320,"129. Служащая ИВО Отдела Движения ИВО ИВАС Даяны ИВО ИВАС Кут Хуми",null,null,null,null,"Служащая Синтеза",null,null,null,null,null,null,null,"1"]
["Совет Посвящённых Изначально Вышестоящего Отца подразделения ИВДИВО",null,"",null,null,null,null,null,null,"Статус"]
[321,"128. Посвящённая ИВО Отдела Сиаматики ИВО ИВАС Стеллы ИВО ИВАС Кут Хуми",null,null,null,null,"Посвящённая Синтеза",null,null,null,null,null,null,null,"64"]
[322,"127. Посвящённая ИВО Отдела Есмики ИВО ИВАС Доры ИВО ИВАС Кут Хуми",null,null,null,null,"Посвящённая Синтеза",null,null,null,null,null,null,null,"63"]
[323,"126. Посвящённая ИВО Отдела Имики ИВО ИВАС Клавдии ИВО ИВАС Кут Хуми",null,null,null,null,"Посвящённая Синтеза",null,null,null,null,null,null,null,"62"]
[324,"125. Посвящённая ИВО Отдела Этоники ИВО ИВАС Лады ИВО ИВАС Кут Хуми",null,null,null,null,"Посвящённая Синтеза",null,null,null,null,null,null,null,"61"]
[325,"124. Посвящённая ИВО Отдела Амритики ИВО ИВАС Ветты ИВО ИВАС Кут Хуми",null,null,null,null,"Посвящённая Синтеза",null,null,null,null,null,null,null,"60"]
[326,"123. Посвящённая ИВО Отдела Абики ИВО ИВАС Власты ИВО ИВАС Кут Хуми",null,null,null,null,"Посвящённая Синтеза",null,null,null,null,null,null,null,"59"]
[327,"122. Посвящённая ИВО Отдела Ситики ИВО ИВАС Офелии ИВО ИВАС Кут Хуми",null,null,null,null,"Посвящённая Синтеза",null,null,null,null,null,null,null,"58"]
[328,"121. Посвящённая ИВО Отдела Живики ИВО ИВАС Данаи ИВО ИВАС Кут Хуми",null,null,null,null,"Посвящённая Синтеза",null,null,null,null,null,null,null,"57"]
[329,"120. Посвящённая ИВО Отдела Холитики ИВО ИВАС Ханны ИВО ИВАС Кут Хуми",null,null,null,null,"Посвящённая Синтеза",null,null,null,null,null,null,null,"56"]
[330,"119. Посвящённая ИВО Отдела Всетики ИВО ИВАС Хлои ИВО ИВАС Кут Хуми",null,null,null,null,"Посвящённая Синтеза",null,null,null,null,null,null,null,"55"]
[331,"118. Посвящённая ИВО Отдела Космики ИВО ИВАС Надежды ИВО ИВАС Кут Хуми",null,null,null,null,"Посвящённая Синтеза",null,null,null,null,null,null,null,"54"]
[332,"117. Посвящённая ИВО Отдела Эргетики ИВО ИВАС Оллы ИВО ИВАС Кут Хуми",null,null,null,null,"Посвящённая Синтеза",null,null,null,null,null,null,null,"53"]
[333,"116. Посвящённая ИВО Отдела Контики ИВО ИВАС Илоны ИВО ИВАС Кут Хуми",null,null,null,null,"Посвящённая Синтеза",null,null,null,null,null,null,null,"52"]
[334,"115. Посвящённая ИВО Отдела Голоники ИВО ИВАС Генриетты ИВО ИВАС Кут Хуми",null,null,null,null,"Посвящённая Синтеза",null,null,null,null,null,null,null,"51"]
[335,"114. Посвящённая ИВО Отдела Эматики ИВО ИВАС Марии ИВО ИВАС Кут Хуми",null,null,null,null,"Посвящённая Синтеза",null,null,null,null,null,null,null,"50"]
[336,"113. Посвящённая ИВО Отдела Пламики ИВО ИВАС Глории ИВО ИВАС Кут Хуми",null,null,null,null,"Посвящённая Синтеза",null,null,null,null,null,null,null,"49"]
[337,"112. Посвящённая ИВО Отдела Вотики ИВО ИВАС Констанции ИВО ИВАС Кут Хуми",null,null,null,null,"Посвящённая Синтеза",null,null,null,null,null,null,null,"48"]
[338,"111. Посвящённая ИВО Отдела Визики ИВО ИВАС Стэвии ИВО ИВАС Кут Хуми",null,null,null,null,"Посвящённая Синтеза",null,null,null,null,null,null,null,"47"]
[339,"110. Посвящённая ИВО Отдела Сотики ИВО ИВАС Полины ИВО ИВАС Кут Хуми",null,null,null,null,"Посвящённая Синтеза",null,null,null,null,null,null,null,"46"]
[340,"109. Посвящённая ИВО Отдела Этимики ИВО ИВАС Виру ИВО ИВАС Кут Хуми",null,null,null,null,"Посвящённая Синтеза",null,null,null,null,null,null,null,"45"]
[341,"108. Посвящённая ИВО Отдела Омики ИВО ИВАС Фанны ИВО ИВАС Кут Хуми",null,null,null,null,"Посвящённая Синтеза",null,null,null,null,null,null,null,"44"]
[342,"107. Посвящённая ИВО Отдела Уники ИВО ИВАС Евгении ИВО ИВАС Кут Хуми",null,null,null,null,"Посвящённая Синтеза",null,null,null,null,null,null,null,"43"]
[343,"106. Посвящённая ИВО Отдела Витиики ИВО ИВАС Элины ИВО ИВАС Кут Хуми",null,null,null,null,"Посвящённая Синтеза",null,null,null,null,null,null,null,"42"]
[344,"105. Посвящённая ИВО Отдела Мерики ИВО ИВАС Сары ИВО ИВАС Кут Хуми",null,null,null,null,"Посвящённая Синтеза",null,null,null,null,null,null,null,"41"]
[345,"104. Посвящённая ИВО Отдела Реалики ИВО ИВАС Алевтины ИВО ИВАС Кут Хуми",null,null,null,null,"Посвящённая Синтеза",null,null,null,null,null,null,null,"40"]
[346,"103. Посвящённая ИВО Отдела Плотики ИВО ИВАС Раисы ИВО ИВАС Кут Хуми",null,null,null,null,"Посвящённая Синтеза",null,null,null,null,null,null,null,"39"]
[347,"102. Посвящённая ИВО Отдела Натики ИВО ИВАС Авроры ИВО ИВАС Кут Хуми",null,null,null,null,"Посвящённая Синтеза",null,null,null,null,null,null,null,"38"]
[348,"101. Посвящённая ИВО Отдела Стратики ИВО ИВАС Диланы ИВО ИВАС Кут Хуми",null,null,null,null,"Посвящённая Синтеза",null,null,null,null,null,null,null,"37"]
[349,"100. Посвящённая ИВО Отдела Логитики ИВО ИВАС Яси ИВО ИВАС Кут Хуми",null,null,null,null,"Посвящённая Синтеза",null,null,null,null,null,null,null,"36"]
[350,"099. Посвящённая ИВО Отдела Гласики ИВО ИВАС Фиры ИВО ИВАС Кут Хуми",null,null,null,null,"Посвящённая Синтеза",null,null,null,null,null,null,null,"35"]
[351,"098. Посвящённая ИВО Отдела Даоники ИВО ИВАС Омелии ИВО ИВАС Кут Хуми",null,null,null,null,"Посвящённая Синтеза",null,null,null,null,null,null,null,"34"]
[352,"097. Посвящённая ИВО Отдела Бинарики ИВО ИВАС Мадлен ИВО ИВАС Кут Хуми",null,null,null,null,"Посвящённая Синтеза",null,null,null,null,null,null,null,"33"]
[353,"096. Посвящённая ИВО Отдела Экстремики ИВО ИВАС Риммы ИВО ИВАС Кут Хуми",null,null,null,null,"Посвящённая Синтеза",null,null,null,null,null,null,null,"32"]
[354,"095. Посвящённая ИВО Отдела Зерцатики ИВО ИВАС Беллы ИВО ИВАС Кут Хуми",null,null,null,null,"Посвящённая Синтеза",null,null,null,null,null,null,null,"31"]
[355,"094. Посвящённая ИВО Отдела Интики ИВО ИВАС Агнии ИВО ИВАС Кут Хуми",null,null,null,null,"Посвящённая Синтеза",null,null,null,null,null,null,null,"30"]
[356,"093. Посвящённая ИВО Отдела Пасситики ИВО ИВАС Фелиции ИВО ИВАС Кут Хуми",null,null,null,null,"Посвящённая Синтеза",null,null,null,null,null,null,null,"29"]
[357,"092. Посвящённая ИВО Отдела Эвритики ИВО ИВАС Виталины ИВО ИВАС Кут Хуми",null,null,null,null,"Посвящённая Синтеза",null,null,null,null,null,null,null,"28"]
[358,"091. Посвящённая ИВО Отдела Фортики ИВО ИВАС Ноны ИВО ИВАС Кут Хуми",null,null,null,null,"Посвящённая Синтеза",null,null,null,null,null,null,null,"27"]
[359,"090. Посвящённая ИВО Отдела Синтики ИВО ИВАС Клементины ИВО ИВАС Кут Хуми",null,null,null,null,"Посвящённая Синтеза",null,null,null,null,null,null,null,"26"]
[360,"089. Посвящённая ИВО Отдела Тямики ИВО ИВАС Лиры ИВО ИВАС Кут Хуми",null,null,null,null,"Посвящённая Синтеза",null,null,null,null,null,null,null,"25"]
[361,"088. Посвящённая ИВО Отдела Планики ИВО ИВАС Ванессы ИВО ИВАС Кут Хуми",null,null,null,null,"Посвящённая Синтеза",null,null,null,null,null,null,null,"24"]
[362,"087. Посвящённая ИВО Отдела Итики ИВО ИВАС Евдокии ИВО ИВАС Кут Хуми",null,null,null,null,"Посвящённая Синтеза",null,null,null,null,null,null,null,"23"]
[363,"086. Посвящённая ИВО Отдела Пробуддики ИВО ИВАС Клары ИВО ИВАС Кут Хуми",null,null,null,null,"Посвящённая Синтеза",null,null,null,null,null,null,null,"22"]
[364,"085. Посвящённая ИВО Отдела Хрустатики ИВО ИВАС Лизы ИВО ИВАС Кут Хуми",null,null,null,null,"Посвящённая Синтеза",null,null,null,null,null,null,null,"21"]
[365,"084. Посвящённая ИВО Отдела Дхьяники ИВО ИВАС Сюзанны ИВО ИВАС Кут Хуми",null,null,null,null,"Посвящённая Синтеза",null,null,null,null,null,null,null,"20"]
[366,"083. Посвящённая ИВО Отдела Астреники ИВО ИВАС Сейлы ИВО ИВАС Кут Хуми",null,null,null,null,"Посвящённая Синтеза",null,null,null,null,null,null,null,"19"]
[367,"082. Посвящённая ИВО Отдела Эфтики ИВО ИВАС Русланы ИВО ИВАС Кут Хуми",null,null,null,null,"Посвящённая Синтеза",null,null,null,null,null,null,null,"18"]
[368,"081. Посвящённая ИВО Отдела Тилики ИВО ИВАС Устины ИВО ИВАС Кут Хуми",null,null,null,null,"Посвящённая Синтеза",null,null,null,null,null,null,null,"17"]
[369,"080. Посвящённая ИВО Отдела Ивдивики ИВО ИВАС Марики ИВО ИВАС Кут Хуми",null,null,null,null,"Посвящённая Синтеза",null,null,null,null,null,null,null,"16"]
[370,"079. Посвящённая ИВО Отдела Ятики ИВО ИВАС Франсуазы ИВО ИВАС Кут Хуми",null,null,null,null,"Посвящённая Синтеза",null,null,null,null,null,null,null,"15"]
[371,"078. Посвящённая ИВО Отдела Имтики ИВО ИВАС Христины ИВО ИВАС Кут Хуми",null,null,null,null,"Посвящённая Синтеза",null,null,null,null,null,null,null,"14"]
[372,"077. Посвящённая ИВО Отдела Октики ИВО ИВАС Иоланы ИВО ИВАС Кут Хуми",null,null,null,null,"Посвящённая Синтеза",null,null,null,null,null,null,null,"13"]
[373,"076. Посвящённая ИВО Отдела Фатики ИВО ИВАС Джесики ИВО ИВАС Кут Хуми",null,null,null,null,"Посвящённая Синтеза",null,null,null,null,null,null,null,"12"]
[374,"075. Посвящённая ИВО Отдела Матики ИВО ИВАС Сабины ИВО ИВАС Кут Хуми",null,null,null,null,"Посвящённая Синтеза",null,null,null,null,null,null,null,"11"]
[375,"074. Посвящённая ИВО Отдела Нитики ИВО ИВАС Нелли ИВО ИВАС Кут Хуми",null,null,null,null,"Посвящённая Синтеза",null,null,null,null,null,null,null,"10"]
[376,"073. Посвящённая ИВО Отдела Мощики ИВО ИВАС Санты ИВО ИВАС Кут Хуми",null,null,null,null,"Посвящённая Синтеза",null,null,null,null,null,null,null,"9"]
[377,"072. Посвящённая ИВО Отдела Аматики ИВО ИВАС Доротеи ИВО ИВАС Кут Хуми",null,null,null,null,"Посвящённая Синтеза",null,null,null,null,null,null,null,"8"]
[378,"071. Посвящённая ИВО Отдела Атмики ИВО ИВАС Янины ИВО ИВАС Кут Хуми",null,null,null,null,"Посвящённая Синтеза",null,null,null,null,null,null,null,"7"]
[379,"070. Посвящённая ИВО Отдела Буддики ИВО ИВАС Люции ИВО ИВАС Кут Хуми",null,null,null,null,"Посвящённая Синтеза",null,null,null,null,null,null,null,"6"]
[380,"069. Посвящённая ИВО Отдела Причинного тела ИВО ИВАС Ирэн ИВО ИВАС Кут Хуми",null,null,null,null,"Посвящённая Синтеза",null,null,null,null,null,null,null,"5"]
[381,"068. Посвящённая ИВО Отдела Ментального тела ИВО ИВАС Сесилии ИВО ИВАС Кут Хуми",null,null,null,null,"Посвящённая Синтеза",null,null,null,null,null,null,null,"4"]
[382,"067. Посвящённая ИВО Отдела Астрального тела ИВО ИВАС Вериславы ИВО ИВАС Кут Хуми",null,null,null,null,"Посвящённая Синтеза",null,null,null,null,null,null,null,"3"]
[383,"066. Посвящённая ИВО Отдела Эфирного тела ИВО ИВАС Станиславы ИВО ИВАС Кут Хуми",null,null,null,null,"Посвящённая Синтеза",null,null,null,null,null,null,null,"2"]
[384,"065. Посвящённая ИВО Отдела Метафизики ИВО ИВАС Милославы ИВО ИВАС Кут Хуми",null,null,null,null,"Посвящённая Синтеза",null,null,null,null,null,null,null,"1"]
["Совет Изначальных Изначально Вышестоящего Отца подразделения ИВДИВО",null,"",null,null,null,null,null,null,"Посвящение"]
[385,"064. Изначальная ИВО Отдела Прасинтеза ИВО ИВАС Константы ИВО ИВАС Кут Хуми",null,null,null,null,"Изначальная Синтеза",null,null,null,null,null,null,null,"64"]
[386,"063. Изначальная ИВО Отдела Праволя ИВО ИВАС Александры ИВО ИВАС Кут Хуми",null,null,null,null,"Изначальная Синтеза",null,null,null,null,null,null,null,"63"]
[387,"062. Изначальная ИВО Отдела Прамудрости ИВО ИВАС Иларии ИВО ИВАС Кут Хуми",null,null,null,null,"Изначальная Синтеза",null,null,null,null,null,null,null,"62"]
[388,"061. Изначальная ИВО Отдела Пралюбви ИВО ИВАС Феодоры ИВО ИВАС Кут Хуми",null,null,null,null,"Изначальная Синтеза",null,null,null,null,null,null,null,"61"]
[389,"060. Изначальная ИВО Отдела Пратворения ИВО ИВАС Владиславы ИВО ИВАС Кут Хуми",null,null,null,null,"Изначальная Синтеза",null,null,null,null,null,null,null,"60"]
[390,"059. Изначальная ИВО Отдела Прасозидания ИВО ИВАС Агнессы ИВО ИВАС Кут Хуми",null,null,null,null,"Изначальная Синтеза",null,null,null,null,null,null,null,"59"]
[391,"058. Изначальная ИВО Отдела Прарепликации ИВО ИВАС Онии ИВО ИВАС Кут Хуми",null,null,null,null,"Изначальная Синтеза",null,null,null,null,null,null,null,"58"]
[392,"057. Изначальная ИВО Отдела Пражизни ИВО ИВАС Виданы ИВО ИВАС Кут Хуми",null,null,null,null,"Изначальная Синтеза",null,null,null,null,null,null,null,"57"]
[393,"056. Изначальная ИВО Отдела Правоскрешения ИВО ИВАС Ярославы ИВО ИВАС Кут Хуми",null,null,null,null,"Изначальная Синтеза",null,null,null,null,null,null,null,"56"]
[394,"055. Изначальная ИВО Отдела Пра-я-есмь ИВО ИВАС Роксаны ИВО ИВАС Кут Хуми",null,null,null,null,"Изначальная Синтеза",null,null,null,null,null,null,null,"55"]
[395,"054. Изначальная ИВО Отдела Прагенезиса ИВО ИВАС Аврониты ИВО ИВАС Кут Хуми",null,null,null,null,"Изначальная Синтеза",null,null,null,null,null,null,null,"54"]
[396,"053. Изначальная ИВО Отдела Прачеловечности ИВО ИВАС Эсфирь ИВО ИВАС Кут Хуми",null,null,null,null,"Изначальная Синтеза",null,null,null,null,null,null,null,"53"]
[397,"052. Изначальная ИВО Отдела Праслужения ИВО ИВАС Софии ИВО ИВАС Кут Хуми",null,null,null,null,"Изначальная Синтеза",null,null,null,null,null,null,null,"52"]
[398,"051. Изначальная ИВО Отдела Правершения ИВО ИВАС Анжелы ИВО ИВАС Кут Хуми",null,null,null,null,"Изначальная Синтеза",null,null,null,null,null,null,null,"51"]
[399,"050. Изначальная ИВО Отдела Прапрактики ИВО ИВАС Изольды ИВО ИВАС Кут Хуми",null,null,null,null,"Изначальная Синтеза",null,null,null,null,null,null,null,"50"]
[400,"049. Изначальная ИВО Отдела Прамогущества ИВО ИВАС Юлии ИВО ИВАС Кут Хуми",null,null,null,null,"Изначальная Синтеза",null,null,null,null,null,null,null,"49"]
[401,"048. Изначальная ИВО Отдела Праивдивности ИВО ИВАС Илоты ИВО ИВАС Кут Хуми",null,null,null,null,"Изначальная Синтеза",null,null,null,null,null,null,null,"48"]
[402,"047. Изначальная ИВО Отдела Прасверхпассионарности ИВО ИВАС Марианны ИВО ИВАС Кут Хуми",null,null,null,null,"Изначальная Синтеза",null,null,null,null,null,null,null,"47"]
[403,"046. Изначальная ИВО Отдела Праистинности ИВО ИВАС Мариславы ИВО ИВАС Кут Хуми",null,null,null,null,"Изначальная Синтеза",null,null,null,null,null,null,null,"46"]
[404,"045. Изначальная ИВО Отдела Праокскости ИВО ИВАС Лимы ИВО ИВАС Кут Хуми",null,null,null,null,"Изначальная Синтеза",null,null,null,null,null,null,null,"45"]
[405,"044. Изначальная ИВО Отдела Пракрасоты ИВО ИВАС Флавии ИВО ИВАС Кут Хуми",null,null,null,null,"Изначальная Синтеза",null,null,null,null,null,null,null,"44"]
[406,"043. Изначальная ИВО Отдела Праконстанты ИВО ИВАС Яниты ИВО ИВАС Кут Хуми",null,null,null,null,"Изначальная Синтеза",null,null,null,null,null,null,null,"43"]
[407,"042. Изначальная ИВО Отдела Празнания ИВО ИВАС Юноны ИВО ИВАС Кут Хуми",null,null,null,null,"Изначальная Синтеза",null,null,null,null,null,null,null,"42"]
[408,"041. Изначальная ИВО Отдела Прамеры ИВО ИВАС Вены ИВО ИВАС Кут Хуми",null,null,null,null,"Изначальная Синтеза",null,null,null,null,null,null,null,"41"]
[409,"040. Изначальная ИВО Отдела Прастандарта ИВО ИВАС Анны ИВО ИВАС Кут Хуми",null,null,null,null,"Изначальная Синтеза",null,null,null,null,null,null,null,"40"]
[410,"039. Изначальная ИВО Отдела Празакона ИВО ИВАС Фаи ИВО ИВАС Кут Хуми",null,null,null,null,"Изначальная Синтеза",null,null,null,null,null,null,null,"39"]
[411,"038. Изначальная ИВО Отдела Праимператива ИВО ИВАС Вергинии ИВО ИВАС Кут Хуми",null,null,null,null,"Изначальная Синтеза",null,null,null,null,null,null,null,"38"]
[412,"037. Изначальная ИВО Отдела Прааксиомы ИВО ИВАС Светланы ИВО ИВАС Кут Хуми",null,null,null,null,"Изначальная Синтеза",null,null,null,null,null,null,null,"37"]
[413,"036. Изначальная ИВО Отдела Праначала ИВО ИВАС Валентины ИВО ИВАС Кут Хуми",null,null,null,null,"Изначальная Синтеза",null,null,null,null,null,null,null,"36"]
[414,"035. Изначальная ИВО Отдела Прапринципа ИВО ИВАС Натальи ИВО ИВАС Кут Хуми",null,null,null,null,"Изначальная Синтеза",null,null,null,null,null,null,null,"35"]
[415,"034. Изначальная ИВО Отдела Праметода ИВО ИВАС Бьянки ИВО ИВАС Кут Хуми",null,null,null,null,"Изначальная Синтеза",null,null,null,null,null,null,null,"34"]
[416,"033. Изначальная ИВО Отдела Праправила ИВО ИВАС Эстер ИВО ИВАС Кут Хуми",null,null,null,null,"Изначальная Синтеза",null,null,null,null,null,null,null,"33"]
[417,"032. Изначальная ИВО Отдела Праогня ИВО ИВАС Рады ИВО ИВАС Кут Хуми",null,null,null,null,"Изначальная Синтеза",null,null,null,null,null,null,null,"32"]
[418,"031. Изначальная ИВО Отдела Прадуха ИВО ИВАС Ниты ИВО ИВАС Кут Хуми",null,null,null,null,"Изначальная Синтеза",null,null,null,null,null,null,null,"31"]
[419,"030. Изначальная ИВО Отдела Прасвета ИВО ИВАС Клеопатры ИВО ИВАС Кут Хуми",null,null,null,null,"Изначальная Синтеза",null,null,null,null,null,null,null,"30"]
[420,"029. Изначальная ИВО Отдела Праэнергии ИВО ИВАС Агаты ИВО ИВАС Кут Хуми",null,null,null,null,"Изначальная Синтеза",null,null,null,null,null,null,null,"29"]
[421,"028. Изначальная ИВО Отдела Прасубъядерности ИВО ИВАС Лары ИВО ИВАС Кут Хуми",null,null,null,null,"Изначальная Синтеза",null,null,null,null,null,null,null,"28"]
[422,"027. Изначальная ИВО Отдела Праформы ИВО ИВАС Андрэа ИВО ИВАС Кут Хуми",null,null,null,null,"Изначальная Синтеза",null,null,null,null,null,null,null,"27"]
[423,"026. Изначальная ИВО Отдела Прасодержания ИВО ИВАС Лики ИВО ИВАС Кут Хуми",null,null,null,null,"Изначальная Синтеза",null,null,null,null,null,null,null,"26"]
[424,"025. Изначальная ИВО Отдела Праполя ИВО ИВАС Исии ИВО ИВАС Кут Хуми",null,null,null,null,"Изначальная Синтеза",null,null,null,null,null,null,null,"25"]
[425,"024. Изначальная ИВО Отдела Правремени ИВО ИВАС Терезы ИВО ИВАС Кут Хуми",null,null,null,null,"Изначальная Синтеза",null,null,null,null,null,null,null,"24"]
[426,"023. Изначальная ИВО Отдела Прапространства ИВО ИВАС Фёклы ИВО ИВАС Кут Хуми",null,null,null,null,"Изначальная Синтеза",null,null,null,null,null,null,null,"23"]
[427,"022. Изначальная ИВО Отдела Праскорости ИВО ИВАС Интезы ИВО ИВАС Кут Хуми",null,null,null,null,"Изначальная Синтеза",null,null,null,null,null,null,null,"22"]
[428,"021. Изначальная ИВО Отдела Прамерности ИВО ИВАС Любавы ИВО ИВАС Кут Хуми",null,null,null,null,"Изначальная Синтеза",null,null,null,null,null,null,null,"21"]
[429,"020. Изначальная ИВО Отдела Правоссоединённости ИВО ИВАС Иветты ИВО ИВАС Кут Хуми",null,null,null,null,"Изначальная Синтеза",null,null,null,null,null,null,null,"20"]
[430,"019. Изначальная ИВО Отдела Прасамоорганизации ИВО ИВАС Лючии ИВО ИВАС Кут Хуми",null,null,null,null,"Изначальная Синтеза",null,null,null,null,null,null,null,"19"]
[431,"018. Изначальная ИВО Отдела Праэманации ИВО ИВАС Марисы ИВО ИВАС Кут Хуми",null,null,null,null,"Изначальная Синтеза",null,null,null,null,null,null,null,"18"]
[432,"017. Изначальная ИВО Отдела Правещества ИВО ИВАС Всеславии ИВО ИВАС Кут Хуми",null,null,null,null,"Изначальная Синтеза",null,null,null,null,null,null,null,"17"]
[433,"016. Изначальная ИВО Отдела Праусловия ИВО ИВАС Бояры ИВО ИВАС Кут Хуми",null,null,null,null,"Изначальная Синтеза",null,null,null,null,null,null,null,"16"]
[434,"015. Изначальная ИВО Отдела Прапробуждения ИВО ИВАС Мирей ИВО ИВАС Кут Хуми",null,null,null,null,"Изначальная Синтеза",null,null,null,null,null,null,null,"15"]
[435,"014. Изначальная ИВО Отдела Праимперации ИВО ИВАС Элизы ИВО ИВАС Кут Хуми",null,null,null,null,"Изначальная Синтеза",null,null,null,null,null,null,null,"14"]
[436,"013. Изначальная ИВО Отдела Правзгляда ИВО ИВАС Софины ИВО ИВАС Кут Хуми",null,null,null,null,"Изначальная Синтеза",null,null,null,null,null,null,null,"13"]
[437,"012. Изначальная ИВО Отдела Прасинтезначала ИВО ИВАС Эдит ИВО ИВАС Кут Хуми",null,null,null,null,"Изначальная Синтеза",null,null,null,null,null,null,null,"12"]
[438,"011. Изначальная ИВО Отдела Праосновы ИВО ИВАС Эвелины ИВО ИВАС Кут Хуми",null,null,null,null,"Изначальная Синтеза",null,null,null,null,null,null,null,"11"]
[439,"010. Изначальная ИВО Отдела Прапараметода ИВО ИВАС Сиднии ИВО ИВАС Кут Хуми",null,null,null,null,"Изначальная Синтеза",null,null,null,null,null,null,null,"10"]
[440,"009. Изначальная ИВО Отдела Прамощи ИВО ИВАС Сии ИВО ИВАС Кут Хуми",null,null,null,null,"Изначальная Синтеза",null,null,null,null,null,null,null,"9"]
[441,"008. Изначальная ИВО Отдела Праправа ИВО ИВАС Инны ИВО ИВАС Кут Хуми",null,null,null,null,"Изначальная Синтеза",null,null,null,null,null,null,null,"8"]
[442,"007. Изначальная ИВО Отдела Праидеи ИВО ИВАС Теоны ИВО ИВАС Кут Хуми",null,null,null,null,"Изначальная Синтеза",null,null,null,null,null,null,null,"7"]
[443,"006. Изначальная ИВО Отдела Прасути ИВО ИВАС Лоны ИВО ИВАС Кут Хуми",null,null,null,null,"Изначальная Синтеза",null,null,null,null,null,null,null,"6"]
[444,"005. Изначальная ИВО Отдела Прасмысла ИВО ИВАС Лолиты ИВО ИВАС Кут Хуми",null,null,null,null,"Изначальная Синтеза",null,null,null,null,null,null,null,"5"]
[445,"004. Изначальная ИВО Отдела Прамысли ИВО ИВАС Терии ИВО ИВАС Кут Хуми",null,null,null,null,"Изначальная Синтеза",null,null,null,null,null,null,null,"4"]
[446,"003. Изначальная ИВО Отдела Прачувства ИВО ИВАС Саны ИВО ИВАС Кут Хуми",null,null,null,null,"Изначальная Синтеза",null,null,null,null,null,null,null,"3"]
[447,"002. Изначальная ИВО Отдела Праощущения ИВО ИВАС Верессы ИВО ИВАС Кут Хуми","",null,null,null,"Изначальная Синтеза",null,null,null,null,null,null,null,"2"]
[448,"001. Изначальная ИВО Отдела Прадвижения ИВО ИВАС Мирры ИВО ИВАС Кут Хуми.",null,null,null,null,"Изначальная Синтеза",null,null,null,null,null,null,null,"1"]

{"sheet":"справочники","index":2,"n_rows":527,"n_cols":16,"rows_kept":527,"cut":false,"hidden":false,"merged":[]}
[1,"территория",null,null,{"$f":"\"Контакты Полномочных подразделения \"&A2","v":"Контакты Полномочных подразделения ИВДИВО Москва, Россия 8128 архетипа ИВ Аватара Синтеза Кут Хуми"}]
[{"$f":"IF(A1=1,INDEX(B2:B96,A1)&\" 8128 архетипа ИВ Аватара Синтеза Кут Хуми\",INDEX(B2:B96,A1)& \" 8128 архетипа ИВ Аватара Синтеза \" & INDEX(E80:E271,A1) & \" ИВАС Кут Хуми\")","v":"ИВДИВО Москва, Россия 8128 архетипа ИВ Аватара Синтеза Кут Хуми"},"ИВДИВО Москва, Россия",null,null," ",null,null,null,null,null,null,null,null,null,0,0]
[{"$f":"INDEX(E16:E79,IF(MOD(A1,64)=0,64,MOD(A1,64)))","v":"ИВ Аватара-Отца ИВ Отца ИВО"},"ИВДИВО Крым"]
[{"$f":"INDEX(E80:E271,A1)","v":"Кут Хуми"},"ИВДИВО Санкт-Петербург"]
[{"$f":"INDEX(E272:E335,IF(MOD(A1,64)=0,64,MOD(A1,64)))","v":"ИВ Аватара-Ипостаси ИВ Отца Си-ИВДИВО Октавы Октав ИВО"},"ИВДИВО Московия"]
[{"$f":"INDEX(E336:E527,A1)","v":"Фаинь"},"ИВДИВО Краснодар"]
[null,"ИВДИВО Красноярск"]
[null,"ИВДИВО Новосибирск"]
[null,"ИВДИВО Екатеринбург"]
[null,"ИВДИВО Иркутск"]
[null,"ИВДИВО Калининград"]
[null,"ИВДИВО Ставрополь"]
[null,"ИВДИВО Самара"]
[null,"ИВДИВО Кавминводы"]
[null,"ИВДИВО Сочи",null,null,null,"Должность Ян","Должность Инь"]
[null,"ИВДИВО Минск, Белоруссия",null,null,"ИВ Аватара-Отца ИВ Отца ИВО",{"$f":"H16","v":"448. Аватар ИВО подразделения ИВДИВО ИВАС Кут Хуми, Глава Совета ИВО подразделения ИВДИВО"},{"$f":"I16","v":"448. Аватаресса ИВО подразделения ИВДИВО ИВАС Кут Хуми, Глава Совета ИВО подразделения ИВДИВО"},"448. Аватар ИВО подразделения ИВДИВО ИВАС Кут Хуми, Глава Совета ИВО подразделения ИВДИВО","448. Аватаресса ИВО подразделения ИВДИВО ИВАС Кут Хуми, Глава Совета ИВО подразделения ИВДИВО"]
[null,"ИВДИВО Казань",null,null,"ИВ Аватара-Аватара ИВ Аватара ИВО",{"$f":"H17","v":"447. Аватар ИВО Высшей Школы Синтеза ИВО ИВАС Иосифа ИВО ИВАС Кут Хуми, Глава Совета Синтеза подразделения ИВДИВО"},"447. Аватаресса ИВО Высшей Школы Синтеза ИВО ИВАС Иосифа ИВО ИВАС Кут Хуми, Глава Совета Синтеза подразделения ИВДИВО","447. Аватар ИВО Высшей Школы Синтеза ИВО ИВАС Иосифа ИВО ИВАС Кут Хуми, Глава Совета Синтеза подразделения ИВДИВО","447. Аватаресса ИВО Высшей Школы Синтеза ИВО ИВАС Иосифа ИВО ИВАС Кут Хуми, Глава Совета Синтеза подразделения ИВДИВО"]
[null,"ИВДИВО Севастополь",null,null,"ИВ Аватара-Владыки ИВ Владыки ИВО","446. Аватар ИВО Академии Синтез-Философии ИВО ИВАС Мории ИВО ИВАС Кут Хуми, Глава Парадигмального Совета подразделения ИВДИВО","446. Аватаресса ИВО Академии Синтез-Философии ИВО ИВАС Мории ИВО ИВАС Кут Хуми, Глава Парадигмального Совета подразделения ИВДИВО","446. Аватар ИВО Академии Синтез-Философии ИВО ИВАС Мории ИВО ИВАС Кут Хуми, Глава Парадигмального Совета подразделения ИВДИВО","446. Аватаресса ИВО Академии Синтез-Философии ИВО ИВАС Мории ИВО ИВАС Кут Хуми, Глава Парадигмального Совета подразделения ИВДИВО"]
[null,"ИВДИВО Челны",null,null,"ИВ Аватара-Учителя ИВ Учителя ИВО","445. Аватар ИВО Цивилизации Синтеза Отец-Человек-Субъекта Вечного Сверхкосмоса ИВО ИВАС Филиппа ИВО ИВАС Кут Хуми, ИВДИВО-Секретарь подразделения ИВДИВО","445. Аватаресса ИВО Цивилизации Синтеза Отец-Человек-Субъекта Вечного Сверхкосмоса ИВО ИВАС Филиппа ИВО ИВАС Кут Хуми, ИВДИВО-Секретарь подразделения ИВДИВО","445. Аватар ИВО Цивилизации Синтеза Отец-Человек-Субъекта Вечного Сверхкосмоса ИВО ИВАС Филиппа ИВО ИВАС Кут Хуми, ИВДИВО-Секретарь подразделения ИВДИВО","445. Аватаресса ИВО Цивилизации Синтеза Отец-Человек-Субъекта Вечного Сверхкосмоса ИВО ИВАС Филиппа ИВО ИВАС Кут Хуми, ИВДИВО-Секретарь подразделения ИВДИВО"]
[null,"ИВДИВО Бородино",null,null,"ИВ Аватара-Ипостаси ИВ Ипостаси ИВО","444. Аватар ИВО Империи Вечного Сверхкосмоса синтезфизичности ИВО ИВАС Византия ИВО ИВАС Кут Хуми, Глава Общины ИВАС Кут Хуми подразделения ИВДИВО","444. Аватаресса ИВО Империи Вечного Сверхкосмоса синтезфизичности ИВО ИВАС Византия ИВО ИВАС Кут Хуми, Глава Общины ИВАС Кут Хуми подразделения ИВДИВО","444. Аватар ИВО Империи Вечного Сверхкосмоса синтезфизичности ИВО ИВАС Византия ИВО ИВАС Кут Хуми, Глава Общины ИВАС Кут Хуми подразделения ИВДИВО","444. Аватаресса ИВО Империи Вечного Сверхкосмоса синтезфизичности ИВО ИВАС Византия ИВО ИВАС Кут Хуми, Глава Общины ИВАС Кут Хуми подразделения ИВДИВО"]
[null,"ИВДИВО Ладога",null,null,"ИВ Аватара-Ипостаси ИВ Служащего ИВО","443. Аватар ИВО Сверхкосмической Академии Наук ИВО ИВАС Янова ИВО ИВАС Кут Хуми, Научный Практик АНЦ метаизвечной науки ","443. Аватаресса ИВО Сверхкосмической Академии Наук ИВО ИВАС Янова ИВО ИВАС Кут Хуми, Научный Практик АНЦ метаизвечной науки ","443. Аватар ИВО Сверхкосмической Академии Наук ИВО ИВАС Янова ИВО ИВАС Кут Хуми, Научный Практик АНЦ метаизвечной науки ","443. Аватаресса ИВО Сверхкосмической Академии Наук ИВО ИВАС Янова ИВО ИВАС Кут Хуми, Научный Практик АНЦ метаизвечной науки "]
[null,"ИВДИВО Вологодск",null,null,"ИВ Аватара-Ипостаси ИВ Посвящённого ИВО","442. Аватар ИВО ИВДИВО-Развития Отец-Человек-Субъекта ИВО ИВАС Юлия ИВО ИВАС Кут Хуми, Глава организации Праздничных мероприятий подразделения ИВДИВО ","442. Аватаресса ИВО ИВДИВО-Развития Отец-Человек-Субъекта ИВО ИВАС Юлия ИВО ИВАС Кут Хуми, Глава организации Праздничных мероприятий подразделения ИВДИВО ","442. Аватар ИВО ИВДИВО-Развития Отец-Человек-Субъекта ИВО ИВАС Юлия ИВО ИВАС Кут Хуми, Глава организации Праздничных мероприятий подразделения ИВДИВО ","442. Аватаресса ИВО ИВДИВО-Развития Отец-Человек-Субъекта ИВО ИВАС Юлия ИВО ИВАС Кут Хуми, Глава организации Праздничных мероприятий подразделения ИВДИВО "]
[null,"ИВДИВО Красногорск",null,null,"ИВ Аватара-Ипостаси ИВ Человека ИВО","441. Аватар ИВО Высшего Аттестационного Совета ИВО ИВАС Юсефа ИВО ИВАС Кут Хуми, Глава центра Космической молодёжи подразделения ИВДИВО","441. Аватаресса ИВО Высшего Аттестационного Совета ИВО ИВАС Юсефа ИВО ИВАС Кут Хуми, Глава центра Космической молодёжи подразделения ИВДИВО","441. Аватар ИВО Высшего Аттестационного Совета ИВО ИВАС Юсефа ИВО ИВАС Кут Хуми, Глава центра Космической молодёжи подразделения ИВДИВО","441. Аватаресса ИВО Высшего Аттестационного Совета ИВО ИВАС Юсефа ИВО ИВАС Кут Хуми, Глава центра Космической молодёжи подразделения ИВДИВО"]
[null,"ИВДИВО Удмуртия",null,null,"ИВ Аватара-Ипостаси ИВ Отца ИВДИВО ИВО","440. Аватар ИВО Политической партии ИВО ИВАС Владомира ИВО ИВАС Кут Хуми, Глава Партии/Отделения подразделения ИВДИВО ","440. Аватаресса ИВО Политической партии ИВО ИВАС Владомира ИВО ИВАС Кут Хуми, Глава Партии/Отделения подразделения ИВДИВО ","440. Аватар ИВО Политической партии ИВО ИВАС Владомира ИВО ИВАС Кут Хуми, Глава Партии/Отделения подразделения ИВДИВО ","440. Аватаресса ИВО Политической партии ИВО ИВАС Владомира ИВО ИВАС Кут Хуми, Глава Партии/Отделения подразделения ИВДИВО "]
[null,"ИВДИВО Дагестан",null,null,"ИВ Аватара-Ипостаси ИВ Аватара ИВДИВО ИВО","439. Аватар ИВО Вечной Сверхкосмической информации и синтеза частностей ИВО ИВАС Саввы ИВО ИВАС Кут Хуми, Глава Метагалактического Агентства Информации подразделения ИВДИВО","439. Аватаресса ИВО Вечной Сверхкосмической информации и синтеза частностей ИВО ИВАС Саввы ИВО ИВАС Кут Хуми, Глава Метагалактического Агентства Информации подразделения ИВДИВО","439. Аватар ИВО Вечной Сверхкосмической информации и синтеза частностей ИВО ИВАС Саввы ИВО ИВАС Кут Хуми, Глава Метагалактического Агентства Информации подразделения ИВДИВО","439. Аватаресса ИВО Вечной Сверхкосмической информации и синтеза частностей ИВО ИВАС Саввы ИВО ИВАС Кут Хуми, Глава Метагалактического Агентства Информации подразделения ИВДИВО"]
[null,"ИВДИВО Курск",null,null,"ИВ Аватара-Ипостаси ИВ Владыки ИВДИВО ИВО","438. Аватар ИВО Вечного Сверхкосмического Парламента ИВО ИВАС Савелия ИВО ИВАС Кут Хуми, Глава-дуумвиратор Парламентского центра ИВДИВО подразделения ИВДИВО","438. Аватаресса ИВО Вечного Сверхкосмического Парламента ИВО ИВАС Савелия ИВО ИВАС Кут Хуми, Глава-дуумвиратор Парламентского центра ИВДИВО подразделения ИВДИВО","438. Аватар ИВО Вечного Сверхкосмического Парламента ИВО ИВАС Савелия ИВО ИВАС Кут Хуми, Глава-дуумвиратор Парламентского центра ИВДИВО подразделения ИВДИВО","438. Аватаресса ИВО Вечного Сверхкосмического Парламента ИВО ИВАС Савелия ИВО ИВАС Кут Хуми, Глава-дуумвиратор Парламентского центра ИВДИВО подразделения ИВДИВО"]
[null,"ИВДИВО Воронеж",null,null,"ИВ Аватара-Ипостаси ИВ Учителя ИВДИВО ИВО","437. Аватар ИВО Экономики Отец-Человек-Субъектов ИВО ИВАС Вильгельма ИВО ИВАС Кут Хуми, ИВДИВО-офис-секретарь ","437. Аватаресса ИВО Экономики Отец-Человек-Субъектов ИВО ИВАС Вильгельма ИВО ИВАС Кут Хуми, ИВДИВО-офис-секретарь ","437. Аватар ИВО Экономики Отец-Человек-Субъектов ИВО ИВАС Вильгельма ИВО ИВАС Кут Хуми, ИВДИВО-офис-секретарь ","437. Аватаресса ИВО Экономики Отец-Человек-Субъектов ИВО ИВАС Вильгельма ИВО ИВАС Кут Хуми, ИВДИВО-офис-секретарь "]
[null,"ИВДИВО Королёв",null,null,"ИВ Аватара-Ипостаси ИВ Ипостаси ИВДИВО ИВО","436. Аватар ИВО Вечного Сверхкосмического Общества Иерархии Равных Отец-Человек-Субъектов ИВО ИВАС Юстаса ИВО ИВАС Кут Хуми, Глава Общества Иерархии Равных подразделения ИВДИВО","436. Аватаресса ИВО Вечного Сверхкосмического Общества Иерархии Равных Отец-Человек-Субъектов ИВО ИВАС Юстаса ИВО ИВАС Кут Хуми, Глава Общества Иерархии Равных подразделения ИВДИВО","436. Аватар ИВО Вечного Сверхкосмического Общества Иерархии Равных Отец-Человек-Субъектов ИВО ИВАС Юстаса ИВО ИВАС Кут Хуми, Глава Общества Иерархии Равных подразделения ИВДИВО","436. Аватаресса ИВО Вечного Сверхкосмического Общества Иерархии Равных Отец-Человек-Субъектов ИВО ИВАС Юстаса ИВО ИВАС Кут Хуми, Глава Общества Иерархии Равных подразделения ИВДИВО"]
[null,"ИВДИВО Ялта",null,null,"ИВ Аватара-Ипостаси ИВ Служащего ИВДИВО ИВО","435. Аватар ИВО Энергопотенциала Отец-Человек-Субъектов ИВО ИВАС Александра ИВО ИВАС Кут Хуми, Глава Энергопотенциала, Финансовый директор подразделения ИВДИВО","435. Аватаресса ИВО Энергопотенциала Отец-Человек-Субъектов ИВО ИВАС Александра ИВО ИВАС Кут Хуми, Глава Энергопотенциала, Финансовый директор подразделения ИВДИВО","435. Аватар ИВО Энергопотенциала Отец-Человек-Субъектов ИВО ИВАС Александра ИВО ИВАС Кут Хуми, Глава Энергопотенциала, Финансовый директор подразделения ИВДИВО","435. Аватаресса ИВО Энергопотенциала Отец-Человек-Субъектов ИВО ИВАС Александра ИВО ИВАС Кут Хуми, Глава Энергопотенциала, Финансовый директор подразделения ИВДИВО"]
[null,"ИВДИВО Адыгея",null,null,"ИВ Аватара-Ипостаси ИВ Посвящённого ИВДИВО ИВО","434. Аватар ИВО Плана Синтеза Отец-Человек-Субъектов ИВО ИВАС Яромира ИВО ИВАС Кут Хуми, Глава Плана Синтеза подразделения ИВДИВО","434. Аватаресса ИВО Плана Синтеза Отец-Человек-Субъектов ИВО ИВАС Яромира ИВО ИВАС Кут Хуми, Глава Плана Синтеза подразделения ИВДИВО","434. Аватар ИВО Плана Синтеза Отец-Человек-Субъектов ИВО ИВАС Яромира ИВО ИВАС Кут Хуми, Глава Плана Синтеза подразделения ИВДИВО","434. Аватаресса ИВО Плана Синтеза Отец-Человек-Субъектов ИВО ИВАС Яромира ИВО ИВАС Кут Хуми, Глава Плана Синтеза подразделения ИВДИВО"]
[null,"ИВДИВО Пятигорск",null,null,"ИВ Аватара-Ипостаси ИВ Человека ИВДИВО ИВО","433. Аватар ИВО Вечной Сверхкосмической Психодинамики Отец-Человек-Субъектов ИВО ИВАС Сераписа ИВО ИВАС Кут Хуми, ИВДИВО- кадровый секретарь ","433. Аватаресса ИВО Вечной Сверхкосмической Психодинамики Отец-Человек-Субъектов ИВО ИВАС Сераписа ИВО ИВАС Кут Хуми, ИВДИВО- кадровый секретарь ","433. Аватар ИВО Вечной Сверхкосмической Психодинамики Отец-Человек-Субъектов ИВО ИВАС Сераписа ИВО ИВАС Кут Хуми, ИВДИВО- кадровый секретарь ","433. Аватаресса ИВО Вечной Сверхкосмической Психодинамики Отец-Человек-Субъектов ИВО ИВАС Сераписа ИВО ИВАС Кут Хуми, ИВДИВО- кадровый секретарь "]
[null,"ИВДИВО Бурятия",null,null,"ИВ Аватара-Ипостаси ИВ Отца Иерархии ИВО","432. Аватар ИВО Вечной Сверхкосмической Нации Гражданской Конфедерации Отец-Человек-Субъектов ИВО ИВАС Эдуарда ИВО ИВАС Кут Хуми, Глава Гражданской Конфедерации подр. ИВДИВО","432. Аватаресса ИВО Вечной Сверхкосмической Нации Гражданской Конфедерации Отец-Человек-Субъектов ИВО ИВАС Эдуарда ИВО ИВАС Кут Хуми, Глава Гражданской Конфедерации подр. ИВДИВО","432. Аватар ИВО Вечной Сверхкосмической Нации Гражданской Конфедерации Отец-Человек-Субъектов ИВО ИВАС Эдуарда ИВО ИВАС Кут Хуми, Глава Гражданской Конфедерации подр. ИВДИВО","432. Аватаресса ИВО Вечной Сверхкосмической Нации Гражданской Конфедерации Отец-Человек-Субъектов ИВО ИВАС Эдуарда ИВО ИВАС Кут Хуми, Глава Гражданской Конфедерации подр. ИВДИВО"]
[null,"ИВДИВО Истра",null,null,"ИВ Аватара-Ипостаси ИВ Аватара Иерархии ИВО","431. Аватар ИВО Вечного Сверхкосмического Образования Отец-Человек-Субъектов ИВО ИВАС Фадея ИВО ИВАС Кут Хуми, Глава Образования подразделения ИВДИВО","431. Аватаресса ИВО Вечного Сверхкосмического Образования Отец-Человек-Субъектов ИВО ИВАС Фадея ИВО ИВАС Кут Хуми, Глава Образования подразделения ИВДИВО","431. Аватар ИВО Вечного Сверхкосмического Образования Отец-Человек-Субъектов ИВО ИВАС Фадея ИВО ИВАС Кут Хуми, Глава Образования подразделения ИВДИВО","431. Аватаресса ИВО Вечного Сверхкосмического Образования Отец-Человек-Субъектов ИВО ИВАС Фадея ИВО ИВАС Кут Хуми, Глава Образования подразделения ИВДИВО"]
[null,"ИВДИВО Югра",null,null,"ИВ Аватара-Ипостаси ИВ Владыки Иерархии ИВО","430. Аватар ИВО Вечного Сверхкосмического Мировоззрения Отец-Человек-Субъектов ИВО ИВАС Серафима ИВО ИВАС Кут Хуми, Глава Мировоззрения подразделения ИВДИВО ","430. Аватаресса ИВО Вечного Сверхкосмического Мировоззрения Отец-Человек-Субъектов ИВО ИВАС Серафима ИВО ИВАС Кут Хуми, Глава Мировоззрения подразделения ИВДИВО ","430. Аватар ИВО Вечного Сверхкосмического Мировоззрения Отец-Человек-Субъектов ИВО ИВАС Серафима ИВО ИВАС Кут Хуми, Глава Мировоззрения подразделения ИВДИВО ","430. Аватаресса ИВО Вечного Сверхкосмического Мировоззрения Отец-Человек-Субъектов ИВО ИВАС Серафима ИВО ИВАС Кут Хуми, Глава Мировоззрения подразделения ИВДИВО "]
[null,"ИВДИВО Волгоград",null,null,"ИВ Аватара-Ипостаси ИВ Учителя Иерархии ИВО","429. Аватар ИВО Вечной Сверхкосмической Культуры Отец-Человек-Субъектов ИВО ИВАС Святослава ИВО ИВАС Кут Хуми, Глава Культуры подразделения ИВДИВО","429. Аватаресса ИВО Вечной Сверхкосмической Культуры Отец-Человек-Субъектов ИВО ИВАС Святослава ИВО ИВАС Кут Хуми, Глава Культуры подразделения ИВДИВО","429. Аватар ИВО Вечной Сверхкосмической Культуры Отец-Человек-Субъектов ИВО ИВАС Святослава ИВО ИВАС Кут Хуми, Глава Культуры подразделения ИВДИВО","429. Аватаресса ИВО Вечной Сверхкосмической Культуры Отец-Человек-Субъектов ИВО ИВАС Святослава ИВО ИВАС Кут Хуми, Глава Культуры подразделения ИВДИВО"]
[null,"ИВДИВО Чебоксары",null,null,"ИВ Аватара-Ипостаси ИВ Ипостаси Иерархии ИВО","428. Аватар ИВО Вечного Сверхкосмического Искусства Отец-Человек-Субъектов ИВО ИВАС Эоана ИВО ИВАС Кут Хуми, Глава Искусства подразделения ИВДИВО","428. Аватаресса ИВО Вечного Сверхкосмического Искусства Отец-Человек-Субъектов ИВО ИВАС Эоана ИВО ИВАС Кут Хуми, Глава Искусства подразделения ИВДИВО","428. Аватар ИВО Вечного Сверхкосмического Искусства Отец-Человек-Субъектов ИВО ИВАС Эоана ИВО ИВАС Кут Хуми, Глава Искусства подразделения ИВДИВО","428. Аватаресса ИВО Вечного Сверхкосмического Искусства Отец-Человек-Субъектов ИВО ИВАС Эоана ИВО ИВАС Кут Хуми, Глава Искусства подразделения ИВДИВО"]
[null,"ИВДИВО Ангарск",null,null,"ИВ Аватара-Ипостаси ИВ Служащего Иерархии ИВО","427. Аватар ИВО Вечного Сверхкосмического Воспитания Отец-Человек-Субъектов ИВО ИВАС Сергея ИВО ИВАС Кут Хуми, Глава Воспитания подразделения ИВДИВО","427. Аватаресса ИВО Вечного Сверхкосмического Воспитания Отец-Человек-Субъектов ИВО ИВАС Сергея ИВО ИВАС Кут Хуми, Глава Воспитания подразделения ИВДИВО","427. Аватар ИВО Вечного Сверхкосмического Воспитания Отец-Человек-Субъектов ИВО ИВАС Сергея ИВО ИВАС Кут Хуми, Глава Воспитания подразделения ИВДИВО","427. Аватаресса ИВО Вечного Сверхкосмического Воспитания Отец-Человек-Субъектов ИВО ИВАС Сергея ИВО ИВАС Кут Хуми, Глава Воспитания подразделения ИВДИВО"]
[null,"ИВДИВО Волгодонск",null,null,"ИВ Аватара-Ипостаси ИВ Посвящённого Иерархии ИВО","426. Аватар ИВО Вечной Сверхкосмической Этики Отец-Человек-Субъектов ИВО ИВАС Сулеймана ИВО ИВАС Кут Хуми, Глава Этики подразделения ИВДИВО","426. Аватаресса ИВО Вечной Сверхкосмической Этики Отец-Человек-Субъектов ИВО ИВАС Сулеймана ИВО ИВАС Кут Хуми, Глава Этики подразделения ИВДИВО","426. Аватар ИВО Вечной Сверхкосмической Этики Отец-Человек-Субъектов ИВО ИВАС Сулеймана ИВО ИВАС Кут Хуми, Глава Этики подразделения ИВДИВО","426. Аватаресса ИВО Вечной Сверхкосмической Этики Отец-Человек-Субъектов ИВО ИВАС Сулеймана ИВО ИВАС Кут Хуми, Глава Этики подразделения ИВДИВО"]
[null,"ИВДИВО Зеленогорск",null,null,"ИВ Аватара-Ипостаси ИВ Человека Иерархии ИВО","425. Аватар ИВО Вечной Сверхкосмической Эстетики Отец-Человек-Субъектов ИВО ИВАС Себастьяна ИВО ИВАС Кут Хуми, Глава Столицы синтезфизичности Отец-Человек-Субъект-Землян Планетой Земля","425. Аватаресса ИВО Вечной Сверхкосмической Эстетики Отец-Человек-Субъектов ИВО ИВАС Себастьяна ИВО ИВАС Кут Хуми, Глава Столицы синтезфизичности Отец-Человек-Субъект-Землян Планетой Земля","425. Аватар ИВО Вечной Сверхкосмической Эстетики Отец-Человек-Субъектов ИВО ИВАС Себастьяна ИВО ИВАС Кут Хуми, Глава Столицы синтезфизичности Отец-Человек-Субъект-Землян Планетой Земля","425. Аватаресса ИВО Вечной Сверхкосмической Эстетики Отец-Человек-Субъектов ИВО ИВАС Себастьяна ИВО ИВАС Кут Хуми, Глава Столицы синтезфизичности Отец-Человек-Субъект-Землян Планетой Земля"]
[null,"ИВДИВО Кубань",null,null,"ИВ Аватара-Ипостаси ИВ Человека-Отца ИВО","424. Аватар ИВО ИВДИВО-Разработки Отец-Человек-Субъектов ИВО ИВАС Теодора ИВО ИВАС Кут Хуми, Глава ИВДИВО-разработки подразделения ИВДИВО","424. Аватаресса ИВО ИВДИВО-Разработки Отец-Человек-Субъектов ИВО ИВАС Теодора ИВО ИВАС Кут Хуми, Глава ИВДИВО-разработки подразделения ИВДИВО","424. Аватар ИВО ИВДИВО-Разработки Отец-Человек-Субъектов ИВО ИВАС Теодора ИВО ИВАС Кут Хуми, Глава ИВДИВО-разработки подразделения ИВДИВО","424. Аватаресса ИВО ИВДИВО-Разработки Отец-Человек-Субъектов ИВО ИВАС Теодора ИВО ИВАС Кут Хуми, Глава ИВДИВО-разработки подразделения ИВДИВО"]
[null,"ИВДИВО Новороссийск",null,null,"ИВ Аватара-Ипостаси ИВ Человека-Аватара ИВО","423. Аватар ИВО Вечного Сверхкосмического Высшего Метагалактического Синтеза Отец-Человек-Субъектов ИВО ИВАС Антея ИВО ИВАС Кут Хуми, Глава Метагалактического клуба Посвящённых подразделения ИВДИВО ","423. Аватаресса ИВО Вечного Сверхкосмического Высшего Метагалактического Синтеза Отец-Человек-Субъектов ИВО ИВАС Антея ИВО ИВАС Кут Хуми, Глава Метагалактического клуба Посвящённых подразделения ИВДИВО ","423. Аватар ИВО Вечного Сверхкосмического Высшего Метагалактического Синтеза Отец-Человек-Субъектов ИВО ИВАС Антея ИВО ИВАС Кут Хуми, Глава Метагалактического клуба Посвящённых подразделения ИВДИВО ","423. Аватаресса ИВО Вечного Сверхкосмического Высшего Метагалактического Синтеза Отец-Человек-Субъектов ИВО ИВАС Антея ИВО ИВАС Кут Хуми, Глава Метагалактического клуба Посвящённых подразделения ИВДИВО "]
[null,"ИВДИВО Тверь",null,null,"ИВ Аватара-Ипостаси ИВ Человека-Владыки ИВО","422. Аватар ИВО Вечной Сверхкосмической Синархии Отец-Человек-Субъектов ИВО ИВАС Наума ИВО ИВАС Кут Хуми, Глава-дуумвиратор Парламентского центра ИВДИВО подразделения ИВДИВО ","422. Аватаресса ИВО Вечной Сверхкосмической Синархии Отец-Человек-Субъектов ИВО ИВАС Наума ИВО ИВАС Кут Хуми, Глава-дуумвиратор Парламентского центра ИВДИВО подразделения ИВДИВО ","422. Аватар ИВО Вечной Сверхкосмической Синархии Отец-Человек-Субъектов ИВО ИВАС Наума ИВО ИВАС Кут Хуми, Глава-дуумвиратор Парламентского центра ИВДИВО подразделения ИВДИВО ","422. Аватаресса ИВО Вечной Сверхкосмической Синархии Отец-Человек-Субъектов ИВО ИВАС Наума ИВО ИВАС Кут Хуми, Глава-дуумвиратор Парламентского центра ИВДИВО подразделения ИВДИВО "]
[null,"ИВДИВО Омск",null,null,"ИВ Аватара-Ипостаси ИВ Человека-Учителя ИВО","421. Аватар ИВО Вечной Сверхкосмической Высшей Метагалактической Расы Отец-Человек-Субъектов ИВО ИВАС Велимира ИВО ИВАС Кут Хуми, Глава развития шестой расы подразделения ИВДИВО","421. Аватаресса ИВО Вечной Сверхкосмической Высшей Метагалактической Расы Отец-Человек-Субъектов ИВО ИВАС Велимира ИВО ИВАС Кут Хуми, Глава развития шестой расы подразделения ИВДИВО","421. Аватар ИВО Вечной Сверхкосмической Высшей Метагалактической Расы Отец-Человек-Субъектов ИВО ИВАС Велимира ИВО ИВАС Кут Хуми, Глава развития шестой расы подразделения ИВДИВО","421. Аватаресса ИВО Вечной Сверхкосмической Высшей Метагалактической Расы Отец-Человек-Субъектов ИВО ИВАС Велимира ИВО ИВАС Кут Хуми, Глава развития шестой расы подразделения ИВДИВО"]
[null,"ИВДИВО Астана, Казахстан",null,null,"ИВ Аватара-Ипостаси ИВ Человека-Ипостаси ИВО","420. Аватар ИВО Синтеза Частей Отец-Человек-Субъектов ИВО ИВАС Георга ИВО ИВАС Кут Хуми, Глава ИВДИВО-полисов подразделения ИВДИВО","420. Аватаресса ИВО Синтеза Частей Отец-Человек-Субъектов ИВО ИВАС Георга ИВО ИВАС Кут Хуми, Глава ИВДИВО-полисов подразделения ИВДИВО","420. Аватар ИВО Синтеза Частей Отец-Человек-Субъектов ИВО ИВАС Георга ИВО ИВАС Кут Хуми, Глава ИВДИВО-полисов подразделения ИВДИВО","420. Аватаресса ИВО Синтеза Частей Отец-Человек-Субъектов ИВО ИВАС Георга ИВО ИВАС Кут Хуми, Глава ИВДИВО-полисов подразделения ИВДИВО"]
[null,"ИВДИВО Киев, Украина",null,null,"ИВ Аватара-Ипостаси ИВ Человека-Служащего ИВО","419. Аватар ИВО Синтеза Систем частей Отец-Человек-Субъектов ИВО ИВАС Алексия ИВО ИВАС Кут Хуми, Глава ИВДИВО-зданий подразделения ИВДИВО","419. Аватаресса ИВО Синтеза Систем частей Отец-Человек-Субъектов ИВО ИВАС Алексия ИВО ИВАС Кут Хуми, Глава ИВДИВО-зданий подразделения ИВДИВО","419. Аватар ИВО Синтеза Систем частей Отец-Человек-Субъектов ИВО ИВАС Алексия ИВО ИВАС Кут Хуми, Глава ИВДИВО-зданий подразделения ИВДИВО","419. Аватаресса ИВО Синтеза Систем частей Отец-Человек-Субъектов ИВО ИВАС Алексия ИВО ИВАС Кут Хуми, Глава ИВДИВО-зданий подразделения ИВДИВО"]
[null,"ИВДИВО Ростов-на-Дону",null,null,"ИВ Аватара-Ипостаси ИВ Человека-Посвящённого ИВО","418. Аватар ИВО Синтеза Аппаратов систем частей Отец-Человек-Субъектов ИВО ИВАС Эмиля ИВО ИВАС Кут Хуми, Глава Частных ИВДИВО-зданий Отец-Человек-Субъекта подразделения ИВДИВО","418. Аватаресса ИВО Синтеза Аппаратов систем частей Отец-Человек-Субъектов ИВО ИВАС Эмиля ИВО ИВАС Кут Хуми, Глава Частных ИВДИВО-зданий Отец-Человек-Субъекта подразделения ИВДИВО","418. Аватар ИВО Синтеза Аппаратов систем частей Отец-Человек-Субъектов ИВО ИВАС Эмиля ИВО ИВАС Кут Хуми, Глава Частных ИВДИВО-зданий Отец-Человек-Субъекта подразделения ИВДИВО","418. Аватаресса ИВО Синтеза Аппаратов систем частей Отец-Человек-Субъектов ИВО ИВАС Эмиля ИВО ИВАС Кут Хуми, Глава Частных ИВДИВО-зданий Отец-Человек-Субъекта подразделения ИВДИВО"]
[null,"ИВДИВО Одесса",null,null,"ИВ Аватара-Ипостаси ИВ Октавного Человека ИВО","417. Аватар ИВО Вечной Сверхкосмической Иерархии ИВО ИВАС Дария ИВО ИВАС Кут Хуми, Глава Метагалактического центра подразделения ИВДИВО","417. Аватаресса ИВО Вечной Сверхкосмической Иерархии ИВО ИВАС Дария ИВО ИВАС Кут Хуми, Глава Метагалактического центра подразделения ИВДИВО","417. Аватар ИВО Вечной Сверхкосмической Иерархии ИВО ИВАС Дария ИВО ИВАС Кут Хуми, Глава Метагалактического центра подразделения ИВДИВО","417. Аватаресса ИВО Вечной Сверхкосмической Иерархии ИВО ИВАС Дария ИВО ИВАС Кут Хуми, Глава Метагалактического центра подразделения ИВДИВО"]
[null,"ИВДИВО Днепр",null,null,"ИВ Аватара-Ипостаси ИВ Отца Метагалактики ИВО",{"$f":"H48","v":"416. Аватар ИВО ИВДИВО каждого ИВО ИВАС Валентина ИВО ИВАС Кут Хуми"},{"$f":"I48","v":"416. Аватаресса ИВО ИВДИВО каждого ИВО ИВАС Валентина ИВО ИВАС Кут Хуми"},"416. Аватар ИВО ИВДИВО каждого ИВО ИВАС Валентина ИВО ИВАС Кут Хуми","416. Аватаресса ИВО ИВДИВО каждого ИВО ИВАС Валентина ИВО ИВАС Кут Хуми"]
[null,"ИВДИВО Оснабрюк, Германия",null,null,"ИВ Аватара-Ипостаси ИВ Аватара Метагалактики ИВО",{"$f":"H49","v":"415. Аватар ИВО Парадигмы каждого ИВО ИВАС Савия ИВО ИВАС Кут Хуми"},{"$f":"I49","v":"415. Аватаресса ИВО Парадигмы каждого ИВО ИВАС Савия ИВО ИВАС Кут Хуми"},"415. Аватар ИВО Парадигмы каждого ИВО ИВАС Савия ИВО ИВАС Кут Хуми","415. Аватаресса ИВО Парадигмы каждого ИВО ИВАС Савия ИВО ИВАС Кут Хуми"]
[null,"ИВДИВО Азнакаево",null,null,"ИВ Аватара-Ипостаси ИВ Владыки Метагалактики ИВО",{"$f":"H50","v":"414. Аватар ИВО Философии каждого ИВО ИВАС Вячеслава ИВО ИВАС Кут Хуми"},"414. Аватаресса ИВО Философии каждого ИВО ИВАС Вячеслава ИВО ИВАС Кут Хуми","414. Аватар ИВО Философии каждого ИВО ИВАС Вячеслава ИВО ИВАС Кут Хуми","414. Аватаресса ИВО Философии каждого ИВО ИВАС Вячеслава ИВО ИВАС Кут Хуми"]
[null,"ИВДИВО Харьков",null,null,"ИВ Аватара-Ипостаси ИВ Учителя Метагалактики ИВО","413. Аватар ИВО Цивилизации каждого ИВО ИВАС Андрея ИВО ИВАС Кут Хуми","413. Аватаресса ИВО Цивилизации каждого ИВО ИВАС Андрея ИВО ИВАС Кут Хуми","413. Аватар ИВО Цивилизации каждого ИВО ИВАС Андрея ИВО ИВАС Кут Хуми","413. Аватаресса ИВО Цивилизации каждого ИВО ИВАС Андрея ИВО ИВАС Кут Хуми"]
[null,"ИВДИВО Витебск",null,null,"ИВ Аватара-Ипостаси ИВ Ипостаси Метагалактики ИВО","412. Аватар ИВО Империи каждого ИВО ИВАС Давида ИВО ИВАС Кут Хуми","412. Аватаресса ИВО Империи каждого ИВО ИВАС Давида ИВО ИВАС Кут Хуми","412. Аватар ИВО Империи каждого ИВО ИВАС Давида ИВО ИВАС Кут Хуми","412. Аватаресса ИВО Империи каждого ИВО ИВАС Давида ИВО ИВАС Кут Хуми"]
[null,"ИВДИВО Уфа",null,null,"ИВ Аватара-Ипостаси ИВ Служащего Метагалактики ИВО","411. Аватар ИВО Науки каждого ИВО ИВАС Евгения ИВО ИВАС Кут Хуми","411. Аватаресса ИВО Науки каждого ИВО ИВАС Евгения ИВО ИВАС Кут Хуми","411. Аватар ИВО Науки каждого ИВО ИВАС Евгения ИВО ИВАС Кут Хуми","411. Аватаресса ИВО Науки каждого ИВО ИВАС Евгения ИВО ИВАС Кут Хуми"]
[null,"ИВДИВО Забайкалье",null,null,"ИВ Аватара-Ипостаси ИВ Посвящённого Метагалактики ИВО","410. Аватар ИВО Развития каждого ИВО ИВАС Дмитрия ИВО ИВАС Кут Хуми","410. Аватаресса ИВО Развития каждого ИВО ИВАС Дмитрия ИВО ИВАС Кут Хуми","410. Аватар ИВО Развития каждого ИВО ИВАС Дмитрия ИВО ИВАС Кут Хуми","410. Аватаресса ИВО Развития каждого ИВО ИВАС Дмитрия ИВО ИВАС Кут Хуми"]
[null,"ИВДИВО Кишинёв, Молдова",null,null,"ИВ Аватара-Ипостаси ИВ Человека Метагалактики ИВО","409. Аватар ИВО Аттестации каждого ИВО ИВАС Есения ИВО ИВАС Кут ХумиМировой Сенатор Синтезного Сената Парламентского центра ИВДИВО подразделения ИВДИВО ","409. Аватаресса ИВО Аттестации каждого ИВО ИВАС Есения ИВО ИВАС Кут ХумиМировой Сенатор Синтезного Сената Парламентского центра ИВДИВО подразделения ИВДИВО ","409. Аватар ИВО Аттестации каждого ИВО ИВАС Есения ИВО ИВАС Кут ХумиМировой Сенатор Синтезного Сената Парламентского центра ИВДИВО подразделения ИВДИВО ","409. Аватаресса ИВО Аттестации каждого ИВО ИВАС Есения ИВО ИВАС Кут ХумиМировой Сенатор Синтезного Сената Парламентского центра ИВДИВО подразделения ИВДИВО "]
[null,"ИВДИВО Запорожье",null,null,"ИВ Аватара-Ипостаси ИВ Отца ИВДИВО Метагалактики ИВО","408. Аватар ИВО Партии каждого ИВО ИВАС Константина ИВО ИВАС Кут Хуми","408. Аватаресса ИВО Партии каждого ИВО ИВАС Константина ИВО ИВАС Кут Хуми","408. Аватар ИВО Партии каждого ИВО ИВАС Константина ИВО ИВАС Кут Хуми","408. Аватаресса ИВО Партии каждого ИВО ИВАС Константина ИВО ИВАС Кут Хуми"]
[null,"ИВДИВО Темиртау. Караганда",null,null,"ИВ Аватара-Ипостаси ИВ Аватара ИВДИВО Метагалактики ИВО","407. Аватар ИВО Информации каждого ИВО ИВАС Ростислава ИВО ИВАС Кут Хуми","407. Аватаресса ИВО Информации каждого ИВО ИВАС Ростислава ИВО ИВАС Кут Хуми","407. Аватар ИВО Информации каждого ИВО ИВАС Ростислава ИВО ИВАС Кут Хуми","407. Аватаресса ИВО Информации каждого ИВО ИВАС Ростислава ИВО ИВАС Кут Хуми"]
[null,"ИВДИВО Белая Вежа",null,null,"ИВ Аватара-Ипостаси ИВ Владыки ИВДИВО Метагалактики ИВО","406. Аватар ИВО Конституции каждого ИВО ИВАС Ян ИВО ИВАС Кут Хуми","406. Аватаресса ИВО Конституции каждого ИВО ИВАС Ян ИВО ИВАС Кут Хуми","406. Аватар ИВО Конституции каждого ИВО ИВАС Ян ИВО ИВАС Кут Хуми","406. Аватаресса ИВО Конституции каждого ИВО ИВАС Ян ИВО ИВАС Кут Хуми"]
[null,"ИВДИВО Алматы",null,null,"ИВ Аватара-Ипостаси ИВ Учителя ИВДИВО Метагалактики ИВО","405. Аватар ИВО Экономики каждого ИВО ИВАС Василия ИВО ИВАС Кут Хуми","405. Аватаресса ИВО Экономики каждого ИВО ИВАС Василия ИВО ИВАС Кут Хуми","405. Аватар ИВО Экономики каждого ИВО ИВАС Василия ИВО ИВАС Кут Хуми","405. Аватаресса ИВО Экономики каждого ИВО ИВАС Василия ИВО ИВАС Кут Хуми"]
[null,"ИВДИВО Энергодар",null,null,"ИВ Аватара-Ипостаси ИВ Ипостаси ИВДИВО Метагалактики ИВО","404. Аватар ИВО Общества каждого ИВО ИВАС Арсения ИВО ИВАС Кут Хуми","404. Аватаресса ИВО Общества каждого ИВО ИВАС Арсения ИВО ИВАС Кут Хуми","404. Аватар ИВО Общества каждого ИВО ИВАС Арсения ИВО ИВАС Кут Хуми","404. Аватаресса ИВО Общества каждого ИВО ИВАС Арсения ИВО ИВАС Кут Хуми"]
[null,"ИВДИВО Донецк",null,null,"ИВ Аватара-Ипостаси ИВ Служащего ИВДИВО Метагалактики ИВО","403. Аватар ИВО Энергопотенциала каждого ИВО ИВАС Огюста ИВО ИВАС Кут Хуми","403. Аватаресса ИВО Энергопотенциала каждого ИВО ИВАС Огюста ИВО ИВАС Кут Хуми","403. Аватар ИВО Энергопотенциала каждого ИВО ИВАС Огюста ИВО ИВАС Кут Хуми","403. Аватаресса ИВО Энергопотенциала каждого ИВО ИВАС Огюста ИВО ИВАС Кут Хуми"]
[null,"ИВДИВО Томск",null,null,"ИВ Аватара-Ипостаси ИВ Посвящённого ИВДИВО Метагалактики ИВО","402. Аватар ИВО Плана Синтеза каждого ИВО ИВАС Илия ИВО ИВАС Кут Хуми","402. Аватаресса ИВО Плана Синтеза каждого ИВО ИВАС Илия ИВО ИВАС Кут Хуми","402. Аватар ИВО Плана Синтеза каждого ИВО ИВАС Илия ИВО ИВАС Кут Хуми","402. Аватаресса ИВО Плана Синтеза каждого ИВО ИВАС Илия ИВО ИВАС Кут Хуми"]
[null,"ИВДИВО Уральск",null,null,"ИВ Аватара-Ипостаси ИВ Человека ИВДИВО Метагалактики ИВО","401. Аватар ИВО Психодинамики каждого ИВО ИВАС Геральда ИВО ИВАС Кут ХумиМировой Сенатор Метагалактического Сената Парламентского центра ИВДИВО подразделения ИВДИВО ","401. Аватаресса ИВО Психодинамики каждого ИВО ИВАС Геральда ИВО ИВАС Кут ХумиМировой Сенатор Метагалактического Сената Парламентского центра ИВДИВО подразделения ИВДИВО ","401. Аватар ИВО Психодинамики каждого ИВО ИВАС Геральда ИВО ИВАС Кут ХумиМировой Сенатор Метагалактического Сената Парламентского центра ИВДИВО подразделения ИВДИВО ","401. Аватаресса ИВО Психодинамики каждого ИВО ИВАС Геральда ИВО ИВАС Кут ХумиМировой Сенатор Метагалактического Сената Парламентского центра ИВДИВО подразделения ИВДИВО "]
[null,"ИВДИВО Хакасия",null,null,"ИВ Аватара-Ипостаси ИВ Отца Иерархии Метагалактики ИВО","400. Аватар ИВО Нации каждого ИВО ИВАС Платона ИВО ИВАС Кут Хуми","400. Аватаресса ИВО Нации каждого ИВО ИВАС Платона ИВО ИВАС Кут Хуми","400. Аватар ИВО Нации каждого ИВО ИВАС Платона ИВО ИВАС Кут Хуми","400. Аватаресса ИВО Нации каждого ИВО ИВАС Платона ИВО ИВАС Кут Хуми"]
[null,"ИВДИВО Смоленск",null,null,"ИВ Аватара-Ипостаси ИВ Аватара Иерархии Метагалактики ИВО","399. Аватар ИВО Образования каждого ИВО ИВАС Николая ИВО ИВАС Кут Хуми","399. Аватаресса ИВО Образования каждого ИВО ИВАС Николая ИВО ИВАС Кут Хуми","399. Аватар ИВО Образования каждого ИВО ИВАС Николая ИВО ИВАС Кут Хуми","399. Аватаресса ИВО Образования каждого ИВО ИВАС Николая ИВО ИВАС Кут Хуми"]
[null,"ИВДИВО США/Канада",null,null,"ИВ Аватара-Ипостаси ИВ Владыки Иерархии Метагалактики ИВО","398. Аватар ИВО Мировоззрения каждого ИВО ИВАС Игоря ИВО ИВАС Кут Хуми","398. Аватаресса ИВО Мировоззрения каждого ИВО ИВАС Игоря ИВО ИВАС Кут Хуми","398. Аватар ИВО Мировоззрения каждого ИВО ИВАС Игоря ИВО ИВАС Кут Хуми","398. Аватаресса ИВО Мировоззрения каждого ИВО ИВАС Игоря ИВО ИВАС Кут Хуми"]
[null,"ИВДИВО Елабуга",null,null,"ИВ Аватара-Ипостаси ИВ Учителя Иерархии Метагалактики ИВО","397. Аватар ИВО Культуры каждого ИВО ИВАС Яра ИВО ИВАС Кут Хуми","397. Аватаресса ИВО Культуры каждого ИВО ИВАС Яра ИВО ИВАС Кут Хуми","397. Аватар ИВО Культуры каждого ИВО ИВАС Яра ИВО ИВАС Кут Хуми","397. Аватаресса ИВО Культуры каждого ИВО ИВАС Яра ИВО ИВАС Кут Хуми"]
[null,"ИВДИВО Южная Пальмира",null,null,"ИВ Аватара-Ипостаси ИВ Ипостаси Иерархии Метагалактики ИВО","396. Аватар ИВО Искусства каждого ИВО ИВАС Вадима ИВО ИВАС Кут Хуми","396. Аватаресса ИВО Искусства каждого ИВО ИВАС Вадима ИВО ИВАС Кут Хуми","396. Аватар ИВО Искусства каждого ИВО ИВАС Вадима ИВО ИВАС Кут Хуми","396. Аватаресса ИВО Искусства каждого ИВО ИВАС Вадима ИВО ИВАС Кут Хуми"]
[null,"ИВДИВО Белая Церковь",null,null,"ИВ Аватара-Ипостаси ИВ Служащего Иерархии Метагалактики ИВО","395. Аватар ИВО Воспитания каждого ИВО ИВАС Огнеслава ИВО ИВАС Кут Хуми","395. Аватаресса ИВО Воспитания каждого ИВО ИВАС Огнеслава ИВО ИВАС Кут Хуми","395. Аватар ИВО Воспитания каждого ИВО ИВАС Огнеслава ИВО ИВАС Кут Хуми","395. Аватаресса ИВО Воспитания каждого ИВО ИВАС Огнеслава ИВО ИВАС Кут Хуми"]
[null,"ИВДИВО Европа",null,null,"ИВ Аватара-Ипостаси ИВ Посвящённого Иерархии Метагалактики ИВО","394. Аватар ИВО Этики каждого ИВО ИВАС Марка ИВО ИВАС Кут Хуми","394. Аватаресса ИВО Этики каждого ИВО ИВАС Марка ИВО ИВАС Кут Хуми","394. Аватар ИВО Этики каждого ИВО ИВАС Марка ИВО ИВАС Кут Хуми","394. Аватаресса ИВО Этики каждого ИВО ИВАС Марка ИВО ИВАС Кут Хуми"]
[null,"ИВДИВО Измаил",null,null,"ИВ Аватара-Ипостаси ИВ Человека Иерархии Метагалактики ИВО","393. Аватар ИВО Эстетики каждого ИВО ИВАС Теона ИВО ИВАС Кут ХумиМировой Сенатор Тонкого Сената Парламентского центра ИВДИВО подразделения ИВДИВО ","393. Аватаресса ИВО Эстетики каждого ИВО ИВАС Теона ИВО ИВАС Кут ХумиМировой Сенатор Тонкого Сената Парламентского центра ИВДИВО подразделения ИВДИВО ","393. Аватар ИВО Эстетики каждого ИВО ИВАС Теона ИВО ИВАС Кут ХумиМировой Сенатор Тонкого Сената Парламентского центра ИВДИВО подразделения ИВДИВО ","393. Аватаресса ИВО Эстетики каждого ИВО ИВАС Теона ИВО ИВАС Кут ХумиМировой Сенатор Тонкого Сената Парламентского центра ИВДИВО подразделения ИВДИВО "]
[null,"ИВДИВО Борисов",null,null,"ИВ Аватара-Ипостаси ИВ Человека-Отца Метагалактики ИВО","392. Аватар ИВО Разработки каждого ИВО ИВАС Трофима ИВО ИВАС Кут Хуми","392. Аватаресса ИВО Разработки каждого ИВО ИВАС Трофима ИВО ИВАС Кут Хуми","392. Аватар ИВО Разработки каждого ИВО ИВАС Трофима ИВО ИВАС Кут Хуми","392. Аватаресса ИВО Разработки каждого ИВО ИВАС Трофима ИВО ИВАС Кут Хуми"]
[null,"ИВДИВО Хайльбронн",null,null,"ИВ Аватара-Ипостаси ИВ Человека-Аватара Метагалактики ИВО","391. Аватар ИВО Вечного Сверхкосмического Синтеза каждого ИВО ИВАС Емельяна ИВО ИВАС Кут Хуми","391. Аватаресса ИВО Вечного Сверхкосмического Синтеза каждого ИВО ИВАС Емельяна ИВО ИВАС Кут Хуми","391. Аватар ИВО Вечного Сверхкосмического Синтеза каждого ИВО ИВАС Емельяна ИВО ИВАС Кут Хуми","391. Аватаресса ИВО Вечного Сверхкосмического Синтеза каждого ИВО ИВАС Емельяна ИВО ИВАС Кут Хуми"]
[null,"ИВДИВО Купянск",null,null,"ИВ Аватара-Ипостаси ИВ Человека-Владыки Метагалактики ИВО","390. Аватар ИВО Синархии каждого ИВО ИВАС Ефрема ИВО ИВАС Кут Хуми","390. Аватаресса ИВО Синархии каждого ИВО ИВАС Ефрема ИВО ИВАС Кут Хуми","390. Аватар ИВО Синархии каждого ИВО ИВАС Ефрема ИВО ИВАС Кут Хуми","390. Аватаресса ИВО Синархии каждого ИВО ИВАС Ефрема ИВО ИВАС Кут Хуми"]
[null,"ИВДИВО Житомир",null,null,"ИВ Аватара-Ипостаси ИВ Человека-Учителя Метагалактики ИВО","389. Аватар ИВО Подрасы каждого ИВО ИВАС Натана ИВО ИВАС Кут Хуми","389. Аватаресса ИВО Подрасы каждого ИВО ИВАС Натана ИВО ИВАС Кут Хуми","389. Аватар ИВО Подрасы каждого ИВО ИВАС Натана ИВО ИВАС Кут Хуми","389. Аватаресса ИВО Подрасы каждого ИВО ИВАС Натана ИВО ИВАС Кут Хуми"]
[null,"ИВДИВО Шымкент",null,null,"ИВ Аватара-Ипостаси ИВ Человека-Ипостаси Метагалактики ИВО","388. Аватар ИВО Частей каждого ИВО ИВАС Артёма ИВО ИВАС Кут Хуми","388. Аватаресса ИВО Частей каждого ИВО ИВАС Артёма ИВО ИВАС Кут Хуми","388. Аватар ИВО Частей каждого ИВО ИВАС Артёма ИВО ИВАС Кут Хуми","388. Аватаресса ИВО Частей каждого ИВО ИВАС Артёма ИВО ИВАС Кут Хуми"]
[null,"ИВДИВО Актау",null,null,"ИВ Аватара-Ипостаси ИВ Человека-Служащего Метагалактики ИВО","387. Аватар ИВО Систем частей каждого ИВО ИВАС Игнатия ИВО ИВАС Кут Хуми","387. Аватаресса ИВО Систем частей каждого ИВО ИВАС Игнатия ИВО ИВАС Кут Хуми","387. Аватар ИВО Систем частей каждого ИВО ИВАС Игнатия ИВО ИВАС Кут Хуми","387. Аватаресса ИВО Систем частей каждого ИВО ИВАС Игнатия ИВО ИВАС Кут Хуми"]
[null,"ИВДИВО Больцано, Италия",null,null,"ИВ Аватара-Ипостаси ИВ Человека-Посвящённого Метагалактики ИВО","386. Аватар ИВО Аппаратов систем частей каждого ИВО ИВАС Юлиана ИВО ИВАС Кут Хуми","386. Аватаресса ИВО Аппаратов систем частей каждого ИВО ИВАС Юлиана ИВО ИВАС Кут Хуми","386. Аватар ИВО Аппаратов систем частей каждого ИВО ИВАС Юлиана ИВО ИВАС Кут Хуми","386. Аватаресса ИВО Аппаратов систем частей каждого ИВО ИВАС Юлиана ИВО ИВАС Кут Хуми"]
[null,"ИВДИВО Смела",null,null,"ИВ Аватара-Ипостаси ИВ Человека Метагалактики ИВО","385. Аватар ИВО Иерархии каждого ИВО ИВАС Аркадия ИВО ИВАС Кут ХумиМировой Сенатор Физического Сената Парламентского центра ИВДИВО подразделения ИВДИВО ","385. Аватаресса ИВО Иерархии каждого ИВО ИВАС Аркадия ИВО ИВАС Кут ХумиМировой Сенатор Физического Сената Парламентского центра ИВДИВО подразделения ИВДИВО ","385. Аватар ИВО Иерархии каждого ИВО ИВАС Аркадия ИВО ИВАС Кут ХумиМировой Сенатор Физического Сената Парламентского центра ИВДИВО подразделения ИВДИВО ","385. Аватаресса ИВО Иерархии каждого ИВО ИВАС Аркадия ИВО ИВАС Кут ХумиМировой Сенатор Физического Сената Парламентского центра ИВДИВО подразделения ИВДИВО "]
[null,"ИВДИВО Актобе",null,"Кут Хуми","Кут Хуми"]
[null,"ИВДИВО Приднепровье",null,"Иосиф","Иосифа",{"$f":"H81","v":"384. Владыка ИВО Управления Сиаматического тела ИВО ИВАС Никиты ИВО ИВАС Кут Хуми"},{"$f":"I81","v":"384. Владычица ИВО Управления Сиаматического тела ИВО ИВАС Никиты ИВО ИВАС Кут Хуми"},"384. Владыка ИВО Управления Сиаматического тела ИВО ИВАС Никиты ИВО ИВАС Кут Хуми","384. Владычица ИВО Управления Сиаматического тела ИВО ИВАС Никиты ИВО ИВАС Кут Хуми"]
[null,"ИВДИВО Сириус",null,"Мория","Мории",{"$f":"H82","v":"383. Владыка ИВО Управления Есмического тела ИВО ИВАС Олега ИВО ИВАС Кут Хуми"},{"$f":"I82","v":"383. Владычица ИВО Управления Есмического тела ИВО ИВАС Олега ИВО ИВАС Кут Хуми"},"383. Владыка ИВО Управления Есмического тела ИВО ИВАС Олега ИВО ИВАС Кут Хуми","383. Владычица ИВО Управления Есмического тела ИВО ИВАС Олега ИВО ИВАС Кут Хуми"]
[null,"ИВДИВО Байкальск",null,"Филипп","Филиппа",{"$f":"H83","v":"382. Владыка ИВО Управления Имического тела ИВО ИВАС Владимира ИВО ИВАС Кут Хуми"},"382. Владычица ИВО Управления Имического тела ИВО ИВАС Владимира ИВО ИВАС Кут Хуми","382. Владыка ИВО Управления Имического тела ИВО ИВАС Владимира ИВО ИВАС Кут Хуми","382. Владычица ИВО Управления Имического тела ИВО ИВАС Владимира ИВО ИВАС Кут Хуми"]
[null,"ИВДИВО Братск",null,"Византий","Византия","381. Владыка ИВО Управления Этонического тела ИВО ИВАС Стефана ИВО ИВАС Кут Хуми","381. Владычица ИВО Управления Этонического тела ИВО ИВАС Стефана ИВО ИВАС Кут Хуми","381. Владыка ИВО Управления Этонического тела ИВО ИВАС Стефана ИВО ИВАС Кут Хуми","381. Владычица ИВО Управления Этонического тела ИВО ИВАС Стефана ИВО ИВАС Кут Хуми"]
[null,"ИВДИВО Петропавловск. Костанай",null,"Янов","Янова","380. Владыка ИВО Управления Амритического тела ИВО ИВАС Горислава ИВО ИВАС Кут Хуми","380. Владычица ИВО Управления Амритического тела ИВО ИВАС Горислава ИВО ИВАС Кут Хуми","380. Владыка ИВО Управления Амритического тела ИВО ИВАС Горислава ИВО ИВАС Кут Хуми","380. Владычица ИВО Управления Амритического тела ИВО ИВАС Горислава ИВО ИВАС Кут Хуми"]
[null,"ИВДИВО Кемерово",null,"Юлий","Юлия","379. Владыка ИВО Управления Абического тела ИВО ИВАС Никона ИВО ИВАС Кут Хуми","379. Владычица ИВО Управления Абического тела ИВО ИВАС Никона ИВО ИВАС Кут Хуми","379. Владыка ИВО Управления Абического тела ИВО ИВАС Никона ИВО ИВАС Кут Хуми","379. Владычица ИВО Управления Абического тела ИВО ИВАС Никона ИВО ИВАС Кут Хуми"]
[null,"ИВДИВО Кипр",null,"Юсеф","Юсефа","378. Владыка ИВО Управления Ситического тела ИВО ИВАС Эрика ИВО ИВАС Кут Хуми","378. Владычица ИВО Управления Ситического тела ИВО ИВАС Эрика ИВО ИВАС Кут Хуми","378. Владыка ИВО Управления Ситического тела ИВО ИВАС Эрика ИВО ИВАС Кут Хуми","378. Владычица ИВО Управления Ситического тела ИВО ИВАС Эрика ИВО ИВАС Кут Хуми"]
[null,"ИВДИВО Фрайбург",null,"Владомир","Владомира","377. Владыка ИВО Управления Живического тела ИВО ИВАС Олафа ИВО ИВАС Кут Хуми","377. Владычица ИВО Управления Живического тела ИВО ИВАС Олафа ИВО ИВАС Кут Хуми","377. Владыка ИВО Управления Живического тела ИВО ИВАС Олафа ИВО ИВАС Кут Хуми","377. Владычица ИВО Управления Живического тела ИВО ИВАС Олафа ИВО ИВАС Кут Хуми"]
[null,"ИВДИВО Жлобин",null,"Савва","Саввы","376. Владыка ИВО Управления Холитического тела ИВО ИВАС Вацлава ИВО ИВАС Кут Хуми","376. Владычица ИВО Управления Холитического тела ИВО ИВАС Вацлава ИВО ИВАС Кут Хуми","376. Владыка ИВО Управления Холитического тела ИВО ИВАС Вацлава ИВО ИВАС Кут Хуми","376. Владычица ИВО Управления Холитического тела ИВО ИВАС Вацлава ИВО ИВАС Кут Хуми"]
[null,"ИВДИВО Польша",null,"Савелий","Савелия","375. Владыка ИВО Управления Всетического тела ИВО ИВАС Левия ИВО ИВАС Кут Хуми","375. Владычица ИВО Управления Всетического тела ИВО ИВАС Левия ИВО ИВАС Кут Хуми","375. Владыка ИВО Управления Всетического тела ИВО ИВАС Левия ИВО ИВАС Кут Хуми","375. Владычица ИВО Управления Всетического тела ИВО ИВАС Левия ИВО ИВАС Кут Хуми"]
[null,"ИВДИВО Испания",null,"Вильгельм","Вильгельма","374. Владыка ИВО Управления Космического тела ИВО ИВАС Руслана ИВО ИВАС Кут Хуми","374. Владычица ИВО Управления Космического тела ИВО ИВАС Руслана ИВО ИВАС Кут Хуми","374. Владыка ИВО Управления Космического тела ИВО ИВАС Руслана ИВО ИВАС Кут Хуми","374. Владычица ИВО Управления Космического тела ИВО ИВАС Руслана ИВО ИВАС Кут Хуми"]
[null,"ИВДИВО Североуральск",null,"Юстас","Юстаса","373. Владыка ИВО Управления Эргетического тела ИВО ИВАС Генриха ИВО ИВАС Кут Хуми","373. Владычица ИВО Управления Эргетического тела ИВО ИВАС Генриха ИВО ИВАС Кут Хуми","373. Владыка ИВО Управления Эргетического тела ИВО ИВАС Генриха ИВО ИВАС Кут Хуми","373. Владычица ИВО Управления Эргетического тела ИВО ИВАС Генриха ИВО ИВАС Кут Хуми"]
[null,"ИВДИВО Стерлитамак",null,"Александр","Александра","372. Владыка ИВО Управления Контического тела ИВО ИВАС Владлена ИВО ИВАС Кут Хуми","372. Владычица ИВО Управления Контического тела ИВО ИВАС Владлена ИВО ИВАС Кут Хуми","372. Владыка ИВО Управления Контического тела ИВО ИВАС Владлена ИВО ИВАС Кут Хуми","372. Владычица ИВО Управления Контического тела ИВО ИВАС Владлена ИВО ИВАС Кут Хуми"]
[null,"ИВДИВО Ставчены (Молдова)",null,"Яромир","Яромира","371. Владыка ИВО Управления Голонического тела ИВО ИВАС Борислава ИВО ИВАС Кут Хуми","371. Владычица ИВО Управления Голонического тела ИВО ИВАС Борислава ИВО ИВАС Кут Хуми","371. Владыка ИВО Управления Голонического тела ИВО ИВАС Борислава ИВО ИВАС Кут Хуми","371. Владычица ИВО Управления Голонического тела ИВО ИВАС Борислава ИВО ИВАС Кут Хуми"]
[null,"ИВДИВО Аксай (Казахстан)",null,"Серапис","Сераписа","370. Владыка ИВО Управления Эматического тела ИВО ИВАС Нестора ИВО ИВАС Кут Хуми","370. Владычица ИВО Управления Эматического тела ИВО ИВАС Нестора ИВО ИВАС Кут Хуми","370. Владыка ИВО Управления Эматического тела ИВО ИВАС Нестора ИВО ИВАС Кут Хуми","370. Владычица ИВО Управления Эматического тела ИВО ИВАС Нестора ИВО ИВАС Кут Хуми"]
[null,"ИВДИВО Ташкент, Узбекистан",null,"Эдуард","Эдуарда","369. Владыка ИВО Управления Пламического тела ИВО ИВАС Аристарха ИВО ИВАС Кут Хуми","369. Владычица ИВО Управления Пламического тела ИВО ИВАС Аристарха ИВО ИВАС Кут Хуми","369. Владыка ИВО Управления Пламического тела ИВО ИВАС Аристарха ИВО ИВАС Кут Хуми","369. Владычица ИВО Управления Пламического тела ИВО ИВАС Аристарха ИВО ИВАС Кут Хуми"]
[null,null,null,"Фадей","Фадея","368. Владыка ИВО Управления Вотического тела ИВО ИВАС Альфреда ИВО ИВАС Кут Хуми","368. Владычица ИВО Управления Вотического тела ИВО ИВАС Альфреда ИВО ИВАС Кут Хуми","368. Владыка ИВО Управления Вотического тела ИВО ИВАС Альфреда ИВО ИВАС Кут Хуми","368. Владычица ИВО Управления Вотического тела ИВО ИВАС Альфреда ИВО ИВАС Кут Хуми"]
[null,null,null,"Серафим","Серафима","367. Владыка ИВО Управления Визического тела ИВО ИВАС Егора ИВО ИВАС Кут Хуми","367. Владычица ИВО Управления Визического тела ИВО ИВАС Егора ИВО ИВАС Кут Хуми","367. Владыка ИВО Управления Визического тела ИВО ИВАС Егора ИВО ИВАС Кут Хуми","367. Владычица ИВО Управления Визического тела ИВО ИВАС Егора ИВО ИВАС Кут Хуми"]
[null,null,null,"Святослав","Святослава","366. Владыка ИВО Управления Сотического тела ИВО ИВАС Витольда ИВО ИВАС Кут Хуми","366. Владычица ИВО Управления Сотического тела ИВО ИВАС Витольда ИВО ИВАС Кут Хуми","366. Владыка ИВО Управления Сотического тела ИВО ИВАС Витольда ИВО ИВАС Кут Хуми","366. Владычица ИВО Управления Сотического тела ИВО ИВАС Витольда ИВО ИВАС Кут Хуми"]
[null,null,null,"Эоан","Эоана","365. Владыка ИВО Управления Этимического тела ИВО ИВАС Стократа ИВО ИВАС Кут Хуми","365. Владычица ИВО Управления Этимического тела ИВО ИВАС Стократа ИВО ИВАС Кут Хуми","365. Владыка ИВО Управления Этимического тела ИВО ИВАС Стократа ИВО ИВАС Кут Хуми","365. Владычица ИВО Управления Этимического тела ИВО ИВАС Стократа ИВО ИВАС Кут Хуми"]
[null,null,null,"Сергей","Сергея","364. Владыка ИВО Управления Омического тела ИВО ИВАС Глеба ИВО ИВАС Кут Хуми","364. Владычица ИВО Управления Омического тела ИВО ИВАС Глеба ИВО ИВАС Кут Хуми","364. Владыка ИВО Управления Омического тела ИВО ИВАС Глеба ИВО ИВАС Кут Хуми","364. Владычица ИВО Управления Омического тела ИВО ИВАС Глеба ИВО ИВАС Кут Хуми"]
[null,null,null,"Сулейман","Сулеймана","363. Владыка ИВО Управления Унического тела ИВО ИВАС Клавдия ИВО ИВАС Кут Хуми","363. Владычица ИВО Управления Унического тела ИВО ИВАС Клавдия ИВО ИВАС Кут Хуми","363. Владыка ИВО Управления Унического тела ИВО ИВАС Клавдия ИВО ИВАС Кут Хуми","363. Владычица ИВО Управления Унического тела ИВО ИВАС Клавдия ИВО ИВАС Кут Хуми"]
[null,null,null,"Себастьян","Себастьяна","362. Владыка ИВО Управления Витиического тела ИВО ИВАС Теониса ИВО ИВАС Кут Хуми","362. Владычица ИВО Управления Витиического тела ИВО ИВАС Теониса ИВО ИВАС Кут Хуми","362. Владыка ИВО Управления Витиического тела ИВО ИВАС Теониса ИВО ИВАС Кут Хуми","362. Владычица ИВО Управления Витиического тела ИВО ИВАС Теониса ИВО ИВАС Кут Хуми"]
[null,null,null,"Теодор","Теодора","361. Владыка ИВО Управления Мерического тела ИВО ИВАС Донана ИВО ИВАС Кут Хуми","361. Владычица ИВО Управления Мерического тела ИВО ИВАС Донана ИВО ИВАС Кут Хуми","361. Владыка ИВО Управления Мерического тела ИВО ИВАС Донана ИВО ИВАС Кут Хуми","361. Владычица ИВО Управления Мерического тела ИВО ИВАС Донана ИВО ИВАС Кут Хуми"]
[null,null,null,"Антей","Антея","360. Владыка ИВО Управления Реалического тела ИВО ИВАС Альберта ИВО ИВАС Кут Хуми","360. Владычица ИВО Управления Реалического тела ИВО ИВАС Альберта ИВО ИВАС Кут Хуми","360. Владыка ИВО Управления Реалического тела ИВО ИВАС Альберта ИВО ИВАС Кут Хуми","360. Владычица ИВО Управления Реалического тела ИВО ИВАС Альберта ИВО ИВАС Кут Хуми"]
[null,null,null,"Наум","Наума","359. Владыка ИВО Управления Плотического тела ИВО ИВАС Степана ИВО ИВАС Кут Хуми","359. Владычица ИВО Управления Плотического тела ИВО ИВАС Степана ИВО ИВАС Кут Хуми","359. Владыка ИВО Управления Плотического тела ИВО ИВАС Степана ИВО ИВАС Кут Хуми","359. Владычица ИВО Управления Плотического тела ИВО ИВАС Степана ИВО ИВАС Кут Хуми"]
[null,null,null,"Велимир","Велимира","358. Владыка ИВО Управления Натического тела ИВО ИВАС Арсана ИВО ИВАС Кут Хуми","358. Владычица ИВО Управления Натического тела ИВО ИВАС Арсана ИВО ИВАС Кут Хуми","358. Владыка ИВО Управления Натического тела ИВО ИВАС Арсана ИВО ИВАС Кут Хуми","358. Владычица ИВО Управления Натического тела ИВО ИВАС Арсана ИВО ИВАС Кут Хуми"]
[null,null,null,"Георг","Георга","357. Владыка ИВО Управления Стратического тела ИВО ИВАС Остапа ИВО ИВАС Кут Хуми","357. Владычица ИВО Управления Стратического тела ИВО ИВАС Остапа ИВО ИВАС Кут Хуми","357. Владыка ИВО Управления Стратического тела ИВО ИВАС Остапа ИВО ИВАС Кут Хуми","357. Владычица ИВО Управления Стратического тела ИВО ИВАС Остапа ИВО ИВАС Кут Хуми"]
[null,null,null,"Алексий","Алексия","356. Владыка ИВО Управления Логитического тела ИВО ИВАС Романа ИВО ИВАС Кут Хуми","356. Владычица ИВО Управления Логитического тела ИВО ИВАС Романа ИВО ИВАС Кут Хуми","356. Владыка ИВО Управления Логитического тела ИВО ИВАС Романа ИВО ИВАС Кут Хуми","356. Владычица ИВО Управления Логитического тела ИВО ИВАС Романа ИВО ИВАС Кут Хуми"]
[null,null,null,"Эмиль","Эмиля","355. Владыка ИВО Управления Гласического тела ИВО ИВАС Клима ИВО ИВАС Кут Хуми","355. Владычица ИВО Управления Гласического тела ИВО ИВАС Клима ИВО ИВАС Кут Хуми","355. Владыка ИВО Управления Гласического тела ИВО ИВАС Клима ИВО ИВАС Кут Хуми","355. Владычица ИВО Управления Гласического тела ИВО ИВАС Клима ИВО ИВАС Кут Хуми"]
[null,null,null,"Дарий","Дария","354. Владыка ИВО Управления Даонического тела ИВО ИВАС Петра ИВО ИВАС Кут Хуми","354. Владычица ИВО Управления Даонического тела ИВО ИВАС Петра ИВО ИВАС Кут Хуми","354. Владыка ИВО Управления Даонического тела ИВО ИВАС Петра ИВО ИВАС Кут Хуми","354. Владычица ИВО Управления Даонического тела ИВО ИВАС Петра ИВО ИВАС Кут Хуми"]
[null,null,null,"Валентин","Валентина","353. Владыка ИВО Управления Бинарического тела ИВО ИВАС Макея ИВО ИВАС Кут Хуми","353. Владычица ИВО Управления Бинарического тела ИВО ИВАС Макея ИВО ИВАС Кут Хуми","353. Владыка ИВО Управления Бинарического тела ИВО ИВАС Макея ИВО ИВАС Кут Хуми","353. Владычица ИВО Управления Бинарического тела ИВО ИВАС Макея ИВО ИВАС Кут Хуми"]
[null,null,null,"Савий","Савия","352. Владыка ИВО Управления Экстремического тела ИВО ИВАС Аниса ИВО ИВАС Кут Хуми","352. Владычица ИВО Управления Экстремического тела ИВО ИВАС Аниса ИВО ИВАС Кут Хуми","352. Владыка ИВО Управления Экстремического тела ИВО ИВАС Аниса ИВО ИВАС Кут Хуми","352. Владычица ИВО Управления Экстремического тела ИВО ИВАС Аниса ИВО ИВАС Кут Хуми"]
[null,null,null,"Вячеслав","Вячеслава","351. Владыка ИВО Управления Зерцатического тела ИВО ИВАС Ара ИВО ИВАС Кут Хуми","351. Владычица ИВО Управления Зерцатического тела ИВО ИВАС Ара ИВО ИВАС Кут Хуми","351. Владыка ИВО Управления Зерцатического тела ИВО ИВАС Ара ИВО ИВАС Кут Хуми","351. Владычица ИВО Управления Зерцатического тела ИВО ИВАС Ара ИВО ИВАС Кут Хуми"]
[null,null,null,"Андрей","Андрея","350. Владыка ИВО Управления Интического тела ИВО ИВАС Дорадия ИВО ИВАС Кут Хуми","350. Владычица ИВО Управления Интического тела ИВО ИВАС Дорадия ИВО ИВАС Кут Хуми","350. Владыка ИВО Управления Интического тела ИВО ИВАС Дорадия ИВО ИВАС Кут Хуми","350. Владычица ИВО Управления Интического тела ИВО ИВАС Дорадия ИВО ИВАС Кут Хуми"]
[null,null,null,"Давид","Давида","349. Владыка ИВО Управления Пасситического тела ИВО ИВАС Дора ИВО ИВАС Кут Хуми","349. Владычица ИВО Управления Пасситического тела ИВО ИВАС Дора ИВО ИВАС Кут Хуми","349. Владыка ИВО Управления Пасситического тела ИВО ИВАС Дора ИВО ИВАС Кут Хуми","349. Владычица ИВО Управления Пасситического тела ИВО ИВАС Дора ИВО ИВАС Кут Хуми"]
[null,null,null,"Евгений","Евгения","348. Владыка ИВО Управления Эвритического тела ИВО ИВАС Понтелея ИВО ИВАС Кут Хуми","348. Владычица ИВО Управления Эвритического тела ИВО ИВАС Понтелея ИВО ИВАС Кут Хуми","348. Владыка ИВО Управления Эвритического тела ИВО ИВАС Понтелея ИВО ИВАС Кут Хуми","348. Владычица ИВО Управления Эвритического тела ИВО ИВАС Понтелея ИВО ИВАС Кут Хуми"]
[null,null,null,"Дмитрий","Дмитрия","347. Владыка ИВО Управления Фортического тела ИВО ИВАС Явира ИВО ИВАС Кут Хуми","347. Владычица ИВО Управления Фортического тела ИВО ИВАС Явира ИВО ИВАС Кут Хуми","347. Владыка ИВО Управления Фортического тела ИВО ИВАС Явира ИВО ИВАС Кут Хуми","347. Владычица ИВО Управления Фортического тела ИВО ИВАС Явира ИВО ИВАС Кут Хуми"]
[null,null,null,"Есений","Есения","346. Владыка ИВО Управления Синтического тела ИВО ИВАС Триса ИВО ИВАС Кут Хуми","346. Владычица ИВО Управления Синтического тела ИВО ИВАС Триса ИВО ИВАС Кут Хуми","346. Владыка ИВО Управления Синтического тела ИВО ИВАС Триса ИВО ИВАС Кут Хуми","346. Владычица ИВО Управления Синтического тела ИВО ИВАС Триса ИВО ИВАС Кут Хуми"]
[null,null,null,"Константин","Константина","345. Владыка ИВО Управления Тямического тела ИВО ИВАС Виктора ИВО ИВАС Кут Хуми","345. Владычица ИВО Управления Тямического тела ИВО ИВАС Виктора ИВО ИВАС Кут Хуми","345. Владыка ИВО Управления Тямического тела ИВО ИВАС Виктора ИВО ИВАС Кут Хуми","345. Владычица ИВО Управления Тямического тела ИВО ИВАС Виктора ИВО ИВАС Кут Хуми"]
[null,null,null,"Ростислав","Ростислава","344. Владыка ИВО Управления Планического тела ИВО ИВАС Визара ИВО ИВАС Кут Хуми","344. Владычица ИВО Управления Планического тела ИВО ИВАС Визара ИВО ИВАС Кут Хуми","344. Владыка ИВО Управления Планического тела ИВО ИВАС Визара ИВО ИВАС Кут Хуми","344. Владычица ИВО Управления Планического тела ИВО ИВАС Визара ИВО ИВАС Кут Хуми"]
[null,null,null,"Ян","Яна","343. Владыка ИВО Управления Итического тела ИВО ИВАС Ерёмы ИВО ИВАС Кут Хуми","343. Владычица ИВО Управления Итического тела ИВО ИВАС Ерёмы ИВО ИВАС Кут Хуми","343. Владыка ИВО Управления Итического тела ИВО ИВАС Ерёмы ИВО ИВАС Кут Хуми","343. Владычица ИВО Управления Итического тела ИВО ИВАС Ерёмы ИВО ИВАС Кут Хуми"]
[null,null,null,"Василий","Василия","342. Владыка ИВО Управления Пробуддического тела ИВО ИВАС Ираклия ИВО ИВАС Кут Хуми","342. Владычица ИВО Управления Пробуддического тела ИВО ИВАС Ираклия ИВО ИВАС Кут Хуми","342. Владыка ИВО Управления Пробуддического тела ИВО ИВАС Ираклия ИВО ИВАС Кут Хуми","342. Владычица ИВО Управления Пробуддического тела ИВО ИВАС Ираклия ИВО ИВАС Кут Хуми"]
[null,null,null,"Арсений","Арсения","341. Владыка ИВО Управления Хрустатического тела ИВО ИВАС Елизара ИВО ИВАС Кут Хуми","341. Владычица ИВО Управления Хрустатического тела ИВО ИВАС Елизара ИВО ИВАС Кут Хуми","341. Владыка ИВО Управления Хрустатического тела ИВО ИВАС Елизара ИВО ИВАС Кут Хуми","341. Владычица ИВО Управления Хрустатического тела ИВО ИВАС Елизара ИВО ИВАС Кут Хуми"]
[null,null,null,"Огюст","Огюста","340. Владыка ИВО Управления Дхьянического тела ИВО ИВАС Градимира ИВО ИВАС Кут Хуми","340. Владычица ИВО Управления Дхьянического тела ИВО ИВАС Градимира ИВО ИВАС Кут Хуми","340. Владыка ИВО Управления Дхьянического тела ИВО ИВАС Градимира ИВО ИВАС Кут Хуми","340. Владычица ИВО Управления Дхьянического тела ИВО ИВАС Градимира ИВО ИВАС Кут Хуми"]
[null,null,null,"Илий","Илия","339. Владыка ИВО Управления Астренического тела ИВО ИВАС Рустама ИВО ИВАС Кут Хуми","339. Владычица ИВО Управления Астренического тела ИВО ИВАС Рустама ИВО ИВАС Кут Хуми","339. Владыка ИВО Управления Астренического тела ИВО ИВАС Рустама ИВО ИВАС Кут Хуми","339. Владычица ИВО Управления Астренического тела ИВО ИВАС Рустама ИВО ИВАС Кут Хуми"]
[null,null,null,"Геральд","Геральда","338. Владыка ИВО Управления Эфтического тела ИВО ИВАС Октана ИВО ИВАС Кут Хуми","338. Владычица ИВО Управления Эфтического тела ИВО ИВАС Октана ИВО ИВАС Кут Хуми","338. Владыка ИВО Управления Эфтического тела ИВО ИВАС Октана ИВО ИВАС Кут Хуми","338. Владычица ИВО Управления Эфтического тела ИВО ИВАС Октана ИВО ИВАС Кут Хуми"]
[null,null,null,"Платон","Платона","337. Владыка ИВО Управления Тилического тела ИВО ИВАС Силуана ИВО ИВАС Кут Хуми","337. Владычица ИВО Управления Тилического тела ИВО ИВАС Силуана ИВО ИВАС Кут Хуми","337. Владыка ИВО Управления Тилического тела ИВО ИВАС Силуана ИВО ИВАС Кут Хуми","337. Владычица ИВО Управления Тилического тела ИВО ИВАС Силуана ИВО ИВАС Кут Хуми"]
[null,null,null,"Николай","Николая","336. Владыка ИВО Управления Ивдивического тела ИВО ИВАС Лукьяна ИВО ИВАС Кут Хуми","336. Владычица ИВО Управления Ивдивического тела ИВО ИВАС Лукьяна ИВО ИВАС Кут Хуми","336. Владыка ИВО Управления Ивдивического тела ИВО ИВАС Лукьяна ИВО ИВАС Кут Хуми","336. Владычица ИВО Управления Ивдивического тела ИВО ИВАС Лукьяна ИВО ИВАС Кут Хуми"]
[null,null,null,"Игорь","Игоря","335. Владыка ИВО Управления Ятического тела ИВО ИВАС Люсьена ИВО ИВАС Кут Хуми","335. Владычица ИВО Управления Ятического тела ИВО ИВАС Люсьена ИВО ИВАС Кут Хуми","335. Владыка ИВО Управления Ятического тела ИВО ИВАС Люсьена ИВО ИВАС Кут Хуми","335. Владычица ИВО Управления Ятического тела ИВО ИВАС Люсьена ИВО ИВАС Кут Хуми"]
[null,null,null,"Яр","Яра","334. Владыка ИВО Управления Имтического тела ИВО ИВАС Андриана ИВО ИВАС Кут Хуми","334. Владычица ИВО Управления Имтического тела ИВО ИВАС Андриана ИВО ИВАС Кут Хуми","334. Владыка ИВО Управления Имтического тела ИВО ИВАС Андриана ИВО ИВАС Кут Хуми","334. Владычица ИВО Управления Имтического тела ИВО ИВАС Андриана ИВО ИВАС Кут Хуми"]
[null,null,null,"Вадим","Вадима","333. Владыка ИВО Управления Октического тела ИВО ИВАС Прокофия ИВО ИВАС Кут Хуми","333. Владычица ИВО Управления Октического тела ИВО ИВАС Прокофия ИВО ИВАС Кут Хуми","333. Владыка ИВО Управления Октического тела ИВО ИВАС Прокофия ИВО ИВАС Кут Хуми","333. Владычица ИВО Управления Октического тела ИВО ИВАС Прокофия ИВО ИВАС Кут Хуми"]
[null,null,null,"Огнеслав","Огнеслава","332. Владыка ИВО Управления Фатического тела ИВО ИВАС Зарка ИВО ИВАС Кут Хуми","332. Владычица ИВО Управления Фатического тела ИВО ИВАС Зарка ИВО ИВАС Кут Хуми","332. Владыка ИВО Управления Фатического тела ИВО ИВАС Зарка ИВО ИВАС Кут Хуми","332. Владычица ИВО Управления Фатического тела ИВО ИВАС Зарка ИВО ИВАС Кут Хуми"]
[null,null,null,"Марк","Марка","331. Владыка ИВО Управления Матического тела ИВО ИВАС Станиса ИВО ИВАС Кут Хуми","331. Владычица ИВО Управления Матического тела ИВО ИВАС Станиса ИВО ИВАС Кут Хуми","331. Владыка ИВО Управления Матического тела ИВО ИВАС Станиса ИВО ИВАС Кут Хуми","331. Владычица ИВО Управления Матического тела ИВО ИВАС Станиса ИВО ИВАС Кут Хуми"]
[null,null,null,"Теон","Теона","330. Владыка ИВО Управления Нитического тела ИВО ИВАС Панкрата ИВО ИВАС Кут Хуми","330. Владычица ИВО Управления Нитического тела ИВО ИВАС Панкрата ИВО ИВАС Кут Хуми","330. Владыка ИВО Управления Нитического тела ИВО ИВАС Панкрата ИВО ИВАС Кут Хуми","330. Владычица ИВО Управления Нитического тела ИВО ИВАС Панкрата ИВО ИВАС Кут Хуми"]
[null,null,null,"Трофим","Трофима","329. Владыка ИВО Управления Мощического тела ИВО ИВАС Старка ИВО ИВАС Кут Хуми","329. Владычица ИВО Управления Мощического тела ИВО ИВАС Старка ИВО ИВАС Кут Хуми","329. Владыка ИВО Управления Мощического тела ИВО ИВАС Старка ИВО ИВАС Кут Хуми","329. Владычица ИВО Управления Мощического тела ИВО ИВАС Старка ИВО ИВАС Кут Хуми"]
[null,null,null,"Емельян","Емельяна","328. Владыка ИВО Управления Аматического тела ИВО ИВАС Дорофея ИВО ИВАС Кут Хуми","328. Владычица ИВО Управления Аматического тела ИВО ИВАС Дорофея ИВО ИВАС Кут Хуми","328. Владыка ИВО Управления Аматического тела ИВО ИВАС Дорофея ИВО ИВАС Кут Хуми","328. Владычица ИВО Управления Аматического тела ИВО ИВАС Дорофея ИВО ИВАС Кут Хуми"]
[null,null,null,"Ефрем","Ефрема","327. Владыка ИВО Управления Атмического тела ИВО ИВАС Якова ИВО ИВАС Кут Хуми","327. Владычица ИВО Управления Атмического тела ИВО ИВАС Якова ИВО ИВАС Кут Хуми","327. Владыка ИВО Управления Атмического тела ИВО ИВАС Якова ИВО ИВАС Кут Хуми","327. Владычица ИВО Управления Атмического тела ИВО ИВАС Якова ИВО ИВАС Кут Хуми"]
[null,null,null,"Натан","Натана","326. Владыка ИВО Управления Буддического тела ИВО ИВАС Ульяна ИВО ИВАС Кут Хуми","326. Владычица ИВО Управления Буддического тела ИВО ИВАС Ульяна ИВО ИВАС Кут Хуми","326. Владыка ИВО Управления Буддического тела ИВО ИВАС Ульяна ИВО ИВАС Кут Хуми","326. Владычица ИВО Управления Буддического тела ИВО ИВАС Ульяна ИВО ИВАС Кут Хуми"]
[null,null,null,"Артём","Артёма","325. Владыка ИВО Управления Причинного тела ИВО ИВАС Германа ИВО ИВАС Кут Хуми","325. Владычица ИВО Управления Причинного тела ИВО ИВАС Германа ИВО ИВАС Кут Хуми","325. Владыка ИВО Управления Причинного тела ИВО ИВАС Германа ИВО ИВАС Кут Хуми","325. Владычица ИВО Управления Причинного тела ИВО ИВАС Германа ИВО ИВАС Кут Хуми"]
[null,null,null,"Игнатий","Игнатия","324. Владыка ИВО Управления Ментального тела ИВО ИВАС Радомира ИВО ИВАС Кут Хуми","324. Владычица ИВО Управления Ментального тела ИВО ИВАС Радомира ИВО ИВАС Кут Хуми","324. Владыка ИВО Управления Ментального тела ИВО ИВАС Радомира ИВО ИВАС Кут Хуми","324. Владычица ИВО Управления Ментального тела ИВО ИВАС Радомира ИВО ИВАС Кут Хуми"]
[null,null,null,"Юлиан","Юлиана","323. Владыка ИВО Управления Астрального тела ИВО ИВАС Октавия ИВО ИВАС Кут Хуми","323. Владычица ИВО Управления Астрального тела ИВО ИВАС Октавия ИВО ИВАС Кут Хуми","323. Владыка ИВО Управления Астрального тела ИВО ИВАС Октавия ИВО ИВАС Кут Хуми","323. Владычица ИВО Управления Астрального тела ИВО ИВАС Октавия ИВО ИВАС Кут Хуми"]
[null,null,null,"Аркадий","Аркадия","322. Владыка ИВО Управления Эфирного тела ИВО ИВАС Кима ИВО ИВАС Кут Хуми","322. Владычица ИВО Управления Эфирного тела ИВО ИВАС Кима ИВО ИВАС Кут Хуми","322. Владыка ИВО Управления Эфирного тела ИВО ИВАС Кима ИВО ИВАС Кут Хуми","322. Владычица ИВО Управления Эфирного тела ИВО ИВАС Кима ИВО ИВАС Кут Хуми"]
[null,null,null,"Никита","Никиты","321. Владыка ИВО Управления Метафизического тела ИВО ИВАС Бонифация ИВО ИВАС Кут Хуми","321. Владычица ИВО Управления Метафизического тела ИВО ИВАС Бонифация ИВО ИВАС Кут Хуми","321. Владыка ИВО Управления Метафизического тела ИВО ИВАС Бонифация ИВО ИВАС Кут Хуми","321. Владычица ИВО Управления Метафизического тела ИВО ИВАС Бонифация ИВО ИВАС Кут Хуми"]
[null,null,null,"Олег","Олега"]
[null,null,null,"Владимир","Владимира",{"$f":"H146","v":"320. Учитель ИВО Управления ИВДИВО-Тела синтеза ИВО ИВАС Фредерика ИВО ИВАС Кут Хуми"},{"$f":"I146","v":"320. Учительница ИВО Управления ИВДИВО-Тела синтеза ИВО ИВАС Фредерика ИВО ИВАС Кут Хуми"},"320. Учитель ИВО Управления ИВДИВО-Тела синтеза ИВО ИВАС Фредерика ИВО ИВАС Кут Хуми","320. Учительница ИВО Управления ИВДИВО-Тела синтеза ИВО ИВАС Фредерика ИВО ИВАС Кут Хуми"]
[null,null,null,"Стефан","Стефана",{"$f":"H147","v":"319. Учитель ИВО Управления ИВДИВО-Тела воля ИВО ИВАС Станислава ИВО ИВАС Кут Хуми"},{"$f":"I147","v":"319. Учительница ИВО Управления ИВДИВО-Тела воля ИВО ИВАС Станислава ИВО ИВАС Кут Хуми"},"319. Учитель ИВО Управления ИВДИВО-Тела воля ИВО ИВАС Станислава ИВО ИВАС Кут Хуми","319. Учительница ИВО Управления ИВДИВО-Тела воля ИВО ИВАС Станислава ИВО ИВАС Кут Хуми"]
[null,null,null,"Горислав","Горислава",{"$f":"H148","v":"318. Учитель ИВО Управления ИВДИВО-Тела мудрости ИВО ИВАС Алан ИВО ИВАС Кут Хуми"},"318. Учительница ИВО Управления ИВДИВО-Тела мудрости ИВО ИВАС Алан ИВО ИВАС Кут Хуми","318. Учитель ИВО Управления ИВДИВО-Тела мудрости ИВО ИВАС Алан ИВО ИВАС Кут Хуми","318. Учительница ИВО Управления ИВДИВО-Тела мудрости ИВО ИВАС Алан ИВО ИВАС Кут Хуми"]
[null,null,null,"Никон","Никона","317. Учитель ИВО Управления ИВДИВО-Тела любви ИВО ИВАС Ария ИВО ИВАС Кут Хуми","317. Учительница ИВО Управления ИВДИВО-Тела любви ИВО ИВАС Ария ИВО ИВАС Кут Хуми","317. Учитель ИВО Управления ИВДИВО-Тела любви ИВО ИВАС Ария ИВО ИВАС Кут Хуми","317. Учительница ИВО Управления ИВДИВО-Тела любви ИВО ИВАС Ария ИВО ИВАС Кут Хуми"]
[null,null,null,"Эрик","Эрика","316. Учитель ИВО Управления ИВДИВО-Тела творения ИВО ИВАС Мирослава ИВО ИВАС Кут Хуми","316. Учительница ИВО Управления ИВДИВО-Тела творения ИВО ИВАС Мирослава ИВО ИВАС Кут Хуми","316. Учитель ИВО Управления ИВДИВО-Тела творения ИВО ИВАС Мирослава ИВО ИВАС Кут Хуми","316. Учительница ИВО Управления ИВДИВО-Тела творения ИВО ИВАС Мирослава ИВО ИВАС Кут Хуми"]
[null,null,null,"Олаф","Олафа","315. Учитель ИВО Управления ИВДИВО-Тела созидания ИВО ИВАС Рудольфа ИВО ИВАС Кут Хуми","315. Учительница ИВО Управления ИВДИВО-Тела созидания ИВО ИВАС Рудольфа ИВО ИВАС Кут Хуми","315. Учитель ИВО Управления ИВДИВО-Тела созидания ИВО ИВАС Рудольфа ИВО ИВАС Кут Хуми","315. Учительница ИВО Управления ИВДИВО-Тела созидания ИВО ИВАС Рудольфа ИВО ИВАС Кут Хуми"]
[null,null,null,"Вацлав","Вацлава","314. Учитель ИВО Управления ИВДИВО-Тела репликации ИВО ИВАС Феликса ИВО ИВАС Кут Хуми","314. Учительница ИВО Управления ИВДИВО-Тела репликации ИВО ИВАС Феликса ИВО ИВАС Кут Хуми","314. Учитель ИВО Управления ИВДИВО-Тела репликации ИВО ИВАС Феликса ИВО ИВАС Кут Хуми","314. Учительница ИВО Управления ИВДИВО-Тела репликации ИВО ИВАС Феликса ИВО ИВАС Кут Хуми"]
[null,null,null,"Левий","Левия","313. Учитель ИВО Управления ИВДИВО-Тела жизни ИВО ИВАС Дональда ИВО ИВАС Кут Хуми","313. Учительница ИВО Управления ИВДИВО-Тела жизни ИВО ИВАС Дональда ИВО ИВАС Кут Хуми","313. Учитель ИВО Управления ИВДИВО-Тела жизни ИВО ИВАС Дональда ИВО ИВАС Кут Хуми","313. Учительница ИВО Управления ИВДИВО-Тела жизни ИВО ИВАС Дональда ИВО ИВАС Кут Хуми"]
[null,null,null,"Руслан","Руслана","312. Учитель ИВО Управления ИВДИВО-Тела воскрешения ИВО ИВАС Влада ИВО ИВАС Кут Хуми","312. Учительница ИВО Управления ИВДИВО-Тела воскрешения ИВО ИВАС Влада ИВО ИВАС Кут Хуми","312. Учитель ИВО Управления ИВДИВО-Тела воскрешения ИВО ИВАС Влада ИВО ИВАС Кут Хуми","312. Учительница ИВО Управления ИВДИВО-Тела воскрешения ИВО ИВАС Влада ИВО ИВАС Кут Хуми"]
[null,null,null,"Генрих","Генриха","311. Учитель ИВО Управления ИВДИВО-Тела я-есмь ИВО ИВАС Андроника ИВО ИВАС Кут Хуми","311. Учительница ИВО Управления ИВДИВО-Тела я-есмь ИВО ИВАС Андроника ИВО ИВАС Кут Хуми","311. Учитель ИВО Управления ИВДИВО-Тела я-есмь ИВО ИВАС Андроника ИВО ИВАС Кут Хуми","311. Учительница ИВО Управления ИВДИВО-Тела я-есмь ИВО ИВАС Андроника ИВО ИВАС Кут Хуми"]
[null,null,null,"Владлен","Владлена","310. Учитель ИВО Управления ИВДИВО-Тела генезиса ИВО ИВАС Артура ИВО ИВАС Кут Хуми","310. Учительница ИВО Управления ИВДИВО-Тела генезиса ИВО ИВАС Артура ИВО ИВАС Кут Хуми","310. Учитель ИВО Управления ИВДИВО-Тела генезиса ИВО ИВАС Артура ИВО ИВАС Кут Хуми","310. Учительница ИВО Управления ИВДИВО-Тела генезиса ИВО ИВАС Артура ИВО ИВАС Кут Хуми"]
[null,null,null,"Борислав","Борислава","309. Учитель ИВО Управления ИВДИВО-Тела человечности ИВО ИВАС Рихарда ИВО ИВАС Кут Хуми","309. Учительница ИВО Управления ИВДИВО-Тела человечности ИВО ИВАС Рихарда ИВО ИВАС Кут Хуми","309. Учитель ИВО Управления ИВДИВО-Тела человечности ИВО ИВАС Рихарда ИВО ИВАС Кут Хуми","309. Учительница ИВО Управления ИВДИВО-Тела человечности ИВО ИВАС Рихарда ИВО ИВАС Кут Хуми"]
[null,null,null,"Нестор","Нестора","308. Учитель ИВО Управления ИВДИВО-Тела служения ИВО ИВАС Эльдара ИВО ИВАС Кут Хуми","308. Учительница ИВО Управления ИВДИВО-Тела служения ИВО ИВАС Эльдара ИВО ИВАС Кут Хуми","308. Учитель ИВО Управления ИВДИВО-Тела служения ИВО ИВАС Эльдара ИВО ИВАС Кут Хуми","308. Учительница ИВО Управления ИВДИВО-Тела служения ИВО ИВАС Эльдара ИВО ИВАС Кут Хуми"]
[null,null,null,"Аристарх","Аристарха","307. Учитель ИВО Управления ИВДИВО-Тела вершения ИВО ИВАС Андриса ИВО ИВАС Кут Хуми","307. Учительница ИВО Управления ИВДИВО-Тела вершения ИВО ИВАС Андриса ИВО ИВАС Кут Хуми","307. Учитель ИВО Управления ИВДИВО-Тела вершения ИВО ИВАС Андриса ИВО ИВАС Кут Хуми","307. Учительница ИВО Управления ИВДИВО-Тела вершения ИВО ИВАС Андриса ИВО ИВАС Кут Хуми"]
[null,null,null,"Альфред","Альфреда","306. Учитель ИВО Управления ИВДИВО-Тела практики ИВО ИВАС Владислава ИВО ИВАС Кут Хуми","306. Учительница ИВО Управления ИВДИВО-Тела практики ИВО ИВАС Владислава ИВО ИВАС Кут Хуми","306. Учитель ИВО Управления ИВДИВО-Тела практики ИВО ИВАС Владислава ИВО ИВАС Кут Хуми","306. Учительница ИВО Управления ИВДИВО-Тела практики ИВО ИВАС Владислава ИВО ИВАС Кут Хуми"]
[null,null,null,"Егор","Егора","305. Учитель ИВО Управления ИВДИВО-Тела могущества ИВО ИВАС Августа ИВО ИВАС Кут Хуми","305. Учительница ИВО Управления ИВДИВО-Тела могущества ИВО ИВАС Августа ИВО ИВАС Кут Хуми","305. Учитель ИВО Управления ИВДИВО-Тела могущества ИВО ИВАС Августа ИВО ИВАС Кут Хуми","305. Учительница ИВО Управления ИВДИВО-Тела могущества ИВО ИВАС Августа ИВО ИВАС Кут Хуми"]
[null,null,null,"Витольд","Витольда","304. Учитель ИВО Управления ИВДИВО-Тела ивдивности ИВО ИВАС Дамира ИВО ИВАС Кут Хуми","304. Учительница ИВО Управления ИВДИВО-Тела ивдивности ИВО ИВАС Дамира ИВО ИВАС Кут Хуми","304. Учитель ИВО Управления ИВДИВО-Тела ивдивности ИВО ИВАС Дамира ИВО ИВАС Кут Хуми","304. Учительница ИВО Управления ИВДИВО-Тела ивдивности ИВО ИВАС Дамира ИВО ИВАС Кут Хуми"]
[null,null,null,"Стократ","Стократа","303. Учитель ИВО Управления ИВДИВО-Тела сверхпассионарности ИВО ИВАС Иордана ИВО ИВАС Кут Хуми","303. Учительница ИВО Управления ИВДИВО-Тела сверхпассионарности ИВО ИВАС Иордана ИВО ИВАС Кут Хуми","303. Учитель ИВО Управления ИВДИВО-Тела сверхпассионарности ИВО ИВАС Иордана ИВО ИВАС Кут Хуми","303. Учительница ИВО Управления ИВДИВО-Тела сверхпассионарности ИВО ИВАС Иордана ИВО ИВАС Кут Хуми"]
[null,null,null,"Глеб","Глеба","302. Учитель ИВО Управления ИВДИВО-Тела истинности ИВО ИВАС Изяслава ИВО ИВАС Кут Хуми","302. Учительница ИВО Управления ИВДИВО-Тела истинности ИВО ИВАС Изяслава ИВО ИВАС Кут Хуми","302. Учитель ИВО Управления ИВДИВО-Тела истинности ИВО ИВАС Изяслава ИВО ИВАС Кут Хуми","302. Учительница ИВО Управления ИВДИВО-Тела истинности ИВО ИВАС Изяслава ИВО ИВАС Кут Хуми"]
[null,null,null,"Клавдий","Клавдия","301. Учитель ИВО Управления ИВДИВО-Тела окскости ИВО ИВАС Филимона ИВО ИВАС Кут Хуми","301. Учительница ИВО Управления ИВДИВО-Тела окскости ИВО ИВАС Филимона ИВО ИВАС Кут Хуми","301. Учитель ИВО Управления ИВДИВО-Тела окскости ИВО ИВАС Филимона ИВО ИВАС Кут Хуми","301. Учительница ИВО Управления ИВДИВО-Тела окскости ИВО ИВАС Филимона ИВО ИВАС Кут Хуми"]
[null,null,null,"Теонис","Теониса","300. Учитель ИВО Управления ИВДИВО-Тела красоты ИВО ИВАС Тита ИВО ИВАС Кут Хуми","300. Учительница ИВО Управления ИВДИВО-Тела красоты ИВО ИВАС Тита ИВО ИВАС Кут Хуми","300. Учитель ИВО Управления ИВДИВО-Тела красоты ИВО ИВАС Тита ИВО ИВАС Кут Хуми","300. Учительница ИВО Управления ИВДИВО-Тела красоты ИВО ИВАС Тита ИВО ИВАС Кут Хуми"]
[null,null,null,"Донан","Донана","299. Учитель ИВО Управления ИВДИВО-Тела константы ИВО ИВАС Матвея ИВО ИВАС Кут Хуми","299. Учительница ИВО Управления ИВДИВО-Тела константы ИВО ИВАС Матвея ИВО ИВАС Кут Хуми","299. Учитель ИВО Управления ИВДИВО-Тела константы ИВО ИВАС Матвея ИВО ИВАС Кут Хуми","299. Учительница ИВО Управления ИВДИВО-Тела константы ИВО ИВАС Матвея ИВО ИВАС Кут Хуми"]
[null,null,null,"Альберт","Альберта","298. Учитель ИВО Управления ИВДИВО-Тела знания ИВО ИВАС Павла ИВО ИВАС Кут Хуми","298. Учительница ИВО Управления ИВДИВО-Тела знания ИВО ИВАС Павла ИВО ИВАС Кут Хуми","298. Учитель ИВО Управления ИВДИВО-Тела знания ИВО ИВАС Павла ИВО ИВАС Кут Хуми","298. Учительница ИВО Управления ИВДИВО-Тела знания ИВО ИВАС Павла ИВО ИВАС Кут Хуми"]
[null,null,null,"Степан","Степана","297. Учитель ИВО Управления ИВДИВО-Тела меры ИВО ИВАС Афанасия ИВО ИВАС Кут Хуми","297. Учительница ИВО Управления ИВДИВО-Тела меры ИВО ИВАС Афанасия ИВО ИВАС Кут Хуми","297. Учитель ИВО Управления ИВДИВО-Тела меры ИВО ИВАС Афанасия ИВО ИВАС Кут Хуми","297. Учительница ИВО Управления ИВДИВО-Тела меры ИВО ИВАС Афанасия ИВО ИВАС Кут Хуми"]
[null,null,null,"Арсан","Арсана","296. Учитель ИВО Управления ИВДИВО-Тела стандарта ИВО ИВАС Тихомира ИВО ИВАС Кут Хуми","296. Учительница ИВО Управления ИВДИВО-Тела стандарта ИВО ИВАС Тихомира ИВО ИВАС Кут Хуми","296. Учитель ИВО Управления ИВДИВО-Тела стандарта ИВО ИВАС Тихомира ИВО ИВАС Кут Хуми","296. Учительница ИВО Управления ИВДИВО-Тела стандарта ИВО ИВАС Тихомира ИВО ИВАС Кут Хуми"]
[null,null,null,"Остап","Остапа","295. Учитель ИВО Управления ИВДИВО-Тела закона ИВО ИВАС Сезара ИВО ИВАС Кут Хуми","295. Учительница ИВО Управления ИВДИВО-Тела закона ИВО ИВАС Сезара ИВО ИВАС Кут Хуми","295. Учитель ИВО Управления ИВДИВО-Тела закона ИВО ИВАС Сезара ИВО ИВАС Кут Хуми","295. Учительница ИВО Управления ИВДИВО-Тела закона ИВО ИВАС Сезара ИВО ИВАС Кут Хуми"]
[null,null,null,"Роман","Романа","294. Учитель ИВО Управления ИВДИВО-Тела императива ИВО ИВАС Исаака ИВО ИВАС Кут Хуми","294. Учительница ИВО Управления ИВДИВО-Тела императива ИВО ИВАС Исаака ИВО ИВАС Кут Хуми","294. Учитель ИВО Управления ИВДИВО-Тела императива ИВО ИВАС Исаака ИВО ИВАС Кут Хуми","294. Учительница ИВО Управления ИВДИВО-Тела императива ИВО ИВАС Исаака ИВО ИВАС Кут Хуми"]
[null,null,null,"Клим","Клима","293. Учитель ИВО Управления ИВДИВО-Тела аксиомы ИВО ИВАС Елисея ИВО ИВАС Кут Хуми","293. Учительница ИВО Управления ИВДИВО-Тела аксиомы ИВО ИВАС Елисея ИВО ИВАС Кут Хуми","293. Учитель ИВО Управления ИВДИВО-Тела аксиомы ИВО ИВАС Елисея ИВО ИВАС Кут Хуми","293. Учительница ИВО Управления ИВДИВО-Тела аксиомы ИВО ИВАС Елисея ИВО ИВАС Кут Хуми"]
[null,null,null,"Пётр","Петра","292. Учитель ИВО Управления ИВДИВО-Тела начала ИВО ИВАС Ефима ИВО ИВАС Кут Хуми","292. Учительница ИВО Управления ИВДИВО-Тела начала ИВО ИВАС Ефима ИВО ИВАС Кут Хуми","292. Учитель ИВО Управления ИВДИВО-Тела начала ИВО ИВАС Ефима ИВО ИВАС Кут Хуми","292. Учительница ИВО Управления ИВДИВО-Тела начала ИВО ИВАС Ефима ИВО ИВАС Кут Хуми"]
[null,null,null,"Макей","Макея","291. Учитель ИВО Управления ИВДИВО-Тела принципа ИВО ИВАС Захара ИВО ИВАС Кут Хуми","291. Учительница ИВО Управления ИВДИВО-Тела принципа ИВО ИВАС Захара ИВО ИВАС Кут Хуми","291. Учитель ИВО Управления ИВДИВО-Тела принципа ИВО ИВАС Захара ИВО ИВАС Кут Хуми","291. Учительница ИВО Управления ИВДИВО-Тела принципа ИВО ИВАС Захара ИВО ИВАС Кут Хуми"]
[null,null,null,"Анис","Аниса","290. Учитель ИВО Управления ИВДИВО-Тела метода ИВО ИВАС Горация ИВО ИВАС Кут Хуми","290. Учительница ИВО Управления ИВДИВО-Тела метода ИВО ИВАС Горация ИВО ИВАС Кут Хуми","290. Учитель ИВО Управления ИВДИВО-Тела метода ИВО ИВАС Горация ИВО ИВАС Кут Хуми","290. Учительница ИВО Управления ИВДИВО-Тела метода ИВО ИВАС Горация ИВО ИВАС Кут Хуми"]
[null,null,null,"Ар","Ара","289. Учитель ИВО Управления ИВДИВО-Тела правила ИВО ИВАС Будимира ИВО ИВАС Кут Хуми","289. Учительница ИВО Управления ИВДИВО-Тела правила ИВО ИВАС Будимира ИВО ИВАС Кут Хуми","289. Учитель ИВО Управления ИВДИВО-Тела правила ИВО ИВАС Будимира ИВО ИВАС Кут Хуми","289. Учительница ИВО Управления ИВДИВО-Тела правила ИВО ИВАС Будимира ИВО ИВАС Кут Хуми"]
[null,null,null,"Дорадий","Дорадия","288. Учитель ИВО Управления ИВДИВО-Тела огня ИВО ИВАС Добрыни ИВО ИВАС Кут Хуми","288. Учительница ИВО Управления ИВДИВО-Тела огня ИВО ИВАС Добрыни ИВО ИВАС Кут Хуми","288. Учитель ИВО Управления ИВДИВО-Тела огня ИВО ИВАС Добрыни ИВО ИВАС Кут Хуми","288. Учительница ИВО Управления ИВДИВО-Тела огня ИВО ИВАС Добрыни ИВО ИВАС Кут Хуми"]
[null,null,null,"Дор","Дорадия","287. Учитель ИВО Управления ИВДИВО-Тела духа ИВО ИВАС Севастьяна ИВО ИВАС Кут Хуми","287. Учительница ИВО Управления ИВДИВО-Тела духа ИВО ИВАС Севастьяна ИВО ИВАС Кут Хуми","287. Учитель ИВО Управления ИВДИВО-Тела духа ИВО ИВАС Севастьяна ИВО ИВАС Кут Хуми","287. Учительница ИВО Управления ИВДИВО-Тела духа ИВО ИВАС Севастьяна ИВО ИВАС Кут Хуми"]
[null,null,null,"Понтелей","Понтелея","286. Учитель ИВО Управления ИВДИВО-Тела света ИВО ИВАС Теофила ИВО ИВАС Кут Хуми","286. Учительница ИВО Управления ИВДИВО-Тела света ИВО ИВАС Теофила ИВО ИВАС Кут Хуми","286. Учитель ИВО Управления ИВДИВО-Тела света ИВО ИВАС Теофила ИВО ИВАС Кут Хуми","286. Учительница ИВО Управления ИВДИВО-Тела света ИВО ИВАС Теофила ИВО ИВАС Кут Хуми"]
[null,null,null,"Явир","Явира","285. Учитель ИВО Управления ИВДИВО-Тела энергии ИВО ИВАС Кирилла ИВО ИВАС Кут Хуми","285. Учительница ИВО Управления ИВДИВО-Тела энергии ИВО ИВАС Кирилла ИВО ИВАС Кут Хуми","285. Учитель ИВО Управления ИВДИВО-Тела энергии ИВО ИВАС Кирилла ИВО ИВАС Кут Хуми","285. Учительница ИВО Управления ИВДИВО-Тела энергии ИВО ИВАС Кирилла ИВО ИВАС Кут Хуми"]
[null,null,null,"Трис","Триса","284. Учитель ИВО Управления ИВДИВО-Тела субъядерности ИВО ИВАС Доменика ИВО ИВАС Кут Хуми","284. Учительница ИВО Управления ИВДИВО-Тела субъядерности ИВО ИВАС Доменика ИВО ИВАС Кут Хуми","284. Учитель ИВО Управления ИВДИВО-Тела субъядерности ИВО ИВАС Доменика ИВО ИВАС Кут Хуми","284. Учительница ИВО Управления ИВДИВО-Тела субъядерности ИВО ИВАС Доменика ИВО ИВАС Кут Хуми"]
[null,null,null,"Виктор","Виктора","283. Учитель ИВО Управления ИВДИВО-Тела формы ИВО ИВАС Эммануила ИВО ИВАС Кут Хуми","283. Учительница ИВО Управления ИВДИВО-Тела формы ИВО ИВАС Эммануила ИВО ИВАС Кут Хуми","283. Учитель ИВО Управления ИВДИВО-Тела формы ИВО ИВАС Эммануила ИВО ИВАС Кут Хуми","283. Учительница ИВО Управления ИВДИВО-Тела формы ИВО ИВАС Эммануила ИВО ИВАС Кут Хуми"]
[null,null,null,"Визар","Визара","282. Учитель ИВО Управления ИВДИВО-Тела содержания ИВО ИВАС Боримира ИВО ИВАС Кут Хуми","282. Учительница ИВО Управления ИВДИВО-Тела содержания ИВО ИВАС Боримира ИВО ИВАС Кут Хуми","282. Учитель ИВО Управления ИВДИВО-Тела содержания ИВО ИВАС Боримира ИВО ИВАС Кут Хуми","282. Учительница ИВО Управления ИВДИВО-Тела содержания ИВО ИВАС Боримира ИВО ИВАС Кут Хуми"]
[null,null,null,"Ерёма","Ерёмы","281. Учитель ИВО Управления ИВДИВО-Тела поля ИВО ИВАС Всеслава ИВО ИВАС Кут Хуми","281. Учительница ИВО Управления ИВДИВО-Тела поля ИВО ИВАС Всеслава ИВО ИВАС Кут Хуми","281. Учитель ИВО Управления ИВДИВО-Тела поля ИВО ИВАС Всеслава ИВО ИВАС Кут Хуми","281. Учительница ИВО Управления ИВДИВО-Тела поля ИВО ИВАС Всеслава ИВО ИВАС Кут Хуми"]
[null,null,null,"Ираклий","Ираклия","280. Учитель ИВО Управления ИВДИВО-Тела времени ИВО ИВАС Артемия ИВО ИВАС Кут Хуми","280. Учительница ИВО Управления ИВДИВО-Тела времени ИВО ИВАС Артемия ИВО ИВАС Кут Хуми","280. Учитель ИВО Управления ИВДИВО-Тела времени ИВО ИВАС Артемия ИВО ИВАС Кут Хуми","280. Учительница ИВО Управления ИВДИВО-Тела времени ИВО ИВАС Артемия ИВО ИВАС Кут Хуми"]
[null,null,null,"Елизар","Елизара","279. Учитель ИВО Управления ИВДИВО-Тела пространства ИВО ИВАС Сократа ИВО ИВАС Кут Хуми","279. Учительница ИВО Управления ИВДИВО-Тела пространства ИВО ИВАС Сократа ИВО ИВАС Кут Хуми","279. Учитель ИВО Управления ИВДИВО-Тела пространства ИВО ИВАС Сократа ИВО ИВАС Кут Хуми","279. Учительница ИВО Управления ИВДИВО-Тела пространства ИВО ИВАС Сократа ИВО ИВАС Кут Хуми"]
[null,null,null,"Градимир","Градимира","278. Учитель ИВО Управления ИВДИВО-Тела скорости ИВО ИВАС Бенедикта ИВО ИВАС Кут Хуми","278. Учительница ИВО Управления ИВДИВО-Тела скорости ИВО ИВАС Бенедикта ИВО ИВАС Кут Хуми","278. Учитель ИВО Управления ИВДИВО-Тела скорости ИВО ИВАС Бенедикта ИВО ИВАС Кут Хуми","278. Учительница ИВО Управления ИВДИВО-Тела скорости ИВО ИВАС Бенедикта ИВО ИВАС Кут Хуми"]
[null,null,null,"Рустам","Рустама","277. Учитель ИВО Управления ИВДИВО-Тела мерности ИВО ИВАС Евстигнея ИВО ИВАС Кут Хуми","277. Учительница ИВО Управления ИВДИВО-Тела мерности ИВО ИВАС Евстигнея ИВО ИВАС Кут Хуми","277. Учитель ИВО Управления ИВДИВО-Тела мерности ИВО ИВАС Евстигнея ИВО ИВАС Кут Хуми","277. Учительница ИВО Управления ИВДИВО-Тела мерности ИВО ИВАС Евстигнея ИВО ИВАС Кут Хуми"]
[null,null,null,"Октан","Октана","276. Учитель ИВО Управления ИВДИВО-Тела воссоединённости ИВО ИВАС Максимилиана ИВО ИВАС Кут Хуми","276. Учительница ИВО Управления ИВДИВО-Тела воссоединённости ИВО ИВАС Максимилиана ИВО ИВАС Кут Хуми","276. Учитель ИВО Управления ИВДИВО-Тела воссоединённости ИВО ИВАС Максимилиана ИВО ИВАС Кут Хуми","276. Учительница ИВО Управления ИВДИВО-Тела воссоединённости ИВО ИВАС Максимилиана ИВО ИВАС Кут Хуми"]
[null,null,null,"Силуан","Силуана","275. Учитель ИВО Управления ИВДИВО-Тела самоорганизации ИВО ИВАС Ричарда ИВО ИВАС Кут Хуми","275. Учительница ИВО Управления ИВДИВО-Тела самоорганизации ИВО ИВАС Ричарда ИВО ИВАС Кут Хуми","275. Учитель ИВО Управления ИВДИВО-Тела самоорганизации ИВО ИВАС Ричарда ИВО ИВАС Кут Хуми","275. Учительница ИВО Управления ИВДИВО-Тела самоорганизации ИВО ИВАС Ричарда ИВО ИВАС Кут Хуми"]
[null,null,null,"Лукьян","Лукьяна","274. Учитель ИВО Управления ИВДИВО-Тела эманации ИВО ИВАС Христофора ИВО ИВАС Кут Хуми","274. Учительница ИВО Управления ИВДИВО-Тела эманации ИВО ИВАС Христофора ИВО ИВАС Кут Хуми","274. Учитель ИВО Управления ИВДИВО-Тела эманации ИВО ИВАС Христофора ИВО ИВАС Кут Хуми","274. Учительница ИВО Управления ИВДИВО-Тела эманации ИВО ИВАС Христофора ИВО ИВАС Кут Хуми"]
[null,null,null,"Люсьен","Люсьена","273. Учитель ИВО Управления ИВДИВО-Тела вещества ИВО ИВАС Всеволода ИВО ИВАС Кут Хуми","273. Учительница ИВО Управления ИВДИВО-Тела вещества ИВО ИВАС Всеволода ИВО ИВАС Кут Хуми","273. Учитель ИВО Управления ИВДИВО-Тела вещества ИВО ИВАС Всеволода ИВО ИВАС Кут Хуми","273. Учительница ИВО Управления ИВДИВО-Тела вещества ИВО ИВАС Всеволода ИВО ИВАС Кут Хуми"]
[null,null,null,"Андриан","Андриана","272. Учитель ИВО Управления ИВДИВО-Тела условия ИВО ИВАС Мечеслава ИВО ИВАС Кут Хуми","272. Учительница ИВО Управления ИВДИВО-Тела условия ИВО ИВАС Мечеслава ИВО ИВАС Кут Хуми","272. Учитель ИВО Управления ИВДИВО-Тела условия ИВО ИВАС Мечеслава ИВО ИВАС Кут Хуми","272. Учительница ИВО Управления ИВДИВО-Тела условия ИВО ИВАС Мечеслава ИВО ИВАС Кут Хуми"]
[null,null,null,"Прокофий","Прокофия","271. Учитель ИВО Управления ИВДИВО-Тела пробуждения ИВО ИВАС Авенира ИВО ИВАС Кут Хуми","271. Учительница ИВО Управления ИВДИВО-Тела пробуждения ИВО ИВАС Авенира ИВО ИВАС Кут Хуми","271. Учитель ИВО Управления ИВДИВО-Тела пробуждения ИВО ИВАС Авенира ИВО ИВАС Кут Хуми","271. Учительница ИВО Управления ИВДИВО-Тела пробуждения ИВО ИВАС Авенира ИВО ИВАС Кут Хуми"]
[null,null,null,"Зарк","Зарка","270. Учитель ИВО Управления ИВДИВО-Тела имперации ИВО ИВАС Ивана ИВО ИВАС Кут Хуми","270. Учительница ИВО Управления ИВДИВО-Тела имперации ИВО ИВАС Ивана ИВО ИВАС Кут Хуми","270. Учитель ИВО Управления ИВДИВО-Тела имперации ИВО ИВАС Ивана ИВО ИВАС Кут Хуми","270. Учительница ИВО Управления ИВДИВО-Тела имперации ИВО ИВАС Ивана ИВО ИВАС Кут Хуми"]
[null,null,null,"Станис","Станиса","269. Учитель ИВО Управления ИВДИВО-Тела взгляда ИВО ИВАС Любослава ИВО ИВАС Кут Хуми","269. Учительница ИВО Управления ИВДИВО-Тела взгляда ИВО ИВАС Любослава ИВО ИВАС Кут Хуми","269. Учитель ИВО Управления ИВДИВО-Тела взгляда ИВО ИВАС Любослава ИВО ИВАС Кут Хуми","269. Учительница ИВО Управления ИВДИВО-Тела взгляда ИВО ИВАС Любослава ИВО ИВАС Кут Хуми"]
[null,null,null,"Панкрат","Панкрата","268. Учитель ИВО Управления ИВДИВО-Тела синтезначала ИВО ИВАС Аскольда ИВО ИВАС Кут Хуми","268. Учительница ИВО Управления ИВДИВО-Тела синтезначала ИВО ИВАС Аскольда ИВО ИВАС Кут Хуми","268. Учитель ИВО Управления ИВДИВО-Тела синтезначала ИВО ИВАС Аскольда ИВО ИВАС Кут Хуми","268. Учительница ИВО Управления ИВДИВО-Тела синтезначала ИВО ИВАС Аскольда ИВО ИВАС Кут Хуми"]
[null,null,null,"Старк","Старка","267. Учитель ИВО Управления ИВДИВО-Тела основы ИВО ИВАС Бронислава ИВО ИВАС Кут Хуми","267. Учительница ИВО Управления ИВДИВО-Тела основы ИВО ИВАС Бронислава ИВО ИВАС Кут Хуми","267. Учитель ИВО Управления ИВДИВО-Тела основы ИВО ИВАС Бронислава ИВО ИВАС Кут Хуми","267. Учительница ИВО Управления ИВДИВО-Тела основы ИВО ИВАС Бронислава ИВО ИВАС Кут Хуми"]
[null,null,null,"Дорофей","Дорофея","266. Учитель ИВО Управления ИВДИВО-Тела параметода ИВО ИВАС Христиана ИВО ИВАС Кут Хуми","266. Учительница ИВО Управления ИВДИВО-Тела параметода ИВО ИВАС Христиана ИВО ИВАС Кут Хуми","266. Учитель ИВО Управления ИВДИВО-Тела параметода ИВО ИВАС Христиана ИВО ИВАС Кут Хуми","266. Учительница ИВО Управления ИВДИВО-Тела параметода ИВО ИВАС Христиана ИВО ИВАС Кут Хуми"]
[null,null,null,"Яков","Якова","265. Учитель ИВО Управления ИВДИВО-Тела мощи ИВО ИВАС Аслава ИВО ИВАС Кут Хуми","265. Учительница ИВО Управления ИВДИВО-Тела мощи ИВО ИВАС Аслава ИВО ИВАС Кут Хуми","265. Учитель ИВО Управления ИВДИВО-Тела мощи ИВО ИВАС Аслава ИВО ИВАС Кут Хуми","265. Учительница ИВО Управления ИВДИВО-Тела мощи ИВО ИВАС Аслава ИВО ИВАС Кут Хуми"]
[null,null,null,"Ульян","Ульяна","264. Учитель ИВО Управления ИВДИВО-Тела права ИВО ИВАС Стаслава ИВО ИВАС Кут Хуми","264. Учительница ИВО Управления ИВДИВО-Тела права ИВО ИВАС Стаслава ИВО ИВАС Кут Хуми","264. Учитель ИВО Управления ИВДИВО-Тела права ИВО ИВАС Стаслава ИВО ИВАС Кут Хуми","264. Учительница ИВО Управления ИВДИВО-Тела права ИВО ИВАС Стаслава ИВО ИВАС Кут Хуми"]
[null,null,null,"Герман","Германа","263. Учитель ИВО Управления ИВДИВО-Тела идеи ИВО ИВАС Гюстава ИВО ИВАС Кут Хуми","263. Учительница ИВО Управления ИВДИВО-Тела идеи ИВО ИВАС Гюстава ИВО ИВАС Кут Хуми","263. Учитель ИВО Управления ИВДИВО-Тела идеи ИВО ИВАС Гюстава ИВО ИВАС Кут Хуми","263. Учительница ИВО Управления ИВДИВО-Тела идеи ИВО ИВАС Гюстава ИВО ИВАС Кут Хуми"]
[null,null,null,"Радомир","Радомира","262. Учитель ИВО Управления ИВДИВО-Тела сути ИВО ИВАС Евсея ИВО ИВАС Кут Хуми","262. Учительница ИВО Управления ИВДИВО-Тела сути ИВО ИВАС Евсея ИВО ИВАС Кут Хуми","262. Учитель ИВО Управления ИВДИВО-Тела сути ИВО ИВАС Евсея ИВО ИВАС Кут Хуми","262. Учительница ИВО Управления ИВДИВО-Тела сути ИВО ИВАС Евсея ИВО ИВАС Кут Хуми"]
[null,null,null,"Октавий","Октавия","261. Учитель ИВО Управления ИВДИВО-Тела смысла ИВО ИВАС Прохора ИВО ИВАС Кут Хуми","261. Учительница ИВО Управления ИВДИВО-Тела смысла ИВО ИВАС Прохора ИВО ИВАС Кут Хуми","261. Учитель ИВО Управления ИВДИВО-Тела смысла ИВО ИВАС Прохора ИВО ИВАС Кут Хуми","261. Учительница ИВО Управления ИВДИВО-Тела смысла ИВО ИВАС Прохора ИВО ИВАС Кут Хуми"]
[null,null,null,"Ким","Кима","260. Учитель ИВО Управления ИВДИВО-Тела мысли ИВО ИВАС Вальтера ИВО ИВАС Кут Хуми","260. Учительница ИВО Управления ИВДИВО-Тела мысли ИВО ИВАС Вальтера ИВО ИВАС Кут Хуми","260. Учитель ИВО Управления ИВДИВО-Тела мысли ИВО ИВАС Вальтера ИВО ИВАС Кут Хуми","260. Учительница ИВО Управления ИВДИВО-Тела мысли ИВО ИВАС Вальтера ИВО ИВАС Кут Хуми"]
[null,null,null,"Бонифаций","Бонифация","259. Учитель ИВО Управления ИВДИВО-Тела чувства ИВО ИВАС Эраста ИВО ИВАС Кут Хуми","259. Учительница ИВО Управления ИВДИВО-Тела чувства ИВО ИВАС Эраста ИВО ИВАС Кут Хуми","259. Учитель ИВО Управления ИВДИВО-Тела чувства ИВО ИВАС Эраста ИВО ИВАС Кут Хуми","259. Учительница ИВО Управления ИВДИВО-Тела чувства ИВО ИВАС Эраста ИВО ИВАС Кут Хуми"]
[null,null,null,"Фредерик","Фредерика","258. Учитель ИВО Управления ИВДИВО-Тела Ощущения ИВО ИВАС Харитона ИВО ИВАС Кут Хуми","258. Учительница ИВО Управления ИВДИВО-Тела Ощущения ИВО ИВАС Харитона ИВО ИВАС Кут Хуми","258. Учитель ИВО Управления ИВДИВО-Тела Ощущения ИВО ИВАС Харитона ИВО ИВАС Кут Хуми","258. Учительница ИВО Управления ИВДИВО-Тела Ощущения ИВО ИВАС Харитона ИВО ИВАС Кут Хуми"]
[null,null,null,"Станислав","Станислава","257. Учитель ИВО Управления ИВДИВО-Тела Движения ИВО ИВАС Любомира ИВО ИВАС Кут Хуми","257. Учительница ИВО Управления ИВДИВО-Тела Движения ИВО ИВАС Любомира ИВО ИВАС Кут Хуми","257. Учитель ИВО Управления ИВДИВО-Тела Движения ИВО ИВАС Любомира ИВО ИВАС Кут Хуми","257. Учительница ИВО Управления ИВДИВО-Тела Движения ИВО ИВАС Любомира ИВО ИВАС Кут Хуми"]
[null,null,null,"Алан","Алана"]
[null,null,null,"Арий","Ария",{"$f":"H211","v":"256. Ипостась ИВО Управления Тела высшего суперизвечного космоса Отец-человек-субъект-землянина ИВО ИВАС Тела высшего суперизвечного космоса ИВО ИВАС Кут Хуми"},{"$f":"I211","v":"256. Ипостась ИВО Управления Тела высшего суперизвечного космоса Отец-человек-субъект-землянина ИВО ИВАС Тела высшего суперизвечного космоса ИВО ИВАС Кут Хуми"},"256. Ипостась ИВО Управления Тела высшего суперизвечного космоса Отец-человек-субъект-землянина ИВО ИВАС Тела высшего суперизвечного космоса ИВО ИВАС Кут Хуми","256. Ипостась ИВО Управления Тела высшего суперизвечного космоса Отец-человек-субъект-землянина ИВО ИВАС Тела высшего суперизвечного космоса ИВО ИВАС Кут Хуми"]
[null,null,null,"Мирослав","Мирослава",{"$f":"H212","v":"255. Ипостась ИВО Управления Тела высшего всеизвечного космоса Отец-человек-субъект-землянина ИВО ИВАС Тела высшего всеизвечного космоса ИВО ИВАС Кут Хуми"},{"$f":"I212","v":"255. Ипостась ИВО Управления Тела высшего всеизвечного космоса Отец-человек-субъект-землянина ИВО ИВАС Тела высшего всеизвечного космоса ИВО ИВАС Кут Хуми"},"255. Ипостась ИВО Управления Тела высшего всеизвечного космоса Отец-человек-субъект-землянина ИВО ИВАС Тела высшего всеизвечного космоса ИВО ИВАС Кут Хуми","255. Ипостась ИВО Управления Тела высшего всеизвечного космоса Отец-человек-субъект-землянина ИВО ИВАС Тела высшего всеизвечного космоса ИВО ИВАС Кут Хуми"]
[null,null,null,"Рудольф","Рудольфа",{"$f":"H213","v":"254. Ипостась ИВО Управления Тела высшего октоизвечного космоса Отец-человек-субъект-землянина ИВО ИВАС Тела высшего октоизвечного космоса ИВО ИВАС Кут Хуми"},"254. Ипостась ИВО Управления Тела высшего октоизвечного космоса Отец-человек-субъект-землянина ИВО ИВАС Тела высшего октоизвечного космоса ИВО ИВАС Кут Хуми","254. Ипостась ИВО Управления Тела высшего октоизвечного космоса Отец-человек-субъект-землянина ИВО ИВАС Тела высшего октоизвечного космоса ИВО ИВАС Кут Хуми","254. Ипостась ИВО Управления Тела высшего октоизвечного космоса Отец-человек-субъект-землянина ИВО ИВАС Тела высшего октоизвечного космоса ИВО ИВАС Кут Хуми"]
[null,null,null,"Феликс","Феликса","253. Ипостась ИВО Управления Тела высшего метаизвечного космоса Отец-человек-субъект-землянина ИВО ИВАС Тела высшего метаизвечного космоса ИВО ИВАС Кут Хуми","253. Ипостась ИВО Управления Тела высшего метаизвечного космоса Отец-человек-субъект-землянина ИВО ИВАС Тела высшего метаизвечного космоса ИВО ИВАС Кут Хуми","253. Ипостась ИВО Управления Тела высшего метаизвечного космоса Отец-человек-субъект-землянина ИВО ИВАС Тела высшего метаизвечного космоса ИВО ИВАС Кут Хуми","253. Ипостась ИВО Управления Тела высшего метаизвечного космоса Отец-человек-субъект-землянина ИВО ИВАС Тела высшего метаизвечного космоса ИВО ИВАС Кут Хуми"]
[null,null,null,"Дональд","Дональда","252. Ипостась ИВО Управления Тела высшего извечного космоса Отец-человек-субъект-землянина ИВО ИВАС Тела высшего извечного космоса ИВО ИВАС Кут Хуми","252. Ипостась ИВО Управления Тела высшего извечного космоса Отец-человек-субъект-землянина ИВО ИВАС Тела высшего извечного космоса ИВО ИВАС Кут Хуми","252. Ипостась ИВО Управления Тела высшего извечного космоса Отец-человек-субъект-землянина ИВО ИВАС Тела высшего извечного космоса ИВО ИВАС Кут Хуми","252. Ипостась ИВО Управления Тела высшего извечного космоса Отец-человек-субъект-землянина ИВО ИВАС Тела высшего извечного космоса ИВО ИВАС Кут Хуми"]
[null,null,null,"Влад","Влада","251. Ипостась ИВО Управления Тела высшего всеединого космоса Отец-человек-субъект-землянина ИВО ИВАС Тела высшего всеединого космоса ИВО ИВАС Кут Хуми","251. Ипостась ИВО Управления Тела высшего всеединого космоса Отец-человек-субъект-землянина ИВО ИВАС Тела высшего всеединого космоса ИВО ИВАС Кут Хуми","251. Ипостась ИВО Управления Тела высшего всеединого космоса Отец-человек-субъект-землянина ИВО ИВАС Тела высшего всеединого космоса ИВО ИВАС Кут Хуми","251. Ипостась ИВО Управления Тела высшего всеединого космоса Отец-человек-субъект-землянина ИВО ИВАС Тела высшего всеединого космоса ИВО ИВАС Кут Хуми"]
[null,null,null,"Андроник","Андроника","250. Ипостась ИВО Управления Тела высшего октавного космоса Отец-человек-субъект-землянина ИВО ИВАС Тела высшего октавного космоса ИВО ИВАС Кут Хуми","250. Ипостась ИВО Управления Тела высшего октавного космоса Отец-человек-субъект-землянина ИВО ИВАС Тела высшего октавного космоса ИВО ИВАС Кут Хуми","250. Ипостась ИВО Управления Тела высшего октавного космоса Отец-человек-субъект-землянина ИВО ИВАС Тела высшего октавного космоса ИВО ИВАС Кут Хуми","250. Ипостась ИВО Управления Тела высшего октавного космоса Отец-человек-субъект-землянина ИВО ИВАС Тела высшего октавного космоса ИВО ИВАС Кут Хуми"]
[null,null,null,"Артур","Артура","249. Ипостась ИВО Управления Тела высшего метагалактического космоса Отец-человек-субъект-землянина ИВО ИВАС Тела высшего метагалактического космоса ИВО ИВАС Кут Хуми","249. Ипостась ИВО Управления Тела высшего метагалактического космоса Отец-человек-субъект-землянина ИВО ИВАС Тела высшего метагалактического космоса ИВО ИВАС Кут Хуми","249. Ипостась ИВО Управления Тела высшего метагалактического космоса Отец-человек-субъект-землянина ИВО ИВАС Тела высшего метагалактического космоса ИВО ИВАС Кут Хуми","249. Ипостась ИВО Управления Тела высшего метагалактического космоса Отец-человек-субъект-землянина ИВО ИВАС Тела высшего метагалактического космоса ИВО ИВАС Кут Хуми"]
[null,null,null,"Рихард","Рихарда","248. Ипостась ИВО Управления Тела суперизвечного космоса Отец-человек-субъект-землянина ИВО ИВАС Тела суперизвечного космоса ИВО ИВАС Кут Хуми","248. Ипостась ИВО Управления Тела суперизвечного космоса Отец-человек-субъект-землянина ИВО ИВАС Тела суперизвечного космоса ИВО ИВАС Кут Хуми","248. Ипостась ИВО Управления Тела суперизвечного космоса Отец-человек-субъект-землянина ИВО ИВАС Тела суперизвечного космоса ИВО ИВАС Кут Хуми","248. Ипостась ИВО Управления Тела суперизвечного космоса Отец-человек-субъект-землянина ИВО ИВАС Тела суперизвечного космоса ИВО ИВАС Кут Хуми"]
[null,null,null,"Эльдар","Эльдара","247. Ипостась ИВО Управления Тела всеизвечного космоса Отец-человек-субъект-землянина ИВО ИВАС Тела всеизвечного космоса ИВО ИВАС Кут Хуми","247. Ипостась ИВО Управления Тела всеизвечного космоса Отец-человек-субъект-землянина ИВО ИВАС Тела всеизвечного космоса ИВО ИВАС Кут Хуми","247. Ипостась ИВО Управления Тела всеизвечного космоса Отец-человек-субъект-землянина ИВО ИВАС Тела всеизвечного космоса ИВО ИВАС Кут Хуми","247. Ипостась ИВО Управления Тела всеизвечного космоса Отец-человек-субъект-землянина ИВО ИВАС Тела всеизвечного космоса ИВО ИВАС Кут Хуми"]
[null,null,null,"Андрис","Андриса","246. Ипостась ИВО Управления Тела октоизвечного космоса Отец-человек-субъект-землянина ИВО ИВАС Тела октоизвечного космоса ИВО ИВАС Кут Хуми","246. Ипостась ИВО Управления Тела октоизвечного космоса Отец-человек-субъект-землянина ИВО ИВАС Тела октоизвечного космоса ИВО ИВАС Кут Хуми","246. Ипостась ИВО Управления Тела октоизвечного космоса Отец-человек-субъект-землянина ИВО ИВАС Тела октоизвечного космоса ИВО ИВАС Кут Хуми","246. Ипостась ИВО Управления Тела октоизвечного космоса Отец-человек-субъект-землянина ИВО ИВАС Тела октоизвечного космоса ИВО ИВАС Кут Хуми"]
[null,null,null,"Владислав","Владислава","245. Ипостась ИВО Управления Тела метаизвечного космоса Отец-человек-субъект-землянина ИВО ИВАС Тела метаизвечного космоса ИВО ИВАС Кут Хуми","245. Ипостась ИВО Управления Тела метаизвечного космоса Отец-человек-субъект-землянина ИВО ИВАС Тела метаизвечного космоса ИВО ИВАС Кут Хуми","245. Ипостась ИВО Управления Тела метаизвечного космоса Отец-человек-субъект-землянина ИВО ИВАС Тела метаизвечного космоса ИВО ИВАС Кут Хуми","245. Ипостась ИВО Управления Тела метаизвечного космоса Отец-человек-субъект-землянина ИВО ИВАС Тела метаизвечного космоса ИВО ИВАС Кут Хуми"]
[null,null,null,"Август","Августа","244. Ипостась ИВО Управления Тела извечного космоса Отец-человек-субъект-землянина ИВО ИВАС Тела извечного космоса ИВО ИВАС Кут Хуми","244. Ипостась ИВО Управления Тела извечного космоса Отец-человек-субъект-землянина ИВО ИВАС Тела извечного космоса ИВО ИВАС Кут Хуми","244. Ипостась ИВО Управления Тела извечного космоса Отец-человек-субъект-землянина ИВО ИВАС Тела извечного космоса ИВО ИВАС Кут Хуми","244. Ипостась ИВО Управления Тела извечного космоса Отец-человек-субъект-землянина ИВО ИВАС Тела извечного космоса ИВО ИВАС Кут Хуми"]
[null,null,null,"Дамир","Дамира","243. Ипостась ИВО Управления Тела всеединого космоса Отец-человек-субъект-землянина ИВО ИВАС Тела всеединого космоса ИВО ИВАС Кут Хуми","243. Ипостась ИВО Управления Тела всеединого космоса Отец-человек-субъект-землянина ИВО ИВАС Тела всеединого космоса ИВО ИВАС Кут Хуми","243. Ипостась ИВО Управления Тела всеединого космоса Отец-человек-субъект-землянина ИВО ИВАС Тела всеединого космоса ИВО ИВАС Кут Хуми","243. Ипостась ИВО Управления Тела всеединого космоса Отец-человек-субъект-землянина ИВО ИВАС Тела всеединого космоса ИВО ИВАС Кут Хуми"]
[null,null,null,"Иордан","Иордана","242. Ипостась ИВО Управления Тела октавного космоса Отец-человек-субъект-землянина ИВО ИВАС Тела октавного космоса ИВО ИВАС Кут Хуми","242. Ипостась ИВО Управления Тела октавного космоса Отец-человек-субъект-землянина ИВО ИВАС Тела октавного космоса ИВО ИВАС Кут Хуми","242. Ипостась ИВО Управления Тела октавного космоса Отец-человек-субъект-землянина ИВО ИВАС Тела октавного космоса ИВО ИВАС Кут Хуми","242. Ипостась ИВО Управления Тела октавного космоса Отец-человек-субъект-землянина ИВО ИВАС Тела октавного космоса ИВО ИВАС Кут Хуми"]
[null,null,null,"Изяслав","Изяслава","241. Ипостась ИВО Управления Тела метагалактического космоса Отец-человек-субъект-землянина ИВО ИВАС Тела метагалактического космоса ИВО ИВАС Кут Хуми","241. Ипостась ИВО Управления Тела метагалактического космоса Отец-человек-субъект-землянина ИВО ИВАС Тела метагалактического космоса ИВО ИВАС Кут Хуми","241. Ипостась ИВО Управления Тела метагалактического космоса Отец-человек-субъект-землянина ИВО ИВАС Тела метагалактического космоса ИВО ИВАС Кут Хуми","241. Ипостась ИВО Управления Тела метагалактического космоса Отец-человек-субъект-землянина ИВО ИВАС Тела метагалактического космоса ИВО ИВАС Кут Хуми"]
[null,null,null,"Филимон","Филимона","240. Ипостась ИВО Управления Тела высшей суперизвечности Отец-человек-субъект-землянина ИВО ИВАС Тела высшей суперизвечности ИВО ИВАС Кут Хуми","240. Ипостась ИВО Управления Тела высшей суперизвечности Отец-человек-субъект-землянина ИВО ИВАС Тела высшей суперизвечности ИВО ИВАС Кут Хуми","240. Ипостась ИВО Управления Тела высшей суперизвечности Отец-человек-субъект-землянина ИВО ИВАС Тела высшей суперизвечности ИВО ИВАС Кут Хуми","240. Ипостась ИВО Управления Тела высшей суперизвечности Отец-человек-субъект-землянина ИВО ИВАС Тела высшей суперизвечности ИВО ИВАС Кут Хуми"]
[null,null,null,"Тит","Тита","239. Ипостась ИВО Управления Тела высшей всеизвечности Отец-человек-субъект-землянина ИВО ИВАС Тела высшей всеизвечности ИВО ИВАС Кут Хуми","239. Ипостась ИВО Управления Тела высшей всеизвечности Отец-человек-субъект-землянина ИВО ИВАС Тела высшей всеизвечности ИВО ИВАС Кут Хуми","239. Ипостась ИВО Управления Тела высшей всеизвечности Отец-человек-субъект-землянина ИВО ИВАС Тела высшей всеизвечности ИВО ИВАС Кут Хуми","239. Ипостась ИВО Управления Тела высшей всеизвечности Отец-человек-субъект-землянина ИВО ИВАС Тела высшей всеизвечности ИВО ИВАС Кут Хуми"]
[null,null,null,"Матвей","Матвея","238. Ипостась ИВО Управления Тела высшей октоизвечности Отец-человек-субъект-землянина ИВО ИВАС Тела высшей октоизвечности ИВО ИВАС Кут Хуми","238. Ипостась ИВО Управления Тела высшей октоизвечности Отец-человек-субъект-землянина ИВО ИВАС Тела высшей октоизвечности ИВО ИВАС Кут Хуми","238. Ипостась ИВО Управления Тела высшей октоизвечности Отец-человек-субъект-землянина ИВО ИВАС Тела высшей октоизвечности ИВО ИВАС Кут Хуми","238. Ипостась ИВО Управления Тела высшей октоизвечности Отец-человек-субъект-землянина ИВО ИВАС Тела высшей октоизвечности ИВО ИВАС Кут Хуми"]
[null,null,null,"Павел","Павла","237. Ипостась ИВО Управления Тела высшей метаизвечности Отец-человек-субъект-землянина ИВО ИВАС Тела высшей метаизвечности ИВО ИВАС Кут Хуми","237. Ипостась ИВО Управления Тела высшей метаизвечности Отец-человек-субъект-землянина ИВО ИВАС Тела высшей метаизвечности ИВО ИВАС Кут Хуми","237. Ипостась ИВО Управления Тела высшей метаизвечности Отец-человек-субъект-землянина ИВО ИВАС Тела высшей метаизвечности ИВО ИВАС Кут Хуми","237. Ипостась ИВО Управления Тела высшей метаизвечности Отец-человек-субъект-землянина ИВО ИВАС Тела высшей метаизвечности ИВО ИВАС Кут Хуми"]
[null,null,null,"Афанасий","Афанасия","236. Ипостась ИВО Управления Тела высшей извечности Отец-человек-субъект-землянина ИВО ИВАС Тела высшей извечности ИВО ИВАС Кут Хуми","236. Ипостась ИВО Управления Тела высшей извечности Отец-человек-субъект-землянина ИВО ИВАС Тела высшей извечности ИВО ИВАС Кут Хуми","236. Ипостась ИВО Управления Тела высшей извечности Отец-человек-субъект-землянина ИВО ИВАС Тела высшей извечности ИВО ИВАС Кут Хуми","236. Ипостась ИВО Управления Тела высшей извечности Отец-человек-субъект-землянина ИВО ИВАС Тела высшей извечности ИВО ИВАС Кут Хуми"]
[null,null,null,"Тихомир","Тихомира","235. Ипостась ИВО Управления Тела высшей всеединности Отец-человек-субъект-землянина ИВО ИВАС Тела высшей всеединности ИВО ИВАС Кут Хуми","235. Ипостась ИВО Управления Тела высшей всеединности Отец-человек-субъект-землянина ИВО ИВАС Тела высшей всеединности ИВО ИВАС Кут Хуми","235. Ипостась ИВО Управления Тела высшей всеединности Отец-человек-субъект-землянина ИВО ИВАС Тела высшей всеединности ИВО ИВАС Кут Хуми","235. Ипостась ИВО Управления Тела высшей всеединности Отец-человек-субъект-землянина ИВО ИВАС Тела высшей всеединности ИВО ИВАС Кут Хуми"]
[null,null,null,"Сезар","Сезара","234. Ипостась ИВО Управления Тела высшей октавности Отец-человек-субъект-землянина ИВО ИВАС Тела высшей октавности ИВО ИВАС Кут Хуми","234. Ипостась ИВО Управления Тела высшей октавности Отец-человек-субъект-землянина ИВО ИВАС Тела высшей октавности ИВО ИВАС Кут Хуми","234. Ипостась ИВО Управления Тела высшей октавности Отец-человек-субъект-землянина ИВО ИВАС Тела высшей октавности ИВО ИВАС Кут Хуми","234. Ипостась ИВО Управления Тела высшей октавности Отец-человек-субъект-землянина ИВО ИВАС Тела высшей октавности ИВО ИВАС Кут Хуми"]
[null,null,null,"Исаак","Исаака","233. Ипостась ИВО Управления Тела высшей метагалактичности Отец-человек-субъект-землянина ИВО ИВАС Тела высшей метагалактичности ИВО ИВАС Кут Хуми","233. Ипостась ИВО Управления Тела высшей метагалактичности Отец-человек-субъект-землянина ИВО ИВАС Тела высшей метагалактичности ИВО ИВАС Кут Хуми","233. Ипостась ИВО Управления Тела высшей метагалактичности Отец-человек-субъект-землянина ИВО ИВАС Тела высшей метагалактичности ИВО ИВАС Кут Хуми","233. Ипостась ИВО Управления Тела высшей метагалактичности Отец-человек-субъект-землянина ИВО ИВАС Тела высшей метагалактичности ИВО ИВАС Кут Хуми"]
[null,null,null,"Елисей","Елисея","232. Ипостась ИВО Управления Тела суперизвечности Отец-человек-субъект-землянина ИВО ИВАС Тела суперизвечности ИВО ИВАС Кут Хуми","232. Ипостась ИВО Управления Тела суперизвечности Отец-человек-субъект-землянина ИВО ИВАС Тела суперизвечности ИВО ИВАС Кут Хуми","232. Ипостась ИВО Управления Тела суперизвечности Отец-человек-субъект-землянина ИВО ИВАС Тела суперизвечности ИВО ИВАС Кут Хуми","232. Ипостась ИВО Управления Тела суперизвечности Отец-человек-субъект-землянина ИВО ИВАС Тела суперизвечности ИВО ИВАС Кут Хуми"]
[null,null,null,"Ефим","Ефима","231. Ипостась ИВО Управления Тела всеизвечности Отец-человек-субъект-землянина ИВО ИВАС Тела всеизвечности ИВО ИВАС Кут Хуми","231. Ипостась ИВО Управления Тела всеизвечности Отец-человек-субъект-землянина ИВО ИВАС Тела всеизвечности ИВО ИВАС Кут Хуми","231. Ипостась ИВО Управления Тела всеизвечности Отец-человек-субъект-землянина ИВО ИВАС Тела всеизвечности ИВО ИВАС Кут Хуми","231. Ипостась ИВО Управления Тела всеизвечности Отец-человек-субъект-землянина ИВО ИВАС Тела всеизвечности ИВО ИВАС Кут Хуми"]
[null,null,null,"Захар","Захара","230. Ипостась ИВО Управления Тела октоизвечности Отец-человек-субъект-землянина ИВО ИВАС Тела октоизвечности ИВО ИВАС Кут Хуми","230. Ипостась ИВО Управления Тела октоизвечности Отец-человек-субъект-землянина ИВО ИВАС Тела октоизвечности ИВО ИВАС Кут Хуми","230. Ипостась ИВО Управления Тела октоизвечности Отец-человек-субъект-землянина ИВО ИВАС Тела октоизвечности ИВО ИВАС Кут Хуми","230. Ипостась ИВО Управления Тела октоизвечности Отец-человек-субъект-землянина ИВО ИВАС Тела октоизвечности ИВО ИВАС Кут Хуми"]
[null,null,null,"Гораций","Горация","229. Ипостась ИВО Управления Тела метаизвечности Отец-человек-субъект-землянина ИВО ИВАС Тела метаизвечности ИВО ИВАС Кут Хуми","229. Ипостась ИВО Управления Тела метаизвечности Отец-человек-субъект-землянина ИВО ИВАС Тела метаизвечности ИВО ИВАС Кут Хуми","229. Ипостась ИВО Управления Тела метаизвечности Отец-человек-субъект-землянина ИВО ИВАС Тела метаизвечности ИВО ИВАС Кут Хуми","229. Ипостась ИВО Управления Тела метаизвечности Отец-человек-субъект-землянина ИВО ИВАС Тела метаизвечности ИВО ИВАС Кут Хуми"]
[null,null,null,"Будимир","Будимира","228. Ипостась ИВО Управления Тела извечности Отец-человек-субъект-землянина ИВО ИВАС Тела извечности ИВО ИВАС Кут Хуми","228. Ипостась ИВО Управления Тела извечности Отец-человек-субъект-землянина ИВО ИВАС Тела извечности ИВО ИВАС Кут Хуми","228. Ипостась ИВО Управления Тела извечности Отец-человек-субъект-землянина ИВО ИВАС Тела извечности ИВО ИВАС Кут Хуми","228. Ипостась ИВО Управления Тела извечности Отец-человек-субъект-землянина ИВО ИВАС Тела извечности ИВО ИВАС Кут Хуми"]
[null,null,null,"Добрыня","Добрыни","227. Ипостась ИВО Управления Тела всеединности Отец-человек-субъект-землянина ИВО ИВАС Тела всеединности ИВО ИВАС Кут Хуми","227. Ипостась ИВО Управления Тела всеединности Отец-человек-субъект-землянина ИВО ИВАС Тела всеединности ИВО ИВАС Кут Хуми","227. Ипостась ИВО Управления Тела всеединности Отец-человек-субъект-землянина ИВО ИВАС Тела всеединности ИВО ИВАС Кут Хуми","227. Ипостась ИВО Управления Тела всеединности Отец-человек-субъект-землянина ИВО ИВАС Тела всеединности ИВО ИВАС Кут Хуми"]
[null,null,null,"Севастьян","Севастьяна","226. Ипостась ИВО Управления Тела октавности Отец-человек-субъект-землянина ИВО ИВАС Тела октавности ИВО ИВАС Кут Хуми","226. Ипостась ИВО Управления Тела октавности Отец-человек-субъект-землянина ИВО ИВАС Тела октавности ИВО ИВАС Кут Хуми","226. Ипостась ИВО Управления Тела октавности Отец-человек-субъект-землянина ИВО ИВАС Тела октавности ИВО ИВАС Кут Хуми","226. Ипостась ИВО Управления Тела октавности Отец-человек-субъект-землянина ИВО ИВАС Тела октавности ИВО ИВАС Кут Хуми"]
[null,null,null,"Теофил","Теофила","225. Ипостась ИВО Управления Тела метагалактичности Отец-человек-субъект-землянина ИВО ИВАС Тела метагалактичности ИВО ИВАС Кут Хуми","225. Ипостась ИВО Управления Тела метагалактичности Отец-человек-субъект-землянина ИВО ИВАС Тела метагалактичности ИВО ИВАС Кут Хуми","225. Ипостась ИВО Управления Тела метагалактичности Отец-человек-субъект-землянина ИВО ИВАС Тела метагалактичности ИВО ИВАС Кут Хуми","225. Ипостась ИВО Управления Тела метагалактичности Отец-человек-субъект-землянина ИВО ИВАС Тела метагалактичности ИВО ИВАС Кут Хуми"]
[null,null,null,"Кирилл","Кирилла","224. Ипостась ИВО Управления Тела реальности высшего суперизвечного космоса Отец-человек-субъект-землянина ИВО ИВАС Тела реальности высшего суперизвечного космоса ИВО ИВАС Кут Хуми","224. Ипостась ИВО Управления Тела реальности высшего суперизвечного космоса Отец-человек-субъект-землянина ИВО ИВАС Тела реальности высшего суперизвечного космоса ИВО ИВАС Кут Хуми","224. Ипостась ИВО Управления Тела реальности высшего суперизвечного космоса Отец-человек-субъект-землянина ИВО ИВАС Тела реальности высшего суперизвечного космоса ИВО ИВАС Кут Хуми","224. Ипостась ИВО Управления Тела реальности высшего суперизвечного космоса Отец-человек-субъект-землянина ИВО ИВАС Тела реальности высшего суперизвечного космоса ИВО ИВАС Кут Хуми"]
[null,null,null,"Доменик","Доменика","223. Ипостась ИВО Управления Тела реальности высшего всеизвечного космоса Отец-человек-субъект-землянина ИВО ИВАС Тела реальности высшего всеизвечного космоса ИВО ИВАС Кут Хуми","223. Ипостась ИВО Управления Тела реальности высшего всеизвечного космоса Отец-человек-субъект-землянина ИВО ИВАС Тела реальности высшего всеизвечного космоса ИВО ИВАС Кут Хуми","223. Ипостась ИВО Управления Тела реальности высшего всеизвечного космоса Отец-человек-субъект-землянина ИВО ИВАС Тела реальности высшего всеизвечного космоса ИВО ИВАС Кут Хуми","223. Ипостась ИВО Управления Тела реальности высшего всеизвечного космоса Отец-человек-субъект-землянина ИВО ИВАС Тела реальности высшего всеизвечного космоса ИВО ИВАС Кут Хуми"]
[null,null,null,"Эммануил","Эммануила","222. Ипостась ИВО Управления Тела реальности высшего октоизвечного космоса Отец-человек-субъект-землянина ИВО ИВАС Тела реальности высшего октоизвечного космоса ИВО ИВАС Кут Хуми","222. Ипостась ИВО Управления Тела реальности высшего октоизвечного космоса Отец-человек-субъект-землянина ИВО ИВАС Тела реальности высшего октоизвечного космоса ИВО ИВАС Кут Хуми","222. Ипостась ИВО Управления Тела реальности высшего октоизвечного космоса Отец-человек-субъект-землянина ИВО ИВАС Тела реальности высшего октоизвечного космоса ИВО ИВАС Кут Хуми","222. Ипостась ИВО Управления Тела реальности высшего октоизвечного космоса Отец-человек-субъект-землянина ИВО ИВАС Тела реальности высшего октоизвечного космоса ИВО ИВАС Кут Хуми"]
[null,null,null,"Боримир","Боримира","221. Ипостась ИВО Управления Тела реальности высшего метаизвечного космоса Отец-человек-субъект-землянина ИВО ИВАС Тела реальности высшего метаизвечного космоса ИВО ИВАС Кут Хуми","221. Ипостась ИВО Управления Тела реальности высшего метаизвечного космоса Отец-человек-субъект-землянина ИВО ИВАС Тела реальности высшего метаизвечного космоса ИВО ИВАС Кут Хуми","221. Ипостась ИВО Управления Тела реальности высшего метаизвечного космоса Отец-человек-субъект-землянина ИВО ИВАС Тела реальности высшего метаизвечного космоса ИВО ИВАС Кут Хуми","221. Ипостась ИВО Управления Тела реальности высшего метаизвечного космоса Отец-человек-субъект-землянина ИВО ИВАС Тела реальности высшего метаизвечного космоса ИВО ИВАС Кут Хуми"]
[null,null,null,"Всеслав","Всеслава","220. Ипостась ИВО Управления Тела реальности высшего извечного космоса Отец-человек-субъект-землянина ИВО ИВАС Тела реальности высшего извечного космоса ИВО ИВАС Кут Хуми","220. Ипостась ИВО Управления Тела реальности высшего извечного космоса Отец-человек-субъект-землянина ИВО ИВАС Тела реальности высшего извечного космоса ИВО ИВАС Кут Хуми","220. Ипостась ИВО Управления Тела реальности высшего извечного космоса Отец-человек-субъект-землянина ИВО ИВАС Тела реальности высшего извечного космоса ИВО ИВАС Кут Хуми","220. Ипостась ИВО Управления Тела реальности высшего извечного космоса Отец-человек-субъект-землянина ИВО ИВАС Тела реальности высшего извечного космоса ИВО ИВАС Кут Хуми"]
[null,null,null,"Артемий","Артемия","219. Ипостась ИВО Управления Тела реальности высшего всеединого космоса Отец-человек-субъект-землянина ИВО ИВАС Тела реальности высшего всеединого космоса ИВО ИВАС Кут Хуми","219. Ипостась ИВО Управления Тела реальности высшего всеединого космоса Отец-человек-субъект-землянина ИВО ИВАС Тела реальности высшего всеединого космоса ИВО ИВАС Кут Хуми","219. Ипостась ИВО Управления Тела реальности высшего всеединого космоса Отец-человек-субъект-землянина ИВО ИВАС Тела реальности высшего всеединого космоса ИВО ИВАС Кут Хуми","219. Ипостась ИВО Управления Тела реальности высшего всеединого космоса Отец-человек-субъект-землянина ИВО ИВАС Тела реальности высшего всеединого космоса ИВО ИВАС Кут Хуми"]
[null,null,null,"Сократ","Сократа","218. Ипостась ИВО Управления Тела реальности высшего октавного космоса Отец-человек-субъект-землянина ИВО ИВАС Тела реальности высшего октавного космоса ИВО ИВАС Кут Хуми","218. Ипостась ИВО Управления Тела реальности высшего октавного космоса Отец-человек-субъект-землянина ИВО ИВАС Тела реальности высшего октавного космоса ИВО ИВАС Кут Хуми","218. Ипостась ИВО Управления Тела реальности высшего октавного космоса Отец-человек-субъект-землянина ИВО ИВАС Тела реальности высшего октавного космоса ИВО ИВАС Кут Хуми","218. Ипостась ИВО Управления Тела реальности высшего октавного космоса Отец-человек-субъект-землянина ИВО ИВАС Тела реальности высшего октавного космоса ИВО ИВАС Кут Хуми"]
[null,null,null,"Бенедикт","Бенедикта","217. Ипостась ИВО Управления Тела реальности высшего метагалактического космоса Отец-человек-субъект-землянина ИВО ИВАС Тела реальности высшего метагалактического космоса ИВО ИВАС Кут Хуми","217. Ипостась ИВО Управления Тела реальности высшего метагалактического космоса Отец-человек-субъект-землянина ИВО ИВАС Тела реальности высшего метагалактического космоса ИВО ИВАС Кут Хуми","217. Ипостась ИВО Управления Тела реальности высшего метагалактического космоса Отец-человек-субъект-землянина ИВО ИВАС Тела реальности высшего метагалактического космоса ИВО ИВАС Кут Хуми","217. Ипостась ИВО Управления Тела реальности высшего метагалактического космоса Отец-человек-субъект-землянина ИВО ИВАС Тела реальности высшего метагалактического космоса ИВО ИВАС Кут Хуми"]
[null,null,null,"Евстигней","Евстигнея","216. Ипостась ИВО Управления Тела реальности суперизвечного космоса Отец-человек-субъект-землянина ИВО ИВАС Тела реальности суперизвечного космоса ИВО ИВАС Кут Хуми","216. Ипостась ИВО Управления Тела реальности суперизвечного космоса Отец-человек-субъект-землянина ИВО ИВАС Тела реальности суперизвечного космоса ИВО ИВАС Кут Хуми","216. Ипостась ИВО Управления Тела реальности суперизвечного космоса Отец-человек-субъект-землянина ИВО ИВАС Тела реальности суперизвечного космоса ИВО ИВАС Кут Хуми","216. Ипостась ИВО Управления Тела реальности суперизвечного космоса Отец-человек-субъект-землянина ИВО ИВАС Тела реальности суперизвечного космоса ИВО ИВАС Кут Хуми"]
[null,null,null,"Максимилиан","Максимилиана","215. Ипостась ИВО Управления Тела реальности всеизвечного космоса Отец-человек-субъект-землянина ИВО ИВАС Тела реальности всеизвечного космоса ИВО ИВАС Кут Хуми","215. Ипостась ИВО Управления Тела реальности всеизвечного космоса Отец-человек-субъект-землянина ИВО ИВАС Тела реальности всеизвечного космоса ИВО ИВАС Кут Хуми","215. Ипостась ИВО Управления Тела реальности всеизвечного космоса Отец-человек-субъект-землянина ИВО ИВАС Тела реальности всеизвечного космоса ИВО ИВАС Кут Хуми","215. Ипостась ИВО Управления Тела реальности всеизвечного космоса Отец-человек-субъект-землянина ИВО ИВАС Тела реальности всеизвечного космоса ИВО ИВАС Кут Хуми"]
[null,null,null,"Ричард","Ричарда","214. Ипостась ИВО Управления Тела реальности октоизвечного космоса Отец-человек-субъект-землянина ИВО ИВАС Тела реальности октоизвечного космоса ИВО ИВАС Кут Хуми","214. Ипостась ИВО Управления Тела реальности октоизвечного космоса Отец-человек-субъект-землянина ИВО ИВАС Тела реальности октоизвечного космоса ИВО ИВАС Кут Хуми","214. Ипостась ИВО Управления Тела реальности октоизвечного космоса Отец-человек-субъект-землянина ИВО ИВАС Тела реальности октоизвечного космоса ИВО ИВАС Кут Хуми","214. Ипостась ИВО Управления Тела реальности октоизвечного космоса Отец-человек-субъект-землянина ИВО ИВАС Тела реальности октоизвечного космоса ИВО ИВАС Кут Хуми"]
[null,null,null,"Христофор","Христофора","213. Ипостась ИВО Управления Тела реальности метаизвечного космоса Отец-человек-субъект-землянина ИВО ИВАС Тела реальности метаизвечного космоса ИВО ИВАС Кут Хуми","213. Ипостась ИВО Управления Тела реальности метаизвечного космоса Отец-человек-субъект-землянина ИВО ИВАС Тела реальности метаизвечного космоса ИВО ИВАС Кут Хуми","213. Ипостась ИВО Управления Тела реальности метаизвечного космоса Отец-человек-субъект-землянина ИВО ИВАС Тела реальности метаизвечного космоса ИВО ИВАС Кут Хуми","213. Ипостась ИВО Управления Тела реальности метаизвечного космоса Отец-человек-субъект-землянина ИВО ИВАС Тела реальности метаизвечного космоса ИВО ИВАС Кут Хуми"]
[null,null,null,"Всеволод","Всеволода","212. Ипостась ИВО Управления Тела реальности извечного космоса Отец-человек-субъект-землянина ИВО ИВАС Тела реальности извечного космоса ИВО ИВАС Кут Хуми","212. Ипостась ИВО Управления Тела реальности извечного космоса Отец-человек-субъект-землянина ИВО ИВАС Тела реальности извечного космоса ИВО ИВАС Кут Хуми","212. Ипостась ИВО Управления Тела реальности извечного космоса Отец-человек-субъект-землянина ИВО ИВАС Тела реальности извечного космоса ИВО ИВАС Кут Хуми","212. Ипостась ИВО Управления Тела реальности извечного космоса Отец-человек-субъект-землянина ИВО ИВАС Тела реальности извечного космоса ИВО ИВАС Кут Хуми"]
[null,null,null,"Мечеслав","Мечеслава","211. Ипостась ИВО Управления Тела реальности всеединого космоса Отец-человек-субъект-землянина ИВО ИВАС Тела реальности всеединого космоса ИВО ИВАС Кут Хуми","211. Ипостась ИВО Управления Тела реальности всеединого космоса Отец-человек-субъект-землянина ИВО ИВАС Тела реальности всеединого космоса ИВО ИВАС Кут Хуми","211. Ипостась ИВО Управления Тела реальности всеединого космоса Отец-человек-субъект-землянина ИВО ИВАС Тела реальности всеединого космоса ИВО ИВАС Кут Хуми","211. Ипостась ИВО Управления Тела реальности всеединого космоса Отец-человек-субъект-землянина ИВО ИВАС Тела реальности всеединого космоса ИВО ИВАС Кут Хуми"]
[null,null,null,"Авенир","Авенира","210. Ипостась ИВО Управления Тела реальности октавного космоса Отец-человек-субъект-землянина ИВО ИВАС Тела реальности октавного космоса ИВО ИВАС Кут Хуми","210. Ипостась ИВО Управления Тела реальности октавного космоса Отец-человек-субъект-землянина ИВО ИВАС Тела реальности октавного космоса ИВО ИВАС Кут Хуми","210. Ипостась ИВО Управления Тела реальности октавного космоса Отец-человек-субъект-землянина ИВО ИВАС Тела реальности октавного космоса ИВО ИВАС Кут Хуми","210. Ипостась ИВО Управления Тела реальности октавного космоса Отец-человек-субъект-землянина ИВО ИВАС Тела реальности октавного космоса ИВО ИВАС Кут Хуми"]
[null,null,null,"Иван","Ивана","209. Ипостась ИВО Управления Тела реальности метагалактического космоса Отец-человек-субъект-землянина ИВО ИВАС Тела реальности метагалактического космоса ИВО ИВАС Кут Хуми","209. Ипостась ИВО Управления Тела реальности метагалактического космоса Отец-человек-субъект-землянина ИВО ИВАС Тела реальности метагалактического космоса ИВО ИВАС Кут Хуми","209. Ипостась ИВО Управления Тела реальности метагалактического космоса Отец-человек-субъект-землянина ИВО ИВАС Тела реальности метагалактического космоса ИВО ИВАС Кут Хуми","209. Ипостась ИВО Управления Тела реальности метагалактического космоса Отец-человек-субъект-землянина ИВО ИВАС Тела реальности метагалактического космоса ИВО ИВАС Кут Хуми"]
[null,null,null,"Любослав","Любослава","208. Ипостась ИВО Управления Тела реальности высшей суперизвечности Отец-человек-субъект-землянина ИВО ИВАС Тела реальности высшей суперизвечности ИВО ИВАС Кут Хуми","208. Ипостась ИВО Управления Тела реальности высшей суперизвечности Отец-человек-субъект-землянина ИВО ИВАС Тела реальности высшей суперизвечности ИВО ИВАС Кут Хуми","208. Ипостась ИВО Управления Тела реальности высшей суперизвечности Отец-человек-субъект-землянина ИВО ИВАС Тела реальности высшей суперизвечности ИВО ИВАС Кут Хуми","208. Ипостась ИВО Управления Тела реальности высшей суперизвечности Отец-человек-субъект-землянина ИВО ИВАС Тела реальности высшей суперизвечности ИВО ИВАС Кут Хуми"]
[null,null,null,"Аскольд","Аскольда","207. Ипостась ИВО Управления Тела реальности высшей всеизвечности Отец-человек-субъект-землянина ИВО ИВАС Тела реальности высшей всеизвечности ИВО ИВАС Кут Хуми","207. Ипостась ИВО Управления Тела реальности высшей всеизвечности Отец-человек-субъект-землянина ИВО ИВАС Тела реальности высшей всеизвечности ИВО ИВАС Кут Хуми","207. Ипостась ИВО Управления Тела реальности высшей всеизвечности Отец-человек-субъект-землянина ИВО ИВАС Тела реальности высшей всеизвечности ИВО ИВАС Кут Хуми","207. Ипостась ИВО Управления Тела реальности высшей всеизвечности Отец-человек-субъект-землянина ИВО ИВАС Тела реальности высшей всеизвечности ИВО ИВАС Кут Хуми"]
[null,null,null,"Бронислав","Бронислава","206. Ипостась ИВО Управления Тела реальности высшей октоизвечности Отец-человек-субъект-землянина ИВО ИВАС Тела реальности высшей октоизвечности ИВО ИВАС Кут Хуми","206. Ипостась ИВО Управления Тела реальности высшей октоизвечности Отец-человек-субъект-землянина ИВО ИВАС Тела реальности высшей октоизвечности ИВО ИВАС Кут Хуми","206. Ипостась ИВО Управления Тела реальности высшей октоизвечности Отец-человек-субъект-землянина ИВО ИВАС Тела реальности высшей октоизвечности ИВО ИВАС Кут Хуми","206. Ипостась ИВО Управления Тела реальности высшей октоизвечности Отец-человек-субъект-землянина ИВО ИВАС Тела реальности высшей октоизвечности ИВО ИВАС Кут Хуми"]
[null,null,null,"Христиан","Христиана","205. Ипостась ИВО Управления Тела реальности высшей метаизвечности Отец-человек-субъект-землянина ИВО ИВАС Тела реальности высшей метаизвечности ИВО ИВАС Кут Хуми","205. Ипостась ИВО Управления Тела реальности высшей метаизвечности Отец-человек-субъект-землянина ИВО ИВАС Тела реальности высшей метаизвечности ИВО ИВАС Кут Хуми","205. Ипостась ИВО Управления Тела реальности высшей метаизвечности Отец-человек-субъект-землянина ИВО ИВАС Тела реальности высшей метаизвечности ИВО ИВАС Кут Хуми","205. Ипостась ИВО Управления Тела реальности высшей метаизвечности Отец-человек-субъект-землянина ИВО ИВАС Тела реальности высшей метаизвечности ИВО ИВАС Кут Хуми"]
[null,null,null,"Аслав","Аслава","204. Ипостась ИВО Управления Тела реальности высшей извечности Отец-человек-субъект-землянина ИВО ИВАС Тела реальности высшей извечности ИВО ИВАС Кут Хуми","204. Ипостась ИВО Управления Тела реальности высшей извечности Отец-человек-субъект-землянина ИВО ИВАС Тела реальности высшей извечности ИВО ИВАС Кут Хуми","204. Ипостась ИВО Управления Тела реальности высшей извечности Отец-человек-субъект-землянина ИВО ИВАС Тела реальности высшей извечности ИВО ИВАС Кут Хуми","204. Ипостась ИВО Управления Тела реальности высшей извечности Отец-человек-субъект-землянина ИВО ИВАС Тела реальности высшей извечности ИВО ИВАС Кут Хуми"]
[null,null,null,"Стаслав","Стаслава","203. Ипостась ИВО Управления Тела реальности высшей всеединности Отец-человек-субъект-землянина ИВО ИВАС Тела реальности высшей всеединности ИВО ИВАС Кут Хуми","203. Ипостась ИВО Управления Тела реальности высшей всеединности Отец-человек-субъект-землянина ИВО ИВАС Тела реальности высшей всеединности ИВО ИВАС Кут Хуми","203. Ипостась ИВО Управления Тела реальности высшей всеединности Отец-человек-субъект-землянина ИВО ИВАС Тела реальности высшей всеединности ИВО ИВАС Кут Хуми","203. Ипостась ИВО Управления Тела реальности высшей всеединности Отец-человек-субъект-землянина ИВО ИВАС Тела реальности высшей всеединности ИВО ИВАС Кут Хуми"]
[null,null,null,"Гюстав","Гюстава","202. Ипостась ИВО Управления Тела реальности высшей октавности Отец-человек-субъект-землянина ИВО ИВАС Тела реальности высшей октавности ИВО ИВАС Кут Хуми","202. Ипостась ИВО Управления Тела реальности высшей октавности Отец-человек-субъект-землянина ИВО ИВАС Тела реальности высшей октавности ИВО ИВАС Кут Хуми","202. Ипостась ИВО Управления Тела реальности высшей октавности Отец-человек-субъект-землянина ИВО ИВАС Тела реальности высшей октавности ИВО ИВАС Кут Хуми","202. Ипостась ИВО Управления Тела реальности высшей октавности Отец-человек-субъект-землянина ИВО ИВАС Тела реальности высшей октавности ИВО ИВАС Кут Хуми"]
[null,null,null,"Евсей","Евсея","201. Ипостась ИВО Управления Тела реальности высшей метагалактичности Отец-человек-субъект-землянина ИВО ИВАС Тела реальности высшей метагалактичности ИВО ИВАС Кут Хуми","201. Ипостась ИВО Управления Тела реальности высшей метагалактичности Отец-человек-субъект-землянина ИВО ИВАС Тела реальности высшей метагалактичности ИВО ИВАС Кут Хуми","201. Ипостась ИВО Управления Тела реальности высшей метагалактичности Отец-человек-субъект-землянина ИВО ИВАС Тела реальности высшей метагалактичности ИВО ИВАС Кут Хуми","201. Ипостась ИВО Управления Тела реальности высшей метагалактичности Отец-человек-субъект-землянина ИВО ИВАС Тела реальности высшей метагалактичности ИВО ИВАС Кут Хуми"]
[null,null,null,"Прохор","Прохора","200. Ипостась ИВО Управления Тела реальности суперизвечности Отец-человек-субъект-землянина ИВО ИВАС Тела реальности суперизвечности ИВО ИВАС Кут Хуми","200. Ипостась ИВО Управления Тела реальности суперизвечности Отец-человек-субъект-землянина ИВО ИВАС Тела реальности суперизвечности ИВО ИВАС Кут Хуми","200. Ипостась ИВО Управления Тела реальности суперизвечности Отец-человек-субъект-землянина ИВО ИВАС Тела реальности суперизвечности ИВО ИВАС Кут Хуми","200. Ипостась ИВО Управления Тела реальности суперизвечности Отец-человек-субъект-землянина ИВО ИВАС Тела реальности суперизвечности ИВО ИВАС Кут Хуми"]
[null,null,null,"Вальтер","Вальтера","199. Ипостась ИВО Управления Тела реальности всеизвечности Отец-человек-субъект-землянина ИВО ИВАС Тела реальности всеизвечности ИВО ИВАС Кут Хуми","199. Ипостась ИВО Управления Тела реальности всеизвечности Отец-человек-субъект-землянина ИВО ИВАС Тела реальности всеизвечности ИВО ИВАС Кут Хуми","199. Ипостась ИВО Управления Тела реальности всеизвечности Отец-человек-субъект-землянина ИВО ИВАС Тела реальности всеизвечности ИВО ИВАС Кут Хуми","199. Ипостась ИВО Управления Тела реальности всеизвечности Отец-человек-субъект-землянина ИВО ИВАС Тела реальности всеизвечности ИВО ИВАС Кут Хуми"]
[null,null,null,"Эраст","Эраста","198. Ипостась ИВО Управления Тела реальности октоизвечности Отец-человек-субъект-землянина ИВО ИВАС Тела реальности октоизвечности ИВО ИВАС Кут Хуми","198. Ипостась ИВО Управления Тела реальности октоизвечности Отец-человек-субъект-землянина ИВО ИВАС Тела реальности октоизвечности ИВО ИВАС Кут Хуми","198. Ипостась ИВО Управления Тела реальности октоизвечности Отец-человек-субъект-землянина ИВО ИВАС Тела реальности октоизвечности ИВО ИВАС Кут Хуми","198. Ипостась ИВО Управления Тела реальности октоизвечности Отец-человек-субъект-землянина ИВО ИВАС Тела реальности октоизвечности ИВО ИВАС Кут Хуми"]
[null,null,null,"Харитон","Харитона","197. Ипостась ИВО Управления Тела реальности метаизвечности Отец-человек-субъект-землянина ИВО ИВАС Тела реальности метаизвечности ИВО ИВАС Кут Хуми","197. Ипостась ИВО Управления Тела реальности метаизвечности Отец-человек-субъект-землянина ИВО ИВАС Тела реальности метаизвечности ИВО ИВАС Кут Хуми","197. Ипостась ИВО Управления Тела реальности метаизвечности Отец-человек-субъект-землянина ИВО ИВАС Тела реальности метаизвечности ИВО ИВАС Кут Хуми","197. Ипостась ИВО Управления Тела реальности метаизвечности Отец-человек-субъект-землянина ИВО ИВАС Тела реальности метаизвечности ИВО ИВАС Кут Хуми"]
[null,null,null,"Любомир","Любомира","196. Ипостась ИВО Управления Тела реальности извечности Отец-человек-субъект-землянина ИВО ИВАС Тела реальности извечности ИВО ИВАС Кут Хуми","196. Ипостась ИВО Управления Тела реальности извечности Отец-человек-субъект-землянина ИВО ИВАС Тела реальности извечности ИВО ИВАС Кут Хуми","196. Ипостась ИВО Управления Тела реальности извечности Отец-человек-субъект-землянина ИВО ИВАС Тела реальности извечности ИВО ИВАС Кут Хуми","196. Ипостась ИВО Управления Тела реальности извечности Отец-человек-субъект-землянина ИВО ИВАС Тела реальности извечности ИВО ИВАС Кут Хуми"]
[null,null,null,null,"ИВ Аватара-Ипостаси ИВ Отца Си-ИВДИВО Октавы Октав ИВО","195. Ипостась ИВО Управления Тела реальности всеединности Отец-человек-субъект-землянина ИВО ИВАС Тела реальности всеединности ИВО ИВАС Кут Хуми","195. Ипостась ИВО Управления Тела реальности всеединности Отец-человек-субъект-землянина ИВО ИВАС Тела реальности всеединности ИВО ИВАС Кут Хуми","195. Ипостась ИВО Управления Тела реальности всеединности Отец-человек-субъект-землянина ИВО ИВАС Тела реальности всеединности ИВО ИВАС Кут Хуми","195. Ипостась ИВО Управления Тела реальности всеединности Отец-человек-субъект-землянина ИВО ИВАС Тела реальности всеединности ИВО ИВАС Кут Хуми"]
[null,null,null,null,"ИВ Аватара-Ипостаси ИВ Аватара Ля-ИВДИВО Октавы Октав ИВО","194. Ипостась ИВО Управления Тела реальности октавности Отец-человек-субъект-землянина ИВО ИВАС Тела реальности октавности ИВО ИВАС Кут Хуми","194. Ипостась ИВО Управления Тела реальности октавности Отец-человек-субъект-землянина ИВО ИВАС Тела реальности октавности ИВО ИВАС Кут Хуми","194. Ипостась ИВО Управления Тела реальности октавности Отец-человек-субъект-землянина ИВО ИВАС Тела реальности октавности ИВО ИВАС Кут Хуми","194. Ипостась ИВО Управления Тела реальности октавности Отец-человек-субъект-землянина ИВО ИВАС Тела реальности октавности ИВО ИВАС Кут Хуми"]
[null,null,null,null,"ИВ Аватара-Ипостаси ИВ Владыки Соль-ИВДИВО Октавы Октав ИВО","193. Ипостась ИВО Управления Тела реальности метагалактичности Отец-человек-субъект-землянина ИВО ИВАС Тела реальности метагалактичности ИВО ИВАС Кут Хуми","193. Ипостась ИВО Управления Тела реальности метагалактичности Отец-человек-субъект-землянина ИВО ИВАС Тела реальности метагалактичности ИВО ИВАС Кут Хуми","193. Ипостась ИВО Управления Тела реальности метагалактичности Отец-человек-субъект-землянина ИВО ИВАС Тела реальности метагалактичности ИВО ИВАС Кут Хуми","193. Ипостась ИВО Управления Тела реальности метагалактичности Отец-человек-субъект-землянина ИВО ИВАС Тела реальности метагалактичности ИВО ИВАС Кут Хуми"]
[null,null,null,null,"ИВ Аватара-Ипостаси ИВ Учителя Фа-ИВДИВО Октавы Октав ИВО"]
[null,null,null,null,"ИВ Аватара-Ипостаси ИВ Ипостаси Ми-ИВДИВО Октавы Октав ИВО",{"$f":"H276","v":"192. Служащий ИВО Отдела Синтеза ИВО ИВАС Фаинь ИВО ИВАС Кут Хуми"},{"$f":"I276","v":"192. Служащая ИВО Отдела Синтеза ИВО ИВАС Фаинь ИВО ИВАС Кут Хуми"},"192. Служащий ИВО Отдела Синтеза ИВО ИВАС Фаинь ИВО ИВАС Кут Хуми","192. Служащая ИВО Отдела Синтеза ИВО ИВАС Фаинь ИВО ИВАС Кут Хуми"]
[null,null,null,null,"ИВ Аватара-Ипостаси ИВ Служащего Ре-ИВДИВО Октавы Октав ИВО",{"$f":"H277","v":"191. Служащий ИВО Отдела Воли ИВО ИВАС Славии ИВО ИВАС Кут Хуми"},{"$f":"I277","v":"191. Служащая ИВО Отдела Воли ИВО ИВАС Славии ИВО ИВАС Кут Хуми"},"191. Служащий ИВО Отдела Воли ИВО ИВАС Славии ИВО ИВАС Кут Хуми","191. Служащая ИВО Отдела Воли ИВО ИВАС Славии ИВО ИВАС Кут Хуми"]
[null,null,null,null,"ИВ Аватара-Ипостаси ИВ Посвящённого До-ИВДИВО Октавы Фа ИВО",{"$f":"H278","v":"190. Служащий ИВО Отдела Мудрости ИВО ИВАС Свет ИВО ИВАС Кут Хуми"},"190. Служащая ИВО Отдела Мудрости ИВО ИВАС Свет ИВО ИВАС Кут Хуми","190. Служащий ИВО Отдела Мудрости ИВО ИВАС Свет ИВО ИВАС Кут Хуми","190. Служащая ИВО Отдела Мудрости ИВО ИВАС Свет ИВО ИВАС Кут Хуми"]
[null,null,null,null,"ИВ Аватара-Ипостаси ИВ Человека Си-ИВДИВО Октавы Фа ИВО","189. Служащий ИВО Отдела Любви ИВО ИВАС Марины ИВО ИВАС Кут Хуми","189. Служащая ИВО Отдела Любви ИВО ИВАС Марины ИВО ИВАС Кут Хуми","189. Служащий ИВО Отдела Любви ИВО ИВАС Марины ИВО ИВАС Кут Хуми","189. Служащая ИВО Отдела Любви ИВО ИВАС Марины ИВО ИВАС Кут Хуми"]
[null,null,null,null,"ИВ Аватара-Ипостаси ИВ Человека-Отца Ля-ИВДИВО Октавы Фа ИВО","188. Служащий ИВО Отдела Творения ИВО ИВАС Альбины ИВО ИВАС Кут Хуми","188. Служащая ИВО Отдела Творения ИВО ИВАС Альбины ИВО ИВАС Кут Хуми","188. Служащий ИВО Отдела Творения ИВО ИВАС Альбины ИВО ИВАС Кут Хуми","188. Служащая ИВО Отдела Творения ИВО ИВАС Альбины ИВО ИВАС Кут Хуми"]
[null,null,null,null,"ИВ Аватара-Ипостаси ИВ Человека-Аватара Соль-ИВДИВО Октавы Фа ИВО","187. Служащий ИВО Отдела Созидания ИВО ИВАС Вероники ИВО ИВАС Кут Хуми","187. Служащая ИВО Отдела Созидания ИВО ИВАС Вероники ИВО ИВАС Кут Хуми","187. Служащий ИВО Отдела Созидания ИВО ИВАС Вероники ИВО ИВАС Кут Хуми","187. Служащая ИВО Отдела Созидания ИВО ИВАС Вероники ИВО ИВАС Кут Хуми"]
[null,null,null,null,"ИВ Аватара-Ипостаси ИВ Человека-Владыки Фа-ИВДИВО Октавы Фа ИВО","186. Служащий ИВО Отдела Репликации ИВО ИВАС Сианы ИВО ИВАС Кут Хуми","186. Служащая ИВО Отдела Репликации ИВО ИВАС Сианы ИВО ИВАС Кут Хуми","186. Служащий ИВО Отдела Репликации ИВО ИВАС Сианы ИВО ИВАС Кут Хуми","186. Служащая ИВО Отдела Репликации ИВО ИВАС Сианы ИВО ИВАС Кут Хуми"]
[null,null,null,null,"ИВ Аватара-Ипостаси ИВ Человека-Учителя Ми-ИВДИВО Октавы Фа ИВО","185. Служащий ИВО Отдела Жизни ИВО ИВАС Оны ИВО ИВАС Кут Хуми","185. Служащая ИВО Отдела Жизни ИВО ИВАС Оны ИВО ИВАС Кут Хуми","185. Служащий ИВО Отдела Жизни ИВО ИВАС Оны ИВО ИВАС Кут Хуми","185. Служащая ИВО Отдела Жизни ИВО ИВАС Оны ИВО ИВАС Кут Хуми"]
[null,null,null,null,"ИВ Аватара-Ипостаси ИВ Человека-Ипостаси Ре-ИВДИВО Октавы Фа ИВО","184. Служащий ИВО Отдела Воскрешения ИВО ИВАС Стефаны ИВО ИВАС Кут Хуми","184. Служащая ИВО Отдела Воскрешения ИВО ИВАС Стефаны ИВО ИВАС Кут Хуми","184. Служащий ИВО Отдела Воскрешения ИВО ИВАС Стефаны ИВО ИВАС Кут Хуми","184. Служащая ИВО Отдела Воскрешения ИВО ИВАС Стефаны ИВО ИВАС Кут Хуми"]
[null,null,null,null,"ИВ Аватара-Ипостаси ИВ Человека-Служащего До-ИВДИВО Октавы Бытия ИВО","183. Служащий ИВО Отдела Я-Есмь ИВО ИВАС Святы ИВО ИВАС Кут Хуми","183. Служащая ИВО Отдела Я-Есмь ИВО ИВАС Святы ИВО ИВАС Кут Хуми","183. Служащий ИВО Отдела Я-Есмь ИВО ИВАС Святы ИВО ИВАС Кут Хуми","183. Служащая ИВО Отдела Я-Есмь ИВО ИВАС Святы ИВО ИВАС Кут Хуми"]
[null,null,null,null,"ИВ Аватара-Ипостаси ИВ Человека-Посвящённого Си-ИВДИВО Октавы Бытия ИВО","182. Служащий ИВО Отдела Генезиса ИВО ИВАС Баяны ИВО ИВАС Кут Хуми","182. Служащая ИВО Отдела Генезиса ИВО ИВАС Баяны ИВО ИВАС Кут Хуми","182. Служащий ИВО Отдела Генезиса ИВО ИВАС Баяны ИВО ИВАС Кут Хуми","182. Служащая ИВО Отдела Генезиса ИВО ИВАС Баяны ИВО ИВАС Кут Хуми"]
[null,null,null,null,"ИВ Аватара-Ипостаси ИВ Человека Ля-ИВДИВО Октавы Бытия ИВО","181. Служащий ИВО Отдела Человечности ИВО ИВАС Екатерины ИВО ИВАС Кут Хуми","181. Служащая ИВО Отдела Человечности ИВО ИВАС Екатерины ИВО ИВАС Кут Хуми","181. Служащий ИВО Отдела Человечности ИВО ИВАС Екатерины ИВО ИВАС Кут Хуми","181. Служащая ИВО Отдела Человечности ИВО ИВАС Екатерины ИВО ИВАС Кут Хуми"]
[null,null,null,null,"ИВ Аватара-Ипостаси ИВ Отца Соль-ИВДИВО Октавы Бытия ИВО","180. Служащий ИВО Отдела Служения ИВО ИВАС Сивиллы ИВО ИВАС Кут Хуми","180. Служащая ИВО Отдела Служения ИВО ИВАС Сивиллы ИВО ИВАС Кут Хуми","180. Служащий ИВО Отдела Служения ИВО ИВАС Сивиллы ИВО ИВАС Кут Хуми","180. Служащая ИВО Отдела Служения ИВО ИВАС Сивиллы ИВО ИВАС Кут Хуми"]
[null,null,null,null,"ИВ Аватара-Ипостаси ИВ Аватара Фа-ИВДИВО Октавы Бытия ИВО","179. Служащий ИВО Отдела Вершения ИВО ИВАС Тамилы ИВО ИВАС Кут Хуми","179. Служащая ИВО Отдела Вершения ИВО ИВАС Тамилы ИВО ИВАС Кут Хуми","179. Служащий ИВО Отдела Вершения ИВО ИВАС Тамилы ИВО ИВАС Кут Хуми","179. Служащая ИВО Отдела Вершения ИВО ИВАС Тамилы ИВО ИВАС Кут Хуми"]
[null,null,null,null,"ИВ Аватара-Ипостаси ИВ Владыки Ми-ИВДИВО Октавы Бытия ИВО","178. Служащий ИВО Отдела Практики ИВО ИВАС Ники ИВО ИВАС Кут Хуми","178. Служащая ИВО Отдела Практики ИВО ИВАС Ники ИВО ИВАС Кут Хуми","178. Служащий ИВО Отдела Практики ИВО ИВАС Ники ИВО ИВАС Кут Хуми","178. Служащая ИВО Отдела Практики ИВО ИВАС Ники ИВО ИВАС Кут Хуми"]
[null,null,null,null,"ИВ Аватара-Ипостаси ИВ Учителя Ре-ИВДИВО Октавы Бытия ИВО","177. Служащий ИВО Отдела Могущества ИВО ИВАС Велетте ИВО ИВАС Кут Хуми","177. Служащая ИВО Отдела Могущества ИВО ИВАС Велетте ИВО ИВАС Кут Хуми","177. Служащий ИВО Отдела Могущества ИВО ИВАС Велетте ИВО ИВАС Кут Хуми","177. Служащая ИВО Отдела Могущества ИВО ИВАС Велетте ИВО ИВАС Кут Хуми"]
[null,null,null,null,"ИВ Аватара-Ипостаси ИВ Ипостаси До-ИВДИВО Октавы ИВО","176. Служащий ИВО Отдела Ивдивности ИВО ИВАС Эмилии ИВО ИВАС Кут Хуми","176. Служащая ИВО Отдела Ивдивности ИВО ИВАС Эмилии ИВО ИВАС Кут Хуми","176. Служащий ИВО Отдела Ивдивности ИВО ИВАС Эмилии ИВО ИВАС Кут Хуми","176. Служащая ИВО Отдела Ивдивности ИВО ИВАС Эмилии ИВО ИВАС Кут Хуми"]
[null,null,null,null,"ИВ Аватара-Ипостаси ИВ Служащего Си-ИВДИВО Октавы ИВО","175. Служащий ИВО Отдела Сверхпассионарности ИВО ИВАС Елены ИВО ИВАС Кут Хуми","175. Служащая ИВО Отдела Сверхпассионарности ИВО ИВАС Елены ИВО ИВАС Кут Хуми","175. Служащий ИВО Отдела Сверхпассионарности ИВО ИВАС Елены ИВО ИВАС Кут Хуми","175. Служащая ИВО Отдела Сверхпассионарности ИВО ИВАС Елены ИВО ИВАС Кут Хуми"]
[null,null,null,null,"ИВ Аватара-Ипостаси ИВ Посвящённого Ля-ИВДИВО Октавы ИВО","174. Служащий ИВО Отдела Истинности ИВО ИВАС Валерии ИВО ИВАС Кут Хуми","174. Служащая ИВО Отдела Истинности ИВО ИВАС Валерии ИВО ИВАС Кут Хуми","174. Служащий ИВО Отдела Истинности ИВО ИВАС Валерии ИВО ИВАС Кут Хуми","174. Служащая ИВО Отдела Истинности ИВО ИВАС Валерии ИВО ИВАС Кут Хуми"]
[null,null,null,null,"ИВ Аватара-Ипостаси ИВ Человека Соль-ИВДИВО Октавы ИВО","173. Служащий ИВО Отдела Окскости ИВО ИВАС Олеси ИВО ИВАС Кут Хуми","173. Служащая ИВО Отдела Окскости ИВО ИВАС Олеси ИВО ИВАС Кут Хуми","173. Служащий ИВО Отдела Окскости ИВО ИВАС Олеси ИВО ИВАС Кут Хуми","173. Служащая ИВО Отдела Окскости ИВО ИВАС Олеси ИВО ИВАС Кут Хуми"]
[null,null,null,null,"ИВ Аватара-Ипостаси ИВ Человека-Отца Фа-ИВДИВО Октавы ИВО","172. Служащий ИВО Отдела Красоты ИВО ИВАС Антуанэтты ИВО ИВАС Кут Хуми","172. Служащая ИВО Отдела Красоты ИВО ИВАС Антуанэтты ИВО ИВАС Кут Хуми","172. Служащий ИВО Отдела Красоты ИВО ИВАС Антуанэтты ИВО ИВАС Кут Хуми","172. Служащая ИВО Отдела Красоты ИВО ИВАС Антуанэтты ИВО ИВАС Кут Хуми"]
[null,null,null,null,"ИВ Аватара-Ипостаси ИВ Человека-Аватара Ми-ИВДИВО Октавы ИВО","171. Служащий ИВО Отдела Константы ИВО ИВАС Юлианы ИВО ИВАС Кут Хуми","171. Служащая ИВО Отдела Константы ИВО ИВАС Юлианы ИВО ИВАС Кут Хуми","171. Служащий ИВО Отдела Константы ИВО ИВАС Юлианы ИВО ИВАС Кут Хуми","171. Служащая ИВО Отдела Константы ИВО ИВАС Юлианы ИВО ИВАС Кут Хуми"]
[null,null,null,null,"ИВ Аватара-Ипостаси ИВ Человека-Владыки Ре-ИВДИВО Октавы ИВО","170. Служащий ИВО Отдела Знания ИВО ИВАС Синтии ИВО ИВАС Кут Хуми","170. Служащая ИВО Отдела Знания ИВО ИВАС Синтии ИВО ИВАС Кут Хуми","170. Служащий ИВО Отдела Знания ИВО ИВАС Синтии ИВО ИВАС Кут Хуми","170. Служащая ИВО Отдела Знания ИВО ИВАС Синтии ИВО ИВАС Кут Хуми"]
[null,null,null,null,"ИВ Аватара-Ипостаси ИВ Человека-Учителя Октавы ИВО","169. Служащий ИВО Отдела Меры ИВО ИВАС Виктории ИВО ИВАС Кут Хуми","169. Служащая ИВО Отдела Меры ИВО ИВАС Виктории ИВО ИВАС Кут Хуми","169. Служащий ИВО Отдела Меры ИВО ИВАС Виктории ИВО ИВАС Кут Хуми","169. Служащая ИВО Отдела Меры ИВО ИВАС Виктории ИВО ИВАС Кут Хуми"]
[null,null,null,null,"ИВ Аватара-Ипостаси ИВ Человека-Ипостаси Истинной Октавы ИВО","168. Служащий ИВО Отдела Стандарта ИВО ИВАС Дариды ИВО ИВАС Кут Хуми","168. Служащая ИВО Отдела Стандарта ИВО ИВАС Дариды ИВО ИВАС Кут Хуми","168. Служащий ИВО Отдела Стандарта ИВО ИВАС Дариды ИВО ИВАС Кут Хуми","168. Служащая ИВО Отдела Стандарта ИВО ИВАС Дариды ИВО ИВАС Кут Хуми"]
[null,null,null,null,"ИВ Аватара-Ипостаси ИВ Человека-Служащего Высокой Цельной Октавы ИВО","167. Служащий ИВО Отдела Закона ИВО ИВАС Алины ИВО ИВАС Кут Хуми","167. Служащая ИВО Отдела Закона ИВО ИВАС Алины ИВО ИВАС Кут Хуми","167. Служащий ИВО Отдела Закона ИВО ИВАС Алины ИВО ИВАС Кут Хуми","167. Служащая ИВО Отдела Закона ИВО ИВАС Алины ИВО ИВАС Кут Хуми"]
[null,null,null,null,"ИВ Аватара-Ипостаси ИВ Человека-Посвящённого Изначально Вышестоящей Октавы ИВО","166. Служащий ИВО Отдела Императива ИВО ИВАС Софьи ИВО ИВАС Кут Хуми","166. Служащая ИВО Отдела Императива ИВО ИВАС Софьи ИВО ИВАС Кут Хуми","166. Служащий ИВО Отдела Императива ИВО ИВАС Софьи ИВО ИВАС Кут Хуми","166. Служащая ИВО Отдела Императива ИВО ИВАС Софьи ИВО ИВАС Кут Хуми"]
[null,null,null,null,"ИВ Аватара-Ипостаси ИВ Человека Планеты Земля ИВО","165. Служащий ИВО Отдела Аксиомы ИВО ИВАС Агафьи ИВО ИВАС Кут Хуми","165. Служащая ИВО Отдела Аксиомы ИВО ИВАС Агафьи ИВО ИВАС Кут Хуми","165. Служащий ИВО Отдела Аксиомы ИВО ИВАС Агафьи ИВО ИВАС Кут Хуми","165. Служащая ИВО Отдела Аксиомы ИВО ИВАС Агафьи ИВО ИВАС Кут Хуми"]
[null,null,null,null,"ИВ Аватара-Ипостаси ИВ Отца Си-ИВДИВО Октавы Метагалактики ИВО","164. Служащий ИВО Отдела Начала ИВО ИВАС Дарьи ИВО ИВАС Кут Хуми","164. Служащая ИВО Отдела Начала ИВО ИВАС Дарьи ИВО ИВАС Кут Хуми","164. Служащий ИВО Отдела Начала ИВО ИВАС Дарьи ИВО ИВАС Кут Хуми","164. Служащая ИВО Отдела Начала ИВО ИВАС Дарьи ИВО ИВАС Кут Хуми"]
[null,null,null,null,"ИВ Аватара-Ипостаси ИВ Аватара Ля-ИВДИВО Октавы Метагалактики ИВО","163. Служащий ИВО Отдела Принципа ИВО ИВАС Иланы ИВО ИВАС Кут Хуми","163. Служащая ИВО Отдела Принципа ИВО ИВАС Иланы ИВО ИВАС Кут Хуми","163. Служащий ИВО Отдела Принципа ИВО ИВАС Иланы ИВО ИВАС Кут Хуми","163. Служащая ИВО Отдела Принципа ИВО ИВАС Иланы ИВО ИВАС Кут Хуми"]
[null,null,null,null,"ИВ Аватара-Ипостаси ИВ Владыки Соль-ИВДИВО Октавы Метагалактики ИВО","162. Служащий ИВО Отдела Метода ИВО ИВАС Яны ИВО ИВАС Кут Хуми","162. Служащая ИВО Отдела Метода ИВО ИВАС Яны ИВО ИВАС Кут Хуми","162. Служащий ИВО Отдела Метода ИВО ИВАС Яны ИВО ИВАС Кут Хуми","162. Служащая ИВО Отдела Метода ИВО ИВАС Яны ИВО ИВАС Кут Хуми"]
[null,null,null,null,"ИВ Аватара-Ипостаси ИВ Учителя Фа-ИВДИВО Октавы Метагалактики ИВО","161. Служащий ИВО Отдела Правила ИВО ИВАС Давлаты ИВО ИВАС Кут Хуми","161. Служащая ИВО Отдела Правила ИВО ИВАС Давлаты ИВО ИВАС Кут Хуми","161. Служащий ИВО Отдела Правила ИВО ИВАС Давлаты ИВО ИВАС Кут Хуми","161. Служащая ИВО Отдела Правила ИВО ИВАС Давлаты ИВО ИВАС Кут Хуми"]
[null,null,null,null,"ИВ Аватара-Ипостаси ИВ Ипостаси Ми-ИВДИВО Октавы Метагалактики ИВО","160. Служащий ИВО Отдела Огня ИВО ИВАС Ирины ИВО ИВАС Кут Хуми","160. Служащая ИВО Отдела Огня ИВО ИВАС Ирины ИВО ИВАС Кут Хуми","160. Служащий ИВО Отдела Огня ИВО ИВАС Ирины ИВО ИВАС Кут Хуми","160. Служащая ИВО Отдела Огня ИВО ИВАС Ирины ИВО ИВАС Кут Хуми"]
[null,null,null,null,"ИВ Аватара-Ипостаси ИВ Служащего Ре-ИВДИВО Октавы Метагалактики ИВО","159. Служащий ИВО Отдела Духа ИВО ИВАС Лины ИВО ИВАС Кут Хуми","159. Служащая ИВО Отдела Духа ИВО ИВАС Лины ИВО ИВАС Кут Хуми","159. Служащий ИВО Отдела Духа ИВО ИВАС Лины ИВО ИВАС Кут Хуми","159. Служащая ИВО Отдела Духа ИВО ИВАС Лины ИВО ИВАС Кут Хуми"]
[null,null,null,null,"ИВ Аватара-Ипостаси ИВ Посвящённого До-ИВДИВО Метагалактики Фа ИВО","158. Служащий ИВО Отдела Света ИВО ИВАС Анастасии ИВО ИВАС Кут Хуми","158. Служащая ИВО Отдела Света ИВО ИВАС Анастасии ИВО ИВАС Кут Хуми","158. Служащий ИВО Отдела Света ИВО ИВАС Анастасии ИВО ИВАС Кут Хуми","158. Служащая ИВО Отдела Света ИВО ИВАС Анастасии ИВО ИВАС Кут Хуми"]
[null,null,null,null,"ИВ Аватара-Ипостаси ИВ Человека ИВО Си-ИВДИВО Метагалактики Фа ИВО","157. Служащий ИВО Отдела Энергии ИВО ИВАС Омы ИВО ИВАС Кут Хуми","157. Служащая ИВО Отдела Энергии ИВО ИВАС Омы ИВО ИВАС Кут Хуми","157. Служащий ИВО Отдела Энергии ИВО ИВАС Омы ИВО ИВАС Кут Хуми","157. Служащая ИВО Отдела Энергии ИВО ИВАС Омы ИВО ИВАС Кут Хуми"]
[null,null,null,null,"ИВ Аватара-Ипостаси ИВ Человека-Отца Ля-ИВДИВО Метагалактики Фа ИВО","156. Служащий ИВО Отдела Субъядерности ИВО ИВАС Сольвейг ИВО ИВАС Кут Хуми","156. Служащая ИВО Отдела Субъядерности ИВО ИВАС Сольвейг ИВО ИВАС Кут Хуми","156. Служащий ИВО Отдела Субъядерности ИВО ИВАС Сольвейг ИВО ИВАС Кут Хуми","156. Служащая ИВО Отдела Субъядерности ИВО ИВАС Сольвейг ИВО ИВАС Кут Хуми"]
[null,null,null,null,"ИВ Аватара-Ипостаси ИВ Человека-Аватара Соль-ИВДИВО Метагалактики Фа ИВО","155. Служащий ИВО Отдела Формы ИВО ИВАС Октавии ИВО ИВАС Кут Хуми","155. Служащая ИВО Отдела Формы ИВО ИВАС Октавии ИВО ИВАС Кут Хуми","155. Служащий ИВО Отдела Формы ИВО ИВАС Октавии ИВО ИВАС Кут Хуми","155. Служащая ИВО Отдела Формы ИВО ИВАС Октавии ИВО ИВАС Кут Хуми"]
[null,null,null,null,"ИВ Аватара-Ипостаси ИВ Человека-Владыки Фа-ИВДИВО Метагалактики Фа ИВО","154. Служащий ИВО Отдела Содержания ИВО ИВАС Кристины ИВО ИВАС Кут Хуми","154. Служащая ИВО Отдела Содержания ИВО ИВАС Кристины ИВО ИВАС Кут Хуми","154. Служащий ИВО Отдела Содержания ИВО ИВАС Кристины ИВО ИВАС Кут Хуми","154. Служащая ИВО Отдела Содержания ИВО ИВАС Кристины ИВО ИВАС Кут Хуми"]
[null,null,null,null,"ИВ Аватара-Ипостаси ИВ Человека-Учителя Ми-ИВДИВО Метагалактики Фа ИВО","153. Служащий ИВО Отдела Поля ИВО ИВАС Версавии ИВО ИВАС Кут Хуми","153. Служащая ИВО Отдела Поля ИВО ИВАС Версавии ИВО ИВАС Кут Хуми","153. Служащий ИВО Отдела Поля ИВО ИВАС Версавии ИВО ИВАС Кут Хуми","153. Служащая ИВО Отдела Поля ИВО ИВАС Версавии ИВО ИВАС Кут Хуми"]
[null,null,null,null,"ИВ Аватара-Ипостаси ИВ Человека-Ипостаси Ре-ИВДИВО Метагалактики Фа ИВО","152. Служащий ИВО Отдела Времени ИВО ИВАС Ксении ИВО ИВАС Кут Хуми","152. Служащая ИВО Отдела Времени ИВО ИВАС Ксении ИВО ИВАС Кут Хуми","152. Служащий ИВО Отдела Времени ИВО ИВАС Ксении ИВО ИВАС Кут Хуми","152. Служащая ИВО Отдела Времени ИВО ИВАС Ксении ИВО ИВАС Кут Хуми"]
[null,null,null,null,"ИВ Аватара-Ипостаси ИВ Человека-Служащего До-ИВДИВО Метагалактики Бытия ИВО","151. Служащий ИВО Отдела Пространства ИВО ИВАС Эммы ИВО ИВАС Кут Хуми","151. Служащая ИВО Отдела Пространства ИВО ИВАС Эммы ИВО ИВАС Кут Хуми","151. Служащий ИВО Отдела Пространства ИВО ИВАС Эммы ИВО ИВАС Кут Хуми","151. Служащая ИВО Отдела Пространства ИВО ИВАС Эммы ИВО ИВАС Кут Хуми"]
[null,null,null,null,"ИВ Аватара-Ипостаси ИВ Человека-Посвящённого Си-ИВДИВО Метагалактики Бытия ИВО","150. Служащий ИВО Отдела Скорости ИВО ИВАС Стафии ИВО ИВАС Кут Хуми","150. Служащая ИВО Отдела Скорости ИВО ИВАС Стафии ИВО ИВАС Кут Хуми","150. Служащий ИВО Отдела Скорости ИВО ИВАС Стафии ИВО ИВАС Кут Хуми","150. Служащая ИВО Отдела Скорости ИВО ИВАС Стафии ИВО ИВАС Кут Хуми"]
[null,null,null,null,"ИВ Аватара-Ипостаси ИВ Человека Ля-ИВДИВО Метагалактики Бытия ИВО","149. Служащий ИВО Отдела Мерности ИВО ИВАС Оксаны ИВО ИВАС Кут Хуми","149. Служащая ИВО Отдела Мерности ИВО ИВАС Оксаны ИВО ИВАС Кут Хуми","149. Служащий ИВО Отдела Мерности ИВО ИВАС Оксаны ИВО ИВАС Кут Хуми","149. Служащая ИВО Отдела Мерности ИВО ИВАС Оксаны ИВО ИВАС Кут Хуми"]
[null,null,null,null,"ИВ Аватара-Ипостаси ИВ Отца Соль-ИВДИВО Метагалактики Бытия ИВО","148. Служащий ИВО Отдела Воссоединённости ИВО ИВАС Ульяны ИВО ИВАС Кут Хуми","148. Служащая ИВО Отдела Воссоединённости ИВО ИВАС Ульяны ИВО ИВАС Кут Хуми","148. Служащий ИВО Отдела Воссоединённости ИВО ИВАС Ульяны ИВО ИВАС Кут Хуми","148. Служащая ИВО Отдела Воссоединённости ИВО ИВАС Ульяны ИВО ИВАС Кут Хуми"]
[null,null,null,null,"ИВ Аватара-Ипостаси ИВ Аватара Фа-ИВДИВО Метагалактики Бытия ИВО","147. Служащий ИВО Отдела Самоорганизации ИВО ИВАС Беатрисс ИВО ИВАС Кут Хуми","147. Служащая ИВО Отдела Самоорганизации ИВО ИВАС Беатрисс ИВО ИВАС Кут Хуми","147. Служащий ИВО Отдела Самоорганизации ИВО ИВАС Беатрисс ИВО ИВАС Кут Хуми","147. Служащая ИВО Отдела Самоорганизации ИВО ИВАС Беатрисс ИВО ИВАС Кут Хуми"]
[null,null,null,null,"ИВ Аватара-Ипостаси ИВ Владыки Ми-ИВДИВО Метагалактики Бытия ИВО","146. Служащий ИВО Отдела Эманации ИВО ИВАС Оливии ИВО ИВАС Кут Хуми","146. Служащая ИВО Отдела Эманации ИВО ИВАС Оливии ИВО ИВАС Кут Хуми","146. Служащий ИВО Отдела Эманации ИВО ИВАС Оливии ИВО ИВАС Кут Хуми","146. Служащая ИВО Отдела Эманации ИВО ИВАС Оливии ИВО ИВАС Кут Хуми"]
[null,null,null,null,"ИВ Аватара-Ипостаси ИВ Учителя Ре-ИВДИВО Метагалактики Бытия ИВО","145. Служащий ИВО Отдела Вещества ИВО ИВАС Аллы ИВО ИВАС Кут Хуми","145. Служащая ИВО Отдела Вещества ИВО ИВАС Аллы ИВО ИВАС Кут Хуми","145. Служащий ИВО Отдела Вещества ИВО ИВАС Аллы ИВО ИВАС Кут Хуми","145. Служащая ИВО Отдела Вещества ИВО ИВАС Аллы ИВО ИВАС Кут Хуми"]
[null,null,null,null,"ИВ Аватара-Ипостаси ИВ Ипостаси До-ИВДИВО Метагалактики ИВО","144. Служащий ИВО Отдела Условия ИВО ИВАС Натали ИВО ИВАС Кут Хуми","144. Служащая ИВО Отдела Условия ИВО ИВАС Натали ИВО ИВАС Кут Хуми","144. Служащий ИВО Отдела Условия ИВО ИВАС Натали ИВО ИВАС Кут Хуми","144. Служащая ИВО Отдела Условия ИВО ИВАС Натали ИВО ИВАС Кут Хуми"]
[null,null,null,null,"ИВ Аватара-Ипостаси ИВ Служащего Си-ИВДИВО Метагалактики ИВО","143. Служащий ИВО Отдела Пробуждения ИВО ИВАС Эвы ИВО ИВАС Кут Хуми","143. Служащая ИВО Отдела Пробуждения ИВО ИВАС Эвы ИВО ИВАС Кут Хуми","143. Служащий ИВО Отдела Пробуждения ИВО ИВАС Эвы ИВО ИВАС Кут Хуми","143. Служащая ИВО Отдела Пробуждения ИВО ИВАС Эвы ИВО ИВАС Кут Хуми"]
[null,null,null,null,"ИВ Аватара-Ипостаси ИВ Посвящённого Ля-ИВДИВО Метагалактики ИВО","142. Служащий ИВО Отдела Имперации ИВО ИВАС Ланы ИВО ИВАС Кут Хуми","142. Служащая ИВО Отдела Имперации ИВО ИВАС Ланы ИВО ИВАС Кут Хуми","142. Служащий ИВО Отдела Имперации ИВО ИВАС Ланы ИВО ИВАС Кут Хуми","142. Служащая ИВО Отдела Имперации ИВО ИВАС Ланы ИВО ИВАС Кут Хуми"]
[null,null,null,null,"ИВ Аватара-Ипостаси ИВ Человека ИВО Соль-ИВДИВО Метагалактики ИВО","141. Служащий ИВО Отдела Взгляда ИВО ИВАС Одели ИВО ИВАС Кут Хуми","141. Служащая ИВО Отдела Взгляда ИВО ИВАС Одели ИВО ИВАС Кут Хуми","141. Служащий ИВО Отдела Взгляда ИВО ИВАС Одели ИВО ИВАС Кут Хуми","141. Служащая ИВО Отдела Взгляда ИВО ИВАС Одели ИВО ИВАС Кут Хуми"]
[null,null,null,null,"ИВ Аватара-Ипостаси ИВ Человека-Отца Фа-ИВДИВО Метагалактики ИВО","140. Служащий ИВО Отдела Синтезначала ИВО ИВАС Тамары ИВО ИВАС Кут Хуми","140. Служащая ИВО Отдела Синтезначала ИВО ИВАС Тамары ИВО ИВАС Кут Хуми","140. Служащий ИВО Отдела Синтезначала ИВО ИВАС Тамары ИВО ИВАС Кут Хуми","140. Служащая ИВО Отдела Синтезначала ИВО ИВАС Тамары ИВО ИВАС Кут Хуми"]
[null,null,null,null,"ИВ Аватара-Ипостаси ИВ Человека-Аватара Ми-ИВДИВО Метагалактики ИВО","139. Служащий ИВО Отдела Основы ИВО ИВАС Нины ИВО ИВАС Кут Хуми","139. Служащая ИВО Отдела Основы ИВО ИВАС Нины ИВО ИВАС Кут Хуми","139. Служащий ИВО Отдела Основы ИВО ИВАС Нины ИВО ИВАС Кут Хуми","139. Служащая ИВО Отдела Основы ИВО ИВАС Нины ИВО ИВАС Кут Хуми"]
[null,null,null,null,"ИВ Аватара-Ипостаси ИВ Человека-Владыки Ре-ИВДИВО Метагалактики ИВО","138. Служащий ИВО Отдела Параметода ИВО ИВАС Орфеи ИВО ИВАС Кут Хуми","138. Служащая ИВО Отдела Параметода ИВО ИВАС Орфеи ИВО ИВАС Кут Хуми","138. Служащий ИВО Отдела Параметода ИВО ИВАС Орфеи ИВО ИВАС Кут Хуми","138. Служащая ИВО Отдела Параметода ИВО ИВАС Орфеи ИВО ИВАС Кут Хуми"]
[null,null,null,null,"ИВ Аватара-Ипостаси ИВ Человека-Учителя Октавной Метагалактики ИВО","137. Служащий ИВО Отдела Мощи ИВО ИВАС Вергилии ИВО ИВАС Кут Хуми","137. Служащая ИВО Отдела Мощи ИВО ИВАС Вергилии ИВО ИВАС Кут Хуми","137. Служащий ИВО Отдела Мощи ИВО ИВАС Вергилии ИВО ИВАС Кут Хуми","137. Служащая ИВО Отдела Мощи ИВО ИВАС Вергилии ИВО ИВАС Кут Хуми"]
[null,null,null,null,"ИВ Аватара-Ипостаси ИВ Человека-Ипостаси Истинной Метагалактики ИВО","136. Служащий ИВО Отдела Права ИВО ИВАС Василисы ИВО ИВАС Кут Хуми","136. Служащая ИВО Отдела Права ИВО ИВАС Василисы ИВО ИВАС Кут Хуми","136. Служащий ИВО Отдела Права ИВО ИВАС Василисы ИВО ИВАС Кут Хуми","136. Служащая ИВО Отдела Права ИВО ИВАС Василисы ИВО ИВАС Кут Хуми"]
[null,null,null,null,"ИВ Аватара-Ипостаси ИВ Человека-Служащего Высокой Цельной Метагалактики ИВО","135. Служащий ИВО Отдела Идеи ИВО ИВАС Варвары ИВО ИВАС Кут Хуми","135. Служащая ИВО Отдела Идеи ИВО ИВАС Варвары ИВО ИВАС Кут Хуми","135. Служащий ИВО Отдела Идеи ИВО ИВАС Варвары ИВО ИВАС Кут Хуми","135. Служащая ИВО Отдела Идеи ИВО ИВАС Варвары ИВО ИВАС Кут Хуми"]
[null,null,null,null,"ИВ Аватара-Ипостаси ИВ Человека-Посвящённого Изначально Вышестоящей Метагалактики ИВО","134. Служащий ИВО Отдела Сути ИВО ИВАС Арины ИВО ИВАС Кут Хуми","134. Служащая ИВО Отдела Сути ИВО ИВАС Арины ИВО ИВАС Кут Хуми","134. Служащий ИВО Отдела Сути ИВО ИВАС Арины ИВО ИВАС Кут Хуми","134. Служащая ИВО Отдела Сути ИВО ИВАС Арины ИВО ИВАС Кут Хуми"]
[null,null,null,null,"ИВ Аватара-Ипостаси ИВ Человека Метагалактики Фа, Галактики Млечного Пути и Солнечной системы ИВО","133. Служащий ИВО Отдела Смысла ИВО ИВАС Амалии ИВО ИВАС Кут Хуми","133. Служащая ИВО Отдела Смысла ИВО ИВАС Амалии ИВО ИВАС Кут Хуми","133. Служащий ИВО Отдела Смысла ИВО ИВАС Амалии ИВО ИВАС Кут Хуми","133. Служащая ИВО Отдела Смысла ИВО ИВАС Амалии ИВО ИВАС Кут Хуми"]
[null,null,null,null,"Фаинь","132. Служащий ИВО Отдела Мысли ИВО ИВАС Елизаветы ИВО ИВАС Кут Хуми","132. Служащая ИВО Отдела Мысли ИВО ИВАС Елизаветы ИВО ИВАС Кут Хуми","132. Служащий ИВО Отдела Мысли ИВО ИВАС Елизаветы ИВО ИВАС Кут Хуми","132. Служащая ИВО Отдела Мысли ИВО ИВАС Елизаветы ИВО ИВАС Кут Хуми"]
[null,null,null,null,"Славии","131. Служащий ИВО Отдела Чувства ИВО ИВАС Веры ИВО ИВАС Кут Хуми","131. Служащая ИВО Отдела Чувства ИВО ИВАС Веры ИВО ИВАС Кут Хуми","131. Служащий ИВО Отдела Чувства ИВО ИВАС Веры ИВО ИВАС Кут Хуми","131. Служащая ИВО Отдела Чувства ИВО ИВАС Веры ИВО ИВАС Кут Хуми"]
[null,null,null,null,"Свет","130. Служащий ИВО Отдела Ощущения ИВО ИВАС Мирославы ИВО ИВАС Кут Хуми","130. Служащая ИВО Отдела Ощущения ИВО ИВАС Мирославы ИВО ИВАС Кут Хуми","130. Служащий ИВО Отдела Ощущения ИВО ИВАС Мирославы ИВО ИВАС Кут Хуми","130. Служащая ИВО Отдела Ощущения ИВО ИВАС Мирославы ИВО ИВАС Кут Хуми"]
[null,null,null,null,"Марины","129. Служащий ИВО Отдела Движения ИВО ИВАС Даяны ИВО ИВАС Кут Хуми","129. Служащая ИВО Отдела Движения ИВО ИВАС Даяны ИВО ИВАС Кут Хуми","129. Служащий ИВО Отдела Движения ИВО ИВАС Даяны ИВО ИВАС Кут Хуми","129. Служащая ИВО Отдела Движения ИВО ИВАС Даяны ИВО ИВАС Кут Хуми"]
[null,null,null,null,"Альбины"]
[null,null,null,null,"Вероники","128. Посвящённый ИВО Отдела Сиаматики ИВО ИВАС Стеллы ИВО ИВАС Кут Хуми","128. Посвящённая ИВО Отдела Сиаматики ИВО ИВАС Стеллы ИВО ИВАС Кут Хуми","128. Посвящённый ИВО Отдела Сиаматики ИВО ИВАС Стеллы ИВО ИВАС Кут Хуми","128. Посвящённая ИВО Отдела Сиаматики ИВО ИВАС Стеллы ИВО ИВАС Кут Хуми"]
[null,null,null,null,"Сианы",{"$f":"H342","v":"127. Посвящённый ИВО Отдела Есмики ИВО ИВАС Доры ИВО ИВАС Кут Хуми"},"127. Посвящённая ИВО Отдела Есмики ИВО ИВАС Доры ИВО ИВАС Кут Хуми","127. Посвящённый ИВО Отдела Есмики ИВО ИВАС Доры ИВО ИВАС Кут Хуми","127. Посвящённая ИВО Отдела Есмики ИВО ИВАС Доры ИВО ИВАС Кут Хуми"]
[null,null,null,null,"Оны","126. Посвящённый ИВО Отдела Имики ИВО ИВАС Клавдии ИВО ИВАС Кут Хуми","126. Посвящённая ИВО Отдела Имики ИВО ИВАС Клавдии ИВО ИВАС Кут Хуми","126. Посвящённый ИВО Отдела Имики ИВО ИВАС Клавдии ИВО ИВАС Кут Хуми","126. Посвящённая ИВО Отдела Имики ИВО ИВАС Клавдии ИВО ИВАС Кут Хуми"]
[null,null,null,null,"Стефаны","125. Посвящённый ИВО Отдела Этоники ИВО ИВАС Лады ИВО ИВАС Кут Хуми","125. Посвящённая ИВО Отдела Этоники ИВО ИВАС Лады ИВО ИВАС Кут Хуми","125. Посвящённый ИВО Отдела Этоники ИВО ИВАС Лады ИВО ИВАС Кут Хуми","125. Посвящённая ИВО Отдела Этоники ИВО ИВАС Лады ИВО ИВАС Кут Хуми"]
[null,null,null,null,"Святы","124. Посвящённый ИВО Отдела Амритики ИВО ИВАС Ветты ИВО ИВАС Кут Хуми","124. Посвящённая ИВО Отдела Амритики ИВО ИВАС Ветты ИВО ИВАС Кут Хуми","124. Посвящённый ИВО Отдела Амритики ИВО ИВАС Ветты ИВО ИВАС Кут Хуми","124. Посвящённая ИВО Отдела Амритики ИВО ИВАС Ветты ИВО ИВАС Кут Хуми"]
[null,null,null,null,"Баяны","123. Посвящённый ИВО Отдела Абики ИВО ИВАС Власты ИВО ИВАС Кут Хуми","123. Посвящённая ИВО Отдела Абики ИВО ИВАС Власты ИВО ИВАС Кут Хуми","123. Посвящённый ИВО Отдела Абики ИВО ИВАС Власты ИВО ИВАС Кут Хуми","123. Посвящённая ИВО Отдела Абики ИВО ИВАС Власты ИВО ИВАС Кут Хуми"]
[null,null,null,null,"Екатерины","122. Посвящённый ИВО Отдела Ситики ИВО ИВАС Офелии ИВО ИВАС Кут Хуми","122. Посвящённая ИВО Отдела Ситики ИВО ИВАС Офелии ИВО ИВАС Кут Хуми","122. Посвящённый ИВО Отдела Ситики ИВО ИВАС Офелии ИВО ИВАС Кут Хуми","122. Посвящённая ИВО Отдела Ситики ИВО ИВАС Офелии ИВО ИВАС Кут Хуми"]
[null,null,null,null,"Сивиллы","121. Посвящённый ИВО Отдела Живики ИВО ИВАС Данаи ИВО ИВАС Кут Хуми","121. Посвящённая ИВО Отдела Живики ИВО ИВАС Данаи ИВО ИВАС Кут Хуми","121. Посвящённый ИВО Отдела Живики ИВО ИВАС Данаи ИВО ИВАС Кут Хуми","121. Посвящённая ИВО Отдела Живики ИВО ИВАС Данаи ИВО ИВАС Кут Хуми"]
[null,null,null,null,"Тамилы","120. Посвящённый ИВО Отдела Холитики ИВО ИВАС Ханны ИВО ИВАС Кут Хуми","120. Посвящённая ИВО Отдела Холитики ИВО ИВАС Ханны ИВО ИВАС Кут Хуми","120. Посвящённый ИВО Отдела Холитики ИВО ИВАС Ханны ИВО ИВАС Кут Хуми","120. Посвящённая ИВО Отдела Холитики ИВО ИВАС Ханны ИВО ИВАС Кут Хуми"]
[null,null,null,null,"Ники","119. Посвящённый ИВО Отдела Всетики ИВО ИВАС Хлои ИВО ИВАС Кут Хуми","119. Посвящённая ИВО Отдела Всетики ИВО ИВАС Хлои ИВО ИВАС Кут Хуми","119. Посвящённый ИВО Отдела Всетики ИВО ИВАС Хлои ИВО ИВАС Кут Хуми","119. Посвящённая ИВО Отдела Всетики ИВО ИВАС Хлои ИВО ИВАС Кут Хуми"]
[null,null,null,null,"Велетте","118. Посвящённый ИВО Отдела Космики ИВО ИВАС Надежды ИВО ИВАС Кут Хуми","118. Посвящённая ИВО Отдела Космики ИВО ИВАС Надежды ИВО ИВАС Кут Хуми","118. Посвящённый ИВО Отдела Космики ИВО ИВАС Надежды ИВО ИВАС Кут Хуми","118. Посвящённая ИВО Отдела Космики ИВО ИВАС Надежды ИВО ИВАС Кут Хуми"]
[null,null,null,null,"Эмилии","117. Посвящённый ИВО Отдела Эргетики ИВО ИВАС Оллы ИВО ИВАС Кут Хуми","117. Посвящённая ИВО Отдела Эргетики ИВО ИВАС Оллы ИВО ИВАС Кут Хуми","117. Посвящённый ИВО Отдела Эргетики ИВО ИВАС Оллы ИВО ИВАС Кут Хуми","117. Посвящённая ИВО Отдела Эргетики ИВО ИВАС Оллы ИВО ИВАС Кут Хуми"]
[null,null,null,null,"Елены","116. Посвящённый ИВО Отдела Контики ИВО ИВАС Илоны ИВО ИВАС Кут Хуми","116. Посвящённая ИВО Отдела Контики ИВО ИВАС Илоны ИВО ИВАС Кут Хуми","116. Посвящённый ИВО Отдела Контики ИВО ИВАС Илоны ИВО ИВАС Кут Хуми","116. Посвящённая ИВО Отдела Контики ИВО ИВАС Илоны ИВО ИВАС Кут Хуми"]
[null,null,null,null,"Валерии","115. Посвящённый ИВО Отдела Голоники ИВО ИВАС Генриетты ИВО ИВАС Кут Хуми","115. Посвящённая ИВО Отдела Голоники ИВО ИВАС Генриетты ИВО ИВАС Кут Хуми","115. Посвящённый ИВО Отдела Голоники ИВО ИВАС Генриетты ИВО ИВАС Кут Хуми","115. Посвящённая ИВО Отдела Голоники ИВО ИВАС Генриетты ИВО ИВАС Кут Хуми"]
[null,null,null,null,"Олеси","114. Посвящённый ИВО Отдела Эматики ИВО ИВАС Марии ИВО ИВАС Кут Хуми","114. Посвящённая ИВО Отдела Эматики ИВО ИВАС Марии ИВО ИВАС Кут Хуми","114. Посвящённый ИВО Отдела Эматики ИВО ИВАС Марии ИВО ИВАС Кут Хуми","114. Посвящённая ИВО Отдела Эматики ИВО ИВАС Марии ИВО ИВАС Кут Хуми"]
[null,null,null,null,"Антуанэтты","113. Посвящённый ИВО Отдела Пламики ИВО ИВАС Глории ИВО ИВАС Кут Хуми","113. Посвящённая ИВО Отдела Пламики ИВО ИВАС Глории ИВО ИВАС Кут Хуми","113. Посвящённый ИВО Отдела Пламики ИВО ИВАС Глории ИВО ИВАС Кут Хуми","113. Посвящённая ИВО Отдела Пламики ИВО ИВАС Глории ИВО ИВАС Кут Хуми"]
[null,null,null,null,"Юлианы","112. Посвящённый ИВО Отдела Вотики ИВО ИВАС Констанции ИВО ИВАС Кут Хуми","112. Посвящённая ИВО Отдела Вотики ИВО ИВАС Констанции ИВО ИВАС Кут Хуми","112. Посвящённый ИВО Отдела Вотики ИВО ИВАС Констанции ИВО ИВАС Кут Хуми","112. Посвящённая ИВО Отдела Вотики ИВО ИВАС Констанции ИВО ИВАС Кут Хуми"]
[null,null,null,null,"Синтии","111. Посвящённый ИВО Отдела Визики ИВО ИВАС Стэвии ИВО ИВАС Кут Хуми","111. Посвящённая ИВО Отдела Визики ИВО ИВАС Стэвии ИВО ИВАС Кут Хуми","111. Посвящённый ИВО Отдела Визики ИВО ИВАС Стэвии ИВО ИВАС Кут Хуми","111. Посвящённая ИВО Отдела Визики ИВО ИВАС Стэвии ИВО ИВАС Кут Хуми"]
[null,null,null,null,"Виктории","110. Посвящённый ИВО Отдела Сотики ИВО ИВАС Полины ИВО ИВАС Кут Хуми","110. Посвящённая ИВО Отдела Сотики ИВО ИВАС Полины ИВО ИВАС Кут Хуми","110. Посвящённый ИВО Отдела Сотики ИВО ИВАС Полины ИВО ИВАС Кут Хуми","110. Посвящённая ИВО Отдела Сотики ИВО ИВАС Полины ИВО ИВАС Кут Хуми"]
[null,null,null,null,"Дариды","109. Посвящённый ИВО Отдела Этимики ИВО ИВАС Виру ИВО ИВАС Кут Хуми","109. Посвящённая ИВО Отдела Этимики ИВО ИВАС Виру ИВО ИВАС Кут Хуми","109. Посвящённый ИВО Отдела Этимики ИВО ИВАС Виру ИВО ИВАС Кут Хуми","109. Посвящённая ИВО Отдела Этимики ИВО ИВАС Виру ИВО ИВАС Кут Хуми"]
[null,null,null,null,"Алины","108. Посвящённый ИВО Отдела Омики ИВО ИВАС Фанны ИВО ИВАС Кут Хуми","108. Посвящённая ИВО Отдела Омики ИВО ИВАС Фанны ИВО ИВАС Кут Хуми","108. Посвящённый ИВО Отдела Омики ИВО ИВАС Фанны ИВО ИВАС Кут Хуми","108. Посвящённая ИВО Отдела Омики ИВО ИВАС Фанны ИВО ИВАС Кут Хуми"]
[null,null,null,null,"Софьи","107. Посвящённый ИВО Отдела Уники ИВО ИВАС Евгении ИВО ИВАС Кут Хуми","107. Посвящённая ИВО Отдела Уники ИВО ИВАС Евгении ИВО ИВАС Кут Хуми","107. Посвящённый ИВО Отдела Уники ИВО ИВАС Евгении ИВО ИВАС Кут Хуми","107. Посвящённая ИВО Отдела Уники ИВО ИВАС Евгении ИВО ИВАС Кут Хуми"]
[null,null,null,null,"Агафьи","106. Посвящённый ИВО Отдела Витиики ИВО ИВАС Элины ИВО ИВАС Кут Хуми","106. Посвящённая ИВО Отдела Витиики ИВО ИВАС Элины ИВО ИВАС Кут Хуми","106. Посвящённый ИВО Отдела Витиики ИВО ИВАС Элины ИВО ИВАС Кут Хуми","106. Посвящённая ИВО Отдела Витиики ИВО ИВАС Элины ИВО ИВАС Кут Хуми"]
[null,null,null,null,"Дарьи","105. Посвящённый ИВО Отдела Мерики ИВО ИВАС Сары ИВО ИВАС Кут Хуми","105. Посвящённая ИВО Отдела Мерики ИВО ИВАС Сары ИВО ИВАС Кут Хуми","105. Посвящённый ИВО Отдела Мерики ИВО ИВАС Сары ИВО ИВАС Кут Хуми","105. Посвящённая ИВО Отдела Мерики ИВО ИВАС Сары ИВО ИВАС Кут Хуми"]
[null,null,null,null,"Иланы","104. Посвящённый ИВО Отдела Реалики ИВО ИВАС Алевтины ИВО ИВАС Кут Хуми","104. Посвящённая ИВО Отдела Реалики ИВО ИВАС Алевтины ИВО ИВАС Кут Хуми","104. Посвящённый ИВО Отдела Реалики ИВО ИВАС Алевтины ИВО ИВАС Кут Хуми","104. Посвящённая ИВО Отдела Реалики ИВО ИВАС Алевтины ИВО ИВАС Кут Хуми"]
[null,null,null,null,"Яны","103. Посвящённый ИВО Отдела Плотики ИВО ИВАС Раисы ИВО ИВАС Кут Хуми","103. Посвящённая ИВО Отдела Плотики ИВО ИВАС Раисы ИВО ИВАС Кут Хуми","103. Посвящённый ИВО Отдела Плотики ИВО ИВАС Раисы ИВО ИВАС Кут Хуми","103. Посвящённая ИВО Отдела Плотики ИВО ИВАС Раисы ИВО ИВАС Кут Хуми"]
[null,null,null,null,"Давлаты","102. Посвящённый ИВО Отдела Натики ИВО ИВАС Авроры ИВО ИВАС Кут Хуми","102. Посвящённая ИВО Отдела Натики ИВО ИВАС Авроры ИВО ИВАС Кут Хуми","102. Посвящённый ИВО Отдела Натики ИВО ИВАС Авроры ИВО ИВАС Кут Хуми","102. Посвящённая ИВО Отдела Натики ИВО ИВАС Авроры ИВО ИВАС Кут Хуми"]
[null,null,null,null,"Ирины","101. Посвящённый ИВО Отдела Стратики ИВО ИВАС Диланы ИВО ИВАС Кут Хуми","101. Посвящённая ИВО Отдела Стратики ИВО ИВАС Диланы ИВО ИВАС Кут Хуми","101. Посвящённый ИВО Отдела Стратики ИВО ИВАС Диланы ИВО ИВАС Кут Хуми","101. Посвящённая ИВО Отдела Стратики ИВО ИВАС Диланы ИВО ИВАС Кут Хуми"]
[null,null,null,null,"Лины","100. Посвящённый ИВО Отдела Логитики ИВО ИВАС Яси ИВО ИВАС Кут Хуми","100. Посвящённая ИВО Отдела Логитики ИВО ИВАС Яси ИВО ИВАС Кут Хуми","100. Посвящённый ИВО Отдела Логитики ИВО ИВАС Яси ИВО ИВАС Кут Хуми","100. Посвящённая ИВО Отдела Логитики ИВО ИВАС Яси ИВО ИВАС Кут Хуми"]
[null,null,null,null,"Анастасии","099. Посвящённый ИВО Отдела Гласики ИВО ИВАС Фиры ИВО ИВАС Кут Хуми","099. Посвящённая ИВО Отдела Гласики ИВО ИВАС Фиры ИВО ИВАС Кут Хуми","099. Посвящённый ИВО Отдела Гласики ИВО ИВАС Фиры ИВО ИВАС Кут Хуми","099. Посвящённая ИВО Отдела Гласики ИВО ИВАС Фиры ИВО ИВАС Кут Хуми"]
[null,null,null,null,"Омы","098. Посвящённый ИВО Отдела Даоники ИВО ИВАС Омелии ИВО ИВАС Кут Хуми","098. Посвящённая ИВО Отдела Даоники ИВО ИВАС Омелии ИВО ИВАС Кут Хуми","098. Посвящённый ИВО Отдела Даоники ИВО ИВАС Омелии ИВО ИВАС Кут Хуми","098. Посвящённая ИВО Отдела Даоники ИВО ИВАС Омелии ИВО ИВАС Кут Хуми"]
[null,null,null,null,"Сольвейг","097. Посвящённый ИВО Отдела Бинарики ИВО ИВАС Мадлен ИВО ИВАС Кут Хуми","097. Посвящённая ИВО Отдела Бинарики ИВО ИВАС Мадлен ИВО ИВАС Кут Хуми","097. Посвящённый ИВО Отдела Бинарики ИВО ИВАС Мадлен ИВО ИВАС Кут Хуми","097. Посвящённая ИВО Отдела Бинарики ИВО ИВАС Мадлен ИВО ИВАС Кут Хуми"]
[null,null,null,null,"Октавии","096. Посвящённый ИВО Отдела Экстремики ИВО ИВАС Риммы ИВО ИВАС Кут Хуми","096. Посвящённая ИВО Отдела Экстремики ИВО ИВАС Риммы ИВО ИВАС Кут Хуми","096. Посвящённый ИВО Отдела Экстремики ИВО ИВАС Риммы ИВО ИВАС Кут Хуми","096. Посвящённая ИВО Отдела Экстремики ИВО ИВАС Риммы ИВО ИВАС Кут Хуми"]
[null,null,null,null,"Кристины","095. Посвящённый ИВО Отдела Зерцатики ИВО ИВАС Беллы ИВО ИВАС Кут Хуми","095. Посвящённая ИВО Отдела Зерцатики ИВО ИВАС Беллы ИВО ИВАС Кут Хуми","095. Посвящённый ИВО Отдела Зерцатики ИВО ИВАС Беллы ИВО ИВАС Кут Хуми","095. Посвящённая ИВО Отдела Зерцатики ИВО ИВАС Беллы ИВО ИВАС Кут Хуми"]
[null,null,null,null,"Версавии","094. Посвящённый ИВО Отдела Интики ИВО ИВАС Агнии ИВО ИВАС Кут Хуми","094. Посвящённая ИВО Отдела Интики ИВО ИВАС Агнии ИВО ИВАС Кут Хуми","094. Посвящённый ИВО Отдела Интики ИВО ИВАС Агнии ИВО ИВАС Кут Хуми","094. Посвящённая ИВО Отдела Интики ИВО ИВАС Агнии ИВО ИВАС Кут Хуми"]
[null,null,null,null,"Ксении","093. Посвящённый ИВО Отдела Пасситики ИВО ИВАС Фелиции ИВО ИВАС Кут Хуми","093. Посвящённая ИВО Отдела Пасситики ИВО ИВАС Фелиции ИВО ИВАС Кут Хуми","093. Посвящённый ИВО Отдела Пасситики ИВО ИВАС Фелиции ИВО ИВАС Кут Хуми","093. Посвящённая ИВО Отдела Пасситики ИВО ИВАС Фелиции ИВО ИВАС Кут Хуми"]
[null,null,null,null,"Эммы","092. Посвящённый ИВО Отдела Эвритики ИВО ИВАС Виталины ИВО ИВАС Кут Хуми","092. Посвящённая ИВО Отдела Эвритики ИВО ИВАС Виталины ИВО ИВАС Кут Хуми","092. Посвящённый ИВО Отдела Эвритики ИВО ИВАС Виталины ИВО ИВАС Кут Хуми","092. Посвящённая ИВО Отдела Эвритики ИВО ИВАС Виталины ИВО ИВАС Кут Хуми"]
[null,null,null,null,"Стафии","091. Посвящённый ИВО Отдела Фортики ИВО ИВАС Ноны ИВО ИВАС Кут Хуми","091. Посвящённая ИВО Отдела Фортики ИВО ИВАС Ноны ИВО ИВАС Кут Хуми","091. Посвящённый ИВО Отдела Фортики ИВО ИВАС Ноны ИВО ИВАС Кут Хуми","091. Посвящённая ИВО Отдела Фортики ИВО ИВАС Ноны ИВО ИВАС Кут Хуми"]
[null,null,null,null,"Оксаны","090. Посвящённый ИВО Отдела Синтики ИВО ИВАС Клементины ИВО ИВАС Кут Хуми","090. Посвящённая ИВО Отдела Синтики ИВО ИВАС Клементины ИВО ИВАС Кут Хуми","090. Посвящённый ИВО Отдела Синтики ИВО ИВАС Клементины ИВО ИВАС Кут Хуми","090. Посвящённая ИВО Отдела Синтики ИВО ИВАС Клементины ИВО ИВАС Кут Хуми"]
[null,null,null,null,"Ульяны","089. Посвящённый ИВО Отдела Тямики ИВО ИВАС Лиры ИВО ИВАС Кут Хуми","089. Посвящённая ИВО Отдела Тямики ИВО ИВАС Лиры ИВО ИВАС Кут Хуми","089. Посвящённый ИВО Отдела Тямики ИВО ИВАС Лиры ИВО ИВАС Кут Хуми","089. Посвящённая ИВО Отдела Тямики ИВО ИВАС Лиры ИВО ИВАС Кут Хуми"]
[null,null,null,null,"Беатрисс","088. Посвящённый ИВО Отдела Планики ИВО ИВАС Ванессы ИВО ИВАС Кут Хуми","088. Посвящённая ИВО Отдела Планики ИВО ИВАС Ванессы ИВО ИВАС Кут Хуми","088. Посвящённый ИВО Отдела Планики ИВО ИВАС Ванессы ИВО ИВАС Кут Хуми","088. Посвящённая ИВО Отдела Планики ИВО ИВАС Ванессы ИВО ИВАС Кут Хуми"]
[null,null,null,null,"Оливии","087. Посвящённый ИВО Отдела Итики ИВО ИВАС Евдокии ИВО ИВАС Кут Хуми","087. Посвящённая ИВО Отдела Итики ИВО ИВАС Евдокии ИВО ИВАС Кут Хуми","087. Посвящённый ИВО Отдела Итики ИВО ИВАС Евдокии ИВО ИВАС Кут Хуми","087. Посвящённая ИВО Отдела Итики ИВО ИВАС Евдокии ИВО ИВАС Кут Хуми"]
[null,null,null,null,"Аллы","086. Посвящённый ИВО Отдела Пробуддики ИВО ИВАС Клары ИВО ИВАС Кут Хуми","086. Посвящённая ИВО Отдела Пробуддики ИВО ИВАС Клары ИВО ИВАС Кут Хуми","086. Посвящённый ИВО Отдела Пробуддики ИВО ИВАС Клары ИВО ИВАС Кут Хуми","086. Посвящённая ИВО Отдела Пробуддики ИВО ИВАС Клары ИВО ИВАС Кут Хуми"]
[null,null,null,null,"Натали","085. Посвящённый ИВО Отдела Хрустатики ИВО ИВАС Лизы ИВО ИВАС Кут Хуми","085. Посвящённая ИВО Отдела Хрустатики ИВО ИВАС Лизы ИВО ИВАС Кут Хуми","085. Посвящённый ИВО Отдела Хрустатики ИВО ИВАС Лизы ИВО ИВАС Кут Хуми","085. Посвящённая ИВО Отдела Хрустатики ИВО ИВАС Лизы ИВО ИВАС Кут Хуми"]
[null,null,null,null,"Эвы","084. Посвящённый ИВО Отдела Дхьяники ИВО ИВАС Сюзанны ИВО ИВАС Кут Хуми","084. Посвящённая ИВО Отдела Дхьяники ИВО ИВАС Сюзанны ИВО ИВАС Кут Хуми","084. Посвящённый ИВО Отдела Дхьяники ИВО ИВАС Сюзанны ИВО ИВАС Кут Хуми","084. Посвящённая ИВО Отдела Дхьяники ИВО ИВАС Сюзанны ИВО ИВАС Кут Хуми"]
[null,null,null,null,"Ланы","083. Посвящённый ИВО Отдела Астреники ИВО ИВАС Сейлы ИВО ИВАС Кут Хуми","083. Посвящённая ИВО Отдела Астреники ИВО ИВАС Сейлы ИВО ИВАС Кут Хуми","083. Посвящённый ИВО Отдела Астреники ИВО ИВАС Сейлы ИВО ИВАС Кут Хуми","083. Посвящённая ИВО Отдела Астреники ИВО ИВАС Сейлы ИВО ИВАС Кут Хуми"]
[null,null,null,null,"Одель","082. Посвящённый ИВО Отдела Эфтики ИВО ИВАС Русланы ИВО ИВАС Кут Хуми","082. Посвящённая ИВО Отдела Эфтики ИВО ИВАС Русланы ИВО ИВАС Кут Хуми","082. Посвящённый ИВО Отдела Эфтики ИВО ИВАС Русланы ИВО ИВАС Кут Хуми","082. Посвящённая ИВО Отдела Эфтики ИВО ИВАС Русланы ИВО ИВАС Кут Хуми"]
[null,null,null,null,"Тамары","081. Посвящённый ИВО Отдела Тилики ИВО ИВАС Устины ИВО ИВАС Кут Хуми","081. Посвящённая ИВО Отдела Тилики ИВО ИВАС Устины ИВО ИВАС Кут Хуми","081. Посвящённый ИВО Отдела Тилики ИВО ИВАС Устины ИВО ИВАС Кут Хуми","081. Посвящённая ИВО Отдела Тилики ИВО ИВАС Устины ИВО ИВАС Кут Хуми"]
[null,null,null,null,"Нины","080. Посвящённый ИВО Отдела Ивдивики ИВО ИВАС Марики ИВО ИВАС Кут Хуми","080. Посвящённая ИВО Отдела Ивдивики ИВО ИВАС Марики ИВО ИВАС Кут Хуми","080. Посвящённый ИВО Отдела Ивдивики ИВО ИВАС Марики ИВО ИВАС Кут Хуми","080. Посвящённая ИВО Отдела Ивдивики ИВО ИВАС Марики ИВО ИВАС Кут Хуми"]
[null,null,null,null,"Орфеи","079. Посвящённый ИВО Отдела Ятики ИВО ИВАС Франсуазы ИВО ИВАС Кут Хуми","079. Посвящённая ИВО Отдела Ятики ИВО ИВАС Франсуазы ИВО ИВАС Кут Хуми","079. Посвящённый ИВО Отдела Ятики ИВО ИВАС Франсуазы ИВО ИВАС Кут Хуми","079. Посвящённая ИВО Отдела Ятики ИВО ИВАС Франсуазы ИВО ИВАС Кут Хуми"]
[null,null,null,null,"Вергилии","078. Посвящённый ИВО Отдела Имтики ИВО ИВАС Христины ИВО ИВАС Кут Хуми","078. Посвящённая ИВО Отдела Имтики ИВО ИВАС Христины ИВО ИВАС Кут Хуми","078. Посвящённый ИВО Отдела Имтики ИВО ИВАС Христины ИВО ИВАС Кут Хуми","078. Посвящённая ИВО Отдела Имтики ИВО ИВАС Христины ИВО ИВАС Кут Хуми"]
[null,null,null,null,"Василисы","077. Посвящённый ИВО Отдела Октики ИВО ИВАС Иоланы ИВО ИВАС Кут Хуми","077. Посвящённая ИВО Отдела Октики ИВО ИВАС Иоланы ИВО ИВАС Кут Хуми","077. Посвящённый ИВО Отдела Октики ИВО ИВАС Иоланы ИВО ИВАС Кут Хуми","077. Посвящённая ИВО Отдела Октики ИВО ИВАС Иоланы ИВО ИВАС Кут Хуми"]
[null,null,null,null,"Варвары","076. Посвящённый ИВО Отдела Фатики ИВО ИВАС Джесики ИВО ИВАС Кут Хуми","076. Посвящённая ИВО Отдела Фатики ИВО ИВАС Джесики ИВО ИВАС Кут Хуми","076. Посвящённый ИВО Отдела Фатики ИВО ИВАС Джесики ИВО ИВАС Кут Хуми","076. Посвящённая ИВО Отдела Фатики ИВО ИВАС Джесики ИВО ИВАС Кут Хуми"]
[null,null,null,null,"Арины","075. Посвящённый ИВО Отдела Матики ИВО ИВАС Сабины ИВО ИВАС Кут Хуми","075. Посвящённая ИВО Отдела Матики ИВО ИВАС Сабины ИВО ИВАС Кут Хуми","075. Посвящённый ИВО Отдела Матики ИВО ИВАС Сабины ИВО ИВАС Кут Хуми","075. Посвящённая ИВО Отдела Матики ИВО ИВАС Сабины ИВО ИВАС Кут Хуми"]
[null,null,null,null,"Амалии","074. Посвящённый ИВО Отдела Нитики ИВО ИВАС Нелли ИВО ИВАС Кут Хуми","074. Посвящённая ИВО Отдела Нитики ИВО ИВАС Нелли ИВО ИВАС Кут Хуми","074. Посвящённый ИВО Отдела Нитики ИВО ИВАС Нелли ИВО ИВАС Кут Хуми","074. Посвящённая ИВО Отдела Нитики ИВО ИВАС Нелли ИВО ИВАС Кут Хуми"]
[null,null,null,null,"Елизаветы","073. Посвящённый ИВО Отдела Мощики ИВО ИВАС Санты ИВО ИВАС Кут Хуми","073. Посвящённая ИВО Отдела Мощики ИВО ИВАС Санты ИВО ИВАС Кут Хуми","073. Посвящённый ИВО Отдела Мощики ИВО ИВАС Санты ИВО ИВАС Кут Хуми","073. Посвящённая ИВО Отдела Мощики ИВО ИВАС Санты ИВО ИВАС Кут Хуми"]
[null,null,null,null,"Веры","072. Посвящённый ИВО Отдела Аматики ИВО ИВАС Доротеи ИВО ИВАС Кут Хуми","072. Посвящённая ИВО Отдела Аматики ИВО ИВАС Доротеи ИВО ИВАС Кут Хуми","072. Посвящённый ИВО Отдела Аматики ИВО ИВАС Доротеи ИВО ИВАС Кут Хуми","072. Посвящённая ИВО Отдела Аматики ИВО ИВАС Доротеи ИВО ИВАС Кут Хуми"]
[null,null,null,null,"Мирославы","071. Посвящённый ИВО Отдела Атмики ИВО ИВАС Янины ИВО ИВАС Кут Хуми","071. Посвящённая ИВО Отдела Атмики ИВО ИВАС Янины ИВО ИВАС Кут Хуми","071. Посвящённый ИВО Отдела Атмики ИВО ИВАС Янины ИВО ИВАС Кут Хуми","071. Посвящённая ИВО Отдела Атмики ИВО ИВАС Янины ИВО ИВАС Кут Хуми"]
[null,null,null,null,"Даяны","070. Посвящённый ИВО Отдела Буддики ИВО ИВАС Люции ИВО ИВАС Кут Хуми","070. Посвящённая ИВО Отдела Буддики ИВО ИВАС Люции ИВО ИВАС Кут Хуми","070. Посвящённый ИВО Отдела Буддики ИВО ИВАС Люции ИВО ИВАС Кут Хуми","070. Посвящённая ИВО Отдела Буддики ИВО ИВАС Люции ИВО ИВАС Кут Хуми"]
[null,null,null,null,"Стеллы","069. Посвящённый ИВО Отдела Причинного тела ИВО ИВАС Ирэн ИВО ИВАС Кут Хуми","069. Посвящённая ИВО Отдела Причинного тела ИВО ИВАС Ирэн ИВО ИВАС Кут Хуми","069. Посвящённый ИВО Отдела Причинного тела ИВО ИВАС Ирэн ИВО ИВАС Кут Хуми","069. Посвящённая ИВО Отдела Причинного тела ИВО ИВАС Ирэн ИВО ИВАС Кут Хуми"]
[null,null,null,null,"Доры","068. Посвящённый ИВО Отдела Ментального тела ИВО ИВАС Сесилии ИВО ИВАС Кут Хуми","068. Посвящённая ИВО Отдела Ментального тела ИВО ИВАС Сесилии ИВО ИВАС Кут Хуми","068. Посвящённый ИВО Отдела Ментального тела ИВО ИВАС Сесилии ИВО ИВАС Кут Хуми","068. Посвящённая ИВО Отдела Ментального тела ИВО ИВАС Сесилии ИВО ИВАС Кут Хуми"]
[null,null,null,null,"Клавдии","067. Посвящённый ИВО Отдела Астрального тела ИВО ИВАС Вериславы ИВО ИВАС Кут Хуми","067. Посвящённая ИВО Отдела Астрального тела ИВО ИВАС Вериславы ИВО ИВАС Кут Хуми","067. Посвящённый ИВО Отдела Астрального тела ИВО ИВАС Вериславы ИВО ИВАС Кут Хуми","067. Посвящённая ИВО Отдела Астрального тела ИВО ИВАС Вериславы ИВО ИВАС Кут Хуми"]
[null,null,null,null,"Лады","066. Посвящённый ИВО Отдела Эфирного тела ИВО ИВАС Станиславы ИВО ИВАС Кут Хуми","066. Посвящённая ИВО Отдела Эфирного тела ИВО ИВАС Станиславы ИВО ИВАС Кут Хуми","066. Посвящённый ИВО Отдела Эфирного тела ИВО ИВАС Станиславы ИВО ИВАС Кут Хуми","066. Посвящённая ИВО Отдела Эфирного тела ИВО ИВАС Станиславы ИВО ИВАС Кут Хуми"]
[null,null,null,null,"Ветты","065. Посвящённый ИВО Отдела Метафизики ИВО ИВАС Милославы ИВО ИВАС Кут Хуми","065. Посвящённая ИВО Отдела Метафизики ИВО ИВАС Милославы ИВО ИВАС Кут Хуми","065. Посвящённый ИВО Отдела Метафизики ИВО ИВАС Милославы ИВО ИВАС Кут Хуми","065. Посвящённая ИВО Отдела Метафизики ИВО ИВАС Милославы ИВО ИВАС Кут Хуми"]
[null,null,null,null,"Власты"]
[null,null,null,null,"Офелии",{"$f":"H406","v":"064. Изначальный ИВО Отдела Прасинтеза ИВО ИВАС Константы ИВО ИВАС Кут Хуми"},"064. Изначальная ИВО Отдела Прасинтеза ИВО ИВАС Константы ИВО ИВАС Кут Хуми","064. Изначальный ИВО Отдела Прасинтеза ИВО ИВАС Константы ИВО ИВАС Кут Хуми","064. Изначальная ИВО Отдела Прасинтеза ИВО ИВАС Константы ИВО ИВАС Кут Хуми"]
[null,null,null,null,"Данаи","063. Изначальный ИВО Отдела Праволя ИВО ИВАС Александры ИВО ИВАС Кут Хуми","063. Изначальная ИВО Отдела Праволя ИВО ИВАС Александры ИВО ИВАС Кут Хуми","063. Изначальный ИВО Отдела Праволя ИВО ИВАС Александры ИВО ИВАС Кут Хуми","063. Изначальная ИВО Отдела Праволя ИВО ИВАС Александры ИВО ИВАС Кут Хуми"]
[null,null,null,null,"Ханны","062. Изначальный ИВО Отдела Прамудрости ИВО ИВАС Иларии ИВО ИВАС Кут Хуми","062. Изначальная ИВО Отдела Прамудрости ИВО ИВАС Иларии ИВО ИВАС Кут Хуми","062. Изначальный ИВО Отдела Прамудрости ИВО ИВАС Иларии ИВО ИВАС Кут Хуми","062. Изначальная ИВО Отдела Прамудрости ИВО ИВАС Иларии ИВО ИВАС Кут Хуми"]
[null,null,null,null,"Хлои","061. Изначальный ИВО Отдела Пралюбви ИВО ИВАС Феодоры ИВО ИВАС Кут Хуми","061. Изначальная ИВО Отдела Пралюбви ИВО ИВАС Феодоры ИВО ИВАС Кут Хуми","061. Изначальный ИВО Отдела Пралюбви ИВО ИВАС Феодоры ИВО ИВАС Кут Хуми","061. Изначальная ИВО Отдела Пралюбви ИВО ИВАС Феодоры ИВО ИВАС Кут Хуми"]
[null,null,null,null,"Надежды","060. Изначальный ИВО Отдела Пратворения ИВО ИВАС Владиславы ИВО ИВАС Кут Хуми","060. Изначальная ИВО Отдела Пратворения ИВО ИВАС Владиславы ИВО ИВАС Кут Хуми","060. Изначальный ИВО Отдела Пратворения ИВО ИВАС Владиславы ИВО ИВАС Кут Хуми","060. Изначальная ИВО Отдела Пратворения ИВО ИВАС Владиславы ИВО ИВАС Кут Хуми"]
[null,null,null,null,"Оллы","059. Изначальный ИВО Отдела Прасозидания ИВО ИВАС Агнессы ИВО ИВАС Кут Хуми","059. Изначальная ИВО Отдела Прасозидания ИВО ИВАС Агнессы ИВО ИВАС Кут Хуми","059. Изначальный ИВО Отдела Прасозидания ИВО ИВАС Агнессы ИВО ИВАС Кут Хуми","059. Изначальная ИВО Отдела Прасозидания ИВО ИВАС Агнессы ИВО ИВАС Кут Хуми"]
[null,null,null,null,"Илоны","058. Изначальный ИВО Отдела Прарепликации ИВО ИВАС Онии ИВО ИВАС Кут Хуми","058. Изначальная ИВО Отдела Прарепликации ИВО ИВАС Онии ИВО ИВАС Кут Хуми","058. Изначальный ИВО Отдела Прарепликации ИВО ИВАС Онии ИВО ИВАС Кут Хуми","058. Изначальная ИВО Отдела Прарепликации ИВО ИВАС Онии ИВО ИВАС Кут Хуми"]
[null,null,null,null,"Генриетты","057. Изначальный ИВО Отдела Пражизни ИВО ИВАС Виданы ИВО ИВАС Кут Хуми","057. Изначальная ИВО Отдела Пражизни ИВО ИВАС Виданы ИВО ИВАС Кут Хуми","057. Изначальный ИВО Отдела Пражизни ИВО ИВАС Виданы ИВО ИВАС Кут Хуми","057. Изначальная ИВО Отдела Пражизни ИВО ИВАС Виданы ИВО ИВАС Кут Хуми"]
[null,null,null,null,"Марии","056. Изначальный ИВО Отдела Правоскрешения ИВО ИВАС Ярославы ИВО ИВАС Кут Хуми","056. Изначальная ИВО Отдела Правоскрешения ИВО ИВАС Ярославы ИВО ИВАС Кут Хуми","056. Изначальный ИВО Отдела Правоскрешения ИВО ИВАС Ярославы ИВО ИВАС Кут Хуми","056. Изначальная ИВО Отдела Правоскрешения ИВО ИВАС Ярославы ИВО ИВАС Кут Хуми"]
[null,null,null,null,"Глории","055. Изначальный ИВО Отдела Пра-я-есмь ИВО ИВАС Роксаны ИВО ИВАС Кут Хуми","055. Изначальная ИВО Отдела Пра-я-есмь ИВО ИВАС Роксаны ИВО ИВАС Кут Хуми","055. Изначальный ИВО Отдела Пра-я-есмь ИВО ИВАС Роксаны ИВО ИВАС Кут Хуми","055. Изначальная ИВО Отдела Пра-я-есмь ИВО ИВАС Роксаны ИВО ИВАС Кут Хуми"]
[null,null,null,null,"Констанции","054. Изначальный ИВО Отдела Прагенезиса ИВО ИВАС Аврониты ИВО ИВАС Кут Хуми","054. Изначальная ИВО Отдела Прагенезиса ИВО ИВАС Аврониты ИВО ИВАС Кут Хуми","054. Изначальный ИВО Отдела Прагенезиса ИВО ИВАС Аврониты ИВО ИВАС Кут Хуми","054. Изначальная ИВО Отдела Прагенезиса ИВО ИВАС Аврониты ИВО ИВАС Кут Хуми"]
[null,null,null,null,"Стэвии","053. Изначальный ИВО Отдела Прачеловечности ИВО ИВАС Эсфирь ИВО ИВАС Кут Хуми","053. Изначальная ИВО Отдела Прачеловечности ИВО ИВАС Эсфирь ИВО ИВАС Кут Хуми","053. Изначальный ИВО Отдела Прачеловечности ИВО ИВАС Эсфирь ИВО ИВАС Кут Хуми","053. Изначальная ИВО Отдела Прачеловечности ИВО ИВАС Эсфирь ИВО ИВАС Кут Хуми"]
[null,null,null,null,"Полины","052. Изначальный ИВО Отдела Праслужения ИВО ИВАС Софии ИВО ИВАС Кут Хуми","052. Изначальная ИВО Отдела Праслужения ИВО ИВАС Софии ИВО ИВАС Кут Хуми","052. Изначальный ИВО Отдела Праслужения ИВО ИВАС Софии ИВО ИВАС Кут Хуми","052. Изначальная ИВО Отдела Праслужения ИВО ИВАС Софии ИВО ИВАС Кут Хуми"]
[null,null,null,null,"Виру","051. Изначальный ИВО Отдела Правершения ИВО ИВАС Анжелы ИВО ИВАС Кут Хуми","051. Изначальная ИВО Отдела Правершения ИВО ИВАС Анжелы ИВО ИВАС Кут Хуми","051. Изначальный ИВО Отдела Правершения ИВО ИВАС Анжелы ИВО ИВАС Кут Хуми","051. Изначальная ИВО Отдела Правершения ИВО ИВАС Анжелы ИВО ИВАС Кут Хуми"]
[null,null,null,null,"Фанны","050. Изначальный ИВО Отдела Прапрактики ИВО ИВАС Изольды ИВО ИВАС Кут Хуми","050. Изначальная ИВО Отдела Прапрактики ИВО ИВАС Изольды ИВО ИВАС Кут Хуми","050. Изначальный ИВО Отдела Прапрактики ИВО ИВАС Изольды ИВО ИВАС Кут Хуми","050. Изначальная ИВО Отдела Прапрактики ИВО ИВАС Изольды ИВО ИВАС Кут Хуми"]
[null,null,null,null,"Евгении","049. Изначальный ИВО Отдела Прамогущества ИВО ИВАС Юлии ИВО ИВАС Кут Хуми","049. Изначальная ИВО Отдела Прамогущества ИВО ИВАС Юлии ИВО ИВАС Кут Хуми","049. Изначальный ИВО Отдела Прамогущества ИВО ИВАС Юлии ИВО ИВАС Кут Хуми","049. Изначальная ИВО Отдела Прамогущества ИВО ИВАС Юлии ИВО ИВАС Кут Хуми"]
[null,null,null,null,"Элины","048. Изначальный ИВО Отдела Праивдивности ИВО ИВАС Илоты ИВО ИВАС Кут Хуми","048. Изначальная ИВО Отдела Праивдивности ИВО ИВАС Илоты ИВО ИВАС Кут Хуми","048. Изначальный ИВО Отдела Праивдивности ИВО ИВАС Илоты ИВО ИВАС Кут Хуми","048. Изначальная ИВО Отдела Праивдивности ИВО ИВАС Илоты ИВО ИВАС Кут Хуми"]
[null,null,null,null,"Сары","047. Изначальный ИВО Отдела Прасверхпассионарности ИВО ИВАС Марианны ИВО ИВАС Кут Хуми","047. Изначальная ИВО Отдела Прасверхпассионарности ИВО ИВАС Марианны ИВО ИВАС Кут Хуми","047. Изначальный ИВО Отдела Прасверхпассионарности ИВО ИВАС Марианны ИВО ИВАС Кут Хуми","047. Изначальная ИВО Отдела Прасверхпассионарности ИВО ИВАС Марианны ИВО ИВАС Кут Хуми"]
[null,null,null,null,"Алевтины","046. Изначальный ИВО Отдела Праистинности ИВО ИВАС Мариславы ИВО ИВАС Кут Хуми","046. Изначальная ИВО Отдела Праистинности ИВО ИВАС Мариславы ИВО ИВАС Кут Хуми","046. Изначальный ИВО Отдела Праистинности ИВО ИВАС Мариславы ИВО ИВАС Кут Хуми","046. Изначальная ИВО Отдела Праистинности ИВО ИВАС Мариславы ИВО ИВАС Кут Хуми"]
[null,null,null,null,"Раисы","045. Изначальный ИВО Отдела Праокскости ИВО ИВАС Лимы ИВО ИВАС Кут Хуми","045. Изначальная ИВО Отдела Праокскости ИВО ИВАС Лимы ИВО ИВАС Кут Хуми","045. Изначальный ИВО Отдела Праокскости ИВО ИВАС Лимы ИВО ИВАС Кут Хуми","045. Изначальная ИВО Отдела Праокскости ИВО ИВАС Лимы ИВО ИВАС Кут Хуми"]
[null,null,null,null,"Авроры","044. Изначальный ИВО Отдела Пракрасоты ИВО ИВАС Флавии ИВО ИВАС Кут Хуми","044. Изначальная ИВО Отдела Пракрасоты ИВО ИВАС Флавии ИВО ИВАС Кут Хуми","044. Изначальный ИВО Отдела Пракрасоты ИВО ИВАС Флавии ИВО ИВАС Кут Хуми","044. Изначальная ИВО Отдела Пракрасоты ИВО ИВАС Флавии ИВО ИВАС Кут Хуми"]
[null,null,null,null,"Диланы","043. Изначальный ИВО Отдела Праконстанты ИВО ИВАС Яниты ИВО ИВАС Кут Хуми","043. Изначальная ИВО Отдела Праконстанты ИВО ИВАС Яниты ИВО ИВАС Кут Хуми","043. Изначальный ИВО Отдела Праконстанты ИВО ИВАС Яниты ИВО ИВАС Кут Хуми","043. Изначальная ИВО Отдела Праконстанты ИВО ИВАС Яниты ИВО ИВАС Кут Хуми"]
[null,null,null,null,"Яси","042. Изначальный ИВО Отдела Празнания ИВО ИВАС Юноны ИВО ИВАС Кут Хуми","042. Изначальная ИВО Отдела Празнания ИВО ИВАС Юноны ИВО ИВАС Кут Хуми","042. Изначальный ИВО Отдела Празнания ИВО ИВАС Юноны ИВО ИВАС Кут Хуми","042. Изначальная ИВО Отдела Празнания ИВО ИВАС Юноны ИВО ИВАС Кут Хуми"]
[null,null,null,null,"Фиры","041. Изначальный ИВО Отдела Прамеры ИВО ИВАС Вены ИВО ИВАС Кут Хуми","041. Изначальная ИВО Отдела Прамеры ИВО ИВАС Вены ИВО ИВАС Кут Хуми","041. Изначальный ИВО Отдела Прамеры ИВО ИВАС Вены ИВО ИВАС Кут Хуми","041. Изначальная ИВО Отдела Прамеры ИВО ИВАС Вены ИВО ИВАС Кут Хуми"]
[null,null,null,null,"Омелии","040. Изначальный ИВО Отдела Прастандарта ИВО ИВАС Анны ИВО ИВАС Кут Хуми","040. Изначальная ИВО Отдела Прастандарта ИВО ИВАС Анны ИВО ИВАС Кут Хуми","040. Изначальный ИВО Отдела Прастандарта ИВО ИВАС Анны ИВО ИВАС Кут Хуми","040. Изначальная ИВО Отдела Прастандарта ИВО ИВАС Анны ИВО ИВАС Кут Хуми"]
[null,null,null,null,"Мадлен","039. Изначальный ИВО Отдела Празакона ИВО ИВАС Фаи ИВО ИВАС Кут Хуми","039. Изначальная ИВО Отдела Празакона ИВО ИВАС Фаи ИВО ИВАС Кут Хуми","039. Изначальный ИВО Отдела Празакона ИВО ИВАС Фаи ИВО ИВАС Кут Хуми","039. Изначальная ИВО Отдела Празакона ИВО ИВАС Фаи ИВО ИВАС Кут Хуми"]
[null,null,null,null,"Риммы","038. Изначальный ИВО Отдела Праимператива ИВО ИВАС Вергинии ИВО ИВАС Кут Хуми","038. Изначальная ИВО Отдела Праимператива ИВО ИВАС Вергинии ИВО ИВАС Кут Хуми","038. Изначальный ИВО Отдела Праимператива ИВО ИВАС Вергинии ИВО ИВАС Кут Хуми","038. Изначальная ИВО Отдела Праимператива ИВО ИВАС Вергинии ИВО ИВАС Кут Хуми"]
[null,null,null,null,"Беллы","037. Изначальный ИВО Отдела Прааксиомы ИВО ИВАС Светланы ИВО ИВАС Кут Хуми","037. Изначальная ИВО Отдела Прааксиомы ИВО ИВАС Светланы ИВО ИВАС Кут Хуми","037. Изначальный ИВО Отдела Прааксиомы ИВО ИВАС Светланы ИВО ИВАС Кут Хуми","037. Изначальная ИВО Отдела Прааксиомы ИВО ИВАС Светланы ИВО ИВАС Кут Хуми"]
[null,null,null,null,"Агнии","036. Изначальный ИВО Отдела Праначала ИВО ИВАС Валентины ИВО ИВАС Кут Хуми","036. Изначальная ИВО Отдела Праначала ИВО ИВАС Валентины ИВО ИВАС Кут Хуми","036. Изначальный ИВО Отдела Праначала ИВО ИВАС Валентины ИВО ИВАС Кут Хуми","036. Изначальная ИВО Отдела Праначала ИВО ИВАС Валентины ИВО ИВАС Кут Хуми"]
[null,null,null,null,"Фелиции","035. Изначальный ИВО Отдела Прапринципа ИВО ИВАС Натальи ИВО ИВАС Кут Хуми","035. Изначальная ИВО Отдела Прапринципа ИВО ИВАС Натальи ИВО ИВАС Кут Хуми","035. Изначальный ИВО Отдела Прапринципа ИВО ИВАС Натальи ИВО ИВАС Кут Хуми","035. Изначальная ИВО Отдела Прапринципа ИВО ИВАС Натальи ИВО ИВАС Кут Хуми"]
[null,null,null,null,"Виталины","034. Изначальный ИВО Отдела Праметода ИВО ИВАС Бьянки ИВО ИВАС Кут Хуми","034. Изначальная ИВО Отдела Праметода ИВО ИВАС Бьянки ИВО ИВАС Кут Хуми","034. Изначальный ИВО Отдела Праметода ИВО ИВАС Бьянки ИВО ИВАС Кут Хуми","034. Изначальная ИВО Отдела Праметода ИВО ИВАС Бьянки ИВО ИВАС Кут Хуми"]
[null,null,null,null,"Ноны","033. Изначальный ИВО Отдела Праправила ИВО ИВАС Эстер ИВО ИВАС Кут Хуми","033. Изначальная ИВО Отдела Праправила ИВО ИВАС Эстер ИВО ИВАС Кут Хуми","033. Изначальный ИВО Отдела Праправила ИВО ИВАС Эстер ИВО ИВАС Кут Хуми","033. Изначальная ИВО Отдела Праправила ИВО ИВАС Эстер ИВО ИВАС Кут Хуми"]
[null,null,null,null,"Клементины","032. Изначальный ИВО Отдела Праогня ИВО ИВАС Рады ИВО ИВАС Кут Хуми","032. Изначальная ИВО Отдела Праогня ИВО ИВАС Рады ИВО ИВАС Кут Хуми","032. Изначальный ИВО Отдела Праогня ИВО ИВАС Рады ИВО ИВАС Кут Хуми","032. Изначальная ИВО Отдела Праогня ИВО ИВАС Рады ИВО ИВАС Кут Хуми"]
[null,null,null,null,"Лиры","031. Изначальный ИВО Отдела Прадуха ИВО ИВАС Ниты ИВО ИВАС Кут Хуми","031. Изначальная ИВО Отдела Прадуха ИВО ИВАС Ниты ИВО ИВАС Кут Хуми","031. Изначальный ИВО Отдела Прадуха ИВО ИВАС Ниты ИВО ИВАС Кут Хуми","031. Изначальная ИВО Отдела Прадуха ИВО ИВАС Ниты ИВО ИВАС Кут Хуми"]
[null,null,null,null,"Ванессы","030. Изначальный ИВО Отдела Прасвета ИВО ИВАС Клеопатры ИВО ИВАС Кут Хуми","030. Изначальная ИВО Отдела Прасвета ИВО ИВАС Клеопатры ИВО ИВАС Кут Хуми","030. Изначальный ИВО Отдела Прасвета ИВО ИВАС Клеопатры ИВО ИВАС Кут Хуми","030. Изначальная ИВО Отдела Прасвета ИВО ИВАС Клеопатры ИВО ИВАС Кут Хуми"]
[null,null,null,null,"Евдокии","029. Изначальный ИВО Отдела Праэнергии ИВО ИВАС Агаты ИВО ИВАС Кут Хуми","029. Изначальная ИВО Отдела Праэнергии ИВО ИВАС Агаты ИВО ИВАС Кут Хуми","029. Изначальный ИВО Отдела Праэнергии ИВО ИВАС Агаты ИВО ИВАС Кут Хуми","029. Изначальная ИВО Отдела Праэнергии ИВО ИВАС Агаты ИВО ИВАС Кут Хуми"]
[null,null,null,null,"Клары","028. Изначальный ИВО Отдела Прасубъядерности ИВО ИВАС Лары ИВО ИВАС Кут Хуми","028. Изначальная ИВО Отдела Прасубъядерности ИВО ИВАС Лары ИВО ИВАС Кут Хуми","028. Изначальный ИВО Отдела Прасубъядерности ИВО ИВАС Лары ИВО ИВАС Кут Хуми","028. Изначальная ИВО Отдела Прасубъядерности ИВО ИВАС Лары ИВО ИВАС Кут Хуми"]
[null,null,null,null,"Лизы","027. Изначальный ИВО Отдела Праформы ИВО ИВАС Андрэа ИВО ИВАС Кут Хуми","027. Изначальная ИВО Отдела Праформы ИВО ИВАС Андрэа ИВО ИВАС Кут Хуми","027. Изначальный ИВО Отдела Праформы ИВО ИВАС Андрэа ИВО ИВАС Кут Хуми","027. Изначальная ИВО Отдела Праформы ИВО ИВАС Андрэа ИВО ИВАС Кут Хуми"]
[null,null,null,null,"Сюзанны","026. Изначальный ИВО Отдела Прасодержания ИВО ИВАС Лики ИВО ИВАС Кут Хуми","026. Изначальная ИВО Отдела Прасодержания ИВО ИВАС Лики ИВО ИВАС Кут Хуми","026. Изначальный ИВО Отдела Прасодержания ИВО ИВАС Лики ИВО ИВАС Кут Хуми","026. Изначальная ИВО Отдела Прасодержания ИВО ИВАС Лики ИВО ИВАС Кут Хуми"]
[null,null,null,null,"Сейлы","025. Изначальный ИВО Отдела Праполя ИВО ИВАС Исии ИВО ИВАС Кут Хуми","025. Изначальная ИВО Отдела Праполя ИВО ИВАС Исии ИВО ИВАС Кут Хуми","025. Изначальный ИВО Отдела Праполя ИВО ИВАС Исии ИВО ИВАС Кут Хуми","025. Изначальная ИВО Отдела Праполя ИВО ИВАС Исии ИВО ИВАС Кут Хуми"]
[null,null,null,null,"Русланы","024. Изначальный ИВО Отдела Правремени ИВО ИВАС Терезы ИВО ИВАС Кут Хуми","024. Изначальная ИВО Отдела Правремени ИВО ИВАС Терезы ИВО ИВАС Кут Хуми","024. Изначальный ИВО Отдела Правремени ИВО ИВАС Терезы ИВО ИВАС Кут Хуми","024. Изначальная ИВО Отдела Правремени ИВО ИВАС Терезы ИВО ИВАС Кут Хуми"]
[null,null,null,null,"Устины","023. Изначальный ИВО Отдела Прапространства ИВО ИВАС Фёклы ИВО ИВАС Кут Хуми","023. Изначальная ИВО Отдела Прапространства ИВО ИВАС Фёклы ИВО ИВАС Кут Хуми","023. Изначальный ИВО Отдела Прапространства ИВО ИВАС Фёклы ИВО ИВАС Кут Хуми","023. Изначальная ИВО Отдела Прапространства ИВО ИВАС Фёклы ИВО ИВАС Кут Хуми"]
[null,null,null,null,"Марики","022. Изначальный ИВО Отдела Праскорости ИВО ИВАС Интезы ИВО ИВАС Кут Хуми","022. Изначальная ИВО Отдела Праскорости ИВО ИВАС Интезы ИВО ИВАС Кут Хуми","022. Изначальный ИВО Отдела Праскорости ИВО ИВАС Интезы ИВО ИВАС Кут Хуми","022. Изначальная ИВО Отдела Праскорости ИВО ИВАС Интезы ИВО ИВАС Кут Хуми"]
[null,null,null,null,"Франсуазы","021. Изначальный ИВО Отдела Прамерности ИВО ИВАС Любавы ИВО ИВАС Кут Хуми","021. Изначальная ИВО Отдела Прамерности ИВО ИВАС Любавы ИВО ИВАС Кут Хуми","021. Изначальный ИВО Отдела Прамерности ИВО ИВАС Любавы ИВО ИВАС Кут Хуми","021. Изначальная ИВО Отдела Прамерности ИВО ИВАС Любавы ИВО ИВАС Кут Хуми"]
[null,null,null,null,"Христины","020. Изначальный ИВО Отдела Правоссоединённости ИВО ИВАС Иветты ИВО ИВАС Кут Хуми","020. Изначальная ИВО Отдела Правоссоединённости ИВО ИВАС Иветты ИВО ИВАС Кут Хуми","020. Изначальный ИВО Отдела Правоссоединённости ИВО ИВАС Иветты ИВО ИВАС Кут Хуми","020. Изначальная ИВО Отдела Правоссоединённости ИВО ИВАС Иветты ИВО ИВАС Кут Хуми"]
[null,null,null,null,"Иоланы","019. Изначальный ИВО Отдела Прасамоорганизации ИВО ИВАС Лючии ИВО ИВАС Кут Хуми","019. Изначальная ИВО Отдела Прасамоорганизации ИВО ИВАС Лючии ИВО ИВАС Кут Хуми","019. Изначальный ИВО Отдела Прасамоорганизации ИВО ИВАС Лючии ИВО ИВАС Кут Хуми","019. Изначальная ИВО Отдела Прасамоорганизации ИВО ИВАС Лючии ИВО ИВАС Кут Хуми"]
[null,null,null,null,"Джесики","018. Изначальный ИВО Отдела Праэманации ИВО ИВАС Марисы ИВО ИВАС Кут Хуми","018. Изначальная ИВО Отдела Праэманации ИВО ИВАС Марисы ИВО ИВАС Кут Хуми","018. Изначальный ИВО Отдела Праэманации ИВО ИВАС Марисы ИВО ИВАС Кут Хуми","018. Изначальная ИВО Отдела Праэманации ИВО ИВАС Марисы ИВО ИВАС Кут Хуми"]
[null,null,null,null,"Сабины","017. Изначальный ИВО Отдела Правещества ИВО ИВАС Всеславии ИВО ИВАС Кут Хуми","017. Изначальная ИВО Отдела Правещества ИВО ИВАС Всеславии ИВО ИВАС Кут Хуми","017. Изначальный ИВО Отдела Правещества ИВО ИВАС Всеславии ИВО ИВАС Кут Хуми","017. Изначальная ИВО Отдела Правещества ИВО ИВАС Всеславии ИВО ИВАС Кут Хуми"]
[null,null,null,null,"Нелли","016. Изначальный ИВО Отдела Праусловия ИВО ИВАС Бояры ИВО ИВАС Кут Хуми","016. Изначальная ИВО Отдела Праусловия ИВО ИВАС Бояры ИВО ИВАС Кут Хуми","016. Изначальный ИВО Отдела Праусловия ИВО ИВАС Бояры ИВО ИВАС Кут Хуми","016. Изначальная ИВО Отдела Праусловия ИВО ИВАС Бояры ИВО ИВАС Кут Хуми"]
[null,null,null,null,"Санты","015. Изначальный ИВО Отдела Прапробуждения ИВО ИВАС Мирей ИВО ИВАС Кут Хуми","015. Изначальная ИВО Отдела Прапробуждения ИВО ИВАС Мирей ИВО ИВАС Кут Хуми","015. Изначальный ИВО Отдела Прапробуждения ИВО ИВАС Мирей ИВО ИВАС Кут Хуми","015. Изначальная ИВО Отдела Прапробуждения ИВО ИВАС Мирей ИВО ИВАС Кут Хуми"]
[null,null,null,null,"Доротеи","014. Изначальный ИВО Отдела Праимперации ИВО ИВАС Элизы ИВО ИВАС Кут Хуми","014. Изначальная ИВО Отдела Праимперации ИВО ИВАС Элизы ИВО ИВАС Кут Хуми","014. Изначальный ИВО Отдела Праимперации ИВО ИВАС Элизы ИВО ИВАС Кут Хуми","014. Изначальная ИВО Отдела Праимперации ИВО ИВАС Элизы ИВО ИВАС Кут Хуми"]
[null,null,null,null,"Янины","013. Изначальный ИВО Отдела Правзгляда ИВО ИВАС Софины ИВО ИВАС Кут Хуми","013. Изначальная ИВО Отдела Правзгляда ИВО ИВАС Софины ИВО ИВАС Кут Хуми","013. Изначальный ИВО Отдела Правзгляда ИВО ИВАС Софины ИВО ИВАС Кут Хуми","013. Изначальная ИВО Отдела Правзгляда ИВО ИВАС Софины ИВО ИВАС Кут Хуми"]
[null,null,null,null,"Люции","012. Изначальный ИВО Отдела Прасинтезначала ИВО ИВАС Эдит ИВО ИВАС Кут Хуми","012. Изначальная ИВО Отдела Прасинтезначала ИВО ИВАС Эдит ИВО ИВАС Кут Хуми","012. Изначальный ИВО Отдела Прасинтезначала ИВО ИВАС Эдит ИВО ИВАС Кут Хуми","012. Изначальная ИВО Отдела Прасинтезначала ИВО ИВАС Эдит ИВО ИВАС Кут Хуми"]
[null,null,null,null,"Ирэн","011. Изначальный ИВО Отдела Праосновы ИВО ИВАС Эвелины ИВО ИВАС Кут Хуми","011. Изначальная ИВО Отдела Праосновы ИВО ИВАС Эвелины ИВО ИВАС Кут Хуми","011. Изначальный ИВО Отдела Праосновы ИВО ИВАС Эвелины ИВО ИВАС Кут Хуми","011. Изначальная ИВО Отдела Праосновы ИВО ИВАС Эвелины ИВО ИВАС Кут Хуми"]
[null,null,null,null,"Сесилии","010. Изначальный ИВО Отдела Прапараметода ИВО ИВАС Сиднии ИВО ИВАС Кут Хуми","010. Изначальная ИВО Отдела Прапараметода ИВО ИВАС Сиднии ИВО ИВАС Кут Хуми","010. Изначальный ИВО Отдела Прапараметода ИВО ИВАС Сиднии ИВО ИВАС Кут Хуми","010. Изначальная ИВО Отдела Прапараметода ИВО ИВАС Сиднии ИВО ИВАС Кут Хуми"]
[null,null,null,null,"Вериславы","009. Изначальный ИВО Отдела Прамощи ИВО ИВАС Сии ИВО ИВАС Кут Хуми","009. Изначальная ИВО Отдела Прамощи ИВО ИВАС Сии ИВО ИВАС Кут Хуми","009. Изначальный ИВО Отдела Прамощи ИВО ИВАС Сии ИВО ИВАС Кут Хуми","009. Изначальная ИВО Отдела Прамощи ИВО ИВАС Сии ИВО ИВАС Кут Хуми"]
[null,null,null,null,"Станиславы","008. Изначальный ИВО Отдела Праправа ИВО ИВАС Инны ИВО ИВАС Кут Хуми","008. Изначальная ИВО Отдела Праправа ИВО ИВАС Инны ИВО ИВАС Кут Хуми","008. Изначальный ИВО Отдела Праправа ИВО ИВАС Инны ИВО ИВАС Кут Хуми","008. Изначальная ИВО Отдела Праправа ИВО ИВАС Инны ИВО ИВАС Кут Хуми"]
[null,null,null,null,"Милославы","007. Изначальный ИВО Отдела Праидеи ИВО ИВАС Теоны ИВО ИВАС Кут Хуми","007. Изначальная ИВО Отдела Праидеи ИВО ИВАС Теоны ИВО ИВАС Кут Хуми","007. Изначальный ИВО Отдела Праидеи ИВО ИВАС Теоны ИВО ИВАС Кут Хуми","007. Изначальная ИВО Отдела Праидеи ИВО ИВАС Теоны ИВО ИВАС Кут Хуми"]
[null,null,null,null,"Константы","006. Изначальный ИВО Отдела Прасути ИВО ИВАС Лоны ИВО ИВАС Кут Хуми","006. Изначальная ИВО Отдела Прасути ИВО ИВАС Лоны ИВО ИВАС Кут Хуми","006. Изначальный ИВО Отдела Прасути ИВО ИВАС Лоны ИВО ИВАС Кут Хуми","006. Изначальная ИВО Отдела Прасути ИВО ИВАС Лоны ИВО ИВАС Кут Хуми"]
[null,null,null,null,"Александры","005. Изначальный ИВО Отдела Прасмысла ИВО ИВАС Лолиты ИВО ИВАС Кут Хуми","005. Изначальная ИВО Отдела Прасмысла ИВО ИВАС Лолиты ИВО ИВАС Кут Хуми","005. Изначальный ИВО Отдела Прасмысла ИВО ИВАС Лолиты ИВО ИВАС Кут Хуми","005. Изначальная ИВО Отдела Прасмысла ИВО ИВАС Лолиты ИВО ИВАС Кут Хуми"]
[null,null,null,null,"Иларии","004. Изначальный ИВО Отдела Прамысли ИВО ИВАС Терии ИВО ИВАС Кут Хуми","004. Изначальная ИВО Отдела Прамысли ИВО ИВАС Терии ИВО ИВАС Кут Хуми","004. Изначальный ИВО Отдела Прамысли ИВО ИВАС Терии ИВО ИВАС Кут Хуми","004. Изначальная ИВО Отдела Прамысли ИВО ИВАС Терии ИВО ИВАС Кут Хуми"]
[null,null,null,null,"Феодоры","003. Изначальный ИВО Отдела Прачувства ИВО ИВАС Саны ИВО ИВАС Кут Хуми","003. Изначальная ИВО Отдела Прачувства ИВО ИВАС Саны ИВО ИВАС Кут Хуми","003. Изначальный ИВО Отдела Прачувства ИВО ИВАС Саны ИВО ИВАС Кут Хуми","003. Изначальная ИВО Отдела Прачувства ИВО ИВАС Саны ИВО ИВАС Кут Хуми"]
[null,null,null,null,"Владиславы","002. Изначальный ИВО Отдела Праощущения ИВО ИВАС Верессы ИВО ИВАС Кут Хуми","002. Изначальная ИВО Отдела Праощущения ИВО ИВАС Верессы ИВО ИВАС Кут Хуми","002. Изначальный ИВО Отдела Праощущения ИВО ИВАС Верессы ИВО ИВАС Кут Хуми","002. Изначальная ИВО Отдела Праощущения ИВО ИВАС Верессы ИВО ИВАС Кут Хуми"]
[null,null,null,null,"Агнессы",{"$f":"H469","v":"001. Изначальный ИВО Отдела Прадвижения ИВО ИВАС Мирры ИВО ИВАС Кут Хуми."},{"$f":"I469","v":"001. Изначальная ИВО Отдела Прадвижения ИВО ИВАС Мирры ИВО ИВАС Кут Хуми."},"001. Изначальный ИВО Отдела Прадвижения ИВО ИВАС Мирры ИВО ИВАС Кут Хуми.","001. Изначальная ИВО Отдела Прадвижения ИВО ИВАС Мирры ИВО ИВАС Кут Хуми."]
[null,null,null,null,"Онии",null,null,"",""]
[null,null,null,null,"Виданы",null,null,"",""]
[null,null,null,null,"Ярославы",null,null,"",""]
[null,null,null,null,"Роксаны",null,null,"",""]
[null,null,null,null,"Аврониты",null,null,"",""]
[null,null,null,null,"Эсфирь",null,null,"",""]
[null,null,null,null,"Софии",null,null,"",""]
[null,null,null,null,"Анжелы",null,null,"",""]
[null,null,null,null,"Изольды",null,null,"",""]
[null,null,null,null,"Юлии",null,null,"",""]
[null,null,null,null,"Илоты",null,null,"",""]
[null,null,null,null,"Марианны",null,null,"",""]
[null,null,null,null,"Мариславы",null,null,"",""]
[null,null,null,null,"Лимы",null,null,"",""]
[null,null,null,null,"Флавии",null,null,"",""]
[null,null,null,null,"Яниты",null,null,"",""]
[null,null,null,null,"Юноны",null,null,"",""]
[null,null,null,null,"Вены",null,null,"",""]
[null,null,null,null,"Анны",null,null,"",""]
[null,null,null,null,"Фаи",null,null,"",""]
[null,null,null,null,"Виргинии",null,null,"",""]
[null,null,null,null,"Светланы",null,null,"",""]
[null,null,null,null,"Валентины",null,null,"",""]
[null,null,null,null,"Натальи",null,null,"",""]
[null,null,null,null,"Бьянки",null,null,"",""]
[null,null,null,null,"Эстер",null,null,"",""]
[null,null,null,null,"Рады",null,null,"",""]
[null,null,null,null,"Ниты",null,null,"",""]
[null,null,null,null,"Клеопатры",null,null,"",""]
[null,null,null,null,"Агаты",null,null,"",""]
[null,null,null,null,"Лары",null,null,"",""]
[null,null,null,null,"Андрэа",null,null,"",""]
[null,null,null,null,"Лики",null,null,"",""]
[null,null,null,null,"Исии",null,null,"",""]
[null,null,null,null,"Терезы",null,null,"",""]
[null,null,null,null,"Фёклы",null,null,"",""]
[null,null,null,null,"Интезы",null,null,"",""]
[null,null,null,null,"Любавы",null,null,"",""]
[null,null,null,null,"Иветты",null,null,"",""]
[null,null,null,null,"Лючии",null,null,"",""]
[null,null,null,null,"Марисы",null,null,"",""]
[null,null,null,null,"Всеславии",null,null,"",""]
[null,null,null,null,"Бояры",null,null,"",""]
[null,null,null,null,"Мирей",null,null,"",""]
[null,null,null,null,"Элизы",null,null,"",""]
[null,null,null,null,"Софины",null,null,"",""]
[null,null,null,null,"Эдит",null,null,"",""]
[null,null,null,null,"Эвелины",null,null,"",""]
[null,null,null,null,"Сиднии",null,null,"",""]
[null,null,null,null,"Сии",null,null,"",""]
[null,null,null,null,"Инны",null,null,"",""]
[null,null,null,null,"Теоны",null,null,"",""]
[null,null,null,null,"Лоны",null,null,"",""]
[null,null,null,null,"Лолиты",null,null,"",""]
[null,null,null,null,"Терии",null,null,"",""]
[null,null,null,null,"Саны",null,null,"",""]
[null,null,null,null,"Верессы",null,null,"",""]
[null,null,null,null,"Мирры",null,null,"",""]